Workbook

Sheet Feuil1
C2: Bonus | F2: 1) Ce qui nous interresse est dans la partie jaune, en haut, de gauche a droite. En blanc, les cases a remplir | P2: 4) Choisir entre l'approximation des kits=0 ou kit officiel=1. Dans ce | AH2: choisir une tactique : | AY2: 7) Choisir la position des joueurs. | BJ2: 9) Entrer les bonus de match que vous pensez avoir. | CH2: equipe de l'adversaire
AH3: Def/Neutre/Off : | AJ3: =AH4 -> 433 | AP3: =AH5 -> Offensif | AV3: total sans bonus | BS3: Nom de l'équipe adverse à analyser :
F4: , en jaune pale, les informations. Les données sont indicatives (a 1% pres) pour un moral et une energie max. | P4: dernier cas, entrer les valeurs des caracteristiques de vos kits. | AH4: 433 | AV4: =BG24 -> 8654.61 | CH4: NOM | CK4: force | CL4: hab | CM4: vit | CN4: end | CO4: int | CP4: XP | CQ4: cap
AH5: Offensif | CG5: 1 | CH5: =OFFSET(Feuil6!A3,0,'import advers'!$S$3) -> 0 | CJ5: =CLEAN(SUBSTITUTE(HLOOKUP([2]Feuil1!CH5,[2]Feuil6!$A$3:$V$26,11,FALSE),"Force","")) -> 408 | CK5: =CLEAN(SUBSTITUTE(HLOOKUP(Feuil1!CH5,Feuil6!$A$3:$V$26,11,FALSE),"Force","")) ->  | CL5: =CLEAN(SUBSTITUTE(HLOOKUP(Feuil1!CH5,Feuil6!$A$3:$V$26,13,FALSE),"Habileté","")) ->  | CM5: =CLEAN(SUBSTITUTE(HLOOKUP(Feuil1!CH5,Feuil6!$A$3:$V$26,15,FALSE),"Vitesse","")) ->  | CN5: =CLEAN(SUBSTITUTE(HLOOKUP(Feuil1!CH5,Feuil6!$A$3:$V$26,17,FALSE),"Endurance","")) ->  | CO5: =CLEAN(SUBSTITUTE(HLOOKUP(Feuil1!CH5,Feuil6!$A$3:$V$26,19,FALSE),"Intelligence","")) ->  | CP5: =VALUE(CLEAN(HLOOKUP(Feuil1!CH5,Feuil6!$A$3:$V$26,7,FALSE))) ->  | CQ5: =IF(CH5<>"",(CO5/100+MIN(5000,CP5)/500)/100,"") -> 
C6: batiments : | F6: 2) Remplir les cases blanches de "bonus batiments" a "objets" par la valeur des gains. Pour "objet", il | W6: 5) Choisir une tactique. | AV6: Position : | AX6: Capitaine | BS6: scapulaire | CG6: 2 | CH6: =OFFSET(Feuil6!B3,0,'import advers'!$S$3) -> 0 | CJ6: =CLEAN(SUBSTITUTE(HLOOKUP([2]Feuil1!CH6,[2]Feuil6!$A$3:$V$26,11,FALSE),"Force","")) -> 770 | CK6: =CLEAN(SUBSTITUTE(HLOOKUP(Feuil1!CH6,Feuil6!$A$3:$V$26,11,FALSE),"Force","")) ->  | CL6: =CLEAN(SUBSTITUTE(HLOOKUP(Feuil1!CH6,Feuil6!$A$3:$V$26,13,FALSE),"Habileté","")) ->  | CM6: =CLEAN(SUBSTITUTE(HLOOKUP(Feuil1!CH6,Feuil6!$A$3:$V$26,15,FALSE),"Vitesse","")) ->  | CN6: =CLEAN(SUBSTITUTE(HLOOKUP(Feuil1!CH6,Feuil6!$A$3:$V$26,17,FALSE),"Endurance","")) ->  | CO6: =CLEAN(SUBSTITUTE(HLOOKUP(Feuil1!CH6,Feuil6!$A$3:$V$26,19,FALSE),"Intelligence","")) ->  | CP6: =VALUE(CLEAN(HLOOKUP(Feuil1!CH6,Feuil6!$A$3:$V$26,7,FALSE))) -> 
AJ7: 1 | AK7: 2 | AL7: 3 | AM7: 4 | AN7: 5 | AO7: 6 | AP7: 7 | AQ7: 8 | AR7: 9 | AS7: 10 | AT7: 11 | BK7: Meilleur capitaine : | CG7: 3 | CH7: =OFFSET(Feuil6!C3,0,'import advers'!$S$3) -> 0 | CJ7: =CLEAN(SUBSTITUTE(HLOOKUP([2]Feuil1!CH7,[2]Feuil6!$A$3:$V$26,11,FALSE),"Force","")) -> 725 | CK7: =CLEAN(SUBSTITUTE(HLOOKUP(Feuil1!CH7,Feuil6!$A$3:$V$26,11,FALSE),"Force","")) ->  | CL7: =CLEAN(SUBSTITUTE(HLOOKUP(Feuil1!CH7,Feuil6!$A$3:$V$26,13,FALSE),"Habileté","")) ->  | CM7: =CLEAN(SUBSTITUTE(HLOOKUP(Feuil1!CH7,Feuil6!$A$3:$V$26,15,FALSE),"Vitesse","")) ->  | CN7: =CLEAN(SUBSTITUTE(HLOOKUP(Feuil1!CH7,Feuil6!$A$3:$V$26,17,FALSE),"Endurance","")) ->  | CO7: =CLEAN(SUBSTITUTE(HLOOKUP(Feuil1!CH7,Feuil6!$A$3:$V$26,19,FALSE),"Intelligence","")) ->  | CP7: =VALUE(CLEAN(HLOOKUP(Feuil1!CH7,Feuil6!$A$3:$V$26,7,FALSE))) -> 
C8: force : | D8: =Team!A11 -> 55 | F8: s'agit de la valeur max des objets que l'on trouve au marché. | O8: caracteristiques kit en cours | AG8: 0 | AI8: =IF(G11="","",G11) -> espagne 9 | AJ8: =IF(AI8<>"",AY56*IF($AX$37=1,$BW$58,1),"") -> 999.98325 | AK8: =IF(AI8<>"",BP56*IF($AX$37=1,$BW$59,1),"") -> 593.9846 | AL8: =IF(AI8<>"",AY83*IF($AX$37=1,$BW$60,1),"") -> 593.9846 | AM8: =IF(AI8<>"",BP83*IF($AX$37=1,$BW$61,1),"") -> 374.8045 | AN8: =IF(AI8<>"",AY110*IF($AX$37=1,$BW$62,1),"") -> 839.2076 | AO8: =IF(AI8<>"",BP110*IF($AX$37=1,$BW$63,1),"") -> 674.63572 | AP8: =IF(AI8<>"",AY137*IF($AX$37=1,$BW$64,1),"") -> 637.743 | AQ8: =IF(AI8<>"",BP137*IF($AX$37=1,$BW$65,1),"") -> 1187.991 | AR8: =IF(AI8<>"",AY164*IF($AX$37=1,$BW$66,1),"") -> 799.2512 | AS8: =IF(AI8<>"",BP164*IF($AX$37=1,$BW$67,1),"") -> 569.17 | AT8: =IF(AI8<>"",AY191*IF($AX$37=1,$BW$68,1),"") -> 1187.991 | AV8: 1 | AW8: =IF(ISNA(VLOOKUP(1,$AV$8:$AV$33,1,FALSE)),1,"") ->  | AX8: =IF(AND(AV8<>"",AI8<>""),IF(ISNA(VLOOKUP(AI8,$E$104:$I$128,5,FALSE)),0,VLOOKUP(AI8,$E$104:$I$128,5,FALSE)),"") -> 0.07398 | BK8: =IF(ISNA(VLOOKUP("CAP",D104:I128,2,)),"",VLOOKUP("CAP",D104:I128,2,)) -> grece 7 | BO8: =IF(ISNA(VLOOKUP(BK8,E104:I128,5,FALSE)),"",VLOOKUP(BK8,E104:I128,5,FALSE)) -> 0.08312 | BR8: brut adversaire sans bonus | CG8: 4 | CH8: =OFFSET(Feuil6!D3,0,'import advers'!$S$3) -> 0 | CJ8: =CLEAN(SUBSTITUTE(HLOOKUP([2]Feuil1!CH8,[2]Feuil6!$A$3:$V$26,11,FALSE),"Force","")) -> 770 | CK8: =CLEAN(SUBSTITUTE(HLOOKUP(Feuil1!CH8,Feuil6!$A$3:$V$26,11,FALSE),"Force","")) ->  | CL8: =CLEAN(SUBSTITUTE(HLOOKUP(Feuil1!CH8,Feuil6!$A$3:$V$26,13,FALSE),"Habileté","")) ->  | CM8: =CLEAN(SUBSTITUTE(HLOOKUP(Feuil1!CH8,Feuil6!$A$3:$V$26,15,FALSE),"Vitesse","")) ->  | CN8: =CLEAN(SUBSTITUTE(HLOOKUP(Feuil1!CH8,Feuil6!$A$3:$V$26,17,FALSE),"Endurance","")) ->  | CO8: =CLEAN(SUBSTITUTE(HLOOKUP(Feuil1!CH8,Feuil6!$A$3:$V$26,19,FALSE),"Intelligence","")) ->  | CP8: =VALUE(CLEAN(HLOOKUP(Feuil1!CH8,Feuil6!$A$3:$V$26,7,FALSE))) -> 
C9: habilité : | D9: =+Team!B11 -> 55 | G9: 11652 | H9: 11776 | Q9: kit 1 | R9: kit 2/3 | T9: kit 4 | V9: kit 5 | W9: kit 6/7 | Z9: kit 8 | AA9: kit 9 | AC9: kit 10 | AD9: kit 11 | AG9: 0 | AI9: =IF(G12="","",G12) -> 2 | AJ9: =IF(AI9<>"",AY57*IF($AX$37=1,$BW$58,1),"") -> 890.99325 | AK9: 624.8645333 | AL9: 624.8645333 | AM9: 426.8775 | AN9: 937.2968 | AO9: 699.70296 | AP9: 690.6621 | AQ9: 1158.927 | AR9: 742.4862 | AS9: 629.72 | AT9: 1158.927 | AV9: 2 | AW9: =IF(ISNA(VLOOKUP(2,$AV$8:$AV$33,1,FALSE)),2,"") ->  | AX9: =IF(AND(AV9<>"",AI9<>""),IF(ISNA(VLOOKUP(AI9,$E$104:$I$128,5,FALSE)),0,VLOOKUP(AI9,$E$104:$I$128,5,FALSE)),"") -> 0.075 | BA9: nom du joueur | BB9: kit | BC9: attaque | BE9: defense | BG9: cumulé | BI9: XP | CB9: code choix tactique | CG9: 5 | CH9: =OFFSET(Feuil6!E3,0,'import advers'!$S$3) -> 0 | CJ9: =CLEAN(SUBSTITUTE(HLOOKUP([2]Feuil1!CH9,[2]Feuil6!$A$3:$V$26,11,FALSE),"Force","")) -> 483 | CK9: =CLEAN(SUBSTITUTE(HLOOKUP(Feuil1!CH9,Feuil6!$A$3:$V$26,11,FALSE),"Force","")) ->  | CL9: =CLEAN(SUBSTITUTE(HLOOKUP(Feuil1!CH9,Feuil6!$A$3:$V$26,13,FALSE),"Habileté","")) ->  | CM9: =CLEAN(SUBSTITUTE(HLOOKUP(Feuil1!CH9,Feuil6!$A$3:$V$26,15,FALSE),"Vitesse","")) ->  | CN9: =CLEAN(SUBSTITUTE(HLOOKUP(Feuil1!CH9,Feuil6!$A$3:$V$26,17,FALSE),"Endurance","")) ->  | CO9: =CLEAN(SUBSTITUTE(HLOOKUP(Feuil1!CH9,Feuil6!$A$3:$V$26,19,FALSE),"Intelligence","")) ->  | CP9: =VALUE(CLEAN(HLOOKUP(Feuil1!CH9,Feuil6!$A$3:$V$26,7,FALSE))) -> 
C10: vitesse : | D10: =Team!C11 -> 45 | G10: NOM | H10: force | I10: habilité | J10: vitesse | K10: endurance | L10: intelligence | M10: XP | N10: % Capitaine | P10: force | Q10: =IF(Q39=1,Q26,Q19) -> 41 | R10: 69 | S10: 0 | T10: 73 | U10: 0 | V10: 70 | W10: 61 | X10: 0 | Y10: 61 | Z10: 56 | AA10: 61 | AB10: 0 | AC10: 46 | AD10: 51 | AG10: 0 | AI10: 3 | AJ10: =IF(AI10<>"",AY58*IF($AX$37=1,$BW$58,1),"") -> 701.623125 | AK10: 606.6998667 | AL10: 606.6998667 | AM10: 409.9235 | AN10: 850.1064 | AO10: 627.77088 | AP10: 559.0428 | AQ10: 935.4975 | AR10: 584.6795 | AS10: 534.57 | AT10: 935.4975 | AV10: 3 | AW10: =IF(ISNA(VLOOKUP(3,$AV$8:$AV$33,1,FALSE)),3,"") ->  | AX10: 0.0682 | AZ10: 1 | BA10: =IF(AV8=1,AI8,IF(AV9=1,AI9,IF(AV10=1,AI10,IF(AV11=1,AI11,IF(AV12=1,AI12,IF(AV13=1,AI13,IF(AV14=1,AI14,IF(AV15=1,AI15,BT70)))))))) -> espagne 9 | BB10: =IF(AV8=1,BS113,IF(AV9=1,BS114,IF(AV10=1,BS115,IF(AV11=1,BS116,IF(AV12=1,BS117,IF(AV13=1,BS118,IF(AV14=1,BS119,IF(AV15=1,BS120,BT140)))))))) -> kit 1 | BC10: =BW70*BS58 -> 99.98915 | BE10: =BW70*BU58 -> 899.9941 | BG10: =ROUND(BW70*BW58,2) -> 999.98 | BI10: =VLOOKUP(BA10,$G$11:$M$32,7,FALSE) -> 1369 | BR10: tactique adversaire | BU10: attaque | BW10: défense | BY10: cumulé | CG10: 6 | CH10: =OFFSET(Feuil6!F3,0,'import advers'!$S$3) -> 0 | CJ10: =CLEAN(SUBSTITUTE(HLOOKUP([2]Feuil1!CH10,[2]Feuil6!$A$3:$V$26,11,FALSE),"Force","")) -> 680 | CK10: =CLEAN(SUBSTITUTE(HLOOKUP(Feuil1!CH10,Feuil6!$A$3:$V$26,11,FALSE),"Force","")) ->  | CL10: =CLEAN(SUBSTITUTE(HLOOKUP(Feuil1!CH10,Feuil6!$A$3:$V$26,13,FALSE),"Habileté","")) ->  | CM10: =CLEAN(SUBSTITUTE(HLOOKUP(Feuil1!CH10,Feuil6!$A$3:$V$26,15,FALSE),"Vitesse","")) ->  | CN10: =CLEAN(SUBSTITUTE(HLOOKUP(Feuil1!CH10,Feuil6!$A$3:$V$26,17,FALSE),"Endurance","")) ->  | CO10: =CLEAN(SUBSTITUTE(HLOOKUP(Feuil1!CH10,Feuil6!$A$3:$V$26,19,FALSE),"Intelligence","")) ->  | CP10: =VALUE(CLEAN(HLOOKUP(Feuil1!CH10,Feuil6!$A$3:$V$26,7,FALSE))) -> 
C11: endurance : | D11: =Team!D11 -> 40 | F11: 1 | G11: =IF(Team!C44<>0,Team!C44,"") -> espagne 9 | H11: =IF($G11<>"",VLOOKUP(Team!X17,Team!$E$30:$F$300,2,FALSE),"") -> 410 | I11: =IF($G11<>"",VLOOKUP(Team!Y17,Team!$E$41:$F$300,2,FALSE),"") -> 518 | J11: =IF($G11<>"",VLOOKUP(Team!Z17,Team!$E$41:$F$300,2,FALSE),"") -> 487 | K11: =IF($G11<>"",VLOOKUP(Team!AA17,Team!$E$41:$F$300,2,FALSE),"") -> 464 | L11: =IF($G11<>"",VLOOKUP(Team!AB17,Team!$E$41:$F$300,2,FALSE),"") -> 290 | M11: =IF($G11<>"",VALUE(VLOOKUP(Team!X17,Team!$E$41:$P$300,12,FALSE)),"") -> 1369 | N11: =G104 -> 0.05638 | P11: habilité | Q11: =IF(Q40=1,Q27,Q20) -> 80 | R11: 52 | S11: 0 | T11: 45 | U11: 0 | V11: 56 | W11: 61 | X11: 0 | Y11: 61 | Z11: 64 | AA11: 68 | AB11: 0 | AC11: 68 | AD11: 64 | AG11: 0 | AI11: algerie 4 | AJ11: 613.06875 | AK11: 529.95415 | AL11: 529.95415 | AM11: 423.2445 | AN11: 721.1372667 | AO11: 596.7093 | AP11: 488.484 | AQ11: 817.425 | AR11: 510.885 | AS11: 467.1 | AT11: 817.425 | AV11: 4 | AW11: =IF(ISNA(VLOOKUP(4,$AV$8:$AV$33,1,FALSE)),4,"") ->  | AX11: 0.06742 | AZ11: 2 | BA11: =IF(AV8=2,AI8,IF(AV9=2,AI9,IF(AV10=2,AI10,IF(AV11=2,AI11,IF(AV12=2,AI12,IF(AV13=2,AI13,IF(AV14=2,AI14,IF(AV15=2,AI15,BT71)))))))) -> 2 | BB11: =IF(AV8=2,BU113,IF(AV9=2,BU114,IF(AV10=2,BU115,IF(AV11=2,BU116,IF(AV12=2,BU117,IF(AV13=2,BU118,IF(AV14=2,BU119,IF(AV15=2,BU120,BT141)))))))) -> kit 2/3 | BC11: 437.4074667 | BE11: =BW71*BU59 -> 187.4570667 | BG11: 624.86 | BI11: =VLOOKUP(BA11,$G$11:$M$32,7,FALSE) -> 1190 | BK11: bonus match | BR11: =IF(CA15=CE11,CC11,IF(CA15=CE12,CC12,IF(CA15=CE13,CC13,IF(CA15=CE14,CC14,erreur)))) -> 433 | BS11: =IF(CA17=CE16,CC16,IF(CA17=CE17,CC17,IF(CA17=CE18,CC18,erreur))) -> neutre | BU11: =CA70 ->  | BW11: =CB70 ->  | BY11: =ROUND(BU11+BW11,2) ->  | CC11: 541 | CE11: 1 | CG11: 7 | CH11: =OFFSET(Feuil6!G3,0,'import advers'!$S$3) -> 0 | CJ11: =CLEAN(SUBSTITUTE(HLOOKUP([2]Feuil1!CH11,[2]Feuil6!$A$3:$V$26,11,FALSE),"Force","")) -> 680 | CK11: =CLEAN(SUBSTITUTE(HLOOKUP(Feuil1!CH11,Feuil6!$A$3:$V$26,11,FALSE),"Force","")) ->  | CL11: =CLEAN(SUBSTITUTE(HLOOKUP(Feuil1!CH11,Feuil6!$A$3:$V$26,13,FALSE),"Habileté","")) ->  | CM11: =CLEAN(SUBSTITUTE(HLOOKUP(Feuil1!CH11,Feuil6!$A$3:$V$26,15,FALSE),"Vitesse","")) ->  | CN11: =CLEAN(SUBSTITUTE(HLOOKUP(Feuil1!CH11,Feuil6!$A$3:$V$26,17,FALSE),"Endurance","")) ->  | CO11: =CLEAN(SUBSTITUTE(HLOOKUP(Feuil1!CH11,Feuil6!$A$3:$V$26,19,FALSE),"Intelligence","")) ->  | CP11: =VALUE(CLEAN(HLOOKUP(Feuil1!CH11,Feuil6!$A$3:$V$26,7,FALSE))) -> 
C12: intelligence : | D12: =Team!E11 -> 39 | F12: 2 | G12: =IF(Team!C55<>0,Team!C55,"") -> 2 | H12: =IF($G12<>"",VLOOKUP(Team!X18,Team!$E$41:$F$300,2,FALSE),"") -> 496 | I12: =IF($G12<>"",VLOOKUP(Team!Y18,Team!$E$41:$F$300,2,FALSE),"") -> 438 | J12: =IF($G12<>"",VLOOKUP(Team!Z18,Team!$E$41:$F$300,2,FALSE),"") -> 443 | K12: =IF($G12<>"",VLOOKUP(Team!AA18,Team!$E$41:$F$300,2,FALSE),"") -> 498 | L12: =IF($G12<>"",VLOOKUP(Team!AB18,Team!$E$41:$F$300,2,FALSE),"") -> 340 | M12: =IF($G12<>"",VALUE(VLOOKUP(Team!X18,Team!$E$41:$P$300,12,FALSE)),"") -> 1190 | N12: =G105 -> 0.0578 | P12: vitesse | Q12: =IF(Q41=1,Q28,Q21) -> 41 | R12: 60 | S12: 0 | T12: 73 | U12: 0 | V12: 56 | W12: 61 | X12: 0 | Y12: 61 | Z12: 64 | AA12: 68 | AB12: 0 | AC12: 53 | AD12: 71 | AG12: 0 | AI12: ghana 5 | AJ12: =IF(AI12<>"",AY60*IF($AX$37=1,$BW$58,1),"") -> 888.2685 | AK12: 545.8482333 | AL12: 545.8482333 | AM12: 400.841 | AN12: 901.8757 | AO12: 655.01788 | AP12: 652.39752 | AQ12: 1091.7165 | AR12: 740.2156 | AS12: 641.83 | AT12: 1091.7165 | AV12: 5 | AW12: =IF(ISNA(VLOOKUP(5,$AV$8:$AV$33,1,FALSE)),5,"") ->  | AX12: 0.0729 | AZ12: 3 | BA12: =IF(AV8=3,AI8,IF(AV9=3,AI9,IF(AV10=3,AI10,IF(AV11=3,AI11,IF(AV12=3,AI12,IF(AV13=3,AI13,IF(AV14=3,AI14,IF(AV15=3,AI15,BT72)))))))) -> 3 | BB12: =IF(AV8=3,BW113,IF(AV9=3,BW114,IF(AV10=3,BW115,IF(AV11=3,BW116,IF(AV12=3,BW117,IF(AV13=3,BW118,IF(AV14=3,BW119,IF(AV15=3,BW120,BT142)))))))) -> kit 2/3 | BC12: 424.6921333 | BE12: 182.0077333 | BG12: 606.7 | BI12: 1110 | CC12: 433 | CE12: 2 | CG12: 8 | CH12: =OFFSET(Feuil6!H3,0,'import advers'!$S$3) -> 0 | CJ12: =CLEAN(SUBSTITUTE(HLOOKUP([2]Feuil1!CH12,[2]Feuil6!$A$3:$V$26,11,FALSE),"Force","")) -> 483 | CK12: =CLEAN(SUBSTITUTE(HLOOKUP(Feuil1!CH12,Feuil6!$A$3:$V$26,11,FALSE),"Force","")) ->  | CL12: =CLEAN(SUBSTITUTE(HLOOKUP(Feuil1!CH12,Feuil6!$A$3:$V$26,13,FALSE),"Habileté","")) ->  | CM12: =CLEAN(SUBSTITUTE(HLOOKUP(Feuil1!CH12,Feuil6!$A$3:$V$26,15,FALSE),"Vitesse","")) ->  | CN12: =CLEAN(SUBSTITUTE(HLOOKUP(Feuil1!CH12,Feuil6!$A$3:$V$26,17,FALSE),"Endurance","")) ->  | CO12: =CLEAN(SUBSTITUTE(HLOOKUP(Feuil1!CH12,Feuil6!$A$3:$V$26,19,FALSE),"Intelligence","")) ->  | CP12: =VALUE(CLEAN(HLOOKUP(Feuil1!CH12,Feuil6!$A$3:$V$26,7,FALSE))) -> 
C13: Laboratoire : | D13: =Team!F11 -> 25 | F13: 3 | G13: =IF(Team!C66<>0,Team!C66,"") -> 3 | H13: =IF($G13<>"",VLOOKUP(Team!X19,Team!$E$41:$F$300,2,FALSE),"") -> 468 | I13: =IF($G13<>"",VLOOKUP(Team!Y19,Team!$E$41:$F$300,2,FALSE),"") -> 299 | J13: =IF($G13<>"",VLOOKUP(Team!Z19,Team!$E$41:$F$300,2,FALSE),"") -> 377 | K13: =IF($G13<>"",VLOOKUP(Team!AA19,Team!$E$41:$F$300,2,FALSE),"") -> 478 | L13: =IF($G13<>"",VLOOKUP(Team!AB19,Team!$E$41:$F$300,2,FALSE),"") -> 288 | M13: =IF($G13<>"",VALUE(VLOOKUP(Team!X19,Team!$E$41:$P$300,12,FALSE)),"") -> 1110 | N13: 0.051 | P13: endurance | Q13: =IF(Q42=1,Q29,Q22) -> 25 | R13: 69 | S13: 0 | T13: 64 | U13: 0 | V13: 56 | W13: 61 | X13: 0 | Y13: 61 | Z13: 64 | AA13: 56 | AB13: 0 | AC13: 60 | AD13: 64 | AG13: 0 | AI13: slovenie 6 | AJ13: 942.7635 | AK13: 566.7376 | AL13: 566.7376 | AM13: 391.7585 | AN13: 881.44045 | AO13: 680.08512 | AP13: 677.36448 | AQ13: 1133.496 | AR13: 785.6276 | AS13: 678.16 | AT13: 1133.496 | AV13: 6 | AW13: =IF(ISNA(VLOOKUP(6,$AV$8:$AV$33,1,FALSE)),6,"") ->  | AX13: 0.08192 | AZ13: 4 | BA13: =IF(AV8=4,AI8,IF(AV9=4,AI9,IF(AV10=4,AI10,IF(AV11=4,AI11,IF(AV12=4,AI12,IF(AV13=4,AI13,IF(AV14=4,AI14,IF(AV15=4,AI15,BT73)))))))) -> algerie 4 | BB13: =IF(AV8=4,BY113,IF(AV9=4,BY114,IF(AV10=4,BY115,IF(AV11=4,BY116,IF(AV12=4,BY117,IF(AV13=4,BY118,IF(AV14=4,BY119,IF(AV15=4,BY120,BT143)))))))) -> kit 2/3 | BC13: 169.2978 | BE13: 253.9467 | BG13: 423.24 | BI13: 1426 | BK13: bonus de chance : | BN13: 0 | BO13: % | BR13: bonus de chance : | BU13: 0 | BW13: % | BY13: tactique adversaire | CC13: 352 | CE13: 3 | CG13: 9 | CH13: =OFFSET(Feuil6!I3,0,'import advers'!$S$3) -> 0 | CJ13: =CLEAN(SUBSTITUTE(HLOOKUP([2]Feuil1!CH13,[2]Feuil6!$A$3:$V$26,11,FALSE),"Force","")) -> 846 | CK13: =CLEAN(SUBSTITUTE(HLOOKUP(Feuil1!CH13,Feuil6!$A$3:$V$26,11,FALSE),"Force","")) ->  | CL13: =CLEAN(SUBSTITUTE(HLOOKUP(Feuil1!CH13,Feuil6!$A$3:$V$26,13,FALSE),"Habileté","")) ->  | CM13: =CLEAN(SUBSTITUTE(HLOOKUP(Feuil1!CH13,Feuil6!$A$3:$V$26,15,FALSE),"Vitesse","")) ->  | CN13: =CLEAN(SUBSTITUTE(HLOOKUP(Feuil1!CH13,Feuil6!$A$3:$V$26,17,FALSE),"Endurance","")) ->  | CO13: =CLEAN(SUBSTITUTE(HLOOKUP(Feuil1!CH13,Feuil6!$A$3:$V$26,19,FALSE),"Intelligence","")) ->  | CP13: =VALUE(CLEAN(HLOOKUP(Feuil1!CH13,Feuil6!$A$3:$V$26,7,FALSE))) -> 
F14: 4 | G14: =IF(Team!C77<>0,Team!C77,"") -> algerie 4 | H14: =IF($G14<>"",VLOOKUP(Team!X20,Team!$E$41:$F$300,2,FALSE),"") -> 494 | I14: =IF($G14<>"",VLOOKUP(Team!Y20,Team!$E$41:$F$300,2,FALSE),"") -> 234 | J14: =IF($G14<>"",VLOOKUP(Team!Z20,Team!$E$41:$F$300,2,FALSE),"") -> 424 | K14: =IF($G14<>"",VLOOKUP(Team!AA20,Team!$E$41:$F$300,2,FALSE),"") -> 396 | L14: =IF($G14<>"",VLOOKUP(Team!AB20,Team!$E$41:$F$300,2,FALSE),"") -> 217 | M14: =IF($G14<>"",VALUE(VLOOKUP(Team!X20,Team!$E$41:$P$300,12,FALSE)),"") -> 1426 | N14: 0.05022 | P14: intelligence | Q14: =IF(Q43=1,Q30,Q23) -> 56 | R14: 52 | S14: 0 | T14: 45 | U14: 0 | V14: 56 | W14: 53 | X14: 0 | Y14: 53 | Z14: 48 | AA14: 49 | AB14: 0 | AC14: 60 | AD14: 44 | AG14: 0 | AI14: grece 7 | AJ14: =IF(AI14<>"",AY62*IF($AX$37=1,$BW$58,1),"") -> 919.603125 | AK14: 574.9117 | AL14: 574.9117 | AM14: 396.6025 | AN14: 892.33925 | AO14: 685.53452 | AP14: 682.79208 | AQ14: 1142.5785 | AR14: 766.3275 | AS14: 653.94 | AT14: 1142.5785 | AV14: 7 | AW14: =IF(ISNA(VLOOKUP(7,$AV$8:$AV$33,1,FALSE)),7,"") ->  | AX14: 0.08312 | AZ14: 5 | BA14: =IF(AV8=5,AI8,IF(AV9=5,AI9,IF(AV10=5,AI10,IF(AV11=5,AI11,IF(AV12=5,AI12,IF(AV13=5,AI13,IF(AV14=5,AI14,IF(AV15=5,AI15,BT74)))))))) -> ghana 5 | BB14: =IF(AV8=5,CA113,IF(AV9=5,CA114,IF(AV10=5,CA115,IF(AV11=5,CA116,IF(AV12=5,CA117,IF(AV13=5,CA118,IF(AV14=5,CA119,IF(AV15=5,CA120,BT144)))))))) -> kit 4 | BC14: 631.3163 | BE14: 270.5594 | BG14: 901.88 | BI14: 1070 | BK14: bonus d'experience : | BN14: =IF(CH20="Votre équipe à",CL20*100,0) ->  | BO14: % | BR14: bonus d'experience : | BU14: =IF(CH20="L'équipe adverse à",CL20*100,0) ->  | BW14: % | CC14: 442 | CE14: 4 | CG14: 10 | CH14: =OFFSET(Feuil6!J3,0,'import advers'!$S$3) -> 0 | CJ14: =CLEAN(SUBSTITUTE(HLOOKUP([2]Feuil1!CH14,[2]Feuil6!$A$3:$V$26,11,FALSE),"Force","")) -> 483 | CK14: =CLEAN(SUBSTITUTE(HLOOKUP(Feuil1!CH14,Feuil6!$A$3:$V$26,11,FALSE),"Force","")) ->  | CL14: =CLEAN(SUBSTITUTE(HLOOKUP(Feuil1!CH14,Feuil6!$A$3:$V$26,13,FALSE),"Habileté","")) ->  | CM14: =CLEAN(SUBSTITUTE(HLOOKUP(Feuil1!CH14,Feuil6!$A$3:$V$26,15,FALSE),"Vitesse","")) ->  | CN14: =CLEAN(SUBSTITUTE(HLOOKUP(Feuil1!CH14,Feuil6!$A$3:$V$26,17,FALSE),"Endurance","")) ->  | CO14: =CLEAN(SUBSTITUTE(HLOOKUP(Feuil1!CH14,Feuil6!$A$3:$V$26,19,FALSE),"Intelligence","")) ->  | CP14: =VALUE(CLEAN(HLOOKUP(Feuil1!CH14,Feuil6!$A$3:$V$26,7,FALSE))) -> 
C15: baby foot | D15: 5 | F15: 5 | G15: =IF(Team!C88<>0,Team!C88,"") -> ghana 5 | H15: =IF($G15<>"",VLOOKUP(Team!X21,Team!$E$41:$F$300,2,FALSE),"") -> 453 | I15: =IF($G15<>"",VLOOKUP(Team!Y21,Team!$E$41:$F$300,2,FALSE),"") -> 436 | J15: =IF($G15<>"",VLOOKUP(Team!Z21,Team!$E$41:$F$300,2,FALSE),"") -> 438 | K15: =IF($G15<>"",VLOOKUP(Team!AA21,Team!$E$41:$F$300,2,FALSE),"") -> 411 | L15: =IF($G15<>"",VLOOKUP(Team!AB21,Team!$E$41:$F$300,2,FALSE),"") -> 350 | M15: =IF($G15<>"",VALUE(VLOOKUP(Team!X21,Team!$E$41:$P$300,12,FALSE)),"") -> 1070 | N15: 0.0564 | AG15: 0 | AI15: australie 11 | AJ15: 903.254625 | AK15: 590.3516667 | AL15: 590.3516667 | AM15: 365.1165 | AN15: 821.49705 | AO15: 657.19764 | AP15: 654.0258 | AQ15: 1171.6425 | AR15: 740.8643429 | AS15: 601.867 | AT15: 1171.6425 | AV15: 8 | AW15: =IF(ISNA(VLOOKUP(8,$AV$8:$AV$33,1,FALSE)),8,"") ->  | AX15: 0.07304 | AZ15: 6 | BA15: =IF(AV8=6,AI8,IF(AV9=6,AI9,IF(AV10=6,AI10,IF(AV11=6,AI11,IF(AV12=6,AI12,IF(AV13=6,AI13,IF(AV14=6,AI14,IF(AV15=6,AI15,BT75)))))))) -> slovenie 6 | BB15: =IF(AV8=6,CC113,IF(AV9=6,CC114,IF(AV10=6,CC115,IF(AV11=6,CC116,IF(AV12=6,CC117,IF(AV13=6,CC118,IF(AV14=6,CC119,IF(AV15=6,CC120,BT145)))))))) -> kit 2/3 | BC15: 476.06208 | BE15: 204.02304 | BG15: 680.09 | BI15: 1336 | BK15: bonus a domicile : | BN15: 0 | BO15: % | BR15: bonus à domicile : | BU15: 0 | BW15: % | BY15: stratégie : | CA15: 2 | CG15: 11 | CH15: =OFFSET(Feuil6!K3,0,'import advers'!$S$3) -> 0 | CJ15: =CLEAN(SUBSTITUTE(HLOOKUP([2]Feuil1!CH15,[2]Feuil6!$A$3:$V$26,11,FALSE),"Force","")) -> 680 | CK15: =CLEAN(SUBSTITUTE(HLOOKUP(Feuil1!CH15,Feuil6!$A$3:$V$26,11,FALSE),"Force","")) ->  | CL15: =CLEAN(SUBSTITUTE(HLOOKUP(Feuil1!CH15,Feuil6!$A$3:$V$26,13,FALSE),"Habileté","")) ->  | CM15: =CLEAN(SUBSTITUTE(HLOOKUP(Feuil1!CH15,Feuil6!$A$3:$V$26,15,FALSE),"Vitesse","")) ->  | CN15: =CLEAN(SUBSTITUTE(HLOOKUP(Feuil1!CH15,Feuil6!$A$3:$V$26,17,FALSE),"Endurance","")) ->  | CO15: =CLEAN(SUBSTITUTE(HLOOKUP(Feuil1!CH15,Feuil6!$A$3:$V$26,19,FALSE),"Intelligence","")) ->  | CP15: =VALUE(CLEAN(HLOOKUP(Feuil1!CH15,Feuil6!$A$3:$V$26,7,FALSE))) -> 
C16: body pump | D16: 5 | F16: 6 | G16: =IF(Team!C99<>0,Team!C99,"") -> slovenie 6 | H16: =IF($G16<>"",VLOOKUP(Team!X22,Team!$E$41:$F$300,2,FALSE),"") -> 438 | I16: =IF($G16<>"",VLOOKUP(Team!Y22,Team!$E$41:$F$300,2,FALSE),"") -> 476 | J16: =IF($G16<>"",VLOOKUP(Team!Z22,Team!$E$41:$F$300,2,FALSE),"") -> 442 | K16: =IF($G16<>"",VLOOKUP(Team!AA22,Team!$E$41:$F$300,2,FALSE),"") -> 434 | L16: =IF($G16<>"",VLOOKUP(Team!AB22,Team!$E$41:$F$300,2,FALSE),"") -> 380 | M16: =IF($G16<>"",VALUE(VLOOKUP(Team!X22,Team!$E$41:$P$300,12,FALSE)),"") -> 1336 | N16: 0.06472 | P16: kit officiel : | Q16: 1 | R16: aprroximation kit : | W16: 0 | Z16: choix kit : | AC16: 0 | AG16: 0 | AI16: grece 9 | AJ16: 938.676375 | AK16: 467.7401667 | AL16: 467.7401667 | AM16: 361.4835 | AN16: 813.32295 | AO16: 561.2882 | AP16: 559.0428 | AQ16: 935.4975 | AR16: 759.0291429 | AS16: 561.904 | AT16: 935.4975 | AV16: 9 | AW16: =IF(ISNA(VLOOKUP(9,$AV$8:$AV$33,1,FALSE)),9,"") ->  | AX16: 0.0641 | AZ16: 7 | BA16: =IF(AV8=7,AI8,IF(AV9=7,AI9,IF(AV10=7,AI10,IF(AV11=7,AI11,IF(AV12=7,AI12,IF(AV13=7,AI13,IF(AV14=7,AI14,IF(AV15=7,AI15,BT76)))))))) -> grece 7 | BB16: =IF(AV8=7,CE113,IF(AV9=7,CE114,IF(AV10=7,CE115,IF(AV11=7,CE116,IF(AV12=7,CE117,IF(AV13=7,CE118,IF(AV14=7,CE119,IF(AV15=7,CE120,BT146)))))))) -> kit 2/3 | BC16: 477.96452 | BE16: 204.82756 | BG16: 682.79 | BI16: 1496 | BK16: bonus capitaine : | BN16: 14.92 | BO16: % | BR16: bonus capitaine : | BU16: =MAX(CQ5:CQ15) ->  | BW16: % | CC16: defensif | CE16: a
C17: stage montagne | D17: 3 | F17: 7 | G17: =IF(Team!C110<>0,Team!C110,"") -> grece 7 | H17: =IF($G17<>"",VLOOKUP(Team!X23,Team!$E$41:$F$300,2,FALSE),"") -> 446 | I17: =IF($G17<>"",VLOOKUP(Team!Y23,Team!$E$41:$F$300,2,FALSE),"") -> 459 | J17: =IF($G17<>"",VLOOKUP(Team!Z23,Team!$E$41:$F$300,2,FALSE),"") -> 443 | K17: =IF($G17<>"",VLOOKUP(Team!AA23,Team!$E$41:$F$300,2,FALSE),"") -> 443 | L17: =IF($G17<>"",VLOOKUP(Team!AB23,Team!$E$41:$F$300,2,FALSE),"") -> 360 | M17: =IF($G17<>"",VALUE(VLOOKUP(Team!X23,Team!$E$41:$P$300,12,FALSE)),"") -> 1496 | N17: 0.06592 | AG17: 0 | AI17: nigeria 8 | AJ17: 911.428875 | AK17: 574.9117 | AL17: 574.9117 | AM17: 397.208 | AN17: 893.7016 | AO17: 684.44464 | AP17: 681.70656 | AQ17: 1140.762 | AR17: 759.5157 | AS17: 652.729 | AT17: 1140.762 | AV17: 10 | AW17: =IF(ISNA(VLOOKUP(10,$AV$8:$AV$33,1,FALSE)),10,"") ->  | AX17: 0.07676 | AZ17: 8 | BA17: =IF(AV8=8,AI8,IF(AV9=8,AI9,IF(AV10=8,AI10,IF(AV11=8,AI11,IF(AV12=8,AI12,IF(AV13=8,AI13,IF(AV14=8,AI14,IF(AV15=8,AI15,BT77)))))))) -> australie 11 | BB17: =IF(AV8=8,CG113,IF(AV9=8,CG114,IF(AV10=8,CG115,IF(AV11=8,CG116,IF(AV12=8,CG117,IF(AV13=8,CG118,IF(AV14=8,CG119,IF(AV15=8,CG120,BT147)))))))) -> kit 8 | BC17: 1054.489 | BE17: 117.1535 | BG17: 1171.64 | BI17: 1227 | BK17: bonus de meteo : | BN17: 5 | BO17: % | BR17: bonus de météo : | BU17: 5 | BW17: % | BY17: tactique : | CA17: b | CC17: neutre | CE17: b | CH17: total XP : | CJ17: =IF(CP5<>"",SUM(CP5:CP15),"") ->  | CM17: XP moyenne : | CP17: =IF(CP5<>"",CJ17/11,"") -> 
F18: 8 | G18: =IF(Team!C121<>0,Team!C121,"") -> australie 11 | H18: =IF($G18<>"",VLOOKUP(Team!X24,Team!$E$41:$F$300,2,FALSE),"") -> 394 | I18: =IF($G18<>"",VLOOKUP(Team!Y24,Team!$E$41:$F$300,2,FALSE),"") -> 447 | J18: =IF($G18<>"",VLOOKUP(Team!Z24,Team!$E$41:$F$300,2,FALSE),"") -> 501 | K18: =IF($G18<>"",VLOOKUP(Team!AA24,Team!$E$41:$F$300,2,FALSE),"") -> 460 | L18: =IF($G18<>"",VLOOKUP(Team!AB24,Team!$E$41:$F$300,2,FALSE),"") -> 317 | M18: =IF($G18<>"",VALUE(VLOOKUP(Team!X24,Team!$E$41:$P$300,12,FALSE)),"") -> 1227 | N18: 0.05624 | O18: approximation kit | Q18: =Q9 -> kit 1 | R18: kit 2/3 | S18: 0 | T18: kit 4 | U18: 0 | V18: kit 5 | W18: kit 6/7 | X18: 0 | Y18: 0 | Z18: kit 8 | AA18: kit 9 | AB18: 0 | AC18: kit 10 | AD18: kit 11 | AG18: 0 | AI18: slovaquie 8 | AJ18: 942.7635 | AK18: 587.6269667 | AL18: 587.6269667 | AM18: 361.4835 | AN18: 813.32295 | AO18: 650.65836 | AP18: 624.174 | AQ18: 1151.661 | AR18: 759.0291429 | AS18: 561.904 | AT18: 1151.661 | AV18: 11 | AW18: =IF(ISNA(VLOOKUP(11,$AV$8:$AV$33,1,FALSE)),11,"") ->  | AX18: 0.07022 | AZ18: 9 | BA18: =IF(AV8=9,AI8,IF(AV9=9,AI9,IF(AV10=9,AI10,IF(AV11=9,AI11,IF(AV12=9,AI12,IF(AV13=9,AI13,IF(AV14=9,AI14,IF(AV15=9,AI15,BT78)))))))) -> grece 9 | BB18: =IF(AV8=9,CI113,IF(AV9=9,CI114,IF(AV10=9,CI115,IF(AV11=9,CI116,IF(AV12=9,CI117,IF(AV13=9,CI118,IF(AV14=9,CI119,IF(AV15=9,CI120,BT148)))))))) -> kit 6/7 | BC18: 683.1295714 | BE18: 75.89957143 | BG18: 759.03 | BI18: 920 | BK18: bonus d'agressivité : | BN18: 0 | BO18: % | BR18: bonus d'agressivité : | BU18: 0 | BW18: % | CC18: offensif | CE18: c
C19: vitamines : | D19: 54 | F19: 9 | G19: =IF(Team!C132<>0,Team!C132,"") -> grece 9 | H19: =IF($G19<>"",VLOOKUP(Team!X25,Team!$E$41:$F$300,2,FALSE),"") -> 388 | I19: =IF($G19<>"",VLOOKUP(Team!Y25,Team!$E$41:$F$300,2,FALSE),"") -> 473 | J19: =IF($G19<>"",VLOOKUP(Team!Z25,Team!$E$41:$F$300,2,FALSE),"") -> 443 | K19: =IF($G19<>"",VLOOKUP(Team!AA25,Team!$E$41:$F$300,2,FALSE),"") -> 325 | L19: =IF($G19<>"",VLOOKUP(Team!AB25,Team!$E$41:$F$300,2,FALSE),"") -> 284 | M19: =IF($G19<>"",VALUE(VLOOKUP(Team!X25,Team!$E$41:$P$300,12,FALSE)),"") -> 920 | N19: 0.0468 | P19: =P10 -> force | Q19: =ROUND(Q45*Q51,0) -> 41 | R19: 69 | S19: 0 | T19: 73 | U19: 0 | V19: 70 | W19: 61 | X19: 0 | Y19: 61 | Z19: 56 | AA19: 61 | AB19: 0 | AC19: 46 | AD19: 51 | AG19: 0 | AI19: afrique du sud 4 | AJ19: 607.61925 | AK19: 495.8954 | AL19: 495.8954 | AM19: 396.7236 | AN19: 773.8148 | AO19: 585.8105 | AP19: 484.14192 | AQ19: 810.159 | AR19: 506.3438 | AS19: 462.948 | AT19: 810.159 | AV19: 12 | AW19: =IF(ISNA(VLOOKUP(12,$AV$8:$AV$33,1,FALSE)),12,"") ->  | AX19: 0.04968 | AZ19: 10 | BA19: =IF(AV8=10,AI8,IF(AV9=10,AI9,IF(AV10=10,AI10,IF(AV11=10,AI11,IF(AV12=10,AI12,IF(AV13=10,AI13,IF(AV14=10,AI14,IF(AV15=10,AI15,BT79)))))))) -> nigeria 8 | BB19: =IF(AV8=10,CK113,IF(AV9=10,CK114,IF(AV10=10,CK115,IF(AV11=10,CK116,IF(AV12=10,CK117,IF(AV13=10,CK118,IF(AV14=10,CK119,IF(AV15=10,CK120,BT149)))))))) -> kit 10 | BC19: 587.4561 | BE19: 65.2729 | BG19: 652.73 | BI19: 1143 | BK19: Bonus stratégie : | BN19: 0 | BO19: % | BR19: bonus stratégie : | BU19: 0 | BW19: % | CH19: bonus d'experience :
F20: 10 | G20: =IF(Team!C143<>0,Team!C143,"") -> nigeria 8 | H20: =IF($G20<>"",VLOOKUP(Team!X26,Team!$E$41:$F$300,2,FALSE),"") -> 447 | I20: =IF($G20<>"",VLOOKUP(Team!Y26,Team!$E$41:$F$300,2,FALSE),"") -> 453 | J20: =IF($G20<>"",VLOOKUP(Team!Z26,Team!$E$41:$F$300,2,FALSE),"") -> 436 | K20: =IF($G20<>"",VLOOKUP(Team!AA26,Team!$E$41:$F$300,2,FALSE),"") -> 443 | L20: =IF($G20<>"",VLOOKUP(Team!AB26,Team!$E$41:$F$300,2,FALSE),"") -> 359 | M20: =IF($G20<>"",VALUE(VLOOKUP(Team!X26,Team!$E$41:$P$300,12,FALSE)),"") -> 1143 | N20: 0.05876 | P20: =P11 -> habilité | Q20: =ROUND(Q46*Q52,0) -> 80 | R20: 52 | S20: 0 | T20: 45 | U20: 0 | V20: 56 | W20: 61 | X20: 0 | Y20: 61 | Z20: 64 | AA20: 68 | AB20: 0 | AC20: 68 | AD20: 64 | AG20: 0 | AI20: allemagne 11 | AJ20: 876.007125 | AK20: 580.3611 | AL20: 580.3611 | AM20: 371.1715 | AN20: 835.12055 | AO20: 668.09644 | AP20: 662.1672 | AQ20: 1138.9455 | AR20: 729.9979 | AS20: 627.298 | AT20: 1138.9455 | AV20: 13 | AW20: =IF(ISNA(VLOOKUP(13,$AV$8:$AV$33,1,FALSE)),13,"") ->  | AX20: 0.06182 | AZ20: 11 | BA20: =IF(AV8=11,AI8,IF(AV9=11,AI9,IF(AV10=11,AI10,IF(AV11=11,AI11,IF(AV12=11,AI12,IF(AV13=11,AI13,IF(AV14=11,AI14,IF(AV15=11,AI15,BT80)))))))) -> slovaquie 8 | BB20: =IF(AV8=11,CM113,IF(AV9=11,CM114,IF(AV10=11,CM115,IF(AV11=11,CM116,IF(AV12=11,CM117,IF(AV13=11,CM118,IF(AV14=11,CM119,IF(AV15=11,CM120,BT150)))))))) -> kit 4 | BC20: 1036.505467 | BE20: 115.1555333 | BG20: 1151.66 | BI20: 1266 | CH20: =IF(CP5<>"",IF(ABS(CK41)<=0.01,"les équipes ont",IF(CK41>0,"Votre équipe à","L'équipe adverse à")),"") ->  | CL20: =CM41 ->  | CM20: =IF(CH20<>"","de bonus","") -> 
C21: objets : | D21: 48 | F21: 11 | G21: =IF(Team!C154<>0,Team!C154,"") -> slovaquie 8 | H21: =IF($G21<>"",VLOOKUP(Team!X27,Team!$E$41:$F$300,2,FALSE),"") -> 388 | I21: =IF($G21<>"",VLOOKUP(Team!Y27,Team!$E$41:$F$300,2,FALSE),"") -> 476 | J21: =IF($G21<>"",VLOOKUP(Team!Z27,Team!$E$41:$F$300,2,FALSE),"") -> 435 | K21: =IF($G21<>"",VLOOKUP(Team!AA27,Team!$E$41:$F$300,2,FALSE),"") -> 457 | L21: =IF($G21<>"",VLOOKUP(Team!AB27,Team!$E$41:$F$300,2,FALSE),"") -> 284 | M21: =IF($G21<>"",VALUE(VLOOKUP(Team!X27,Team!$E$41:$P$300,12,FALSE)),"") -> 1266 | N21: 0.05372 | P21: =P12 -> vitesse | Q21: =ROUND(Q47*Q53,0) -> 41 | R21: 60 | S21: 0 | T21: 73 | U21: 0 | V21: 56 | W21: 61 | X21: 0 | Y21: 61 | Z21: 64 | AA21: 68 | AB21: 0 | AC21: 53 | AD21: 71 | AG21: 0 | AI21: chili 11 | AJ21: 856.933875 | AK21: 552.2058667 | AL21: 552.2058667 | AM21: 323.337 | AN21: 727.4949 | AO21: 581.99592 | AP21: 579.66768 | AQ21: 1095.3495 | AR21: 686.8565 | AS21: 542.528 | AT21: 1095.3495 | AV21: 14 | AW21: =IF(ISNA(VLOOKUP(14,$AV$8:$AV$33,1,FALSE)),14,"") ->  | AX21: 0.04728 | BN21: attaque | BP21: défense | BR21: cumulé
G22: =IF(Team!C165<>0,Team!C165,"") -> afrique du sud 4 | H22: =IF($G22<>"",VLOOKUP(Team!X28,Team!$E$41:$F$300,2,FALSE),"") -> 457 | I22: =IF($G22<>"",VLOOKUP(Team!Y28,Team!$E$41:$F$300,2,FALSE),"") -> 230 | J22: =IF($G22<>"",VLOOKUP(Team!Z28,Team!$E$41:$F$300,2,FALSE),"") -> 454 | K22: =IF($G22<>"",VLOOKUP(Team!AA28,Team!$E$41:$F$300,2,FALSE),"") -> 356 | L22: =IF($G22<>"",VLOOKUP(Team!AB28,Team!$E$41:$F$300,2,FALSE),"") -> 246 | M22: =IF($G22<>"",VALUE(VLOOKUP(Team!X28,Team!$E$41:$P$300,12,FALSE)),"") -> 1254 | N22: 0.04968 | P22: =P13 -> endurance | Q22: =ROUND(Q48*Q54,0) -> 25 | R22: 69 | S22: 0 | T22: 64 | U22: 0 | V22: 56 | W22: 61 | X22: 0 | Y22: 61 | Z22: 64 | AA22: 56 | AB22: 0 | AC22: 60 | AD22: 64 | AG22: 0 | AI22: corée du sud 3 | AJ22: 687.999375 | AK22: 562.1964333 | AL22: 562.1964333 | AM22: 388.731 | AN22: 828.3088 | AO22: 597.25424 | AP22: 548.1876 | AQ22: 917.3325 | AR22: 573.3265 | AS22: 524.19 | AT22: 917.3325 | AV22: 15 | AW22: =IF(ISNA(VLOOKUP(15,$AV$8:$AV$33,1,FALSE)),15,"") ->  | AX22: 0.04558 | BA22: total XP du 11 | BD22: =SUM(BI10:BI20) -> 13553 | BG22: XP moyenne : | BI22: =BD22/11 -> 1232.090909 | BK22: =IF(BS6<>"",BS6,"") -> scapulaire | BN22: =ROUND(BU11*(100+BU13)/100*(BU14+100)/100*(100+BU15)/100*(100+BU16)/100*(BU17+100)/100*(100+BU18)/100*(100+BU19)/100,2) ->  | BP22: =ROUND(BW11*(100+BU13)/100*(BU14+100)/100*(100+BU15)/100*(100+BU16)/100*(BU17+100)/100*(100+BU18)/100*(100+BU19)/100,2) ->  | BR22: =BN22+BP22 ->  | BU22: =BK22 -> scapulaire
A23: 3) Entrer les stats des joueurs à comparer. | G23: =IF(Team!C176<>0,Team!C176,"") -> allemagne 11 | H23: =IF($G23<>"",VLOOKUP(Team!X29,Team!$E$41:$F$300,2,FALSE),"") -> 404 | I23: =IF($G23<>"",VLOOKUP(Team!Y29,Team!$E$41:$F$300,2,FALSE),"") -> 427 | J23: =IF($G23<>"",VLOOKUP(Team!Z29,Team!$E$41:$F$300,2,FALSE),"") -> 447 | K23: =IF($G23<>"",VLOOKUP(Team!AA29,Team!$E$41:$F$300,2,FALSE),"") -> 449 | L23: =IF($G23<>"",VLOOKUP(Team!AB29,Team!$E$41:$F$300,2,FALSE),"") -> 338 | M23: =IF($G23<>"",VALUE(VLOOKUP(Team!X29,Team!$E$41:$P$300,12,FALSE)),"") -> 1401 | N23: =G116 -> 0.06182 | P23: =P14 -> intelligence | Q23: =ROUND(Q49*Q55,0) -> 56 | R23: 52 | S23: 0 | T23: 45 | U23: 0 | V23: 56 | W23: 53 | X23: 0 | Y23: 53 | Z23: 48 | AA23: 49 | AB23: 0 | AC23: 60 | AD23: 44 | AG23: 0 | AI23: france 11 | AJ23: 862.383375 | AK23: 574.9117 | AL23: 574.9117 | AM23: 345.7405 | AN23: 777.90185 | AO23: 622.32148 | AP23: 619.83192 | AQ23: 1128.0465 | AR23: 705.0213 | AS23: 578.858 | AT23: 1128.0465 | AV23: 16 | AW23: =IF(ISNA(VLOOKUP(16,$AV$8:$AV$33,1,FALSE)),16,"") ->  | AX23: 0.04532 | BK23: mon équipe | BN23: =BC26 ->  | BP23: =BE26 ->  | BR23: =BG26 ->  | BU23: 541 | CA23: 433 | CG23: 352 | CM23: 442
G24: =IF(Team!C187<>0,Team!C187,"") -> chili 11 | H24: =IF($G24<>"",VLOOKUP(Team!X30,Team!$E$41:$F$300,2,FALSE),"") -> 325 | I24: =IF($G24<>"",VLOOKUP(Team!Y30,Team!$E$41:$F$300,2,FALSE),"") -> 413 | J24: =IF($G24<>"",VLOOKUP(Team!Z30,Team!$E$41:$F$300,2,FALSE),"") -> 441 | K24: =IF($G24<>"",VLOOKUP(Team!AA30,Team!$E$41:$F$300,2,FALSE),"") -> 418 | L24: =IF($G24<>"",VLOOKUP(Team!AB30,Team!$E$41:$F$300,2,FALSE),"") -> 268 | M24: =IF($G24<>"",VALUE(VLOOKUP(Team!X30,Team!$E$41:$P$300,12,FALSE)),"") -> 1024 | N24: 0.04728 | AG24: 0 | AI24: france 2 | AJ24: 713.8845 | AK24: 588.5352 | AL24: 588.5352 | AM24: 409.318 | AN24: 884.16515 | AO24: 646.29884 | AP24: 568.81248 | AQ24: 951.846 | AR24: 594.8972 | AS24: 543.912 | AT24: 951.846 | AV24: 17 | AW24: =IF(ISNA(VLOOKUP(17,$AV$8:$AV$33,1,FALSE)),17,"") ->  | AX24: 0.05448 | BA24: sans bonus match | BC24: =ROUND(SUM(BC10:BD20),2) -> 6078.31 | BE24: =ROUND(SUM(BE10:BF20),2) -> 2576.3 | BG24: =BC24+BE24 -> 8654.61 | BU24: defensif | BW24: neutre | BY24: offensif | CA24: defensif | CC24: neutre | CE24: offensif | CG24: defensif | CI24: neutre | CK24: offensif | CM24: defensif | CO24: neutre | CQ24: offensif
E25: =VLOOKUP(AH4,B26:C29,2,FALSE) -> B | G25: =IF(Team!C198<>0,Team!C198,"") -> corée du sud 3 | H25: =IF($G25<>"",VLOOKUP(Team!X31,Team!$E$41:$F$300,2,FALSE),"") -> 433 | I25: =IF($G25<>"",VLOOKUP(Team!Y31,Team!$E$41:$F$300,2,FALSE),"") -> 289 | J25: =IF($G25<>"",VLOOKUP(Team!Z31,Team!$E$41:$F$300,2,FALSE),"") -> 349 | K25: =IF($G25<>"",VLOOKUP(Team!AA31,Team!$E$41:$F$300,2,FALSE),"") -> 429 | L25: =IF($G25<>"",VLOOKUP(Team!AB31,Team!$E$41:$F$300,2,FALSE),"") -> 276 | M25: =IF($G25<>"",VALUE(VLOOKUP(Team!X31,Team!$E$41:$P$300,12,FALSE)),"") -> 899 | N25: 0.04558 | O25: caracteristiques kit officiel | Q25: =Q9 -> kit 1 | R25: kit 2/3 | S25: 0 | T25: kit 4 | U25: 0 | V25: kit 5 | W25: kit 6/7 | X25: 0 | Y25: 0 | Z25: kit 8 | AA25: kit 9 | AB25: 0 | AC25: kit 10 | AD25: kit 11 | AG25: 0 | AI25: =IF(G28="","",G28) -> italie 7 | AJ25: 895.080375 | AK25: 556.7470333 | AL25: 556.7470333 | AM25: 383.2815 | AN25: 862.36755 | AO25: 668.09644 | AP25: 665.42376 | AQ25: 1113.5145 | AR25: 745.8921 | AS25: 640.619 | AT25: 1113.5145 | AV25: 18 | AW25: =IF(ISNA(VLOOKUP(18,$AV$8:$AV$33,1,FALSE)),18,"") ->  | AX25: 0.05954 | BR25: Mon équipe | BS25: 541 | BT25: def | BU25: =CT117 ->  | BW25: =CX117 ->  | BY25: =DB117 ->  | CA25: =DF117 ->  | CC25: =DJ117 ->  | CE25: =DN117 ->  | CG25: =DR117 ->  | CI25: =DV117 ->  | CK25: =DZ117 ->  | CM25: =ED117 ->  | CO25: =EH117 ->  | CQ25: =EL117 -> 
B26: 541 | C26: A | D26: 541 | E26: =VLOOKUP(AH5,B31:C33,2,FALSE) -> o | G26: =IF(Team!C209<>0,Team!C209,"") -> france 11 | H26: =IF($G26<>"",VLOOKUP(Team!X32,Team!$E$41:$F$300,2,FALSE),"") -> 362 | I26: =IF($G26<>"",VLOOKUP(Team!Y32,Team!$E$41:$F$300,2,FALSE),"") -> 417 | J26: =IF($G26<>"",VLOOKUP(Team!Z32,Team!$E$41:$F$300,2,FALSE),"") -> 454 | K26: =IF($G26<>"",VLOOKUP(Team!AA32,Team!$E$41:$F$300,2,FALSE),"") -> 443 | L26: =IF($G26<>"",VLOOKUP(Team!AB32,Team!$E$41:$F$300,2,FALSE),"") -> 298 | M26: =IF($G26<>"",VALUE(VLOOKUP(Team!X32,Team!$E$41:$P$300,12,FALSE)),"") -> 776 | N26: 0.04532 | P26: =P19 -> force | AG26: 0 | AI26: =IF(G29="","",G29) -> japon 5 | AJ26: 753.393375 | AK26: 462.2907667 | AL26: 462.2907667 | AM26: 369.8394 | AN26: 886.88985 | AO26: 554.74892 | AP26: 552.52968 | AQ26: 924.5985 | AR26: 627.8209 | AS26: 563.115 | AT26: 924.5985 | AV26: 19 | AW26: =IF(ISNA(VLOOKUP(19,$AV$8:$AV$33,1,FALSE)),19,"") ->  | AX26: 0.06104 | BA26: avec bonus match | BC26: =ROUND(BC24*(100+BN13)/100*(100+BN14)/100*(100+BN15)/100*(100+BN16)/100*(BN17+100)/100*(100+BN18)/100*(100+BN19)/100,2) ->  | BE26: =ROUND(BE24*(100+BN13)/100*(BN14+100)/100*(100+BN15)/100*(100+BN16)/100*(BN17+100)/100*(100+BN18)/100*(100+BN19)/100,2) ->  | BG26: =BC26+BE26 ->  | BK26: 10) Enjoy !! | BT26: neutre
B27: 433 | C27: B | D27: 433 | G27: =IF(Team!C220<>0,Team!C220,"") -> france 2 | H27: =IF($G27<>"",VLOOKUP(Team!X33,Team!$E$41:$F$300,2,FALSE),"") -> 467 | I27: =IF($G27<>"",VLOOKUP(Team!Y33,Team!$E$41:$F$300,2,FALSE),"") -> 308 | J27: =IF($G27<>"",VLOOKUP(Team!Z33,Team!$E$41:$F$300,2,FALSE),"") -> 394 | K27: =IF($G27<>"",VLOOKUP(Team!AA33,Team!$E$41:$F$300,2,FALSE),"") -> 458 | L27: =IF($G27<>"",VLOOKUP(Team!AB33,Team!$E$41:$F$300,2,FALSE),"") -> 308 | M27: =IF($G27<>"",VALUE(VLOOKUP(Team!X33,Team!$E$41:$P$300,12,FALSE)),"") -> 1184 | N27: 0.05448 | P27: =P20 -> habilité | AG27: 0 | AI27: =IF(G30="","",G30) -> nigeria 4 | AJ27: 602.16975 | AK27: 476.8225 | AL27: 476.8225 | AM27: 381.465 | AN27: 717.5043333 | AO27: 566.7376 | AP27: 479.79984 | AQ27: 802.893 | AR27: 501.8026 | AS27: 458.796 | AT27: 802.893 | AV27: 20 | AW27: =IF(ISNA(VLOOKUP(20,$AV$8:$AV$33,1,FALSE)),20,"") ->  | AX27: 0.04186 | BT27: off
B28: 352 | C28: C | D28: 352 | G28: =IF(Team!C231<>0,Team!C231,"") -> italie 7 | H28: =IF($G28<>"",VLOOKUP(Team!X34,Team!$E$41:$F$300,2,FALSE),"") -> 424 | I28: =IF($G28<>"",VLOOKUP(Team!Y34,Team!$E$41:$F$300,2,FALSE),"") -> 441 | J28: =IF($G28<>"",VLOOKUP(Team!Z34,Team!$E$41:$F$300,2,FALSE),"") -> 443 | K28: =IF($G28<>"",VLOOKUP(Team!AA34,Team!$E$41:$F$300,2,FALSE),"") -> 423 | L28: =IF($G28<>"",VLOOKUP(Team!AB34,Team!$E$41:$F$300,2,FALSE),"") -> 349 | M28: =IF($G28<>"",VALUE(VLOOKUP(Team!X34,Team!$E$41:$P$300,12,FALSE)),"") -> 1232 | N28: 0.05954 | P28: =P21 -> vitesse | AG28: 0 | AI28: =IF(G31="","",G31) -> slovaquie 7 | AJ28: 794.264625 | AK28: 475.9142667 | AL28: 475.9142667 | AM28: 345.135 | AN28: 776.5395 | AO28: 565.64772 | AP28: 563.38488 | AQ28: 942.7635 | AR28: 661.8799 | AS28: 563.115 | AT28: 942.7635 | AV28: 21 | AW28: =IF(ISNA(VLOOKUP(21,$AV$8:$AV$33,1,FALSE)),21,"") ->  | AX28: 0.0285 | BS28: 433 | BT28: def
B29: 442 | C29: D | D29: 442 | G29: =IF(Team!C242<>0,Team!C242,"") -> japon 5 | H29: =IF($G29<>"",VLOOKUP(Team!X35,Team!$E$41:$F$300,2,FALSE),"") -> 442 | I29: =IF($G29<>"",VLOOKUP(Team!Y35,Team!$E$41:$F$300,2,FALSE),"") -> 337 | J29: =IF($G29<>"",VLOOKUP(Team!Z35,Team!$E$41:$F$300,2,FALSE),"") -> 345 | K29: =IF($G29<>"",VLOOKUP(Team!AA35,Team!$E$41:$F$300,2,FALSE),"") -> 319 | L29: =IF($G29<>"",VLOOKUP(Team!AB35,Team!$E$41:$F$300,2,FALSE),"") -> 341 | M29: =IF($G29<>"",VALUE(VLOOKUP(Team!X35,Team!$E$41:$P$300,12,FALSE)),"") -> 1347 | N29: 0.06104 | P29: =P22 -> endurance | AG29: 0 | AI29: =IF(G32="","",G32) -> slovaquie 7 bis | AJ29: 878.731875 | AK29: 572.187 | AL29: 572.187 | AM29: 389.942 | AN29: 873.26635 | AO29: 671.36608 | AP29: 655.65408 | AQ29: 1115.331 | AR29: 732.2685 | AS29: 594.601 | AT29: 1115.331 | AV29: 22 | AW29: =IF(ISNA(VLOOKUP(22,$AV$8:$AV$33,1,FALSE)),22,"") ->  | AX29: 0.04792 | BG29: La colonne Kit donne le meilleur kit pour ce joueur a cette position | BT29: neutre
G30: =IF(Team!C253<>0,Team!C253,"") -> nigeria 4 | H30: =IF($G30<>"",VLOOKUP(Team!X36,Team!$E$41:$F$300,2,FALSE),"") -> 425 | I30: =IF($G30<>"",VLOOKUP(Team!Y36,Team!$E$41:$F$300,2,FALSE),"") -> 226 | J30: =IF($G30<>"",VLOOKUP(Team!Z36,Team!$E$41:$F$300,2,FALSE),"") -> 426 | K30: =IF($G30<>"",VLOOKUP(Team!AA36,Team!$E$41:$F$300,2,FALSE),"") -> 335 | L30: =IF($G30<>"",VLOOKUP(Team!AB36,Team!$E$41:$F$300,2,FALSE),"") -> 215 | M30: =IF($G30<>"",VALUE(VLOOKUP(Team!X36,Team!$E$41:$P$300,12,FALSE)),"") -> 1018 | N30: 0.04186 | P30: =P23 -> intelligence | AW30: =IF(ISNA(VLOOKUP(23,$AV$8:$AV$33,1,FALSE)),23,"") ->  | BT30: off
B31: Defensif | C31: d | D31: defensif | G31: =IF(Team!C264<>0,Team!C264,"") -> slovaquie 7 | H31: =IF($G31<>"",VLOOKUP(Team!X37,Team!$E$41:$F$300,2,FALSE),"") -> 361 | I31: =IF($G31<>"",VLOOKUP(Team!Y37,Team!$E$41:$F$300,2,FALSE),"") -> 367 | J31: =IF($G31<>"",VLOOKUP(Team!Z37,Team!$E$41:$F$300,2,FALSE),"") -> 331 | K31: =IF($G31<>"",VLOOKUP(Team!AA37,Team!$E$41:$F$300,2,FALSE),"") -> 334 | L31: =IF($G31<>"",VLOOKUP(Team!AB37,Team!$E$41:$F$300,2,FALSE),"") -> 285 | M31: =IF($G31<>"",VALUE(VLOOKUP(Team!X37,Team!$E$41:$P$300,12,FALSE)),"") -> 0 | N31: 0.0285 | AI31: =IF(G34="","",G34) ->  | AJ31: =IF(AI31<>"",AY78*IF($AX$37=1,$BW$58,1),"") ->  | AK31: =IF(AI31<>"",BP78*IF($AX$37=1,$BW$59,1),"") ->  | AL31: =IF(AI31<>"",AY105*IF($AX$37=1,$BW$60,1),"") ->  | AM31: =IF(AI31<>"",BP105*IF($AX$37=1,$BW$61,1),"") ->  | AN31: =IF(AI31<>"",AY132*IF($AX$37=1,$BW$62,1),"") ->  | AO31: =IF(AI31<>"",BP132*IF($AX$37=1,$BW$63,1),"") ->  | AP31: =IF(AI31<>"",AY159*IF($AX$37=1,$BW$64,1),"") ->  | AQ31: =IF(AI31<>"",BP159*IF($AX$37=1,$BW$65,1),"") ->  | AR31: =IF(AI31<>"",AY186*IF($AX$37=1,$BW$66,1),"") ->  | AS31: =IF(AI31<>"",BP186*IF($AX$37=1,$BW$67,1),"") ->  | AT31: =IF(AI31<>"",AY213*IF($AX$37=1,$BW$68,1),"") ->  | AV31: 23 | AW31: =IF(ISNA(VLOOKUP(24,$AV$8:$AV$33,1,FALSE)),24,"") -> 24 | BS31: 352 | BT31: def
B32: Neutre | C32: n | D32: neutre | G32: =IF(Team!C275<>0,Team!C275,"") -> slovaquie 7 bis | H32: =IF($G32<>"",VLOOKUP(Team!X38,Team!$E$41:$F$300,2,FALSE),"") -> 435 | I32: =IF($G32<>"",VLOOKUP(Team!Y38,Team!$E$41:$F$300,2,FALSE),"") -> 429 | J32: =IF($G32<>"",VLOOKUP(Team!Z38,Team!$E$41:$F$300,2,FALSE),"") -> 417 | K32: =IF($G32<>"",VLOOKUP(Team!AA38,Team!$E$41:$F$300,2,FALSE),"") -> 440 | L32: =IF($G32<>"",VLOOKUP(Team!AB38,Team!$E$41:$F$300,2,FALSE),"") -> 311 | M32: =IF($G32<>"",VALUE(VLOOKUP(Team!X38,Team!$E$41:$P$300,12,FALSE)),"") -> 841 | N32: 0.04792 | Q32: 6) Choisir si le joueur ou la position a une vitamine. | AI32: =IF(G35="","",G35) ->  | AJ32: =IF(AI32<>"",AY75*IF($AX$37=1,$BW$58,1),"") ->  | AK32: =IF(AI32<>"",BP75*IF($AX$37=1,$BW$59,1),"") ->  | AL32: =IF(AI32<>"",AY102*IF($AX$37=1,$BW$60,1),"") ->  | AM32: =IF(AI32<>"",BP102*IF($AX$37=1,$BW$61,1),"") ->  | AN32: =IF(AI32<>"",AY129*IF($AX$37=1,$BW$62,1),"") ->  | AO32: =IF(AI32<>"",BP129*IF($AX$37=1,$BW$63,1),"") ->  | AP32: =IF(AI32<>"",AY156*IF($AX$37=1,$BW$64,1),"") ->  | AQ32: =IF(AI32<>"",BP156*IF($AX$37=1,$BW$65,1),"") ->  | AR32: =IF(AI32<>"",AY183*IF($AX$37=1,$BW$66,1),"") ->  | AS32: =IF(AI32<>"",BP183*IF($AX$37=1,$BW$67,1),"") ->  | AT32: =IF(AI32<>"",AY210*IF($AX$37=1,$BW$68,1),"") ->  | AW32: =IF(ISNA(VLOOKUP(25,$AV$8:$AV$33,1,FALSE)),25,"") -> 25 | BA32: 8) Choisir entre pourcentage poste ou valeur brute. | BT32: neutre
B33: Offensif | C33: o | D33: offensif | AI33: =IF(G36="","",G36) ->  | AJ33: =IF(AI33<>"",AY76*IF($AX$37=1,$BW$58,1),"") ->  | AK33: =IF(AI33<>"",BP76*IF($AX$37=1,$BW$59,1),"") ->  | AL33: =IF(AI33<>"",AY103*IF($AX$37=1,$BW$60,1),"") ->  | AM33: =IF(AI33<>"",BP103*IF($AX$37=1,$BW$61,1),"") ->  | AN33: =IF(AI33<>"",AY130*IF($AX$37=1,$BW$62,1),"") ->  | AO33: =IF(AI33<>"",BP130*IF($AX$37=1,$BW$63,1),"") ->  | AP33: =IF(AI33<>"",AY157*IF($AX$37=1,$BW$64,1),"") ->  | AQ33: =IF(AI33<>"",BP157*IF($AX$37=1,$BW$65,1),"") ->  | AR33: =IF(AI33<>"",AY184*IF($AX$37=1,$BW$66,1),"") ->  | AS33: =IF(AI33<>"",BP184*IF($AX$37=1,$BW$67,1),"") ->  | AT33: =IF(AI33<>"",AY211*IF($AX$37=1,$BW$68,1),"") ->  | BT33: off
E34: Joueurs à comparer | N34: =G126 ->  | BS34: 442 | BT34: def
N35: =G127 ->  | P35: calcul officiel des objets selon reput et niveaux centre : | AG35: vitamines : | AJ35: 0 | AK35: 0 | AL35: 0 | AM35: 0 | AN35: 0 | AO35: 0 | AP35: 0 | AQ35: 0 | AR35: 0 | AS35: 0 | AT35: 0 | AV35: pourcentage : | AX35: 0 | BT35: neutre
N36: =G128 ->  | P36: 5+5*ln(reput/500)/ln(5) + niveau_centre/2 | AV36: valeur brute : | AX36: 1 | BT36: off
AH37: Gain minimum pour une vitamine | AJ37: =BB192 -> 73.56825 | AK37: 49.0446 | AL37: 49.0446 | AM37: 32.697 | AN37: 73.5669 | AO37: 58.85352 | AP37: 58.61808 | AQ37: 98.091 | AR37: 61.3062 | AS37: 56.052 | AT37: 98.091 | AV37: pourcentage/valeur brute : | AX37: 1
E38: caracteristiques bonus : | P38: choix kit | AG38: bonus cara
E39: force | F39: hab | G39: vit | H39: end | I39: int | Q39: =AC16 -> 0 | R39: =AC16 -> 0 | S39: =AC16 -> 0 | T39: =AC16 -> 0 | U39: =AC16 -> 0 | V39: =AC16 -> 0 | W39: =AC16 -> 0 | X39: =AC16 -> 0 | Y39: =AC16 -> 0 | Z39: =AC16 -> 0 | AA39: =AC16 -> 0 | AB39: =AC16 -> 0 | AC39: =AC16 -> 0 | AD39: =AC16 -> 0 | AH39: =D8+D13 -> 80 | AI39: coefficient caracteristique par poste / tactique actuelle | AR39: coefficient caracteristique par poste et par tactique | BX39: comparaison équipe | CJ39: bonus XP
E40: =AH39+D16+D17+D21 -> 136 | F40: =AH40+D15+D17+D21 -> 136 | G40: =AH41+D15+D17+D21 -> 126 | H40: =AH42+D16+D17+D21 -> 121 | I40: =AH43+D15+D17+D21 -> 120 | Q40: =AC16 -> 0 | R40: =AC16 -> 0 | S40: =AC16 -> 0 | T40: =AC16 -> 0 | U40: =AC16 -> 0 | V40: =AC16 -> 0 | W40: =AC16 -> 0 | X40: =AC16 -> 0 | Y40: =AC16 -> 0 | Z40: =AC16 -> 0 | AA40: =AC16 -> 0 | AB40: =AC16 -> 0 | AC40: =AC16 -> 0 | AD40: =AC16 -> 0 | AH40: =D9+D13 -> 80 | AK40: =F42 -> 433 | AT40: 541 | BB40: 433 | BJ40: 352 | BR40: 442
E41: stats brutes / pourcentage placement pour la tactique en cours | Q41: =AC16 -> 0 | R41: =AC16 -> 0 | S41: =AC16 -> 0 | T41: =AC16 -> 0 | U41: =AC16 -> 0 | V41: =AC16 -> 0 | W41: =AC16 -> 0 | X41: =AC16 -> 0 | Y41: =AC16 -> 0 | Z41: =AC16 -> 0 | AA41: =AC16 -> 0 | AB41: =AC16 -> 0 | AC41: =AC16 -> 0 | AD41: =AC16 -> 0 | AH41: =D10+D13 -> 70 | AJ41: Position | AK41: force | AL41: hab | AM41: vit | AN41: end | AO41: int | AP41: % poste | AS41: Position | AT41: force | AU41: hab | AV41: vit | AW41: end | AX41: int | AY41: % poste | BA41: Position | BB41: force | BC41: hab | BD41: vit | BE41: end | BF41: int | BG41: % poste | BI41: Position | BJ41: force | BK41: hab | BL41: vit | BM41: end | BN41: int | BO41: % poste | BQ41: Position | BR41: force | BS41: hab | BT41: vit | BU41: end | BV41: int | BW41: % poste | CC41: att A/def ME | CE41: att ME/def A | CG41: différence | CK41: =IF(CJ17<>"",(BD22/11-CJ17/11)/200,"") ->  | CM41: =IF(CK41<>"",IF(ABS(CK41)<0.01,0,IF(ABS(CK41)>0.04,0.04,ROUND(ABS(CK41),1))),"") -> 
F42: =IF(E25=C26,D26,IF(E25=C27,D27,IF(E25=C28,D28,IF(E25=C29,D29,AH2)))) -> 433 | Q42: =AC16 -> 0 | R42: =AC16 -> 0 | S42: =AC16 -> 0 | T42: =AC16 -> 0 | U42: =AC16 -> 0 | V42: =AC16 -> 0 | W42: =AC16 -> 0 | X42: =AC16 -> 0 | Y42: =AC16 -> 0 | Z42: =AC16 -> 0 | AA42: =AC16 -> 0 | AB42: =AC16 -> 0 | AC42: =AC16 -> 0 | AD42: =AC16 -> 0 | AH42: =D11+D13 -> 65 | AJ42: 1 | AK42: =IF(AK40=AT40,AT42,IF(AK40=BB40,BB42,IF(AK40=BJ40,BJ42,IF(AK40=BR40,BR42,erreur)))) -> 150 | AL42: =IF(AK40=AT40,AU42,IF(AK40=BB40,BC42,IF(AK40=BJ40,BK42,IF(AK40=BR40,BS42,erreur)))) -> 400 | AM42: =IF(AK40=AT40,AV42,IF(AK40=BB40,BD42,IF(AK40=BJ40,BL42,IF(AK40=BR40,BT42,erreur)))) -> 150 | AN42: =IF(AK40=AT40,AW42,IF(AK40=BB40,BE42,IF(AK40=BJ40,BM42,IF(AK40=BR40,BU42,erreur)))) -> 50 | AO42: =IF(AK40=AT40,AX42,IF(AK40=BB40,BF42,IF(AK40=BJ40,BN42,IF(AK40=BR40,BV42,erreur)))) -> 250 | AP42: =IF(AK40=AT40,AY42,IF(AK40=BB40,BG42,IF(AK40=BJ40,BO42,IF(AK40=BR40,BW42,erreur)))) -> 200 | AS42: 1 | AT42: 150 | AU42: 400 | AV42: 150 | AW42: 50 | AX42: 250 | AY42: 200 | BA42: 1 | BB42: 150 | BC42: 400 | BD42: 150 | BE42: 50 | BF42: 250 | BG42: 200 | BI42: 1 | BJ42: 150 | BK42: 400 | BL42: 150 | BM42: 50 | BN42: 250 | BO42: 200 | BQ42: 1 | BR42: 150 | BS42: 400 | BT42: 150 | BU42: 50 | BV42: 250 | BW42: 200 | BY42: rapport statistique | CC42: =BN22/BP23 ->  | CE42: =BN23/BP22 ->  | CG42: =CC42-CE42 -> 
F43: defensif | I43: neutre | L43: offensif | Q43: =AC16 -> 0 | R43: =AC16 -> 0 | S43: =AC16 -> 0 | T43: =AC16 -> 0 | U43: =AC16 -> 0 | V43: =AC16 -> 0 | W43: =AC16 -> 0 | X43: =AC16 -> 0 | Y43: =AC16 -> 0 | Z43: =AC16 -> 0 | AA43: =AC16 -> 0 | AB43: =AC16 -> 0 | AC43: =AC16 -> 0 | AD43: =AC16 -> 0 | AH43: =D12+D13 -> 64 | AJ43: 2 | AK43: =IF(AK40=AT40,AT43,IF(AK40=BB40,BB43,IF(AK40=BJ40,BJ43,IF(AK40=BR40,BR43,erreur)))) -> 250 | AL43: =IF(AK40=AT40,AU43,IF(AK40=BB40,BC43,IF(AK40=BJ40,BK43,IF(AK40=BR40,BS43,erreur)))) -> 200 | AM43: =IF(AK40=AT40,AV43,IF(AK40=BB40,BD43,IF(AK40=BJ40,BL43,IF(AK40=BR40,BT43,erreur)))) -> 250 | AN43: =IF(AK40=AT40,AW43,IF(AK40=BB40,BE43,IF(AK40=BJ40,BM43,IF(AK40=BR40,BU43,erreur)))) -> 300 | AO43: =IF(AK40=AT40,AX43,IF(AK40=BB40,BF43,IF(AK40=BJ40,BN43,IF(AK40=BR40,BV43,erreur)))) -> 200 | AP43: =IF(AK40=AT40,AY43,IF(AK40=BB40,BG43,IF(AK40=BJ40,BO43,IF(AK40=BR40,BW43,erreur)))) -> 200 | AS43: 2 | AT43: 300 | AU43: 200 | AV43: 200 | AW43: 300 | AX43: 200 | AY43: 200 | BA43: 2 | BB43: 250 | BC43: 200 | BD43: 250 | BE43: 300 | BF43: 200 | BG43: 200 | BI43: 2 | BJ43: 300 | BK43: 200 | BL43: 200 | BM43: 300 | BN43: 200 | BO43: 200 | BQ43: 2 | BR43: 250 | BS43: 200 | BT43: 250 | BU43: 300 | BV43: 200 | BW43: 200
F44: 1% attaque | G44: 1% defense | H44: 1% cumulé | I44: 1% attaque | J44: 1% defense | K44: 1% cumulé | L44: 1% attaque | M44: 1% defense | N44: 1% cumulé | P44: coefficient caracteristique kit | AJ44: 3 | AK44: =IF(AK40=AT40,AT44,IF(AK40=BB40,BB44,IF(AK40=BJ40,BJ44,IF(AK40=BR40,BR44,erreur)))) -> 125 | AL44: =IF(AK40=AT40,AU44,IF(AK40=BB40,BC44,IF(AK40=BJ40,BK44,IF(AK40=BR40,BS44,erreur)))) -> 100 | AM44: =IF(AK40=AT40,AV44,IF(AK40=BB40,BD44,IF(AK40=BJ40,BL44,IF(AK40=BR40,BT44,erreur)))) -> 125 | AN44: =IF(AK40=AT40,AW44,IF(AK40=BB40,BE44,IF(AK40=BJ40,BM44,IF(AK40=BR40,BU44,erreur)))) -> 150 | AO44: =IF(AK40=AT40,AX44,IF(AK40=BB40,BF44,IF(AK40=BJ40,BN44,IF(AK40=BR40,BV44,erreur)))) -> 100 | AP44: =IF(AK40=AT40,AY44,IF(AK40=BB40,BG44,IF(AK40=BJ40,BO44,IF(AK40=BR40,BW44,erreur)))) -> 100 | AS44: 3 | AT44: 300 | AU44: 200 | AV44: 200 | AW44: 300 | AX44: 200 | AY44: 200 | BA44: 3 | BB44: 125 | BC44: 100 | BD44: 125 | BE44: 150 | BF44: 100 | BG44: 100 | BI44: 3 | BJ44: 300 | BK44: 200 | BL44: 200 | BM44: 300 | BN44: 200 | BO44: 200 | BQ44: 3 | BR44: 250 | BS44: 200 | BT44: 250 | BU44: 300 | BV44: 200 | BW44: 200
F45: =IF(E25=C26,E62,IF(E25=C27,H62,IF(E25=C28,K62,IF(E25=C29,N62,erreur)))) -> 0.05445 | G45: =IF(E25=C26,F62,IF(E25=C27,I62,IF(E25=C28,L62,IF(E25=C29,O62,erreur)))) -> 2.67025 | H45: =F45+G45 -> 2.7247 | I45: =IF(E25=C26,E76,IF(E25=C27,H76,IF(E25=C28,K76,IF(E25=C29,N76,erreur)))) -> 0.16345 | J45: =IF(E25=C26,F76,IF(E25=C27,I76,IF(E25=C28,L76,IF(E25=C29,O76,erreur)))) -> 2.5613 | K45: =I45+J45 -> 2.72475 | L45: =IF(E25=C26,E90,IF(E25=C27,H90,IF(E25=C28,K90,IF(E25=C29,N90,erreur)))) -> 0.27245 | M45: =IF(E25=C26,F90,IF(E25=C27,I90,IF(E25=C28,L90,IF(E25=C29,O90,erreur)))) -> 2.4523 | N45: =L45+M45 -> 2.72475 | Q45: 0.862745098 | R45: 1.431372549 | S45: 0 | T45: 1.529411765 | U45: 0 | V45: 1.450980392 | W45: 1.274509804 | X45: 0 | Y45: 1.274509804 | Z45: 1.176470588 | AA45: 1.274509804 | AB45: 0 | AC45: 0.9607843137 | AD45: 1.058823529 | AJ45: 4 | AK45: =IF(AK40=AT40,AT45,IF(AK40=BB40,BB45,IF(AK40=BJ40,BI45,IF(AK40=BR40,BR45,erreur)))) -> 300 | AL45: =IF(AK40=AT40,AU45,IF(AK40=BB40,BC45,IF(AK40=BJ40,BK45,IF(AK40=BR40,BS45,erreur)))) -> 100 | AM45: =IF(AK40=AT40,AV45,IF(AK40=BB40,BD45,IF(AK40=BJ40,BL45,IF(AK40=BR40,BT45,erreur)))) -> 250 | AN45: =IF(AK40=AT40,AW45,IF(AK40=BB40,BE45,IF(AK40=BJ40,BM45,IF(AK40=BR40,BU45,erreur)))) -> 250 | AO45: =IF(AK40=AT40,AX45,IF(AK40=BB40,BF45,IF(AK40=BJ40,BN45,IF(AK40=BR40,BV45,erreur)))) -> 150 | AP45: =IF(AK40=AT40,AY45,IF(AK40=BB40,BG45,IF(AK40=BJ40,BO45,IF(AK40=BR40,BW45,erreur)))) -> 200 | AS45: 4 | AT45: 300 | AU45: 150 | AV45: 300 | AW45: 200 | AX45: 100 | AY45: 200 | BA45: 4 | BB45: 300 | BC45: 100 | BD45: 250 | BE45: 250 | BF45: 150 | BG45: 200 | BI45: 4 | BJ45: 300 | BK45: 150 | BL45: 300 | BM45: 200 | BN45: 100 | BO45: 200 | BQ45: 4 | BR45: 300 | BS45: 100 | BT45: 250 | BU45: 250 | BV45: 150 | BW45: 200
F46: =IF(E25=C26,E63,IF(E25=C27,H63,IF(E25=C28,K63,IF(E25=C29,N63,erreur)))) -> 0.68115 | G46: =IF(E25=C26,F63,IF(E25=C27,I63,IF(E25=C28,L63,IF(E25=C29,O63,erreur)))) -> 0.68115 | H46: =F46+G46 -> 1.3623 | I46: =IF(E25=C26,E77,IF(E25=C27,H77,IF(E25=C28,K77,IF(E25=C29,N77,erreur)))) -> 0.8174 | J46: =IF(E25=C26,F77,IF(E25=C27,I77,IF(E25=C28,L77,IF(E25=C29,O77,erreur)))) -> 0.54495 | K46: =I46+J46 -> 1.36235 | L46: =IF(E25=C26,E91,IF(E25=C27,H91,IF(E25=C28,K91,IF(E25=C29,N91,erreur)))) -> 0.95365 | M46: =IF(E25=C26,F91,IF(E25=C27,I91,IF(E25=C28,L91,IF(E25=C29,O91,erreur)))) -> 0.4087 | N46: =L46+M46 -> 1.36235 | Q46: 1.666666667 | R46: 1.078431373 | S46: 0 | T46: 0.9411764706 | U46: 0 | V46: 1.176470588 | W46: 1.274509804 | X46: 0 | Y46: 1.274509804 | Z46: 1.333333333 | AA46: 1.411764706 | AB46: 0 | AC46: 1.411764706 | AD46: 1.333333333 | AJ46: 5 | AK46: =IF(AK40=AT40,AT46,IF(AK40=BB40,BB46,IF(AK40=BJ40,BJ46,IF(AK40=BR40,BR46,erreur)))) -> 200 | AL46: =IF(AK40=AT40,AU46,IF(AK40=BB40,BC46,IF(AK40=BJ40,BK46,IF(AK40=BR40,BS46,erreur)))) -> 150 | AM46: =IF(AK40=AT40,AV46,IF(AK40=BB40,BD46,IF(AK40=BJ40,BL46,IF(AK40=BR40,BT46,erreur)))) -> 150 | AN46: =IF(AK40=AT40,AW46,IF(AK40=BB40,BE46,IF(AK40=BJ40,BM46,IF(AK40=BR40,BU46,erreur)))) -> 150 | AO46: =IF(AK40=AT40,AX46,IF(AK40=BB40,BF46,IF(AK40=BJ40,BN46,IF(AK40=BR40,BV46,erreur)))) -> 150 | AP46: =IF(AK40=AT40,AY46,IF(AK40=BB40,BG46,IF(AK40=BJ40,BO46,IF(AK40=BR40,BW46,erreur)))) -> 200 | AS46: 5 | AT46: 200 | AU46: 150 | AV46: 150 | AW46: 150 | AX46: 150 | AY46: 200 | BA46: 5 | BB46: 200 | BC46: 150 | BD46: 150 | BE46: 150 | BF46: 150 | BG46: 200 | BI46: 5 | BJ46: 200 | BK46: 150 | BL46: 150 | BM46: 150 | BN46: 150 | BO46: 200 | BQ46: 5 | BR46: 200 | BS46: 150 | BT46: 150 | BU46: 150 | BV46: 150 | BW46: 200
F47: =IF(E25=C26,E64,IF(E25=C27,H64,IF(E25=C28,K64,IF(E25=C29,N64,erreur)))) -> 0.68115 | G47: =IF(E25=C26,F64,IF(E25=C27,I64,IF(E25=C28,L64,IF(E25=C29,O64,erreur)))) -> 0.68115 | H47: 1.3623 | I47: =IF(E25=C26,E78,IF(E25=C27,H78,IF(E25=C28,K78,IF(E25=C29,N78,erreur)))) -> 0.8174 | J47: =IF(E25=C26,F78,IF(E25=C27,I78,IF(E25=C28,L78,IF(E25=C29,O78,erreur)))) -> 0.54495 | K47: 1.36235 | L47: =IF(E25=C26,E92,IF(E25=C27,H92,IF(E25=C28,K92,IF(E25=C29,N92,erreur)))) -> 0.95365 | M47: =IF(E25=C26,F92,IF(E25=C27,I92,IF(E25=C28,L92,IF(E25=C29,O92,erreur)))) -> 0.4087 | N47: 1.36235 | Q47: 0.862745098 | R47: 1.254901961 | S47: 0 | T47: 1.529411765 | U47: 0 | V47: 1.176470588 | W47: 1.274509804 | X47: 0 | Y47: 1.274509804 | Z47: 1.333333333 | AA47: 1.411764706 | AB47: 0 | AC47: 1.098039216 | AD47: 1.470588235 | AJ47: 6 | AK47: =IF(AK40=AT40,AT47,IF(AK40=BB40,BB47,IF(AK40=BJ40,BJ47,IF(AK40=BR40,BR47,erreur)))) -> 250 | AL47: =IF(AK40=AT40,AU47,IF(AK40=BB40,BC47,IF(AK40=BJ40,BK47,IF(AK40=BR40,BS47,erreur)))) -> 200 | AM47: =IF(AK40=AT40,AV47,IF(AK40=BB40,BD47,IF(AK40=BJ40,BL47,IF(AK40=BR40,BT47,erreur)))) -> 250 | AN47: =IF(AK40=AT40,AW47,IF(AK40=BB40,BE47,IF(AK40=BJ40,BM47,IF(AK40=BR40,BU47,erreur)))) -> 250 | AO47: =IF(AK40=AT40,AX47,IF(AK40=BB40,BF47,IF(AK40=BJ40,BN47,IF(AK40=BR40,BV47,erreur)))) -> 150 | AP47: =IF(AK40=AT40,AY47,IF(AK40=BB40,BG47,IF(AK40=BJ40,BO47,IF(AK40=BR40,BW47,erreur)))) -> 200 | AS47: 6 | AT47: 250 | AU47: 250 | AV47: 150 | AW47: 250 | AX47: 200 | AY47: 200 | BA47: 6 | BB47: 250 | BC47: 200 | BD47: 250 | BE47: 250 | BF47: 150 | BG47: 200 | BI47: 6 | BJ47: 250 | BK47: 250 | BL47: 150 | BM47: 250 | BN47: 200 | BO47: 200 | BQ47: 6 | BR47: 250 | BS47: 200 | BT47: 250 | BU47: 250 | BV47: 150 | BW47: 200
F48: =IF(E25=C26,E65,IF(E25=C27,H65,IF(E25=C28,K65,IF(E25=C29,N65,erreur)))) -> 0.18165 | G48: =IF(E25=C26,F65,IF(E25=C27,I65,IF(E25=C28,L65,IF(E25=C29,O65,erreur)))) -> 0.7266 | H48: 0.90825 | I48: =IF(E25=C26,E79,IF(E25=C27,H79,IF(E25=C28,K79,IF(E25=C29,N79,erreur)))) -> 0.27245 | J48: =IF(E25=C26,F79,IF(E25=C27,I79,IF(E25=C28,L79,IF(E25=C29,O79,erreur)))) -> 0.63575 | K48: 0.9082 | L48: =IF(E25=C26,E93,IF(E25=C27,H93,IF(E25=C28,K93,IF(E25=C29,N93,erreur)))) -> 0.3633 | M48: =IF(E25=C26,F93,IF(E25=C27,I93,IF(E25=C28,L93,IF(E25=C29,O93,erreur)))) -> 0.54495 | N48: 0.90825 | Q48: 0.5294117647 | R48: 1.431372549 | S48: 0 | T48: 1.333333333 | U48: 0 | V48: 1.176470588 | W48: 1.274509804 | X48: 0 | Y48: 1.274509804 | Z48: 1.333333333 | AA48: 1.156862745 | AB48: 0 | AC48: 1.254901961 | AD48: 1.333333333 | AJ48: 7 | AK48: =IF(AK40=AT40,AT48,IF(AK40=BB40,BB48,IF(AK40=BJ40,BJ48,IF(AK40=BR40,BR48,erreur)))) -> 250 | AL48: =IF(AK40=AT40,AU48,IF(AK40=BB40,BC48,IF(AK40=BJ40,BK48,IF(AK40=BR40,BS48,erreur)))) -> 250 | AM48: =IF(AK40=AT40,AV48,IF(AK40=BB40,BD48,IF(AK40=BJ40,BL48,IF(AK40=BR40,BT48,erreur)))) -> 250 | AN48: =IF(AK40=AT40,AW48,IF(AK40=BB40,BE48,IF(AK40=BJ40,BM48,IF(AK40=BR40,BU48,erreur)))) -> 250 | AO48: =IF(AK40=AT40,AX48,IF(AK40=BB40,BF48,IF(AK40=BJ40,BN48,IF(AK40=BR40,BV48,erreur)))) -> 200 | AP48: =IF(AK40=AT40,AY48,IF(AK40=BB40,BG48,IF(AK40=BJ40,BO48,IF(AK40=BR40,BW48,erreur)))) -> 200 | AS48: 7 | AT48: 250 | AU48: 250 | AV48: 250 | AW48: 250 | AX48: 200 | AY48: 200 | BA48: 7 | BB48: 250 | BC48: 250 | BD48: 250 | BE48: 250 | BF48: 200 | BG48: 200 | BI48: 7 | BJ48: 250 | BK48: 250 | BL48: 250 | BM48: 250 | BN48: 200 | BO48: 200 | BQ48: 7 | BR48: 250 | BS48: 250 | BT48: 250 | BU48: 250 | BV48: 200 | BW48: 200
F49: =IF(E25=C26,E66,IF(E25=C27,H66,IF(E25=C28,K66,IF(E25=C29,N66,erreur)))) -> 0.4087 | G49: =IF(E25=C26,F66,IF(E25=C27,I66,IF(E25=C28,L66,IF(E25=C29,O66,erreur)))) -> 0.95365 | H49: 1.36235 | I49: =IF(E25=C26,E80,IF(E25=C27,H80,IF(E25=C28,K80,IF(E25=C29,N80,erreur)))) -> 0.68115 | J49: =IF(E25=C26,F80,IF(E25=C27,I80,IF(E25=C28,L80,IF(E25=C29,O80,erreur)))) -> 0.68115 | K49: 1.3623 | L49: =IF(E25=C26,E94,IF(E25=C27,H94,IF(E25=C28,K94,IF(E25=C29,N94,erreur)))) -> 0.95365 | M49: =IF(E25=C26,F94,IF(E25=C27,I94,IF(E25=C28,L94,IF(E25=C29,O94,erreur)))) -> 0.4087 | N49: 1.36235 | Q49: 1.176470588 | R49: 1.078431373 | S49: 0 | T49: 0.9411764706 | U49: 0 | V49: 1.176470588 | W49: 1.098039216 | X49: 0 | Y49: 1.098039216 | Z49: 1 | AA49: 1.019607843 | AB49: 0 | AC49: 1.254901961 | AD49: 0.9215686275 | AJ49: 8 | AK49: =IF(AK40=AT40,AT49,IF(AK40=BB40,BB49,IF(AK40=BJ40,BJ49,IF(AK40=BR40,BR49,erreur)))) -> 200 | AL49: =IF(AK40=AT40,AU49,IF(AK40=BB40,BC49,IF(AK40=BJ40,BK49,IF(AK40=BR40,BS49,erreur)))) -> 300 | AM49: =IF(AK40=AT40,AV49,IF(AK40=BB40,BD49,IF(AK40=BJ40,BL49,IF(AK40=BR40,BT49,erreur)))) -> 300 | AN49: =IF(AK40=AT40,AW49,IF(AK40=BB40,BE49,IF(AK40=BJ40,BM49,IF(AK40=BR40,BU49,erreur)))) -> 300 | AO49: =IF(AK40=AT40,AX49,IF(AK40=BB40,BF49,IF(AK40=BJ40,BN49,IF(AK40=BR40,BV49,erreur)))) -> 200 | AP49: =IF(AK40=AT40,AY49,IF(AK40=BB40,BG49,IF(AK40=BJ40,BO49,IF(AK40=BR40,BW49,erreur)))) -> 200 | AS49: 8 | AT49: 250 | AU49: 250 | AV49: 250 | AW49: 250 | AX49: 200 | AY49: 200 | BA49: 8 | BB49: 200 | BC49: 300 | BD49: 300 | BE49: 300 | BF49: 200 | BG49: 200 | BI49: 8 | BJ49: 200 | BK49: 300 | BL49: 300 | BM49: 300 | BN49: 200 | BO49: 200 | BQ49: 8 | BR49: 250 | BS49: 250 | BT49: 250 | BU49: 250 | BV49: 200 | BW49: 200
F50: =IF(E25=C26,E67,IF(E25=C27,H67,IF(E25=C28,K67,IF(E25=C29,N67,erreur)))) -> 0.8174 | G50: =IF(E25=C26,F67,IF(E25=C27,I67,IF(E25=C28,L67,IF(E25=C29,O67,erreur)))) -> 0.54495 | H50: 1.36235 | I50: =IF(E25=C26,E81,IF(E25=C27,H81,IF(E25=C28,K81,IF(E25=C29,N81,erreur)))) -> 0.95365 | J50: =IF(E25=C26,F81,IF(E25=C27,I81,IF(E25=C28,L81,IF(E25=C29,O81,erreur)))) -> 0.4087 | K50: 1.36235 | L50: =IF(E25=C26,E95,IF(E25=C27,H95,IF(E25=C28,K95,IF(E25=C29,N95,erreur)))) -> 0.95365 | M50: =IF(E25=C26,F95,IF(E25=C27,I95,IF(E25=C28,L95,IF(E25=C29,O95,erreur)))) -> 0.4087 | N50: 1.36235 | P50: valeur objet max | AJ50: 9 | AK50: =IF(AK40=AT40,AT50,IF(AK40=BB40,BB50,IF(AK40=BJ40,BJ50,IF(AK40=BR40,BR50,erreur)))) -> 350 | AL50: =IF(AK40=AT40,AU50,IF(AK40=BB40,BC50,IF(AK40=BJ40,BK50,IF(AK40=BR40,BS50,erreur)))) -> 400 | AM50: =IF(AK40=AT40,AV50,IF(AK40=BB40,BD50,IF(AK40=BJ40,BL50,IF(AK40=BR40,BT50,erreur)))) -> 250 | AN50: =IF(AK40=AT40,AW50,IF(AK40=BB40,BE50,IF(AK40=BJ40,BM50,IF(AK40=BR40,BU50,erreur)))) -> 250 | AO50: =IF(AK40=AT40,AX50,IF(AK40=BB40,BF50,IF(AK40=BJ40,BN50,IF(AK40=BR40,BV50,erreur)))) -> 250 | AP50: =IF(AK40=AT40,AY50,IF(AK40=BB40,BG50,IF(AK40=BJ40,BO50,IF(AK40=BR40,BW50,erreur)))) -> 200 | AS50: 9 | AT50: 250 | AU50: 350 | AV50: 400 | AW50: 300 | AX50: 200 | AY50: 200 | BA50: 9 | BB50: 350 | BC50: 400 | BD50: 250 | BE50: 250 | BF50: 250 | BG50: 200 | BI50: 9 | BJ50: 350 | BK50: 400 | BL50: 250 | BM50: 250 | BN50: 250 | BO50: 200 | BQ50: 9 | BR50: 250 | BS50: 350 | BT50: 400 | BU50: 300 | BV50: 200 | BW50: 200
F51: =IF(E25=C26,E68,IF(E25=C27,H68,IF(E25=C28,K68,IF(E25=C29,N68,erreur)))) -> 0.81415 | G51: =IF(E25=C26,F68,IF(E25=C27,I68,IF(E25=C28,L68,IF(E25=C29,O68,erreur)))) -> 0.54275 | H51: 1.3569 | I51: =IF(E25=C26,E82,IF(E25=C27,H82,IF(E25=C28,K82,IF(E25=C29,N82,erreur)))) -> 0.94985 | J51: =IF(E25=C26,F82,IF(E25=C27,I82,IF(E25=C28,L82,IF(E25=C29,O82,erreur)))) -> 0.40705 | K51: 1.3569 | L51: =IF(E25=C26,E96,IF(E25=C27,H96,IF(E25=C28,K96,IF(E25=C29,N96,erreur)))) -> 0.94985 | M51: =IF(E25=C26,F96,IF(E25=C27,I96,IF(E25=C28,L96,IF(E25=C29,O96,erreur)))) -> 0.40705 | N51: 1.3569 | Q51: =D21 -> 48 | R51: =D21 -> 48 | S51: =D21 -> 48 | T51: =D21 -> 48 | U51: =D21 -> 48 | V51: =D21 -> 48 | W51: =D21 -> 48 | X51: =D21 -> 48 | Y51: =D21 -> 48 | Z51: =D21 -> 48 | AA51: =D21 -> 48 | AB51: =D21 -> 48 | AC51: =D21 -> 48 | AD51: =D21 -> 48 | AJ51: 10 | AK51: =IF(AK40=AT40,AT51,IF(AK40=BB40,BB51,IF(AK40=BJ40,BJ51,IF(AK40=BR40,BR51,erreur)))) -> 200 | AL51: =IF(AK40=AT40,AU51,IF(AK40=BB40,BC51,IF(AK40=BJ40,BK51,IF(AK40=BR40,BS51,erreur)))) -> 350 | AM51: =IF(AK40=AT40,AV51,IF(AK40=BB40,BD51,IF(AK40=BJ40,BL51,IF(AK40=BR40,BT51,erreur)))) -> 250 | AN51: =IF(AK40=AT40,AW51,IF(AK40=BB40,BE51,IF(AK40=BJ40,BM51,IF(AK40=BR40,BU51,erreur)))) -> 300 | AO51: =IF(AK40=AT40,AX51,IF(AK40=BB40,BF51,IF(AK40=BJ40,BN51,IF(AK40=BR40,BV51,erreur)))) -> 300 | AP51: =IF(AK40=AT40,AY51,IF(AK40=BB40,BG51,IF(AK40=BJ40,BO51,IF(AK40=BR40,BW51,erreur)))) -> 200 | AS51: 10 | AT51: 200 | AU51: 350 | AV51: 250 | AW51: 300 | AX51: 300 | AY51: 200 | BA51: 10 | BB51: 200 | BC51: 350 | BD51: 250 | BE51: 300 | BF51: 300 | BG51: 200 | BI51: 10 | BJ51: 200 | BK51: 350 | BL51: 250 | BM51: 300 | BN51: 300 | BO51: 200 | BQ51: 10 | BR51: 200 | BS51: 350 | BT51: 250 | BU51: 300 | BV51: 300 | BW51: 200
F52: =IF(E25=C26,E69,IF(E25=C27,H69,IF(E25=C28,K69,IF(E25=C29,N69,erreur)))) -> 1.63485 | G52: =IF(E25=C26,F69,IF(E25=C27,I69,IF(E25=C28,L69,IF(E25=C29,O69,erreur)))) -> 1.0899 | H52: 2.72475 | I52: =IF(E25=C26,E83,IF(E25=C27,H83,IF(E25=C28,K83,IF(E25=C29,N83,erreur)))) -> 1.90735 | J52: =IF(E25=C26,F83,IF(E25=C27,I83,IF(E25=C28,L83,IF(E25=C29,O83,erreur)))) -> 0.8174 | K52: 2.72475 | L52: =IF(E25=C26,E97,IF(E25=C27,H97,IF(E25=C28,K97,IF(E25=C29,N97,erreur)))) -> 2.4523 | M52: =IF(E25=C26,F97,IF(E25=C27,I97,IF(E25=C28,L97,IF(E25=C29,O97,erreur)))) -> 0.27245 | N52: 2.72475 | Q52: =D21 -> 48 | R52: =D21 -> 48 | S52: =D21 -> 48 | T52: =D21 -> 48 | U52: =D21 -> 48 | V52: =D21 -> 48 | W52: =D21 -> 48 | X52: =D21 -> 48 | Y52: =D21 -> 48 | Z52: =D21 -> 48 | AA52: =D21 -> 48 | AB52: =D21 -> 48 | AC52: =D21 -> 48 | AD52: =D21 -> 48 | AJ52: 11 | AK52: =IF(AK40=AT40,AT52,IF(AK40=BB40,BB52,IF(AK40=BJ40,BJ52,IF(AK40=BR40,BR52,erreur)))) -> 100 | AL52: =IF(AK40=AT40,AU52,IF(AK40=BB40,BC52,IF(AK40=BJ40,BK52,IF(AK40=BR40,BS52,erreur)))) -> 150 | AM52: =IF(AK40=AT40,AV52,IF(AK40=BB40,BD52,IF(AK40=BJ40,BL52,IF(AK40=BR40,BT52,erreur)))) -> 150 | AN52: =IF(AK40=AT40,AW52,IF(AK40=BB40,BE52,IF(AK40=BJ40,BM52,IF(AK40=BR40,BU52,erreur)))) -> 150 | AO52: =IF(AK40=AT40,AX52,IF(AK40=BB40,BF52,IF(AK40=BJ40,BN52,IF(AK40=BR40,BV52,erreur)))) -> 100 | AP52: =IF(AK40=AT40,AY52,IF(AK40=BB40,BG52,IF(AK40=BJ40,BO52,IF(AK40=BR40,BW52,erreur)))) -> 100 | AS52: 11 | AT52: 250 | AU52: 350 | AV52: 400 | AW52: 350 | AX52: 150 | AY52: 200 | BA52: 11 | BB52: 100 | BC52: 150 | BD52: 150 | BE52: 150 | BF52: 100 | BG52: 100 | BI52: 11 | BJ52: 200 | BK52: 300 | BL52: 300 | BM52: 300 | BN52: 200 | BO52: 200 | BQ52: 11 | BR52: 250 | BS52: 350 | BT52: 400 | BU52: 350 | BV52: 150 | BW52: 200
F53: =IF(E25=C26,E70,IF(E25=C27,H70,IF(E25=C28,K70,IF(E25=C29,N70,erreur)))) -> 2.04355 | G53: =IF(E25=C26,F70,IF(E25=C27,I70,IF(E25=C28,L70,IF(E25=C29,O70,erreur)))) -> 0.22705 | H53: 2.2706 | I53: =IF(E25=C26,E84,IF(E25=C27,H84,IF(E25=C28,K84,IF(E25=C29,N84,erreur)))) -> 2.04355 | J53: =IF(E25=C26,F84,IF(E25=C27,I84,IF(E25=C28,L84,IF(E25=C29,O84,erreur)))) -> 0.22705 | K53: 2.2706 | L53: =IF(E25=C26,E98,IF(E25=C27,H98,IF(E25=C28,K98,IF(E25=C29,N98,erreur)))) -> 2.04355 | M53: =IF(E25=C26,F98,IF(E25=C27,I98,IF(E25=C28,L98,IF(E25=C29,O98,erreur)))) -> 0.22705 | N53: 2.2706 | Q53: =D21 -> 48 | R53: =D21 -> 48 | S53: =D21 -> 48 | T53: =D21 -> 48 | U53: =D21 -> 48 | V53: =D21 -> 48 | W53: =D21 -> 48 | X53: =D21 -> 48 | Y53: =D21 -> 48 | Z53: =D21 -> 48 | AA53: =D21 -> 48 | AB53: =D21 -> 48 | AC53: =D21 -> 48 | AD53: =D21 -> 48
F54: =IF(E25=C26,E71,IF(E25=C27,H71,IF(E25=C28,K71,IF(E25=C29,N71,erreur)))) -> 1.0899 | G54: =IF(E25=C26,F71,IF(E25=C27,I71,IF(E25=C28,L71,IF(E25=C29,O71,erreur)))) -> 0.7266 | H54: 1.8165 | I54: =IF(E25=C26,E85,IF(E25=C27,H85,IF(E25=C28,K85,IF(E25=C29,N85,erreur)))) -> 1.4532 | J54: =IF(E25=C26,F85,IF(E25=C27,I85,IF(E25=C28,L85,IF(E25=C29,O85,erreur)))) -> 0.3633 | K54: 1.8165 | L54: =IF(E25=C26,E99,IF(E25=C27,H99,IF(E25=C28,K99,IF(E25=C29,N99,erreur)))) -> 1.63485 | M54: =IF(E25=C26,F99,IF(E25=C27,I99,IF(E25=C28,L99,IF(E25=C29,O99,erreur)))) -> 0.18165 | N54: 1.8165 | Q54: =D21 -> 48 | R54: =D21 -> 48 | S54: =D21 -> 48 | T54: =D21 -> 48 | U54: =D21 -> 48 | V54: =D21 -> 48 | W54: =D21 -> 48 | X54: =D21 -> 48 | Y54: =D21 -> 48 | Z54: =D21 -> 48 | AA54: =D21 -> 48 | AB54: =D21 -> 48 | AC54: =D21 -> 48 | AD54: =D21 -> 48 | AI54: pourcentage poste par kit et par place | BR54: coefficient multiplicateur par tactique : | BZ54: pourcentage joueur | CF54: stats brutes joueurs adversaires par position sans bonus match
F55: =IF(E25=C26,E72,IF(E25=C27,H72,IF(E25=C28,K72,IF(E25=C29,N72, erreur)))) -> 1.63485 | G55: =IF(E25=C26,F72,IF(E25=C27,I72,IF(E25=C28,L72,IF(E25=C29,O72,erreur)))) -> 1.0899 | H55: 2.72475 | I55: =IF(E25=C26,E86,IF(E25=C27,H86,IF(E25=C28,K86,IF(E25=C29,N86,erreur)))) -> 1.90735 | J55: =IF(E25=C26,F86,IF(E25=C27,I86,IF(E25=C28,L86,IF(E25=C29,O86,erreur)))) -> 0.8174 | K55: 2.72475 | L55: =IF(E25=C26,E100,IF(E25=C27,H100,IF(E25=C28,K100,IF(E25=C29,N100,erreur)))) -> 2.4523 | M55: =IF(E25=C26,F100,IF(E25=C27,I100,IF(E25=C28,L100,IF(E25=C29,O100,erreur)))) -> 0.27245 | N55: 2.72475 | Q55: =D21 -> 48 | R55: =D21 -> 48 | S55: =D21 -> 48 | T55: =D21 -> 48 | U55: =D21 -> 48 | V55: =D21 -> 48 | W55: =D21 -> 48 | X55: =D21 -> 48 | Y55: =D21 -> 48 | Z55: =D21 -> 48 | AA55: =D21 -> 48 | AB55: =D21 -> 48 | AC55: =D21 -> 48 | AD55: =D21 -> 48 | AJ55: 1 | AK55: =Q9 -> kit 1 | AL55: kit 2/3 | AM55: 0 | AN55: kit 4 | AO55: 0 | AP55: kit 5 | AQ55: kit 6/7 | AR55: 0 | AS55: 0 | AT55: kit 8 | AU55: kit 9 | AV55: 0 | AW55: kit 10 | AX55: kit 11 | AY55: MAX | BA55: 2 | BB55: =Q9 -> kit 1 | BC55: kit 2/3 | BD55: 0 | BE55: kit 4 | BF55: 0 | BG55: kit 5 | BH55: kit 6/7 | BI55: 0 | BJ55: 0 | BK55: kit 8 | BL55: kit 9 | BM55: 0 | BN55: kit 10 | BO55: kit 11 | BP55: MAX | BS55: =F42 -> 433 | BZ55: adversaire par position | CG55: 541 | CP55: 433 | CY55: 352 | DH55: 442
E56: tactique selectionnée (ca ne sert a rien) | AJ56: =AJ191 -> espagne 9 | AK56: =MIN((S59+AJ35*D19)/AK42,(S60+AJ35*D19)/AL42,(S61+AJ35*D19)/AM42,(S62+AJ35*D19)/AN42,(S63+AJ35*D19)/AO42)*AP42 -> 367 | AL56: =MIN((T59+AJ35*D19)/AK42,(T60+AJ35*D19)/AL42,(T61+AJ35*D19)/AM42,(T62+AJ35*D19)/AN42,(T63+AJ35*D19)/AO42)*AP42 -> 353 | AM56: =MIN((U59+AJ35*D19)/AK42,(U60+AJ35*D19)/AL42,(U61+AJ35*D19)/AM42,(U62+AJ35*D19)/AN42,(U63+AJ35*D19)/AO42)*AP42 -> 327 | AN56: =MIN((V59+AJ35*D19)/AK42,(V60+AJ35*D19)/AL42,(V61+AJ35*D19)/AM42,(V62+AJ35*D19)/AN42,(V63+AJ35*D19)/AO42)*AP42 -> 349.5 | AO56: =MIN((W59+AJ35*D19)/AK42,(W60+AJ35*D19)/AL42,(W61+AJ35*D19)/AM42,(W62+AJ35*D19)/AN42,(W63+AJ35*D19)/AO42)*AP42 -> 327 | AP56: =MIN((X59+AJ35*D19)/AK42,(X60+AJ35*D19)/AL42,(X61+AJ35*D19)/AM42,(X62+AJ35*D19)/AN42,(X63+AJ35*D19)/AO42)*AP42 -> 355 | AQ56: =MIN((Y59+AJ35*D19)/AK42,(Y60+AJ35*D19)/AL42,(Y61+AJ35*D19)/AM42,(Y62+AJ35*D19)/AN42,(Y63+AJ35*D19)/AO42)*AP42 -> 357.5 | AR56: =MIN((Z59+AJ35*D19)/AK42,(Z60+AJ35*D19)/AL42,(Z61+AJ35*D19)/AM42,(Z62+AJ35*D19)/AN42,(Z63+AJ35*D19)/AO42)*AP42 -> 327 | AS56: =MIN((AA59+AJ35*D19)/AK42,(AA60+AJ35*D19)/AL42,(AA61+AJ35*D19)/AM42,(AA62+AJ35*D19)/AN42,(AA63+AJ35*D19)/AO42)*AP42 -> 357.5 | AT56: =MIN((AB59+AJ35*D19)/AK42,(AB60+AJ35*D19)/AL42,(AB61+AJ35*D19)/AM42,(AB62+AJ35*D19)/AN42,(AB63+AJ35*D19)/AO42)*AP42 -> 359 | AU56: =MIN((AC59+AJ35*D19)/AK42,(AC60+AJ35*D19)/AL42,(AC61+AJ35*D19)/AM42,(AC62+AJ35*D19)/AN42,(AC63+AJ35*D19)/AO42)*AP42 -> 361 | AV56: =MIN((AD59+AJ35*D19)/AK42,(AD60+AJ35*D19)/AL42,(AD61+AJ35*D19)/AM42,(AD62+AJ35*D19)/AN42,(AD63+AJ35*D19)/AO42)*AP42 -> 327 | AW56: =MIN((AE59+AJ35*D19)/AK42,(AE60+AJ35*D19)/AL42,(AE61+AJ35*D19)/AM42,(AE62+AJ35*D19)/AN42,(AE63+AJ35*D19)/AO42)*AP42 -> 361 | AX56: =MIN((AF59+AJ35*D19)/AK42,(AF60+AJ35*D19)/AL42,(AF61+AJ35*D19)/AM42,(AF62+AJ35*D19)/AN42,(AF63+AJ35*D19)/AO42)*AP42 -> 359 | AY56: =MAX(AK56:AX56) -> 367 | BA56: =AJ191 -> espagne 9 | BB56: =MIN((S59+AK35*D19)/AK43,(S60+AK35*D19)/AL43,(S61+AK35*D19)/AM43,(S62+AK35*D19)/AN43,(S63+AK35*D19)/AO43)*AP43 -> 406.6666667 | BC56: =MIN((T59+AK35*D19)/AK43,(T60+AK35*D19)/AL43,(T61+AK35*D19)/AM43,(T62+AK35*D19)/AN43,(T63+AK35*D19)/AO43)*AP43 -> 436 | BD56: =MIN((U59+AK35*D19)/AK43,(U60+AK35*D19)/AL43,(U61+AK35*D19)/AM43,(U62+AK35*D19)/AN43,(U63+AK35*D19)/AO43)*AP43 -> 390 | BE56: =MIN((V59+AK35*D19)/AK43,(V60+AK35*D19)/AL43,(V61+AK35*D19)/AM43,(V62+AK35*D19)/AN43,(V63+AK35*D19)/AO43)*AP43 -> 432.6666667 | BF56: =MIN((W59+AK35*D19)/AK43,(W60+AK35*D19)/AL43,(W61+AK35*D19)/AM43,(W62+AK35*D19)/AN43,(W63+AK35*D19)/AO43)*AP43 -> 390 | BG56: =MIN((X59+AK35*D19)/AK43,(X60+AK35*D19)/AL43,(X61+AK35*D19)/AM43,(X62+AK35*D19)/AN43,(X63+AK35*D19)/AO43)*AP43 -> 427.3333333 | BH56: =MIN((Y59+AK35*D19)/AK43,(Y60+AK35*D19)/AL43,(Y61+AK35*D19)/AM43,(Y62+AK35*D19)/AN43,(Y63+AK35*D19)/AO43)*AP43 -> 430.6666667 | BI56: =MIN((Z59+AK35*D19)/AK43,(Z60+AK35*D19)/AL43,(Z61+AK35*D19)/AM43,(Z62+AK35*D19)/AN43,(Z63+AK35*D19)/AO43)*AP43 -> 390 | BJ56: =MIN((AA59+AK35*D19)/AK43,(AA60+AK35*D19)/AL43,(AA61+AK35*D19)/AM43,(AA62+AK35*D19)/AN43,(AA63+AK35*D19)/AO43)*AP43 -> 430.6666667 | BK56: =MIN((AB59+AK35*D19)/AK43,(AB60+AK35*D19)/AL43,(AB61+AK35*D19)/AM43,(AB62+AK35*D19)/AN43,(AB63+AK35*D19)/AO43)*AP43 -> 432.6666667 | BL56: =MIN((AC59+AK35*D19)/AK43,(AC60+AK35*D19)/AL43,(AC61+AK35*D19)/AM43,(AC62+AK35*D19)/AN43,(AC63+AK35*D19)/AO43)*AP43 -> 427.3333333 | BM56: =MIN((AD59+AK35*D19)/AK43,(AD60+AK35*D19)/AL43,(AD61+AK35*D19)/AM43,(AD62+AK35*D19)/AN43,(AD63+AK35*D19)/AO43)*AP43 -> 390 | BN56: =MIN((AE59+AK35*D19)/AK43,(AE60+AK35*D19)/AL43,(AE61+AK35*D19)/AM43,(AE62+AK35*D19)/AN43,(AE63+AK35*D19)/AO43)*AP43 -> 430 | BO56: =MIN((AF59+AK35*D19)/AK43,(AF60+AK35*D19)/AL43,(AF61+AK35*D19)/AM43,(AF62+AK35*D19)/AN43,(AF63+AK35*D19)/AO43)*AP43 -> 432.6666667 | BP56: =MAX(BB56:BO56) -> 436 | BS56: =AP3 -> Offensif | CA56: 541 | CB56: 433 | CC56: 352 | CD56: 442 | CG56: defensif | CJ56: neutre | CM56: offensif | CP56: defensif | CS56: neutre | CV56: offensif | CY56: defensif | DB56: neutre | DE56: offensif | DH56: defensif | DK56: neutre | DN56: offensif
E57: 541 defensif | F57: 541 neutre | G57: 541 offensif | H57: 433 defensif | I57: 433 neutre | J57: 433 offensif | K57: 352 defensif | L57: 352 neutre | M57: 352 offensif | N57: 442 defensif | O57: 442 neutre | P57: 442 offensif | Q57: caracteristiques joueur avec bonus batiment, objet et kit, sans vitamine. | AJ57: 2 | AK57: =MIN((S66+AJ35*D19)/AK42,(S67+AJ35*D19)/AL42,(S68+AJ35*D19)/AM42,(S69+AJ35*D19)/AN42,(S70+AJ35*D19)/AO42)*AP42 -> 327 | AL57: =MIN((T66+AJ35*D19)/AK42,(T67+AJ35*D19)/AL42,(T68+AJ35*D19)/AM42,(T69+AJ35*D19)/AN42,(T70+AJ35*D19)/AO42)*AP42 -> 313 | AM57: =MIN((U66+AJ35*D19)/AK42,(U67+AJ35*D19)/AL42,(U68+AJ35*D19)/AM42,(U69+AJ35*D19)/AN42,(U70+AJ35*D19)/AO42)*AP42 -> 287 | AN57: =MIN((V66+AJ35*D19)/AK42,(V67+AJ35*D19)/AL42,(V68+AJ35*D19)/AM42,(V69+AJ35*D19)/AN42,(V70+AJ35*D19)/AO42)*AP42 -> 309.5 | AO57: =MIN((W66+AJ35*D19)/AK42,(W67+AJ35*D19)/AL42,(W68+AJ35*D19)/AM42,(W69+AJ35*D19)/AN42,(W70+AJ35*D19)/AO42)*AP42 -> 287 | AP57: =MIN((X66+AJ35*D19)/AK42,(X67+AJ35*D19)/AL42,(X68+AJ35*D19)/AM42,(X69+AJ35*D19)/AN42,(X70+AJ35*D19)/AO42)*AP42 -> 315 | AQ57: =MIN((Y66+AJ35*D19)/AK42,(Y67+AJ35*D19)/AL42,(Y68+AJ35*D19)/AM42,(Y69+AJ35*D19)/AN42,(Y70+AJ35*D19)/AO42)*AP42 -> 317.5 | AR57: =MIN((Z66+AJ35*D19)/AK42,(Z67+AJ35*D19)/AL42,(Z68+AJ35*D19)/AM42,(Z69+AJ35*D19)/AN42,(Z70+AJ35*D19)/AO42)*AP42 -> 287 | AS57: =MIN((AA66+AJ35*D19)/AK42,(AA67+AJ35*D19)/AL42,(AA68+AJ35*D19)/AM42,(AA69+AJ35*D19)/AN42,(AA70+AJ35*D19)/AO42)*AP42 -> 317.5 | AT57: =MIN((AB66+AJ35*D19)/AK42,(AB67+AJ35*D19)/AL42,(AB68+AJ35*D19)/AM42,(AB69+AJ35*D19)/AN42,(AB70+AJ35*D19)/AO42)*AP42 -> 319 | AU57: =MIN((AC66+AJ35*D19)/AK42,(AC67+AJ35*D19)/AL42,(AC68+AJ35*D19)/AM42,(AC69+AJ35*D19)/AN42,(AC70+AJ35*D19)/AO42)*AP42 -> 321 | AV57: =MIN((AD66+AJ35*D19)/AK42,(AD67+AJ35*D19)/AL42,(AD68+AJ35*D19)/AM42,(AD69+AJ35*D19)/AN42,(AD70+AJ35*D19)/AO42)*AP42 -> 287 | AW57: =MIN((AE66+AJ35*D19)/AK42,(AE67+AJ35*D19)/AL42,(AE68+AJ35*D19)/AM42,(AE69+AJ35*D19)/AN42,(AE70+AJ35*D19)/AO42)*AP42 -> 321 | AX57: =MIN((AF66+AJ35*D19)/AK42,(AF67+AJ35*D19)/AL42,(AF68+AJ35*D19)/AM42,(AF69+AJ35*D19)/AN42,(AF70+AJ35*D19)/AO42)*AP42 -> 319 | AY57: =MAX(AK57:AX57) -> 327 | BA57: 2 | BB57: =MIN((S66+AK35*D19)/AK43,(S67+AK35*D19)/AL43,(S68+AK35*D19)/AM43,(S69+AK35*D19)/AN43,(S70+AK35*D19)/AO43)*AP43 -> 429.3333333 | BC57: =MIN((T66+AK35*D19)/AK43,(T67+AK35*D19)/AL43,(T68+AK35*D19)/AM43,(T69+AK35*D19)/AN43,(T70+AK35*D19)/AO43)*AP43 -> 458.6666667 | BD57: =MIN((U66+AK35*D19)/AK43,(U67+AK35*D19)/AL43,(U68+AK35*D19)/AM43,(U69+AK35*D19)/AN43,(U70+AK35*D19)/AO43)*AP43 -> 412.6666667 | BE57: =MIN((V66+AK35*D19)/AK43,(V67+AK35*D19)/AL43,(V68+AK35*D19)/AM43,(V69+AK35*D19)/AN43,(V70+AK35*D19)/AO43)*AP43 -> 455.3333333 | BF57: =MIN((W66+AK35*D19)/AK43,(W67+AK35*D19)/AL43,(W68+AK35*D19)/AM43,(W69+AK35*D19)/AN43,(W70+AK35*D19)/AO43)*AP43 -> 412.6666667 | BG57: =MIN((X66+AK35*D19)/AK43,(X67+AK35*D19)/AL43,(X68+AK35*D19)/AM43,(X69+AK35*D19)/AN43,(X70+AK35*D19)/AO43)*AP43 -> 450 | BH57: =MIN((Y66+AK35*D19)/AK43,(Y67+AK35*D19)/AL43,(Y68+AK35*D19)/AM43,(Y69+AK35*D19)/AN43,(Y70+AK35*D19)/AO43)*AP43 -> 453.3333333 | BI57: =MIN((Z66+AK35*D19)/AK43,(Z67+AK35*D19)/AL43,(Z68+AK35*D19)/AM43,(Z69+AK35*D19)/AN43,(Z70+AK35*D19)/AO43)*AP43 -> 412.6666667 | BJ57: =MIN((AA66+AK35*D19)/AK43,(AA67+AK35*D19)/AL43,(AA68+AK35*D19)/AM43,(AA69+AK35*D19)/AN43,(AA70+AK35*D19)/AO43)*AP43 -> 453.3333333 | BK57: =MIN((AB66+AK35*D19)/AK43,(AB67+AK35*D19)/AL43,(AB68+AK35*D19)/AM43,(AB69+AK35*D19)/AN43,(AB70+AK35*D19)/AO43)*AP43 -> 455.3333333 | BL57: =MIN((AC66+AK35*D19)/AK43,(AC67+AK35*D19)/AL43,(AC68+AK35*D19)/AM43,(AC69+AK35*D19)/AN43,(AC70+AK35*D19)/AO43)*AP43 -> 450 | BM57: =MIN((AD66+AK35*D19)/AK43,(AD67+AK35*D19)/AL43,(AD68+AK35*D19)/AM43,(AD69+AK35*D19)/AN43,(AD70+AK35*D19)/AO43)*AP43 -> 412.6666667 | BN57: =MIN((AE66+AK35*D19)/AK43,(AE67+AK35*D19)/AL43,(AE68+AK35*D19)/AM43,(AE69+AK35*D19)/AN43,(AE70+AK35*D19)/AO43)*AP43 -> 452.6666667 | BO57: =MIN((AF66+AK35*D19)/AK43,(AF67+AK35*D19)/AL43,(AF68+AK35*D19)/AM43,(AF69+AK35*D19)/AN43,(AF70+AK35*D19)/AO43)*AP43 -> 455.3333333 | BP57: =MAX(BB57:BO57) -> 458.6666667 | BS57: 1% attaque | BU57: 1% defense | BW57: 1% cumulé | BZ57: 1 | CA57: =MIN(CK5/AT42,CL5/AU42,CM5/AV42,CN5/AW42,CO5/AX42)*AY42 ->  | CB57: =MIN(CK5/BB42,CL5/BC42,CM5/BD42,CN5/BE42,CO5/BF42)*BG42 ->  | CC57: =MIN(CK5/BJ42,CL5/BK42,CM5/BL42,CN5/BM42,CO5/BN42)*BO42 ->  | CD57: =MIN(CK5/BR42,CL5/BS42,CM5/BT42,CN5/BU42,CO5/BV42)*BW42 ->  | CG57: att | CH57: def | CI57: tot | CJ57: att | CK57: def | CL57: tot | CM57: att | CN57: def | CO57: tot | CP57: att | CQ57: def | CR57: tot | CS57: att | CT57: def | CU57: tot | CV57: att | CW57: def | CX57: tot | CY57: att | CZ57: def | DA57: tot | DB57: att | DC57: def | DD57: tot | DE57: att | DF57: def | DG57: tot | DH57: att | DI57: def | DJ57: tot | DK57: att | DL57: def | DM57: tot | DN57: att | DO57: def | DP57: tot
E58: =AND(E25=C26,E26=C31) -> FALSE | F58: =AND(E25=C26,E26=C32) -> FALSE | G58: =AND(E25=C26,E26=C33) -> FALSE | H58: =AND(E25=C27,E26=C31) -> FALSE | I58: =AND(E25=C27,E26=C32) -> FALSE | J58: =AND(E25=C27,E26=C33) -> TRUE | K58: =AND(E25=C28,E26=C31) -> FALSE | L58: =AND(E25=C28,E26=C32) -> FALSE | M58: =AND(E25=C28,E26=C33) -> FALSE | N58: =AND(E25=C29,E26=C31) -> FALSE | O58: =AND(E25=C29,E26=C32) -> FALSE | P58: =AND(E25=D29,E26=C33) -> FALSE | R58: =G11 -> espagne 9 | S58: =Q9 -> kit 1 | T58: kit 2/3 | U58: 0 | V58: kit 4 | W58: 0 | X58: kit 5 | Y58: kit 6/7 | Z58: 0 | AA58: 0 | AB58: kit 8 | AC58: kit 9 | AD58: 0 | AE58: kit 10 | AF58: kit 11 | AJ58: 3 | AK58: =MIN((S73+AJ35*D19)/AK42,(S74+AJ35*D19)/AL42,(S75+AJ35*D19)/AM42,(S76+AJ35*D19)/AN42,(S77+AJ35*D19)/AO42)*AP42 -> 257.5 | AL58: =MIN((T73+AJ35*D19)/AK42,(T74+AJ35*D19)/AL42,(T75+AJ35*D19)/AM42,(T76+AJ35*D19)/AN42,(T77+AJ35*D19)/AO42)*AP42 -> 243.5 | AM58: =MIN((U73+AJ35*D19)/AK42,(U74+AJ35*D19)/AL42,(U75+AJ35*D19)/AM42,(U76+AJ35*D19)/AN42,(U77+AJ35*D19)/AO42)*AP42 -> 217.5 | AN58: =MIN((V73+AJ35*D19)/AK42,(V74+AJ35*D19)/AL42,(V75+AJ35*D19)/AM42,(V76+AJ35*D19)/AN42,(V77+AJ35*D19)/AO42)*AP42 -> 240 | AO58: =MIN((W73+AJ35*D19)/AK42,(W74+AJ35*D19)/AL42,(W75+AJ35*D19)/AM42,(W76+AJ35*D19)/AN42,(W77+AJ35*D19)/AO42)*AP42 -> 217.5 | AP58: =MIN((X73+AJ35*D19)/AK42,(X74+AJ35*D19)/AL42,(X75+AJ35*D19)/AM42,(X76+AJ35*D19)/AN42,(X77+AJ35*D19)/AO42)*AP42 -> 245.5 | AQ58: =MIN((Y73+AJ35*D19)/AK42,(Y74+AJ35*D19)/AL42,(Y75+AJ35*D19)/AM42,(Y76+AJ35*D19)/AN42,(Y77+AJ35*D19)/AO42)*AP42 -> 248 | AR58: =MIN((Z73+AJ35*D19)/AK42,(Z74+AJ35*D19)/AL42,(Z75+AJ35*D19)/AM42,(Z76+AJ35*D19)/AN42,(Z77+AJ35*D19)/AO42)*AP42 -> 217.5 | AS58: =MIN((AA73+AJ35*D19)/AK42,(AA74+AJ35*D19)/AL42,(AA75+AJ35*D19)/AM42,(AA76+AJ35*D19)/AN42,(AA77+AJ35*D19)/AO42)*AP42 -> 248 | AT58: =MIN((AB73+AJ35*D19)/AK42,(AB74+AJ35*D19)/AL42,(AB75+AJ35*D19)/AM42,(AB76+AJ35*D19)/AN42,(AB77+AJ35*D19)/AO42)*AP42 -> 249.5 | AU58: =MIN((AC73+AJ35*D19)/AK42,(AC74+AJ35*D19)/AL42,(AC75+AJ35*D19)/AM42,(AC76+AJ35*D19)/AN42,(AC77+AJ35*D19)/AO42)*AP42 -> 251.5 | AV58: =MIN((AD73+AJ35*D19)/AK42,(AD74+AJ35*D19)/AL42,(AD75+AJ35*D19)/AM42,(AD76+AJ35*D19)/AN42,(AD77+AJ35*D19)/AO42)*AP42 -> 217.5 | AW58: =MIN((AE73+AJ35*D19)/AK42,(AE74+AJ35*D19)/AL42,(AE75+AJ35*D19)/AM42,(AE76+AJ35*D19)/AN42,(AE77+AJ35*D19)/AO42)*AP42 -> 251.5 | AX58: =MIN((AF73+AJ35*D19)/AK42,(AF74+AJ35*D19)/AL42,(AF75+AJ35*D19)/AM42,(AF76+AJ35*D19)/AN42,(AF77+AJ35*D19)/AO42)*AP42 -> 249.5 | AY58: 257.5 | BA58: 3 | BB58: =MIN((S73+AK35*D19)/AK43,(S74+AK35*D19)/AL43,(S75+AK35*D19)/AM43,(S76+AK35*D19)/AN43,(S77+AK35*D19)/AO43)*AP43 -> 416 | BC58: =MIN((T73+AK35*D19)/AK43,(T74+AK35*D19)/AL43,(T75+AK35*D19)/AM43,(T76+AK35*D19)/AN43,(T77+AK35*D19)/AO43)*AP43 -> 445.3333333 | BD58: =MIN((U73+AK35*D19)/AK43,(U74+AK35*D19)/AL43,(U75+AK35*D19)/AM43,(U76+AK35*D19)/AN43,(U77+AK35*D19)/AO43)*AP43 -> 399.3333333 | BE58: =MIN((V73+AK35*D19)/AK43,(V74+AK35*D19)/AL43,(V75+AK35*D19)/AM43,(V76+AK35*D19)/AN43,(V77+AK35*D19)/AO43)*AP43 -> 442 | BF58: =MIN((W73+AK35*D19)/AK43,(W74+AK35*D19)/AL43,(W75+AK35*D19)/AM43,(W76+AK35*D19)/AN43,(W77+AK35*D19)/AO43)*AP43 -> 399.3333333 | BG58: =MIN((X73+AK35*D19)/AK43,(X74+AK35*D19)/AL43,(X75+AK35*D19)/AM43,(X76+AK35*D19)/AN43,(X77+AK35*D19)/AO43)*AP43 -> 436.6666667 | BH58: =MIN((Y73+AK35*D19)/AK43,(Y74+AK35*D19)/AL43,(Y75+AK35*D19)/AM43,(Y76+AK35*D19)/AN43,(Y77+AK35*D19)/AO43)*AP43 -> 440 | BI58: =MIN((Z73+AK35*D19)/AK43,(Z74+AK35*D19)/AL43,(Z75+AK35*D19)/AM43,(Z76+AK35*D19)/AN43,(Z77+AK35*D19)/AO43)*AP43 -> 399.3333333 | BJ58: =MIN((AA73+AK35*D19)/AK43,(AA74+AK35*D19)/AL43,(AA75+AK35*D19)/AM43,(AA76+AK35*D19)/AN43,(AA77+AK35*D19)/AO43)*AP43 -> 440 | BK58: =MIN((AB73+AK35*D19)/AK43,(AB74+AK35*D19)/AL43,(AB75+AK35*D19)/AM43,(AB76+AK35*D19)/AN43,(AB77+AK35*D19)/AO43)*AP43 -> 442 | BL58: =MIN((AC73+AK35*D19)/AK43,(AC74+AK35*D19)/AL43,(AC75+AK35*D19)/AM43,(AC76+AK35*D19)/AN43,(AC77+AK35*D19)/AO43)*AP43 -> 436.6666667 | BM58: =MIN((AD73+AK35*D19)/AK43,(AD74+AK35*D19)/AL43,(AD75+AK35*D19)/AM43,(AD76+AK35*D19)/AN43,(AD77+AK35*D19)/AO43)*AP43 -> 399.3333333 | BN58: =MIN((AE73+AK35*D19)/AK43,(AE74+AK35*D19)/AL43,(AE75+AK35*D19)/AM43,(AE76+AK35*D19)/AN43,(AE77+AK35*D19)/AO43)*AP43 -> 439.3333333 | BO58: =MIN((AF73+AK35*D19)/AK43,(AF74+AK35*D19)/AL43,(AF75+AK35*D19)/AM43,(AF76+AK35*D19)/AN43,(AF77+AK35*D19)/AO43)*AP43 -> 442 | BP58: 445.3333333 | BS58: =IF(E26=C31,F45,IF(E26=C32,I45,IF(E26=C33,L45,erreur))) -> 0.27245 | BU58: =IF(E26=C31,G45,IF(E26=C32,J45,IF(E26=C33,M45,erreur))) -> 2.4523 | BW58: =BS58+BU58 -> 2.72475 | BZ58: 2 | CF58: 1 | CG58: =CA57*E62 ->  | CH58: =CA57*F62 ->  | CI58: =CA57*G62 ->  | CJ58: =CA57*E76 ->  | CK58: =CA57*F76 ->  | CL58: =CA57*G76 ->  | CM58: =CA57*E90 ->  | CN58: =CA57*F90 ->  | CO58: =CA57*G90 ->  | CP58: =CB57*H62 ->  | CQ58: =CB57*I62 ->  | CR58: =CB57*J62 ->  | CS58: =CB57*H76 ->  | CT58: =CB57*I76 ->  | CU58: =CB57*J76 ->  | CV58: =CB57*H90 ->  | CW58: =CB57*I90 ->  | CX58: =CB57*J90 ->  | CY58: =CC57*K62 ->  | CZ58: =CC57*L62 ->  | DA58: =CC57*M62 ->  | DB58: =CC57*K76 ->  | DC58: =CC57*L76 ->  | DD58: =CC57*M76 ->  | DE58: =CC57*K90 ->  | DF58: =CC57*L90 ->  | DG58: =CC57*M90 ->  | DH58: =CD57*N62 ->  | DI58: =CD57*O62 ->  | DJ58: =CD57*P62 ->  | DK58: =CD57*N76 ->  | DL58: =CD57*O76 ->  | DM58: =CD57*P76 ->  | DN58: =CD57*N90 ->  | DO58: =CD57*O90 ->  | DP58: =CD57*P90 -> 
D59: coefficient stat brute pour 1% / tactique | R59: =H11+AH39+D16+D17+D21+D19*AG8 -> 546 | S59: =Q10+R59 -> 587 | T59: =R59+R10 -> 615 | U59: =R59+S10 -> 546 | V59: =R59+T10 -> 619 | W59: =R59+U10 -> 546 | X59: =R59+V10 -> 616 | Y59: =R59+W10 -> 607 | Z59: =R59+X10 -> 546 | AA59: =R59+Y10 -> 607 | AB59: =R59+Z10 -> 602 | AC59: =R59+AA10 -> 607 | AD59: =R59+AB10 -> 546 | AE59: =R59+AC10 -> 592 | AF59: =R59+AD10 -> 597 | AJ59: algerie 4 | AK59: =MIN((S80+AJ35*D19)/AK42,(S81+AJ35*D19)/AL42,(S82+AJ35*D19)/AM42,(S83+AJ35*D19)/AN42,(S84+AJ35*D19)/AO42)*AP42 -> 225 | AL59: =MIN((T80+AJ35*D19)/AK42,(T81+AJ35*D19)/AL42,(T82+AJ35*D19)/AM42,(T83+AJ35*D19)/AN42,(T84+AJ35*D19)/AO42)*AP42 -> 211 | AM59: =MIN((U80+AJ35*D19)/AK42,(U81+AJ35*D19)/AL42,(U82+AJ35*D19)/AM42,(U83+AJ35*D19)/AN42,(U84+AJ35*D19)/AO42)*AP42 -> 185 | AN59: =MIN((V80+AJ35*D19)/AK42,(V81+AJ35*D19)/AL42,(V82+AJ35*D19)/AM42,(V83+AJ35*D19)/AN42,(V84+AJ35*D19)/AO42)*AP42 -> 207.5 | AO59: =MIN((W80+AJ35*D19)/AK42,(W81+AJ35*D19)/AL42,(W82+AJ35*D19)/AM42,(W83+AJ35*D19)/AN42,(W84+AJ35*D19)/AO42)*AP42 -> 185 | AP59: =MIN((X80+AJ35*D19)/AK42,(X81+AJ35*D19)/AL42,(X82+AJ35*D19)/AM42,(X83+AJ35*D19)/AN42,(X84+AJ35*D19)/AO42)*AP42 -> 213 | AQ59: =MIN((Y80+AJ35*D19)/AK42,(Y81+AJ35*D19)/AL42,(Y82+AJ35*D19)/AM42,(Y83+AJ35*D19)/AN42,(Y84+AJ35*D19)/AO42)*AP42 -> 215.5 | AR59: =MIN((Z80+AJ35*D19)/AK42,(Z81+AJ35*D19)/AL42,(Z82+AJ35*D19)/AM42,(Z83+AJ35*D19)/AN42,(Z84+AJ35*D19)/AO42)*AP42 -> 185 | AS59: =MIN((AA80+AJ35*D19)/AK42,(AA81+AJ35*D19)/AL42,(AA82+AJ35*D19)/AM42,(AA83+AJ35*D19)/AN42,(AA84+AJ35*D19)/AO42)*AP42 -> 215.5 | AT59: =MIN((AB80+AJ35*D19)/AK42,(AB81+AJ35*D19)/AL42,(AB82+AJ35*D19)/AM42,(AB83+AJ35*D19)/AN42,(AB84+AJ35*D19)/AO42)*AP42 -> 217 | AU59: =MIN((AC80+AJ35*D19)/AK42,(AC81+AJ35*D19)/AL42,(AC82+AJ35*D19)/AM42,(AC83+AJ35*D19)/AN42,(AC84+AJ35*D19)/AO42)*AP42 -> 219 | AV59: =MIN((AD80+AJ35*D19)/AK42,(AD81+AJ35*D19)/AL42,(AD82+AJ35*D19)/AM42,(AD83+AJ35*D19)/AN42,(AD84+AJ35*D19)/AO42)*AP42 -> 185 | AW59: =MIN((AE80+AJ35*D19)/AK42,(AE81+AJ35*D19)/AL42,(AE82+AJ35*D19)/AM42,(AE83+AJ35*D19)/AN42,(AE84+AJ35*D19)/AO42)*AP42 -> 219 | AX59: =MIN((AF80+AJ35*D19)/AK42,(AF81+AJ35*D19)/AL42,(AF82+AJ35*D19)/AM42,(AF83+AJ35*D19)/AN42,(AF84+AJ35*D19)/AO42)*AP42 -> 217 | AY59: 225 | BA59: algerie 4 | BB59: =MIN((S80+AK35*D19)/AK43,(S81+AK35*D19)/AL43,(S82+AK35*D19)/AM43,(S83+AK35*D19)/AN43,(S84+AK35*D19)/AO43)*AP43 -> 361.3333333 | BC59: =MIN((T80+AK35*D19)/AK43,(T81+AK35*D19)/AL43,(T82+AK35*D19)/AM43,(T83+AK35*D19)/AN43,(T84+AK35*D19)/AO43)*AP43 -> 389 | BD59: =MIN((U80+AK35*D19)/AK43,(U81+AK35*D19)/AL43,(U82+AK35*D19)/AM43,(U83+AK35*D19)/AN43,(U84+AK35*D19)/AO43)*AP43 -> 337 | BE59: =MIN((V80+AK35*D19)/AK43,(V81+AK35*D19)/AL43,(V82+AK35*D19)/AM43,(V83+AK35*D19)/AN43,(V84+AK35*D19)/AO43)*AP43 -> 382 | BF59: =MIN((W80+AK35*D19)/AK43,(W81+AK35*D19)/AL43,(W82+AK35*D19)/AM43,(W83+AK35*D19)/AN43,(W84+AK35*D19)/AO43)*AP43 -> 337 | BG59: =MIN((X80+AK35*D19)/AK43,(X81+AK35*D19)/AL43,(X82+AK35*D19)/AM43,(X83+AK35*D19)/AN43,(X84+AK35*D19)/AO43)*AP43 -> 382 | BH59: =MIN((Y80+AK35*D19)/AK43,(Y81+AK35*D19)/AL43,(Y82+AK35*D19)/AM43,(Y83+AK35*D19)/AN43,(Y84+AK35*D19)/AO43)*AP43 -> 385.3333333 | BI59: =MIN((Z80+AK35*D19)/AK43,(Z81+AK35*D19)/AL43,(Z82+AK35*D19)/AM43,(Z83+AK35*D19)/AN43,(Z84+AK35*D19)/AO43)*AP43 -> 337 | BJ59: =MIN((AA80+AK35*D19)/AK43,(AA81+AK35*D19)/AL43,(AA82+AK35*D19)/AM43,(AA83+AK35*D19)/AN43,(AA84+AK35*D19)/AO43)*AP43 -> 385.3333333 | BK59: =MIN((AB80+AK35*D19)/AK43,(AB81+AK35*D19)/AL43,(AB82+AK35*D19)/AM43,(AB83+AK35*D19)/AN43,(AB84+AK35*D19)/AO43)*AP43 -> 385 | BL59: =MIN((AC80+AK35*D19)/AK43,(AC81+AK35*D19)/AL43,(AC82+AK35*D19)/AM43,(AC83+AK35*D19)/AN43,(AC84+AK35*D19)/AO43)*AP43 -> 382 | BM59: =MIN((AD80+AK35*D19)/AK43,(AD81+AK35*D19)/AL43,(AD82+AK35*D19)/AM43,(AD83+AK35*D19)/AN43,(AD84+AK35*D19)/AO43)*AP43 -> 337 | BN59: =MIN((AE80+AK35*D19)/AK43,(AE81+AK35*D19)/AL43,(AE82+AK35*D19)/AM43,(AE83+AK35*D19)/AN43,(AE84+AK35*D19)/AO43)*AP43 -> 384.6666667 | BO59: =MIN((AF80+AK35*D19)/AK43,(AF81+AK35*D19)/AL43,(AF82+AK35*D19)/AM43,(AF83+AK35*D19)/AN43,(AF84+AK35*D19)/AO43)*AP43 -> 381 | BP59: 389 | BS59: =IF(E26=C31,F46,IF(E26=C32,I46,IF(E26=C33,L46,erreur))) -> 0.95365 | BU59: =IF(E26=C31,G46,IF(E26=C32,J46,IF(E26=C33,M46,erreur))) -> 0.4087 | BW59: =BS59+BU59 -> 1.36235 | BZ59: 3 | CF59: 2
E60: 541 défensif | H60: 433 défensif | K60: 352 défensif | N60: 442 défensif | R60: =I11+AH40+D15+D17+D21+D19*AG8 -> 654 | S60: =Q11+R60 -> 734 | T60: =R60+R11 -> 706 | U60: =R60+S11 -> 654 | V60: =R60+T11 -> 699 | W60: =R60+U11 -> 654 | X60: =R60+V11 -> 710 | Y60: =R60+W11 -> 715 | Z60: =R60+X11 -> 654 | AA60: =R60+Y11 -> 715 | AB60: =R60+Z11 -> 718 | AC60: =R60+AA11 -> 722 | AD60: =R60+AB11 -> 654 | AE60: =R60+AC11 -> 722 | AF60: =R60+AD11 -> 718 | AJ60: ghana 5 | AK60: =MIN((S87+AJ35*D19)/AK42,(S88+AJ35*D19)/AL42,(S89+AJ35*D19)/AM42,(S90+AJ35*D19)/AN42,(S91+AJ35*D19)/AO42)*AP42 -> 326 | AL60: =MIN((T87+AJ35*D19)/AK42,(T88+AJ35*D19)/AL42,(T89+AJ35*D19)/AM42,(T90+AJ35*D19)/AN42,(T91+AJ35*D19)/AO42)*AP42 -> 312 | AM60: =MIN((U87+AJ35*D19)/AK42,(U88+AJ35*D19)/AL42,(U89+AJ35*D19)/AM42,(U90+AJ35*D19)/AN42,(U91+AJ35*D19)/AO42)*AP42 -> 286 | AN60: =MIN((V87+AJ35*D19)/AK42,(V88+AJ35*D19)/AL42,(V89+AJ35*D19)/AM42,(V90+AJ35*D19)/AN42,(V91+AJ35*D19)/AO42)*AP42 -> 308.5 | AO60: =MIN((W87+AJ35*D19)/AK42,(W88+AJ35*D19)/AL42,(W89+AJ35*D19)/AM42,(W90+AJ35*D19)/AN42,(W91+AJ35*D19)/AO42)*AP42 -> 286 | AP60: =MIN((X87+AJ35*D19)/AK42,(X88+AJ35*D19)/AL42,(X89+AJ35*D19)/AM42,(X90+AJ35*D19)/AN42,(X91+AJ35*D19)/AO42)*AP42 -> 314 | AQ60: =MIN((Y87+AJ35*D19)/AK42,(Y88+AJ35*D19)/AL42,(Y89+AJ35*D19)/AM42,(Y90+AJ35*D19)/AN42,(Y91+AJ35*D19)/AO42)*AP42 -> 316.5 | AR60: =MIN((Z87+AJ35*D19)/AK42,(Z88+AJ35*D19)/AL42,(Z89+AJ35*D19)/AM42,(Z90+AJ35*D19)/AN42,(Z91+AJ35*D19)/AO42)*AP42 -> 286 | AS60: =MIN((AA87+AJ35*D19)/AK42,(AA88+AJ35*D19)/AL42,(AA89+AJ35*D19)/AM42,(AA90+AJ35*D19)/AN42,(AA91+AJ35*D19)/AO42)*AP42 -> 316.5 | AT60: =MIN((AB87+AJ35*D19)/AK42,(AB88+AJ35*D19)/AL42,(AB89+AJ35*D19)/AM42,(AB90+AJ35*D19)/AN42,(AB91+AJ35*D19)/AO42)*AP42 -> 318 | AU60: =MIN((AC87+AJ35*D19)/AK42,(AC88+AJ35*D19)/AL42,(AC89+AJ35*D19)/AM42,(AC90+AJ35*D19)/AN42,(AC91+AJ35*D19)/AO42)*AP42 -> 320 | AV60: =MIN((AD87+AJ35*D19)/AK42,(AD88+AJ35*D19)/AL42,(AD89+AJ35*D19)/AM42,(AD90+AJ35*D19)/AN42,(AD91+AJ35*D19)/AO42)*AP42 -> 286 | AW60: =MIN((AE87+AJ35*D19)/AK42,(AE88+AJ35*D19)/AL42,(AE89+AJ35*D19)/AM42,(AE90+AJ35*D19)/AN42,(AE91+AJ35*D19)/AO42)*AP42 -> 320 | AX60: =MIN((AF87+AJ35*D19)/AK42,(AF88+AJ35*D19)/AL42,(AF89+AJ35*D19)/AM42,(AF90+AJ35*D19)/AN42,(AF91+AJ35*D19)/AO42)*AP42 -> 318 | AY60: 326 | BA60: ghana 5 | BB60: =MIN((S87+AK35*D19)/AK43,(S88+AK35*D19)/AL43,(S89+AK35*D19)/AM43,(S90+AK35*D19)/AN43,(S91+AK35*D19)/AO43)*AP43 -> 371.3333333 | BC60: =MIN((T87+AK35*D19)/AK43,(T88+AK35*D19)/AL43,(T89+AK35*D19)/AM43,(T90+AK35*D19)/AN43,(T91+AK35*D19)/AO43)*AP43 -> 400.6666667 | BD60: =MIN((U87+AK35*D19)/AK43,(U88+AK35*D19)/AL43,(U89+AK35*D19)/AM43,(U90+AK35*D19)/AN43,(U91+AK35*D19)/AO43)*AP43 -> 354.6666667 | BE60: =MIN((V87+AK35*D19)/AK43,(V88+AK35*D19)/AL43,(V89+AK35*D19)/AM43,(V90+AK35*D19)/AN43,(V91+AK35*D19)/AO43)*AP43 -> 397.3333333 | BF60: =MIN((W87+AK35*D19)/AK43,(W88+AK35*D19)/AL43,(W89+AK35*D19)/AM43,(W90+AK35*D19)/AN43,(W91+AK35*D19)/AO43)*AP43 -> 354.6666667 | BG60: =MIN((X87+AK35*D19)/AK43,(X88+AK35*D19)/AL43,(X89+AK35*D19)/AM43,(X90+AK35*D19)/AN43,(X91+AK35*D19)/AO43)*AP43 -> 392 | BH60: =MIN((Y87+AK35*D19)/AK43,(Y88+AK35*D19)/AL43,(Y89+AK35*D19)/AM43,(Y90+AK35*D19)/AN43,(Y91+AK35*D19)/AO43)*AP43 -> 395.3333333 | BI60: =MIN((Z87+AK35*D19)/AK43,(Z88+AK35*D19)/AL43,(Z89+AK35*D19)/AM43,(Z90+AK35*D19)/AN43,(Z91+AK35*D19)/AO43)*AP43 -> 354.6666667 | BJ60: =MIN((AA87+AK35*D19)/AK43,(AA88+AK35*D19)/AL43,(AA89+AK35*D19)/AM43,(AA90+AK35*D19)/AN43,(AA91+AK35*D19)/AO43)*AP43 -> 395.3333333 | BK60: =MIN((AB87+AK35*D19)/AK43,(AB88+AK35*D19)/AL43,(AB89+AK35*D19)/AM43,(AB90+AK35*D19)/AN43,(AB91+AK35*D19)/AO43)*AP43 -> 397.3333333 | BL60: =MIN((AC87+AK35*D19)/AK43,(AC88+AK35*D19)/AL43,(AC89+AK35*D19)/AM43,(AC90+AK35*D19)/AN43,(AC91+AK35*D19)/AO43)*AP43 -> 392 | BM60: =MIN((AD87+AK35*D19)/AK43,(AD88+AK35*D19)/AL43,(AD89+AK35*D19)/AM43,(AD90+AK35*D19)/AN43,(AD91+AK35*D19)/AO43)*AP43 -> 354.6666667 | BN60: =MIN((AE87+AK35*D19)/AK43,(AE88+AK35*D19)/AL43,(AE89+AK35*D19)/AM43,(AE90+AK35*D19)/AN43,(AE91+AK35*D19)/AO43)*AP43 -> 394.6666667 | BO60: =MIN((AF87+AK35*D19)/AK43,(AF88+AK35*D19)/AL43,(AF89+AK35*D19)/AM43,(AF90+AK35*D19)/AN43,(AF91+AK35*D19)/AO43)*AP43 -> 397.3333333 | BP60: 400.6666667 | BS60: =IF(E26=C31,F47,IF(E26=C32,I47,IF(E26=C33,L47,erreur))) -> 0.95365 | BU60: =IF(E26=C31,G47,IF(E26=C32,J47,IF(E26=C33,M47,erreur))) -> 0.4087 | BW60: 1.36235 | BZ60: 4 | CF60: 3
E61: 1% attaque | F61: 1% defense | G61: 1% cumulé | H61: 1% attaque | I61: 1% defense | J61: 1% cumulé | K61: 1% attaque | L61: 1% defense | M61: 1% cumulé | N61: 1% attaque | O61: 1% defense | P61: 1% cumulé | R61: =J11+AH41+D15+D17+D21+D19*AG8 -> 613 | S61: =Q12+R61 -> 654 | T61: =R61+R12 -> 673 | U61: =R61+S12 -> 613 | V61: =R61+T12 -> 686 | W61: =R61+U12 -> 613 | X61: =R61+V12 -> 669 | Y61: =R61+W12 -> 674 | Z61: =R61+X12 -> 613 | AA61: =R61+Y12 -> 674 | AB61: =R61+Z12 -> 677 | AC61: =R61+AA12 -> 681 | AD61: =R61+AB12 -> 613 | AE61: =R61+AC12 -> 666 | AF61: =R61+AD12 -> 684 | AJ61: slovenie 6 | AK61: =MIN((S94+AJ35*D19)/AK42,(S95+AJ35*D19)/AL42,(S96+AJ35*D19)/AM42,(S97+AJ35*D19)/AN42,(S98+AJ35*D19)/AO42)*AP42 -> 346 | AL61: =MIN((T94+AJ35*D19)/AK42,(T95+AJ35*D19)/AL42,(T96+AJ35*D19)/AM42,(T97+AJ35*D19)/AN42,(T98+AJ35*D19)/AO42)*AP42 -> 332 | AM61: =MIN((U94+AJ35*D19)/AK42,(U95+AJ35*D19)/AL42,(U96+AJ35*D19)/AM42,(U97+AJ35*D19)/AN42,(U98+AJ35*D19)/AO42)*AP42 -> 306 | AN61: =MIN((V94+AJ35*D19)/AK42,(V95+AJ35*D19)/AL42,(V96+AJ35*D19)/AM42,(V97+AJ35*D19)/AN42,(V98+AJ35*D19)/AO42)*AP42 -> 328.5 | AO61: =MIN((W94+AJ35*D19)/AK42,(W95+AJ35*D19)/AL42,(W96+AJ35*D19)/AM42,(W97+AJ35*D19)/AN42,(W98+AJ35*D19)/AO42)*AP42 -> 306 | AP61: =MIN((X94+AJ35*D19)/AK42,(X95+AJ35*D19)/AL42,(X96+AJ35*D19)/AM42,(X97+AJ35*D19)/AN42,(X98+AJ35*D19)/AO42)*AP42 -> 334 | AQ61: =MIN((Y94+AJ35*D19)/AK42,(Y95+AJ35*D19)/AL42,(Y96+AJ35*D19)/AM42,(Y97+AJ35*D19)/AN42,(Y98+AJ35*D19)/AO42)*AP42 -> 336.5 | AR61: =MIN((Z94+AJ35*D19)/AK42,(Z95+AJ35*D19)/AL42,(Z96+AJ35*D19)/AM42,(Z97+AJ35*D19)/AN42,(Z98+AJ35*D19)/AO42)*AP42 -> 306 | AS61: =MIN((AA94+AJ35*D19)/AK42,(AA95+AJ35*D19)/AL42,(AA96+AJ35*D19)/AM42,(AA97+AJ35*D19)/AN42,(AA98+AJ35*D19)/AO42)*AP42 -> 336.5 | AT61: =MIN((AB94+AJ35*D19)/AK42,(AB95+AJ35*D19)/AL42,(AB96+AJ35*D19)/AM42,(AB97+AJ35*D19)/AN42,(AB98+AJ35*D19)/AO42)*AP42 -> 338 | AU61: =MIN((AC94+AJ35*D19)/AK42,(AC95+AJ35*D19)/AL42,(AC96+AJ35*D19)/AM42,(AC97+AJ35*D19)/AN42,(AC98+AJ35*D19)/AO42)*AP42 -> 340 | AV61: =MIN((AD94+AJ35*D19)/AK42,(AD95+AJ35*D19)/AL42,(AD96+AJ35*D19)/AM42,(AD97+AJ35*D19)/AN42,(AD98+AJ35*D19)/AO42)*AP42 -> 306 | AW61: =MIN((AE94+AJ35*D19)/AK42,(AE95+AJ35*D19)/AL42,(AE96+AJ35*D19)/AM42,(AE97+AJ35*D19)/AN42,(AE98+AJ35*D19)/AO42)*AP42 -> 340 | AX61: =MIN((AF94+AJ35*D19)/AK42,(AF95+AJ35*D19)/AL42,(AF96+AJ35*D19)/AM42,(AF97+AJ35*D19)/AN42,(AF98+AJ35*D19)/AO42)*AP42 -> 338 | AY61: 346 | BA61: slovenie 6 | BB61: =MIN((S94+AK35*D19)/AK43,(S95+AK35*D19)/AL43,(S96+AK35*D19)/AM43,(S97+AK35*D19)/AN43,(S98+AK35*D19)/AO43)*AP43 -> 386.6666667 | BC61: =MIN((T94+AK35*D19)/AK43,(T95+AK35*D19)/AL43,(T96+AK35*D19)/AM43,(T97+AK35*D19)/AN43,(T98+AK35*D19)/AO43)*AP43 -> 416 | BD61: =MIN((U94+AK35*D19)/AK43,(U95+AK35*D19)/AL43,(U96+AK35*D19)/AM43,(U97+AK35*D19)/AN43,(U98+AK35*D19)/AO43)*AP43 -> 370 | BE61: =MIN((V94+AK35*D19)/AK43,(V95+AK35*D19)/AL43,(V96+AK35*D19)/AM43,(V97+AK35*D19)/AN43,(V98+AK35*D19)/AO43)*AP43 -> 412.6666667 | BF61: =MIN((W94+AK35*D19)/AK43,(W95+AK35*D19)/AL43,(W96+AK35*D19)/AM43,(W97+AK35*D19)/AN43,(W98+AK35*D19)/AO43)*AP43 -> 370 | BG61: =MIN((X94+AK35*D19)/AK43,(X95+AK35*D19)/AL43,(X96+AK35*D19)/AM43,(X97+AK35*D19)/AN43,(X98+AK35*D19)/AO43)*AP43 -> 407.3333333 | BH61: =MIN((Y94+AK35*D19)/AK43,(Y95+AK35*D19)/AL43,(Y96+AK35*D19)/AM43,(Y97+AK35*D19)/AN43,(Y98+AK35*D19)/AO43)*AP43 -> 410.6666667 | BI61: =MIN((Z94+AK35*D19)/AK43,(Z95+AK35*D19)/AL43,(Z96+AK35*D19)/AM43,(Z97+AK35*D19)/AN43,(Z98+AK35*D19)/AO43)*AP43 -> 370 | BJ61: =MIN((AA94+AK35*D19)/AK43,(AA95+AK35*D19)/AL43,(AA96+AK35*D19)/AM43,(AA97+AK35*D19)/AN43,(AA98+AK35*D19)/AO43)*AP43 -> 410.6666667 | BK61: =MIN((AB94+AK35*D19)/AK43,(AB95+AK35*D19)/AL43,(AB96+AK35*D19)/AM43,(AB97+AK35*D19)/AN43,(AB98+AK35*D19)/AO43)*AP43 -> 412.6666667 | BL61: =MIN((AC94+AK35*D19)/AK43,(AC95+AK35*D19)/AL43,(AC96+AK35*D19)/AM43,(AC97+AK35*D19)/AN43,(AC98+AK35*D19)/AO43)*AP43 -> 407.3333333 | BM61: =MIN((AD94+AK35*D19)/AK43,(AD95+AK35*D19)/AL43,(AD96+AK35*D19)/AM43,(AD97+AK35*D19)/AN43,(AD98+AK35*D19)/AO43)*AP43 -> 370 | BN61: =MIN((AE94+AK35*D19)/AK43,(AE95+AK35*D19)/AL43,(AE96+AK35*D19)/AM43,(AE97+AK35*D19)/AN43,(AE98+AK35*D19)/AO43)*AP43 -> 410 | BO61: =MIN((AF94+AK35*D19)/AK43,(AF95+AK35*D19)/AL43,(AF96+AK35*D19)/AM43,(AF97+AK35*D19)/AN43,(AF98+AK35*D19)/AO43)*AP43 -> 412.6666667 | BP61: 416 | BS61: =IF(E26=C31,F48,IF(E26=C32,I48,IF(E26=C33,L48,erreur))) -> 0.3633 | BU61: =IF(E26=C31,G48,IF(E26=C32,J48,IF(E26=C33,M48,erreur))) -> 0.54495 | BW61: 0.90825 | BZ61: 5 | CF61: 4
E62: 0.05445 | F62: 2.67025 | G62: =E62+F62 -> 2.7247 | H62: 0.05445 | I62: 2.67025 | J62: =H62+I62 -> 2.7247 | K62: 0.05445 | L62: 2.67025 | M62: =K62+L62 -> 2.7247 | N62: 0.05445 | O62: 2.67025 | P62: =N62+O62 -> 2.7247 | R62: =K11+AH42+D16+D17+D21+D19*AG8 -> 585 | S62: =Q13+R62 -> 610 | T62: =R62+R13 -> 654 | U62: =R62+S13 -> 585 | V62: =R62+T13 -> 649 | W62: =R62+U13 -> 585 | X62: =R62+V13 -> 641 | Y62: =R62+W13 -> 646 | Z62: =R62+X13 -> 585 | AA62: =R62+Y13 -> 646 | AB62: =R62+Z13 -> 649 | AC62: =R62+AA13 -> 641 | AD62: =R62+AB13 -> 585 | AE62: =R62+AC13 -> 645 | AF62: =R62+AD13 -> 649 | AJ62: grece 7 | AK62: =MIN((S101+AJ35*D19)/AK42,(S102+AJ35*D19)/AL42,(S103+AJ35*D19)/AM42,(S104+AJ35*D19)/AN42,(S105+AJ35*D19)/AO42)*AP42 -> 337.5 | AL62: =MIN((T101+AJ35*D19)/AK42,(T102+AJ35*D19)/AL42,(T103+AJ35*D19)/AM42,(T104+AJ35*D19)/AN42,(T105+AJ35*D19)/AO42)*AP42 -> 323.5 | AM62: =MIN((U101+AJ35*D19)/AK42,(U102+AJ35*D19)/AL42,(U103+AJ35*D19)/AM42,(U104+AJ35*D19)/AN42,(U105+AJ35*D19)/AO42)*AP42 -> 297.5 | AN62: =MIN((V101+AJ35*D19)/AK42,(V102+AJ35*D19)/AL42,(V103+AJ35*D19)/AM42,(V104+AJ35*D19)/AN42,(V105+AJ35*D19)/AO42)*AP42 -> 320 | AO62: =MIN((W101+AJ35*D19)/AK42,(W102+AJ35*D19)/AL42,(W103+AJ35*D19)/AM42,(W104+AJ35*D19)/AN42,(W105+AJ35*D19)/AO42)*AP42 -> 297.5 | AP62: =MIN((X101+AJ35*D19)/AK42,(X102+AJ35*D19)/AL42,(X103+AJ35*D19)/AM42,(X104+AJ35*D19)/AN42,(X105+AJ35*D19)/AO42)*AP42 -> 325.5 | AQ62: =MIN((Y101+AJ35*D19)/AK42,(Y102+AJ35*D19)/AL42,(Y103+AJ35*D19)/AM42,(Y104+AJ35*D19)/AN42,(Y105+AJ35*D19)/AO42)*AP42 -> 328 | AR62: =MIN((Z101+AJ35*D19)/AK42,(Z102+AJ35*D19)/AL42,(Z103+AJ35*D19)/AM42,(Z104+AJ35*D19)/AN42,(Z105+AJ35*D19)/AO42)*AP42 -> 297.5 | AS62: =MIN((AA101+AJ35*D19)/AK42,(AA102+AJ35*D19)/AL42,(AA103+AJ35*D19)/AM42,(AA104+AJ35*D19)/AN42,(AA105+AJ35*D19)/AO42)*AP42 -> 328 | AT62: =MIN((AB101+AJ35*D19)/AK42,(AB102+AJ35*D19)/AL42,(AB103+AJ35*D19)/AM42,(AB104+AJ35*D19)/AN42,(AB105+AJ35*D19)/AO42)*AP42 -> 329.5 | AU62: =MIN((AC101+AJ35*D19)/AK42,(AC102+AJ35*D19)/AL42,(AC103+AJ35*D19)/AM42,(AC104+AJ35*D19)/AN42,(AC105+AJ35*D19)/AO42)*AP42 -> 331.5 | AV62: =MIN((AD101+AJ35*D19)/AK42,(AD102+AJ35*D19)/AL42,(AD103+AJ35*D19)/AM42,(AD104+AJ35*D19)/AN42,(AD105+AJ35*D19)/AO42)*AP42 -> 297.5 | AW62: =MIN((AE101+AJ35*D19)/AK42,(AE102+AJ35*D19)/AL42,(AE103+AJ35*D19)/AM42,(AE104+AJ35*D19)/AN42,(AE105+AJ35*D19)/AO42)*AP42 -> 331.5 | AX62: =MIN((AF101+AJ35*D19)/AK42,(AF102+AJ35*D19)/AL42,(AF103+AJ35*D19)/AM42,(AF104+AJ35*D19)/AN42,(AF105+AJ35*D19)/AO42)*AP42 -> 329.5 | AY62: 337.5 | BA62: grece 7 | BB62: =MIN((S101+AK35*D19)/AK43,(S102+AK35*D19)/AL43,(S103+AK35*D19)/AM43,(S104+AK35*D19)/AN43,(S105+AK35*D19)/AO43)*AP43 -> 392.6666667 | BC62: =MIN((T101+AK35*D19)/AK43,(T102+AK35*D19)/AL43,(T103+AK35*D19)/AM43,(T104+AK35*D19)/AN43,(T105+AK35*D19)/AO43)*AP43 -> 422 | BD62: =MIN((U101+AK35*D19)/AK43,(U102+AK35*D19)/AL43,(U103+AK35*D19)/AM43,(U104+AK35*D19)/AN43,(U105+AK35*D19)/AO43)*AP43 -> 376 | BE62: =MIN((V101+AK35*D19)/AK43,(V102+AK35*D19)/AL43,(V103+AK35*D19)/AM43,(V104+AK35*D19)/AN43,(V105+AK35*D19)/AO43)*AP43 -> 418.6666667 | BF62: =MIN((W101+AK35*D19)/AK43,(W102+AK35*D19)/AL43,(W103+AK35*D19)/AM43,(W104+AK35*D19)/AN43,(W105+AK35*D19)/AO43)*AP43 -> 376 | BG62: =MIN((X101+AK35*D19)/AK43,(X102+AK35*D19)/AL43,(X103+AK35*D19)/AM43,(X104+AK35*D19)/AN43,(X105+AK35*D19)/AO43)*AP43 -> 413.3333333 | BH62: =MIN((Y101+AK35*D19)/AK43,(Y102+AK35*D19)/AL43,(Y103+AK35*D19)/AM43,(Y104+AK35*D19)/AN43,(Y105+AK35*D19)/AO43)*AP43 -> 416.6666667 | BI62: =MIN((Z101+AK35*D19)/AK43,(Z102+AK35*D19)/AL43,(Z103+AK35*D19)/AM43,(Z104+AK35*D19)/AN43,(Z105+AK35*D19)/AO43)*AP43 -> 376 | BJ62: =MIN((AA101+AK35*D19)/AK43,(AA102+AK35*D19)/AL43,(AA103+AK35*D19)/AM43,(AA104+AK35*D19)/AN43,(AA105+AK35*D19)/AO43)*AP43 -> 416.6666667 | BK62: =MIN((AB101+AK35*D19)/AK43,(AB102+AK35*D19)/AL43,(AB103+AK35*D19)/AM43,(AB104+AK35*D19)/AN43,(AB105+AK35*D19)/AO43)*AP43 -> 418.6666667 | BL62: =MIN((AC101+AK35*D19)/AK43,(AC102+AK35*D19)/AL43,(AC103+AK35*D19)/AM43,(AC104+AK35*D19)/AN43,(AC105+AK35*D19)/AO43)*AP43 -> 413.3333333 | BM62: =MIN((AD101+AK35*D19)/AK43,(AD102+AK35*D19)/AL43,(AD103+AK35*D19)/AM43,(AD104+AK35*D19)/AN43,(AD105+AK35*D19)/AO43)*AP43 -> 376 | BN62: =MIN((AE101+AK35*D19)/AK43,(AE102+AK35*D19)/AL43,(AE103+AK35*D19)/AM43,(AE104+AK35*D19)/AN43,(AE105+AK35*D19)/AO43)*AP43 -> 416 | BO62: =MIN((AF101+AK35*D19)/AK43,(AF102+AK35*D19)/AL43,(AF103+AK35*D19)/AM43,(AF104+AK35*D19)/AN43,(AF105+AK35*D19)/AO43)*AP43 -> 418.6666667 | BP62: 422 | BS62: =IF(E26=C31,F49,IF(E26=C32,I49,IF(E26=C33,L49,erreur))) -> 0.95365 | BU62: =IF(E26=C31,G49,IF(E26=C32,J49,IF(E26=C33,M49,erreur))) -> 0.4087 | BW62: 1.36235 | BZ62: 6 | CF62: 5
E63: 0.27245 | F63: 1.0899 | G63: =E63+F63 -> 1.36235 | H63: 0.68115 | I63: 0.68115 | J63: 1.3623 | K63: 0.90825 | L63: 1.36235 | M63: =K63+L63 -> 2.2706 | N63: 0.4087 | O63: 0.95365 | P63: 1.36235 | R63: =L11+AH43+D15+D17+D21+D19*AG8 -> 410 | S63: =Q14+R63 -> 466 | T63: =R63+R14 -> 462 | U63: =R63+S14 -> 410 | V63: =R63+T14 -> 455 | W63: =R63+U14 -> 410 | X63: =R63+V14 -> 466 | Y63: =R63+W14 -> 463 | Z63: =R63+X14 -> 410 | AA63: =R63+Y14 -> 463 | AB63: =R63+Z14 -> 458 | AC63: =R63+AA14 -> 459 | AD63: =R63+AB14 -> 410 | AE63: =R63+AC14 -> 470 | AF63: =R63+AD14 -> 454 | AJ63: australie 11 | AK63: =MIN((S108+AJ35*D19)/AK42,(S109+AJ35*D19)/AL42,(S110+AJ35*D19)/AM42,(S111+AJ35*D19)/AN42,(S112+AJ35*D19)/AO42)*AP42 -> 331.5 | AL63: =MIN((T108+AJ35*D19)/AK42,(T109+AJ35*D19)/AL42,(T110+AJ35*D19)/AM42,(T111+AJ35*D19)/AN42,(T112+AJ35*D19)/AO42)*AP42 -> 317.5 | AM63: =MIN((U108+AJ35*D19)/AK42,(U109+AJ35*D19)/AL42,(U110+AJ35*D19)/AM42,(U111+AJ35*D19)/AN42,(U112+AJ35*D19)/AO42)*AP42 -> 291.5 | AN63: =MIN((V108+AJ35*D19)/AK42,(V109+AJ35*D19)/AL42,(V110+AJ35*D19)/AM42,(V111+AJ35*D19)/AN42,(V112+AJ35*D19)/AO42)*AP42 -> 314 | AO63: =MIN((W108+AJ35*D19)/AK42,(W109+AJ35*D19)/AL42,(W110+AJ35*D19)/AM42,(W111+AJ35*D19)/AN42,(W112+AJ35*D19)/AO42)*AP42 -> 291.5 | AP63: =MIN((X108+AJ35*D19)/AK42,(X109+AJ35*D19)/AL42,(X110+AJ35*D19)/AM42,(X111+AJ35*D19)/AN42,(X112+AJ35*D19)/AO42)*AP42 -> 319.5 | AQ63: =MIN((Y108+AJ35*D19)/AK42,(Y109+AJ35*D19)/AL42,(Y110+AJ35*D19)/AM42,(Y111+AJ35*D19)/AN42,(Y112+AJ35*D19)/AO42)*AP42 -> 322 | AR63: =MIN((Z108+AJ35*D19)/AK42,(Z109+AJ35*D19)/AL42,(Z110+AJ35*D19)/AM42,(Z111+AJ35*D19)/AN42,(Z112+AJ35*D19)/AO42)*AP42 -> 291.5 | AS63: =MIN((AA108+AJ35*D19)/AK42,(AA109+AJ35*D19)/AL42,(AA110+AJ35*D19)/AM42,(AA111+AJ35*D19)/AN42,(AA112+AJ35*D19)/AO42)*AP42 -> 322 | AT63: =MIN((AB108+AJ35*D19)/AK42,(AB109+AJ35*D19)/AL42,(AB110+AJ35*D19)/AM42,(AB111+AJ35*D19)/AN42,(AB112+AJ35*D19)/AO42)*AP42 -> 323.5 | AU63: =MIN((AC108+AJ35*D19)/AK42,(AC109+AJ35*D19)/AL42,(AC110+AJ35*D19)/AM42,(AC111+AJ35*D19)/AN42,(AC112+AJ35*D19)/AO42)*AP42 -> 325.5 | AV63: =MIN((AD108+AJ35*D19)/AK42,(AD109+AJ35*D19)/AL42,(AD110+AJ35*D19)/AM42,(AD111+AJ35*D19)/AN42,(AD112+AJ35*D19)/AO42)*AP42 -> 291.5 | AW63: =MIN((AE108+AJ35*D19)/AK42,(AE109+AJ35*D19)/AL42,(AE110+AJ35*D19)/AM42,(AE111+AJ35*D19)/AN42,(AE112+AJ35*D19)/AO42)*AP42 -> 325.5 | AX63: =MIN((AF108+AJ35*D19)/AK42,(AF109+AJ35*D19)/AL42,(AF110+AJ35*D19)/AM42,(AF111+AJ35*D19)/AN42,(AF112+AJ35*D19)/AO42)*AP42 -> 323.5 | AY63: 331.5 | BA63: australie 11 | BB63: =MIN((S108+AK35*D19)/AK43,(S109+AK35*D19)/AL43,(S110+AK35*D19)/AM43,(S111+AK35*D19)/AN43,(S112+AK35*D19)/AO43)*AP43 -> 404 | BC63: =MIN((T108+AK35*D19)/AK43,(T109+AK35*D19)/AL43,(T110+AK35*D19)/AM43,(T111+AK35*D19)/AN43,(T112+AK35*D19)/AO43)*AP43 -> 433.3333333 | BD63: =MIN((U108+AK35*D19)/AK43,(U109+AK35*D19)/AL43,(U110+AK35*D19)/AM43,(U111+AK35*D19)/AN43,(U112+AK35*D19)/AO43)*AP43 -> 387.3333333 | BE63: =MIN((V108+AK35*D19)/AK43,(V109+AK35*D19)/AL43,(V110+AK35*D19)/AM43,(V111+AK35*D19)/AN43,(V112+AK35*D19)/AO43)*AP43 -> 430 | BF63: =MIN((W108+AK35*D19)/AK43,(W109+AK35*D19)/AL43,(W110+AK35*D19)/AM43,(W111+AK35*D19)/AN43,(W112+AK35*D19)/AO43)*AP43 -> 387.3333333 | BG63: =MIN((X108+AK35*D19)/AK43,(X109+AK35*D19)/AL43,(X110+AK35*D19)/AM43,(X111+AK35*D19)/AN43,(X112+AK35*D19)/AO43)*AP43 -> 424.6666667 | BH63: =MIN((Y108+AK35*D19)/AK43,(Y109+AK35*D19)/AL43,(Y110+AK35*D19)/AM43,(Y111+AK35*D19)/AN43,(Y112+AK35*D19)/AO43)*AP43 -> 428 | BI63: =MIN((Z108+AK35*D19)/AK43,(Z109+AK35*D19)/AL43,(Z110+AK35*D19)/AM43,(Z111+AK35*D19)/AN43,(Z112+AK35*D19)/AO43)*AP43 -> 387.3333333 | BJ63: =MIN((AA108+AK35*D19)/AK43,(AA109+AK35*D19)/AL43,(AA110+AK35*D19)/AM43,(AA111+AK35*D19)/AN43,(AA112+AK35*D19)/AO43)*AP43 -> 428 | BK63: =MIN((AB108+AK35*D19)/AK43,(AB109+AK35*D19)/AL43,(AB110+AK35*D19)/AM43,(AB111+AK35*D19)/AN43,(AB112+AK35*D19)/AO43)*AP43 -> 430 | BL63: =MIN((AC108+AK35*D19)/AK43,(AC109+AK35*D19)/AL43,(AC110+AK35*D19)/AM43,(AC111+AK35*D19)/AN43,(AC112+AK35*D19)/AO43)*AP43 -> 424.6666667 | BM63: =MIN((AD108+AK35*D19)/AK43,(AD109+AK35*D19)/AL43,(AD110+AK35*D19)/AM43,(AD111+AK35*D19)/AN43,(AD112+AK35*D19)/AO43)*AP43 -> 387.3333333 | BN63: =MIN((AE108+AK35*D19)/AK43,(AE109+AK35*D19)/AL43,(AE110+AK35*D19)/AM43,(AE111+AK35*D19)/AN43,(AE112+AK35*D19)/AO43)*AP43 -> 427.3333333 | BO63: =MIN((AF108+AK35*D19)/AK43,(AF109+AK35*D19)/AL43,(AF110+AK35*D19)/AM43,(AF111+AK35*D19)/AN43,(AF112+AK35*D19)/AO43)*AP43 -> 430 | BP63: 433.3333333 | BS63: =IF(E26=C31,F50,IF(E26=C32,I50,IF(E26=C33,L50,erreur))) -> 0.95365 | BU63: =IF(E26=C31,G50,IF(E26=C32,J50,IF(E26=C33,M50,erreur))) -> 0.4087 | BW63: 1.36235 | BZ63: 7 | CF63: 6
E64: 0.27245 | F64: 1.0899 | G64: 1.36235 | H64: 0.68115 | I64: 0.68115 | J64: 1.3623 | K64: 0.68115 | L64: 1.58945 | M64: 2.2706 | N64: 0.4087 | O64: 0.95365 | P64: 1.36235 | AJ64: grece 9 | AK64: =MIN((S115+AJ35*D19)/AK42,(S116+AJ35*D19)/AL42,(S117+AJ35*D19)/AM42,(S118+AJ35*D19)/AN42,(S119+AJ35*D19)/AO42)*AP42 -> 344.5 | AL64: =MIN((T115+AJ35*D19)/AK42,(T116+AJ35*D19)/AL42,(T117+AJ35*D19)/AM42,(T118+AJ35*D19)/AN42,(T119+AJ35*D19)/AO42)*AP42 -> 330.5 | AM64: =MIN((U115+AJ35*D19)/AK42,(U116+AJ35*D19)/AL42,(U117+AJ35*D19)/AM42,(U118+AJ35*D19)/AN42,(U119+AJ35*D19)/AO42)*AP42 -> 304.5 | AN64: =MIN((V115+AJ35*D19)/AK42,(V116+AJ35*D19)/AL42,(V117+AJ35*D19)/AM42,(V118+AJ35*D19)/AN42,(V119+AJ35*D19)/AO42)*AP42 -> 327 | AO64: =MIN((W115+AJ35*D19)/AK42,(W116+AJ35*D19)/AL42,(W117+AJ35*D19)/AM42,(W118+AJ35*D19)/AN42,(W119+AJ35*D19)/AO42)*AP42 -> 304.5 | AP64: =MIN((X115+AJ35*D19)/AK42,(X116+AJ35*D19)/AL42,(X117+AJ35*D19)/AM42,(X118+AJ35*D19)/AN42,(X119+AJ35*D19)/AO42)*AP42 -> 332.5 | AQ64: =MIN((Y115+AJ35*D19)/AK42,(Y116+AJ35*D19)/AL42,(Y117+AJ35*D19)/AM42,(Y118+AJ35*D19)/AN42,(Y119+AJ35*D19)/AO42)*AP42 -> 335 | AR64: =MIN((Z115+AJ35*D19)/AK42,(Z116+AJ35*D19)/AL42,(Z117+AJ35*D19)/AM42,(Z118+AJ35*D19)/AN42,(Z119+AJ35*D19)/AO42)*AP42 -> 304.5 | AS64: =MIN((AA115+AJ35*D19)/AK42,(AA116+AJ35*D19)/AL42,(AA117+AJ35*D19)/AM42,(AA118+AJ35*D19)/AN42,(AA119+AJ35*D19)/AO42)*AP42 -> 335 | AT64: =MIN((AB115+AJ35*D19)/AK42,(AB116+AJ35*D19)/AL42,(AB117+AJ35*D19)/AM42,(AB118+AJ35*D19)/AN42,(AB119+AJ35*D19)/AO42)*AP42 -> 336.5 | AU64: =MIN((AC115+AJ35*D19)/AK42,(AC116+AJ35*D19)/AL42,(AC117+AJ35*D19)/AM42,(AC118+AJ35*D19)/AN42,(AC119+AJ35*D19)/AO42)*AP42 -> 338.5 | AV64: =MIN((AD115+AJ35*D19)/AK42,(AD116+AJ35*D19)/AL42,(AD117+AJ35*D19)/AM42,(AD118+AJ35*D19)/AN42,(AD119+AJ35*D19)/AO42)*AP42 -> 304.5 | AW64: =MIN((AE115+AJ35*D19)/AK42,(AE116+AJ35*D19)/AL42,(AE117+AJ35*D19)/AM42,(AE118+AJ35*D19)/AN42,(AE119+AJ35*D19)/AO42)*AP42 -> 338.5 | AX64: =MIN((AF115+AJ35*D19)/AK42,(AF116+AJ35*D19)/AL42,(AF117+AJ35*D19)/AM42,(AF118+AJ35*D19)/AN42,(AF119+AJ35*D19)/AO42)*AP42 -> 336.5 | AY64: 344.5 | BA64: grece 9 | BB64: =MIN((S115+AK35*D19)/AK43,(S116+AK35*D19)/AL43,(S117+AK35*D19)/AM43,(S118+AK35*D19)/AN43,(S119+AK35*D19)/AO43)*AP43 -> 314 | BC64: =MIN((T115+AK35*D19)/AK43,(T116+AK35*D19)/AL43,(T117+AK35*D19)/AM43,(T118+AK35*D19)/AN43,(T119+AK35*D19)/AO43)*AP43 -> 343.3333333 | BD64: =MIN((U115+AK35*D19)/AK43,(U116+AK35*D19)/AL43,(U117+AK35*D19)/AM43,(U118+AK35*D19)/AN43,(U119+AK35*D19)/AO43)*AP43 -> 297.3333333 | BE64: =MIN((V115+AK35*D19)/AK43,(V116+AK35*D19)/AL43,(V117+AK35*D19)/AM43,(V118+AK35*D19)/AN43,(V119+AK35*D19)/AO43)*AP43 -> 340 | BF64: =MIN((W115+AK35*D19)/AK43,(W116+AK35*D19)/AL43,(W117+AK35*D19)/AM43,(W118+AK35*D19)/AN43,(W119+AK35*D19)/AO43)*AP43 -> 297.3333333 | BG64: =MIN((X115+AK35*D19)/AK43,(X116+AK35*D19)/AL43,(X117+AK35*D19)/AM43,(X118+AK35*D19)/AN43,(X119+AK35*D19)/AO43)*AP43 -> 334.6666667 | BH64: =MIN((Y115+AK35*D19)/AK43,(Y116+AK35*D19)/AL43,(Y117+AK35*D19)/AM43,(Y118+AK35*D19)/AN43,(Y119+AK35*D19)/AO43)*AP43 -> 338 | BI64: =MIN((Z115+AK35*D19)/AK43,(Z116+AK35*D19)/AL43,(Z117+AK35*D19)/AM43,(Z118+AK35*D19)/AN43,(Z119+AK35*D19)/AO43)*AP43 -> 297.3333333 | BJ64: =MIN((AA115+AK35*D19)/AK43,(AA116+AK35*D19)/AL43,(AA117+AK35*D19)/AM43,(AA118+AK35*D19)/AN43,(AA119+AK35*D19)/AO43)*AP43 -> 338 | BK64: =MIN((AB115+AK35*D19)/AK43,(AB116+AK35*D19)/AL43,(AB117+AK35*D19)/AM43,(AB118+AK35*D19)/AN43,(AB119+AK35*D19)/AO43)*AP43 -> 340 | BL64: =MIN((AC115+AK35*D19)/AK43,(AC116+AK35*D19)/AL43,(AC117+AK35*D19)/AM43,(AC118+AK35*D19)/AN43,(AC119+AK35*D19)/AO43)*AP43 -> 334.6666667 | BM64: =MIN((AD115+AK35*D19)/AK43,(AD116+AK35*D19)/AL43,(AD117+AK35*D19)/AM43,(AD118+AK35*D19)/AN43,(AD119+AK35*D19)/AO43)*AP43 -> 297.3333333 | BN64: =MIN((AE115+AK35*D19)/AK43,(AE116+AK35*D19)/AL43,(AE117+AK35*D19)/AM43,(AE118+AK35*D19)/AN43,(AE119+AK35*D19)/AO43)*AP43 -> 337.3333333 | BO64: =MIN((AF115+AK35*D19)/AK43,(AF116+AK35*D19)/AL43,(AF117+AK35*D19)/AM43,(AF118+AK35*D19)/AN43,(AF119+AK35*D19)/AO43)*AP43 -> 340 | BP64: 343.3333333 | BS64: =IF(E26=C31,F51,IF(E26=C32,I51,IF(E26=C33,L51,erreur))) -> 0.94985 | BU64: =IF(E26=C31,G51,IF(E26=C32,J51,IF(E26=C33,M51,erreur))) -> 0.40705 | BW64: 1.3569 | BZ64: 8 | CF64: 7
E65: 0.18165 | F65: 1.63485 | G65: 1.8165 | H65: 0.18165 | I65: 0.7266 | J65: 0.90825 | K65: 0.27245 | L65: 0.63575 | M65: 0.9082 | N65: 0.3633 | O65: 1.4532 | P65: 1.8165 | R65: =G12 -> 2 | S65: =S58 -> kit 1 | T65: =T58 -> kit 2/3 | U65: 0 | V65: kit 4 | W65: 0 | X65: kit 5 | Y65: kit 6/7 | Z65: 0 | AA65: 0 | AB65: kit 8 | AC65: kit 9 | AD65: 0 | AE65: =AE58 -> kit 10 | AF65: =AF58 -> kit 11 | AJ65: nigeria 8 | AK65: =MIN((S122+AJ35*D19)/AK42,(S123+AJ35*D19)/AL42,(S124+AJ35*D19)/AM42,(S125+AJ35*D19)/AN42,(S126+AJ35*D19)/AO42)*AP42 -> 334.5 | AL65: =MIN((T122+AJ35*D19)/AK42,(T123+AJ35*D19)/AL42,(T124+AJ35*D19)/AM42,(T125+AJ35*D19)/AN42,(T126+AJ35*D19)/AO42)*AP42 -> 320.5 | AM65: =MIN((U122+AJ35*D19)/AK42,(U123+AJ35*D19)/AL42,(U124+AJ35*D19)/AM42,(U125+AJ35*D19)/AN42,(U126+AJ35*D19)/AO42)*AP42 -> 294.5 | AN65: =MIN((V122+AJ35*D19)/AK42,(V123+AJ35*D19)/AL42,(V124+AJ35*D19)/AM42,(V125+AJ35*D19)/AN42,(V126+AJ35*D19)/AO42)*AP42 -> 317 | AO65: =MIN((W122+AJ35*D19)/AK42,(W123+AJ35*D19)/AL42,(W124+AJ35*D19)/AM42,(W125+AJ35*D19)/AN42,(W126+AJ35*D19)/AO42)*AP42 -> 294.5 | AP65: =MIN((X122+AJ35*D19)/AK42,(X123+AJ35*D19)/AL42,(X124+AJ35*D19)/AM42,(X125+AJ35*D19)/AN42,(X126+AJ35*D19)/AO42)*AP42 -> 322.5 | AQ65: =MIN((Y122+AJ35*D19)/AK42,(Y123+AJ35*D19)/AL42,(Y124+AJ35*D19)/AM42,(Y125+AJ35*D19)/AN42,(Y126+AJ35*D19)/AO42)*AP42 -> 325 | AR65: =MIN((Z122+AJ35*D19)/AK42,(Z123+AJ35*D19)/AL42,(Z124+AJ35*D19)/AM42,(Z125+AJ35*D19)/AN42,(Z126+AJ35*D19)/AO42)*AP42 -> 294.5 | AS65: =MIN((AA122+AJ35*D19)/AK42,(AA123+AJ35*D19)/AL42,(AA124+AJ35*D19)/AM42,(AA125+AJ35*D19)/AN42,(AA126+AJ35*D19)/AO42)*AP42 -> 325 | AT65: =MIN((AB122+AJ35*D19)/AK42,(AB123+AJ35*D19)/AL42,(AB124+AJ35*D19)/AM42,(AB125+AJ35*D19)/AN42,(AB126+AJ35*D19)/AO42)*AP42 -> 326.5 | AU65: =MIN((AC122+AJ35*D19)/AK42,(AC123+AJ35*D19)/AL42,(AC124+AJ35*D19)/AM42,(AC125+AJ35*D19)/AN42,(AC126+AJ35*D19)/AO42)*AP42 -> 328.5 | AV65: =MIN((AD122+AJ35*D19)/AK42,(AD123+AJ35*D19)/AL42,(AD124+AJ35*D19)/AM42,(AD125+AJ35*D19)/AN42,(AD126+AJ35*D19)/AO42)*AP42 -> 294.5 | AW65: =MIN((AE122+AJ35*D19)/AK42,(AE123+AJ35*D19)/AL42,(AE124+AJ35*D19)/AM42,(AE125+AJ35*D19)/AN42,(AE126+AJ35*D19)/AO42)*AP42 -> 328.5 | AX65: =MIN((AF122+AJ35*D19)/AK42,(AF123+AJ35*D19)/AL42,(AF124+AJ35*D19)/AM42,(AF125+AJ35*D19)/AN42,(AF126+AJ35*D19)/AO42)*AP42 -> 326.5 | AY65: 334.5 | BA65: nigeria 8 | BB65: =MIN((S122+AK35*D19)/AK43,(S123+AK35*D19)/AL43,(S124+AK35*D19)/AM43,(S125+AK35*D19)/AN43,(S126+AK35*D19)/AO43)*AP43 -> 392.6666667 | BC65: =MIN((T122+AK35*D19)/AK43,(T123+AK35*D19)/AL43,(T124+AK35*D19)/AM43,(T125+AK35*D19)/AN43,(T126+AK35*D19)/AO43)*AP43 -> 422 | BD65: =MIN((U122+AK35*D19)/AK43,(U123+AK35*D19)/AL43,(U124+AK35*D19)/AM43,(U125+AK35*D19)/AN43,(U126+AK35*D19)/AO43)*AP43 -> 376 | BE65: =MIN((V122+AK35*D19)/AK43,(V123+AK35*D19)/AL43,(V124+AK35*D19)/AM43,(V125+AK35*D19)/AN43,(V126+AK35*D19)/AO43)*AP43 -> 418.6666667 | BF65: =MIN((W122+AK35*D19)/AK43,(W123+AK35*D19)/AL43,(W124+AK35*D19)/AM43,(W125+AK35*D19)/AN43,(W126+AK35*D19)/AO43)*AP43 -> 376 | BG65: =MIN((X122+AK35*D19)/AK43,(X123+AK35*D19)/AL43,(X124+AK35*D19)/AM43,(X125+AK35*D19)/AN43,(X126+AK35*D19)/AO43)*AP43 -> 413.3333333 | BH65: =MIN((Y122+AK35*D19)/AK43,(Y123+AK35*D19)/AL43,(Y124+AK35*D19)/AM43,(Y125+AK35*D19)/AN43,(Y126+AK35*D19)/AO43)*AP43 -> 416.6666667 | BI65: =MIN((Z122+AK35*D19)/AK43,(Z123+AK35*D19)/AL43,(Z124+AK35*D19)/AM43,(Z125+AK35*D19)/AN43,(Z126+AK35*D19)/AO43)*AP43 -> 376 | BJ65: =MIN((AA122+AK35*D19)/AK43,(AA123+AK35*D19)/AL43,(AA124+AK35*D19)/AM43,(AA125+AK35*D19)/AN43,(AA126+AK35*D19)/AO43)*AP43 -> 416.6666667 | BK65: =MIN((AB122+AK35*D19)/AK43,(AB123+AK35*D19)/AL43,(AB124+AK35*D19)/AM43,(AB125+AK35*D19)/AN43,(AB126+AK35*D19)/AO43)*AP43 -> 418.6666667 | BL65: =MIN((AC122+AK35*D19)/AK43,(AC123+AK35*D19)/AL43,(AC124+AK35*D19)/AM43,(AC125+AK35*D19)/AN43,(AC126+AK35*D19)/AO43)*AP43 -> 413.3333333 | BM65: =MIN((AD122+AK35*D19)/AK43,(AD123+AK35*D19)/AL43,(AD124+AK35*D19)/AM43,(AD125+AK35*D19)/AN43,(AD126+AK35*D19)/AO43)*AP43 -> 376 | BN65: =MIN((AE122+AK35*D19)/AK43,(AE123+AK35*D19)/AL43,(AE124+AK35*D19)/AM43,(AE125+AK35*D19)/AN43,(AE126+AK35*D19)/AO43)*AP43 -> 416 | BO65: =MIN((AF122+AK35*D19)/AK43,(AF123+AK35*D19)/AL43,(AF124+AK35*D19)/AM43,(AF125+AK35*D19)/AN43,(AF126+AK35*D19)/AO43)*AP43 -> 418.6666667 | BP65: 422 | BS65: =IF(E26=C31,F52,IF(E26=C32,I52,IF(E26=C33,L52,erreur))) -> 2.4523 | BU65: =IF(E26=C31,G52,IF(E26=C32,J52,IF(E26=C33,M52,erreur))) -> 0.27245 | BW65: 2.72475 | BZ65: 9 | CF65: 8
E66: 0.18165 | F66: 1.63485 | G66: 1.8165 | H66: 0.4087 | I66: 0.95365 | J66: 1.36235 | K66: 0.27245 | L66: 0.63575 | M66: 0.9082 | N66: 0.7266 | O66: 1.0899 | P66: 1.8165 | R66: =H12+AH39+D16+D17+D21+D19*AG9 -> 632 | S66: =R66+Q10 -> 673 | T66: =R66+R10 -> 701 | U66: =R66+S10 -> 632 | V66: =R66+T10 -> 705 | W66: =R66+U10 -> 632 | X66: =R66+V10 -> 702 | Y66: =R66+W10 -> 693 | Z66: =R66+X10 -> 632 | AA66: =R66+Y10 -> 693 | AB66: =R66+Z10 -> 688 | AC66: =R66+AA10 -> 693 | AD66: =R66+AB10 -> 632 | AE66: =R66+AC10 -> 678 | AF66: =R66+AD10 -> 683 | AJ66: slovaquie 8 | AK66: =MIN((S129+AJ35*D19)/AK42,(S130+AJ35*D19)/AL42,(S131+AJ35*D19)/AM42,(S132+AJ35*D19)/AN42,(S133+AJ35*D19)/AO42)*AP42 -> 346 | AL66: =MIN((T129+AJ35*D19)/AK42,(T130+AJ35*D19)/AL42,(T131+AJ35*D19)/AM42,(T132+AJ35*D19)/AN42,(T133+AJ35*D19)/AO42)*AP42 -> 332 | AM66: =MIN((U129+AJ35*D19)/AK42,(U130+AJ35*D19)/AL42,(U131+AJ35*D19)/AM42,(U132+AJ35*D19)/AN42,(U133+AJ35*D19)/AO42)*AP42 -> 306 | AN66: =MIN((V129+AJ35*D19)/AK42,(V130+AJ35*D19)/AL42,(V131+AJ35*D19)/AM42,(V132+AJ35*D19)/AN42,(V133+AJ35*D19)/AO42)*AP42 -> 328.5 | AO66: =MIN((W129+AJ35*D19)/AK42,(W130+AJ35*D19)/AL42,(W131+AJ35*D19)/AM42,(W132+AJ35*D19)/AN42,(W133+AJ35*D19)/AO42)*AP42 -> 306 | AP66: =MIN((X129+AJ35*D19)/AK42,(X130+AJ35*D19)/AL42,(X131+AJ35*D19)/AM42,(X132+AJ35*D19)/AN42,(X133+AJ35*D19)/AO42)*AP42 -> 334 | AQ66: =MIN((Y129+AJ35*D19)/AK42,(Y130+AJ35*D19)/AL42,(Y131+AJ35*D19)/AM42,(Y132+AJ35*D19)/AN42,(Y133+AJ35*D19)/AO42)*AP42 -> 336.5 | AR66: =MIN((Z129+AJ35*D19)/AK42,(Z130+AJ35*D19)/AL42,(Z131+AJ35*D19)/AM42,(Z132+AJ35*D19)/AN42,(Z133+AJ35*D19)/AO42)*AP42 -> 306 | AS66: =MIN((AA129+AJ35*D19)/AK42,(AA130+AJ35*D19)/AL42,(AA131+AJ35*D19)/AM42,(AA132+AJ35*D19)/AN42,(AA133+AJ35*D19)/AO42)*AP42 -> 336.5 | AT66: =MIN((AB129+AJ35*D19)/AK42,(AB130+AJ35*D19)/AL42,(AB131+AJ35*D19)/AM42,(AB132+AJ35*D19)/AN42,(AB133+AJ35*D19)/AO42)*AP42 -> 338 | AU66: =MIN((AC129+AJ35*D19)/AK42,(AC130+AJ35*D19)/AL42,(AC131+AJ35*D19)/AM42,(AC132+AJ35*D19)/AN42,(AC133+AJ35*D19)/AO42)*AP42 -> 340 | AV66: =MIN((AD129+AJ35*D19)/AK42,(AD130+AJ35*D19)/AL42,(AD131+AJ35*D19)/AM42,(AD132+AJ35*D19)/AN42,(AD133+AJ35*D19)/AO42)*AP42 -> 306 | AW66: =MIN((AE129+AJ35*D19)/AK42,(AE130+AJ35*D19)/AL42,(AE131+AJ35*D19)/AM42,(AE132+AJ35*D19)/AN42,(AE133+AJ35*D19)/AO42)*AP42 -> 340 | AX66: =MIN((AF129+AJ35*D19)/AK42,(AF130+AJ35*D19)/AL42,(AF131+AJ35*D19)/AM42,(AF132+AJ35*D19)/AN42,(AF133+AJ35*D19)/AO42)*AP42 -> 338 | AY66: 346 | BA66: slovaquie 8 | BB66: =MIN((S129+AK35*D19)/AK43,(S130+AK35*D19)/AL43,(S131+AK35*D19)/AM43,(S132+AK35*D19)/AN43,(S133+AK35*D19)/AO43)*AP43 -> 402 | BC66: =MIN((T129+AK35*D19)/AK43,(T130+AK35*D19)/AL43,(T131+AK35*D19)/AM43,(T132+AK35*D19)/AN43,(T133+AK35*D19)/AO43)*AP43 -> 431.3333333 | BD66: =MIN((U129+AK35*D19)/AK43,(U130+AK35*D19)/AL43,(U131+AK35*D19)/AM43,(U132+AK35*D19)/AN43,(U133+AK35*D19)/AO43)*AP43 -> 385.3333333 | BE66: =MIN((V129+AK35*D19)/AK43,(V130+AK35*D19)/AL43,(V131+AK35*D19)/AM43,(V132+AK35*D19)/AN43,(V133+AK35*D19)/AO43)*AP43 -> 428 | BF66: =MIN((W129+AK35*D19)/AK43,(W130+AK35*D19)/AL43,(W131+AK35*D19)/AM43,(W132+AK35*D19)/AN43,(W133+AK35*D19)/AO43)*AP43 -> 385.3333333 | BG66: =MIN((X129+AK35*D19)/AK43,(X130+AK35*D19)/AL43,(X131+AK35*D19)/AM43,(X132+AK35*D19)/AN43,(X133+AK35*D19)/AO43)*AP43 -> 422.6666667 | BH66: =MIN((Y129+AK35*D19)/AK43,(Y130+AK35*D19)/AL43,(Y131+AK35*D19)/AM43,(Y132+AK35*D19)/AN43,(Y133+AK35*D19)/AO43)*AP43 -> 426 | BI66: =MIN((Z129+AK35*D19)/AK43,(Z130+AK35*D19)/AL43,(Z131+AK35*D19)/AM43,(Z132+AK35*D19)/AN43,(Z133+AK35*D19)/AO43)*AP43 -> 385.3333333 | BJ66: =MIN((AA129+AK35*D19)/AK43,(AA130+AK35*D19)/AL43,(AA131+AK35*D19)/AM43,(AA132+AK35*D19)/AN43,(AA133+AK35*D19)/AO43)*AP43 -> 426 | BK66: =MIN((AB129+AK35*D19)/AK43,(AB130+AK35*D19)/AL43,(AB131+AK35*D19)/AM43,(AB132+AK35*D19)/AN43,(AB133+AK35*D19)/AO43)*AP43 -> 428 | BL66: =MIN((AC129+AK35*D19)/AK43,(AC130+AK35*D19)/AL43,(AC131+AK35*D19)/AM43,(AC132+AK35*D19)/AN43,(AC133+AK35*D19)/AO43)*AP43 -> 422.6666667 | BM66: =MIN((AD129+AK35*D19)/AK43,(AD130+AK35*D19)/AL43,(AD131+AK35*D19)/AM43,(AD132+AK35*D19)/AN43,(AD133+AK35*D19)/AO43)*AP43 -> 385.3333333 | BN66: =MIN((AE129+AK35*D19)/AK43,(AE130+AK35*D19)/AL43,(AE131+AK35*D19)/AM43,(AE132+AK35*D19)/AN43,(AE133+AK35*D19)/AO43)*AP43 -> 425.3333333 | BO66: =MIN((AF129+AK35*D19)/AK43,(AF130+AK35*D19)/AL43,(AF131+AK35*D19)/AM43,(AF132+AK35*D19)/AN43,(AF133+AK35*D19)/AO43)*AP43 -> 428 | BP66: 431.3333333 | BS66: =IF(E26=C31,F53,IF(E26=C32,I53,IF(E26=C33,L53,erreur))) -> 2.04355 | BU66: =IF(E26=C31,G53,IF(E26=C32,J53,IF(E26=C33,M53,erreur))) -> 0.22705 | BW66: 2.2706 | BZ66: 10 | CF66: 9
E67: 0.4541 | F67: 1.8165 | G67: 2.2706 | H67: 0.8174 | I67: 0.54495 | J67: 1.36235 | K67: 0.7266 | L67: 1.0899 | M67: 1.8165 | N67: 0.7266 | O67: 1.0899 | P67: 1.8165 | R67: =I12+AH40+D15+D17+D21+D19*AG9 -> 574 | S67: =R67+Q11 -> 654 | T67: =R67+R11 -> 626 | U67: =R67+S11 -> 574 | V67: =R67+T11 -> 619 | W67: =R67+U11 -> 574 | X67: =R67+V11 -> 630 | Y67: =R67+W11 -> 635 | Z67: =R67+X11 -> 574 | AA67: =R67+Y11 -> 635 | AB67: =R67+Z11 -> 638 | AC67: =R67+AA11 -> 642 | AD67: =R67+AB11 -> 574 | AE67: =R67+AC11 -> 642 | AF67: =R67+AD11 -> 638 | AJ67: afrique du sud 4 | AK67: =MIN((S136+AJ35*D19)/AK42,(S137+AJ35*D19)/AL42,(S138+AJ35*D19)/AM42,(S139+AJ35*D19)/AN42,(S140+AJ35*D19)/AO42)*AP42 -> 223 | AL67: =MIN((T136+AJ35*D19)/AK42,(T137+AJ35*D19)/AL42,(T138+AJ35*D19)/AM42,(T139+AJ35*D19)/AN42,(T140+AJ35*D19)/AO42)*AP42 -> 209 | AM67: =MIN((U136+AJ35*D19)/AK42,(U137+AJ35*D19)/AL42,(U138+AJ35*D19)/AM42,(U139+AJ35*D19)/AN42,(U140+AJ35*D19)/AO42)*AP42 -> 183 | AN67: =MIN((V136+AJ35*D19)/AK42,(V137+AJ35*D19)/AL42,(V138+AJ35*D19)/AM42,(V139+AJ35*D19)/AN42,(V140+AJ35*D19)/AO42)*AP42 -> 205.5 | AO67: =MIN((W136+AJ35*D19)/AK42,(W137+AJ35*D19)/AL42,(W138+AJ35*D19)/AM42,(W139+AJ35*D19)/AN42,(W140+AJ35*D19)/AO42)*AP42 -> 183 | AP67: =MIN((X136+AJ35*D19)/AK42,(X137+AJ35*D19)/AL42,(X138+AJ35*D19)/AM42,(X139+AJ35*D19)/AN42,(X140+AJ35*D19)/AO42)*AP42 -> 211 | AQ67: =MIN((Y136+AJ35*D19)/AK42,(Y137+AJ35*D19)/AL42,(Y138+AJ35*D19)/AM42,(Y139+AJ35*D19)/AN42,(Y140+AJ35*D19)/AO42)*AP42 -> 213.5 | AR67: =MIN((Z136+AJ35*D19)/AK42,(Z137+AJ35*D19)/AL42,(Z138+AJ35*D19)/AM42,(Z139+AJ35*D19)/AN42,(Z140+AJ35*D19)/AO42)*AP42 -> 183 | AS67: =MIN((AA136+AJ35*D19)/AK42,(AA137+AJ35*D19)/AL42,(AA138+AJ35*D19)/AM42,(AA139+AJ35*D19)/AN42,(AA140+AJ35*D19)/AO42)*AP42 -> 213.5 | AT67: =MIN((AB136+AJ35*D19)/AK42,(AB137+AJ35*D19)/AL42,(AB138+AJ35*D19)/AM42,(AB139+AJ35*D19)/AN42,(AB140+AJ35*D19)/AO42)*AP42 -> 215 | AU67: =MIN((AC136+AJ35*D19)/AK42,(AC137+AJ35*D19)/AL42,(AC138+AJ35*D19)/AM42,(AC139+AJ35*D19)/AN42,(AC140+AJ35*D19)/AO42)*AP42 -> 217 | AV67: =MIN((AD136+AJ35*D19)/AK42,(AD137+AJ35*D19)/AL42,(AD138+AJ35*D19)/AM42,(AD139+AJ35*D19)/AN42,(AD140+AJ35*D19)/AO42)*AP42 -> 183 | AW67: =MIN((AE136+AJ35*D19)/AK42,(AE137+AJ35*D19)/AL42,(AE138+AJ35*D19)/AM42,(AE139+AJ35*D19)/AN42,(AE140+AJ35*D19)/AO42)*AP42 -> 217 | AX67: =MIN((AF136+AJ35*D19)/AK42,(AF137+AJ35*D19)/AL42,(AF138+AJ35*D19)/AM42,(AF139+AJ35*D19)/AN42,(AF140+AJ35*D19)/AO42)*AP42 -> 215 | AY67: 223 | BA67: afrique du sud 4 | BB67: =MIN((S136+AK35*D19)/AK43,(S137+AK35*D19)/AL43,(S138+AK35*D19)/AM43,(S139+AK35*D19)/AN43,(S140+AK35*D19)/AO43)*AP43 -> 334.6666667 | BC67: =MIN((T136+AK35*D19)/AK43,(T137+AK35*D19)/AL43,(T138+AK35*D19)/AM43,(T139+AK35*D19)/AN43,(T140+AK35*D19)/AO43)*AP43 -> 364 | BD67: =MIN((U136+AK35*D19)/AK43,(U137+AK35*D19)/AL43,(U138+AK35*D19)/AM43,(U139+AK35*D19)/AN43,(U140+AK35*D19)/AO43)*AP43 -> 318 | BE67: =MIN((V136+AK35*D19)/AK43,(V137+AK35*D19)/AL43,(V138+AK35*D19)/AM43,(V139+AK35*D19)/AN43,(V140+AK35*D19)/AO43)*AP43 -> 360.6666667 | BF67: =MIN((W136+AK35*D19)/AK43,(W137+AK35*D19)/AL43,(W138+AK35*D19)/AM43,(W139+AK35*D19)/AN43,(W140+AK35*D19)/AO43)*AP43 -> 318 | BG67: =MIN((X136+AK35*D19)/AK43,(X137+AK35*D19)/AL43,(X138+AK35*D19)/AM43,(X139+AK35*D19)/AN43,(X140+AK35*D19)/AO43)*AP43 -> 355.3333333 | BH67: =MIN((Y136+AK35*D19)/AK43,(Y137+AK35*D19)/AL43,(Y138+AK35*D19)/AM43,(Y139+AK35*D19)/AN43,(Y140+AK35*D19)/AO43)*AP43 -> 358.6666667 | BI67: =MIN((Z136+AK35*D19)/AK43,(Z137+AK35*D19)/AL43,(Z138+AK35*D19)/AM43,(Z139+AK35*D19)/AN43,(Z140+AK35*D19)/AO43)*AP43 -> 318 | BJ67: =MIN((AA136+AK35*D19)/AK43,(AA137+AK35*D19)/AL43,(AA138+AK35*D19)/AM43,(AA139+AK35*D19)/AN43,(AA140+AK35*D19)/AO43)*AP43 -> 358.6666667 | BK67: =MIN((AB136+AK35*D19)/AK43,(AB137+AK35*D19)/AL43,(AB138+AK35*D19)/AM43,(AB139+AK35*D19)/AN43,(AB140+AK35*D19)/AO43)*AP43 -> 360.6666667 | BL67: =MIN((AC136+AK35*D19)/AK43,(AC137+AK35*D19)/AL43,(AC138+AK35*D19)/AM43,(AC139+AK35*D19)/AN43,(AC140+AK35*D19)/AO43)*AP43 -> 355.3333333 | BM67: =MIN((AD136+AK35*D19)/AK43,(AD137+AK35*D19)/AL43,(AD138+AK35*D19)/AM43,(AD139+AK35*D19)/AN43,(AD140+AK35*D19)/AO43)*AP43 -> 318 | BN67: =MIN((AE136+AK35*D19)/AK43,(AE137+AK35*D19)/AL43,(AE138+AK35*D19)/AM43,(AE139+AK35*D19)/AN43,(AE140+AK35*D19)/AO43)*AP43 -> 358 | BO67: =MIN((AF136+AK35*D19)/AK43,(AF137+AK35*D19)/AL43,(AF138+AK35*D19)/AM43,(AF139+AK35*D19)/AN43,(AF140+AK35*D19)/AO43)*AP43 -> 360.6666667 | BP67: 364 | BS67: =IF(E26=C31,F54,IF(E26=C32,I54,IF(E26=C33,L54,erreur))) -> 1.63485 | BU67: =IF(E26=C31,G54,IF(E26=C32,J54,IF(E26=C33,M54,erreur))) -> 0.18165 | BW67: 1.8165 | BZ67: 11 | CF67: 10
E68: 0.7266 | F68: 1.0899 | G68: 1.8165 | H68: 0.81415 | I68: 0.54275 | J68: 1.3569 | K68: 1.0899 | L68: 1.63485 | M68: 2.72475 | N68: 0.68115 | O68: 0.68115 | P68: 1.3623 | R68: =J12+AH41+D15+D17+D21+D19*AG9 -> 569 | S68: =R68+Q12 -> 610 | T68: =R68+R12 -> 629 | U68: =R68+S12 -> 569 | V68: =R68+T12 -> 642 | W68: =R68+U12 -> 569 | X68: =R68+V12 -> 625 | Y68: =R68+W12 -> 630 | Z68: =R68+X12 -> 569 | AA68: =R68+Y12 -> 630 | AB68: =R68+Z12 -> 633 | AC68: =R68+AA12 -> 637 | AD68: =R68+AB12 -> 569 | AE68: =R68+AC12 -> 622 | AF68: =R68+AD12 -> 640 | AJ68: allemagne 11 | AK68: =MIN((S143+AJ35*D19)/AK42,(S144+AJ35*D19)/AL42,(S145+AJ35*D19)/AM42,(S146+AJ35*D19)/AN42,(S147+AJ35*D19)/AO42)*AP42 -> 321.5 | AL68: =MIN((T143+AJ35*D19)/AK42,(T144+AJ35*D19)/AL42,(T145+AJ35*D19)/AM42,(T146+AJ35*D19)/AN42,(T147+AJ35*D19)/AO42)*AP42 -> 307.5 | AM68: =MIN((U143+AJ35*D19)/AK42,(U144+AJ35*D19)/AL42,(U145+AJ35*D19)/AM42,(U146+AJ35*D19)/AN42,(U147+AJ35*D19)/AO42)*AP42 -> 281.5 | AN68: =MIN((V143+AJ35*D19)/AK42,(V144+AJ35*D19)/AL42,(V145+AJ35*D19)/AM42,(V146+AJ35*D19)/AN42,(V147+AJ35*D19)/AO42)*AP42 -> 304 | AO68: =MIN((W143+AJ35*D19)/AK42,(W144+AJ35*D19)/AL42,(W145+AJ35*D19)/AM42,(W146+AJ35*D19)/AN42,(W147+AJ35*D19)/AO42)*AP42 -> 281.5 | AP68: =MIN((X143+AJ35*D19)/AK42,(X144+AJ35*D19)/AL42,(X145+AJ35*D19)/AM42,(X146+AJ35*D19)/AN42,(X147+AJ35*D19)/AO42)*AP42 -> 309.5 | AQ68: =MIN((Y143+AJ35*D19)/AK42,(Y144+AJ35*D19)/AL42,(Y145+AJ35*D19)/AM42,(Y146+AJ35*D19)/AN42,(Y147+AJ35*D19)/AO42)*AP42 -> 312 | AR68: =MIN((Z143+AJ35*D19)/AK42,(Z144+AJ35*D19)/AL42,(Z145+AJ35*D19)/AM42,(Z146+AJ35*D19)/AN42,(Z147+AJ35*D19)/AO42)*AP42 -> 281.5 | AS68: =MIN((AA143+AJ35*D19)/AK42,(AA144+AJ35*D19)/AL42,(AA145+AJ35*D19)/AM42,(AA146+AJ35*D19)/AN42,(AA147+AJ35*D19)/AO42)*AP42 -> 312 | AT68: =MIN((AB143+AJ35*D19)/AK42,(AB144+AJ35*D19)/AL42,(AB145+AJ35*D19)/AM42,(AB146+AJ35*D19)/AN42,(AB147+AJ35*D19)/AO42)*AP42 -> 313.5 | AU68: =MIN((AC143+AJ35*D19)/AK42,(AC144+AJ35*D19)/AL42,(AC145+AJ35*D19)/AM42,(AC146+AJ35*D19)/AN42,(AC147+AJ35*D19)/AO42)*AP42 -> 315.5 | AV68: =MIN((AD143+AJ35*D19)/AK42,(AD144+AJ35*D19)/AL42,(AD145+AJ35*D19)/AM42,(AD146+AJ35*D19)/AN42,(AD147+AJ35*D19)/AO42)*AP42 -> 281.5 | AW68: =MIN((AE143+AJ35*D19)/AK42,(AE144+AJ35*D19)/AL42,(AE145+AJ35*D19)/AM42,(AE146+AJ35*D19)/AN42,(AE147+AJ35*D19)/AO42)*AP42 -> 315.5 | AX68: =MIN((AF143+AJ35*D19)/AK42,(AF144+AJ35*D19)/AL42,(AF145+AJ35*D19)/AM42,(AF146+AJ35*D19)/AN42,(AF147+AJ35*D19)/AO42)*AP42 -> 313.5 | AY68: 321.5 | BA68: allemagne 11 | BB68: =MIN((S143+AK35*D19)/AK43,(S144+AK35*D19)/AL43,(S145+AK35*D19)/AM43,(S146+AK35*D19)/AN43,(S147+AK35*D19)/AO43)*AP43 -> 396.6666667 | BC68: =MIN((T143+AK35*D19)/AK43,(T144+AK35*D19)/AL43,(T145+AK35*D19)/AM43,(T146+AK35*D19)/AN43,(T147+AK35*D19)/AO43)*AP43 -> 426 | BD68: =MIN((U143+AK35*D19)/AK43,(U144+AK35*D19)/AL43,(U145+AK35*D19)/AM43,(U146+AK35*D19)/AN43,(U147+AK35*D19)/AO43)*AP43 -> 380 | BE68: =MIN((V143+AK35*D19)/AK43,(V144+AK35*D19)/AL43,(V145+AK35*D19)/AM43,(V146+AK35*D19)/AN43,(V147+AK35*D19)/AO43)*AP43 -> 422.6666667 | BF68: =MIN((W143+AK35*D19)/AK43,(W144+AK35*D19)/AL43,(W145+AK35*D19)/AM43,(W146+AK35*D19)/AN43,(W147+AK35*D19)/AO43)*AP43 -> 380 | BG68: =MIN((X143+AK35*D19)/AK43,(X144+AK35*D19)/AL43,(X145+AK35*D19)/AM43,(X146+AK35*D19)/AN43,(X147+AK35*D19)/AO43)*AP43 -> 417.3333333 | BH68: =MIN((Y143+AK35*D19)/AK43,(Y144+AK35*D19)/AL43,(Y145+AK35*D19)/AM43,(Y146+AK35*D19)/AN43,(Y147+AK35*D19)/AO43)*AP43 -> 420.6666667 | BI68: =MIN((Z143+AK35*D19)/AK43,(Z144+AK35*D19)/AL43,(Z145+AK35*D19)/AM43,(Z146+AK35*D19)/AN43,(Z147+AK35*D19)/AO43)*AP43 -> 380 | BJ68: =MIN((AA143+AK35*D19)/AK43,(AA144+AK35*D19)/AL43,(AA145+AK35*D19)/AM43,(AA146+AK35*D19)/AN43,(AA147+AK35*D19)/AO43)*AP43 -> 420.6666667 | BK68: =MIN((AB143+AK35*D19)/AK43,(AB144+AK35*D19)/AL43,(AB145+AK35*D19)/AM43,(AB146+AK35*D19)/AN43,(AB147+AK35*D19)/AO43)*AP43 -> 422.6666667 | BL68: =MIN((AC143+AK35*D19)/AK43,(AC144+AK35*D19)/AL43,(AC145+AK35*D19)/AM43,(AC146+AK35*D19)/AN43,(AC147+AK35*D19)/AO43)*AP43 -> 417.3333333 | BM68: =MIN((AD143+AK35*D19)/AK43,(AD144+AK35*D19)/AL43,(AD145+AK35*D19)/AM43,(AD146+AK35*D19)/AN43,(AD147+AK35*D19)/AO43)*AP43 -> 380 | BN68: =MIN((AE143+AK35*D19)/AK43,(AE144+AK35*D19)/AL43,(AE145+AK35*D19)/AM43,(AE146+AK35*D19)/AN43,(AE147+AK35*D19)/AO43)*AP43 -> 420 | BO68: =MIN((AF143+AK35*D19)/AK43,(AF144+AK35*D19)/AL43,(AF145+AK35*D19)/AM43,(AF146+AK35*D19)/AN43,(AF147+AK35*D19)/AO43)*AP43 -> 422.6666667 | BP68: 426 | BS68: =IF(E26=C31,F55,IF(E26=C32,I55,IF(E26=C33,L55,erreur))) -> 2.4523 | BU68: =IF(E26=C31,G55,IF(E26=C32,J55,IF(E26=C33,M55,erreur))) -> 0.27245 | BW68: 2.72475 | BZ68: brut adversaire selon tactique | CF68: 11
E69: 0.68115 | F69: 0.68115 | G69: 1.3623 | H69: 1.63485 | I69: 1.0899 | J69: 2.72475 | K69: 0.68115 | L69: 0.68115 | M69: 1.3623 | N69: 0.68115 | O69: 0.68115 | P69: 1.3623 | R69: =K12+AH42+D16+D17+D21+D19*AG9 -> 619 | S69: =R69+Q13 -> 644 | T69: =R69+R13 -> 688 | U69: =R69+S13 -> 619 | V69: =R69+T13 -> 683 | W69: =R69+U13 -> 619 | X69: =R69+V13 -> 675 | Y69: =R69+W13 -> 680 | Z69: =R69+X13 -> 619 | AA69: =R69+Y13 -> 680 | AB69: =R69+Z13 -> 683 | AC69: =R69+AA13 -> 675 | AD69: =R69+AB13 -> 619 | AE69: =R69+AC13 -> 679 | AF69: =R69+AD13 -> 683 | AJ69: chili 11 | AK69: =MIN((S150+AJ35*D19)/AK42,(S151+AJ35*D19)/AL42,(S152+AJ35*D19)/AM42,(S153+AJ35*D19)/AN42,(S154+AJ35*D19)/AO42)*AP42 -> 314.5 | AL69: =MIN((T150+AJ35*D19)/AK42,(T151+AJ35*D19)/AL42,(T152+AJ35*D19)/AM42,(T153+AJ35*D19)/AN42,(T154+AJ35*D19)/AO42)*AP42 -> 300.5 | AM69: =MIN((U150+AJ35*D19)/AK42,(U151+AJ35*D19)/AL42,(U152+AJ35*D19)/AM42,(U153+AJ35*D19)/AN42,(U154+AJ35*D19)/AO42)*AP42 -> 274.5 | AN69: =MIN((V150+AJ35*D19)/AK42,(V151+AJ35*D19)/AL42,(V152+AJ35*D19)/AM42,(V153+AJ35*D19)/AN42,(V154+AJ35*D19)/AO42)*AP42 -> 297 | AO69: =MIN((W150+AJ35*D19)/AK42,(W151+AJ35*D19)/AL42,(W152+AJ35*D19)/AM42,(W153+AJ35*D19)/AN42,(W154+AJ35*D19)/AO42)*AP42 -> 274.5 | AP69: =MIN((X150+AJ35*D19)/AK42,(X151+AJ35*D19)/AL42,(X152+AJ35*D19)/AM42,(X153+AJ35*D19)/AN42,(X154+AJ35*D19)/AO42)*AP42 -> 302.5 | AQ69: =MIN((Y150+AJ35*D19)/AK42,(Y151+AJ35*D19)/AL42,(Y152+AJ35*D19)/AM42,(Y153+AJ35*D19)/AN42,(Y154+AJ35*D19)/AO42)*AP42 -> 305 | AR69: =MIN((Z150+AJ35*D19)/AK42,(Z151+AJ35*D19)/AL42,(Z152+AJ35*D19)/AM42,(Z153+AJ35*D19)/AN42,(Z154+AJ35*D19)/AO42)*AP42 -> 274.5 | AS69: =MIN((AA150+AJ35*D19)/AK42,(AA151+AJ35*D19)/AL42,(AA152+AJ35*D19)/AM42,(AA153+AJ35*D19)/AN42,(AA154+AJ35*D19)/AO42)*AP42 -> 305 | AT69: =MIN((AB150+AJ35*D19)/AK42,(AB151+AJ35*D19)/AL42,(AB152+AJ35*D19)/AM42,(AB153+AJ35*D19)/AN42,(AB154+AJ35*D19)/AO42)*AP42 -> 306.5 | AU69: =MIN((AC150+AJ35*D19)/AK42,(AC151+AJ35*D19)/AL42,(AC152+AJ35*D19)/AM42,(AC153+AJ35*D19)/AN42,(AC154+AJ35*D19)/AO42)*AP42 -> 308.5 | AV69: =MIN((AD150+AJ35*D19)/AK42,(AD151+AJ35*D19)/AL42,(AD152+AJ35*D19)/AM42,(AD153+AJ35*D19)/AN42,(AD154+AJ35*D19)/AO42)*AP42 -> 274.5 | AW69: =MIN((AE150+AJ35*D19)/AK42,(AE151+AJ35*D19)/AL42,(AE152+AJ35*D19)/AM42,(AE153+AJ35*D19)/AN42,(AE154+AJ35*D19)/AO42)*AP42 -> 308.5 | AX69: =MIN((AF150+AJ35*D19)/AK42,(AF151+AJ35*D19)/AL42,(AF152+AJ35*D19)/AM42,(AF153+AJ35*D19)/AN42,(AF154+AJ35*D19)/AO42)*AP42 -> 306.5 | AY69: 314.5 | BA69: chili 11 | BB69: =MIN((S150+AK35*D19)/AK43,(S151+AK35*D19)/AL43,(S152+AK35*D19)/AM43,(S153+AK35*D19)/AN43,(S154+AK35*D19)/AO43)*AP43 -> 376 | BC69: =MIN((T150+AK35*D19)/AK43,(T151+AK35*D19)/AL43,(T152+AK35*D19)/AM43,(T153+AK35*D19)/AN43,(T154+AK35*D19)/AO43)*AP43 -> 405.3333333 | BD69: =MIN((U150+AK35*D19)/AK43,(U151+AK35*D19)/AL43,(U152+AK35*D19)/AM43,(U153+AK35*D19)/AN43,(U154+AK35*D19)/AO43)*AP43 -> 359.3333333 | BE69: =MIN((V150+AK35*D19)/AK43,(V151+AK35*D19)/AL43,(V152+AK35*D19)/AM43,(V153+AK35*D19)/AN43,(V154+AK35*D19)/AO43)*AP43 -> 402 | BF69: =MIN((W150+AK35*D19)/AK43,(W151+AK35*D19)/AL43,(W152+AK35*D19)/AM43,(W153+AK35*D19)/AN43,(W154+AK35*D19)/AO43)*AP43 -> 359.3333333 | BG69: =MIN((X150+AK35*D19)/AK43,(X151+AK35*D19)/AL43,(X152+AK35*D19)/AM43,(X153+AK35*D19)/AN43,(X154+AK35*D19)/AO43)*AP43 -> 396.6666667 | BH69: =MIN((Y150+AK35*D19)/AK43,(Y151+AK35*D19)/AL43,(Y152+AK35*D19)/AM43,(Y153+AK35*D19)/AN43,(Y154+AK35*D19)/AO43)*AP43 -> 400 | BI69: =MIN((Z150+AK35*D19)/AK43,(Z151+AK35*D19)/AL43,(Z152+AK35*D19)/AM43,(Z153+AK35*D19)/AN43,(Z154+AK35*D19)/AO43)*AP43 -> 359.3333333 | BJ69: =MIN((AA150+AK35*D19)/AK43,(AA151+AK35*D19)/AL43,(AA152+AK35*D19)/AM43,(AA153+AK35*D19)/AN43,(AA154+AK35*D19)/AO43)*AP43 -> 400 | BK69: =MIN((AB150+AK35*D19)/AK43,(AB151+AK35*D19)/AL43,(AB152+AK35*D19)/AM43,(AB153+AK35*D19)/AN43,(AB154+AK35*D19)/AO43)*AP43 -> 402 | BL69: =MIN((AC150+AK35*D19)/AK43,(AC151+AK35*D19)/AL43,(AC152+AK35*D19)/AM43,(AC153+AK35*D19)/AN43,(AC154+AK35*D19)/AO43)*AP43 -> 396.6666667 | BM69: =MIN((AD150+AK35*D19)/AK43,(AD151+AK35*D19)/AL43,(AD152+AK35*D19)/AM43,(AD153+AK35*D19)/AN43,(AD154+AK35*D19)/AO43)*AP43 -> 359.3333333 | BN69: =MIN((AE150+AK35*D19)/AK43,(AE151+AK35*D19)/AL43,(AE152+AK35*D19)/AM43,(AE153+AK35*D19)/AN43,(AE154+AK35*D19)/AO43)*AP43 -> 399.3333333 | BO69: =MIN((AF150+AK35*D19)/AK43,(AF151+AK35*D19)/AL43,(AF152+AK35*D19)/AM43,(AF153+AK35*D19)/AN43,(AF154+AK35*D19)/AO43)*AP43 -> 402 | BP69: 405.3333333 | BR69: formule position | BU69: formule gain brut | CA69: att | CB69: def | CF69: total | CG69: =SUM(CG58:CG68) -> 
E70: 1.58945 | F70: 0.68115 | G70: 2.2706 | H70: 2.04355 | I70: 0.22705 | J70: 2.2706 | K70: 1.27155 | L70: 0.54495 | M70: 1.8165 | N70: 1.27155 | O70: 0.54495 | P70: 1.8165 | R70: =L12+AH43+D15+D17+D21+D19*AG9 -> 460 | S70: =R70+Q14 -> 516 | T70: =R70+R14 -> 512 | U70: =R70+S14 -> 460 | V70: =R70+T14 -> 505 | W70: =R70+U14 -> 460 | X70: =R70+V14 -> 516 | Y70: =R70+W14 -> 513 | Z70: =R70+X14 -> 460 | AA70: =R70+Y14 -> 513 | AB70: =R70+Z14 -> 508 | AC70: =R70+AA14 -> 509 | AD70: =R70+AB14 -> 460 | AE70: =R70+AC14 -> 520 | AF70: =R70+AD14 -> 504 | AJ70: corée du sud 3 | AK70: =MIN((S157+AJ35*D19)/AK42,(S158+AJ35*D19)/AL42,(S159+AJ35*D19)/AM42,(S160+AJ35*D19)/AN42,(S161+AJ35*D19)/AO42)*AP42 -> 252.5 | AL70: =MIN((T157+AJ35*D19)/AK42,(T158+AJ35*D19)/AL42,(T159+AJ35*D19)/AM42,(T160+AJ35*D19)/AN42,(T161+AJ35*D19)/AO42)*AP42 -> 238.5 | AM70: =MIN((U157+AJ35*D19)/AK42,(U158+AJ35*D19)/AL42,(U159+AJ35*D19)/AM42,(U160+AJ35*D19)/AN42,(U161+AJ35*D19)/AO42)*AP42 -> 212.5 | AN70: =MIN((V157+AJ35*D19)/AK42,(V158+AJ35*D19)/AL42,(V159+AJ35*D19)/AM42,(V160+AJ35*D19)/AN42,(V161+AJ35*D19)/AO42)*AP42 -> 235 | AO70: =MIN((W157+AJ35*D19)/AK42,(W158+AJ35*D19)/AL42,(W159+AJ35*D19)/AM42,(W160+AJ35*D19)/AN42,(W161+AJ35*D19)/AO42)*AP42 -> 212.5 | AP70: =MIN((X157+AJ35*D19)/AK42,(X158+AJ35*D19)/AL42,(X159+AJ35*D19)/AM42,(X160+AJ35*D19)/AN42,(X161+AJ35*D19)/AO42)*AP42 -> 240.5 | AQ70: =MIN((Y157+AJ35*D19)/AK42,(Y158+AJ35*D19)/AL42,(Y159+AJ35*D19)/AM42,(Y160+AJ35*D19)/AN42,(Y161+AJ35*D19)/AO42)*AP42 -> 243 | AR70: =MIN((Z157+AJ35*D19)/AK42,(Z158+AJ35*D19)/AL42,(Z159+AJ35*D19)/AM42,(Z160+AJ35*D19)/AN42,(Z161+AJ35*D19)/AO42)*AP42 -> 212.5 | AS70: =MIN((AA157+AJ35*D19)/AK42,(AA158+AJ35*D19)/AL42,(AA159+AJ35*D19)/AM42,(AA160+AJ35*D19)/AN42,(AA161+AJ35*D19)/AO42)*AP42 -> 243 | AT70: =MIN((AB157+AJ35*D19)/AK42,(AB158+AJ35*D19)/AL42,(AB159+AJ35*D19)/AM42,(AB160+AJ35*D19)/AN42,(AB161+AJ35*D19)/AO42)*AP42 -> 244.5 | AU70: =MIN((AC157+AJ35*D19)/AK42,(AC158+AJ35*D19)/AL42,(AC159+AJ35*D19)/AM42,(AC160+AJ35*D19)/AN42,(AC161+AJ35*D19)/AO42)*AP42 -> 246.5 | AV70: =MIN((AD157+AJ35*D19)/AK42,(AD158+AJ35*D19)/AL42,(AD159+AJ35*D19)/AM42,(AD160+AJ35*D19)/AN42,(AD161+AJ35*D19)/AO42)*AP42 -> 212.5 | AW70: =MIN((AE157+AJ35*D19)/AK42,(AE158+AJ35*D19)/AL42,(AE159+AJ35*D19)/AM42,(AE160+AJ35*D19)/AN42,(AE161+AJ35*D19)/AO42)*AP42 -> 246.5 | AX70: =MIN((AF157+AJ35*D19)/AK42,(AF158+AJ35*D19)/AL42,(AF159+AJ35*D19)/AM42,(AF160+AJ35*D19)/AN42,(AF161+AJ35*D19)/AO42)*AP42 -> 244.5 | AY70: 252.5 | BA70: corée du sud 3 | BB70: =MIN((S157+AK35*D19)/AK43,(S158+AK35*D19)/AL43,(S159+AK35*D19)/AM43,(S160+AK35*D19)/AN43,(S161+AK35*D19)/AO43)*AP43 -> 383.3333333 | BC70: =MIN((T157+AK35*D19)/AK43,(T158+AK35*D19)/AL43,(T159+AK35*D19)/AM43,(T160+AK35*D19)/AN43,(T161+AK35*D19)/AO43)*AP43 -> 412.6666667 | BD70: =MIN((U157+AK35*D19)/AK43,(U158+AK35*D19)/AL43,(U159+AK35*D19)/AM43,(U160+AK35*D19)/AN43,(U161+AK35*D19)/AO43)*AP43 -> 366.6666667 | BE70: =MIN((V157+AK35*D19)/AK43,(V158+AK35*D19)/AL43,(V159+AK35*D19)/AM43,(V160+AK35*D19)/AN43,(V161+AK35*D19)/AO43)*AP43 -> 409.3333333 | BF70: =MIN((W157+AK35*D19)/AK43,(W158+AK35*D19)/AL43,(W159+AK35*D19)/AM43,(W160+AK35*D19)/AN43,(W161+AK35*D19)/AO43)*AP43 -> 366.6666667 | BG70: =MIN((X157+AK35*D19)/AK43,(X158+AK35*D19)/AL43,(X159+AK35*D19)/AM43,(X160+AK35*D19)/AN43,(X161+AK35*D19)/AO43)*AP43 -> 404 | BH70: =MIN((Y157+AK35*D19)/AK43,(Y158+AK35*D19)/AL43,(Y159+AK35*D19)/AM43,(Y160+AK35*D19)/AN43,(Y161+AK35*D19)/AO43)*AP43 -> 407.3333333 | BI70: =MIN((Z157+AK35*D19)/AK43,(Z158+AK35*D19)/AL43,(Z159+AK35*D19)/AM43,(Z160+AK35*D19)/AN43,(Z161+AK35*D19)/AO43)*AP43 -> 366.6666667 | BJ70: =MIN((AA157+AK35*D19)/AK43,(AA158+AK35*D19)/AL43,(AA159+AK35*D19)/AM43,(AA160+AK35*D19)/AN43,(AA161+AK35*D19)/AO43)*AP43 -> 407.3333333 | BK70: =MIN((AB157+AK35*D19)/AK43,(AB158+AK35*D19)/AL43,(AB159+AK35*D19)/AM43,(AB160+AK35*D19)/AN43,(AB161+AK35*D19)/AO43)*AP43 -> 409.3333333 | BL70: =MIN((AC157+AK35*D19)/AK43,(AC158+AK35*D19)/AL43,(AC159+AK35*D19)/AM43,(AC160+AK35*D19)/AN43,(AC161+AK35*D19)/AO43)*AP43 -> 404 | BM70: =MIN((AD157+AK35*D19)/AK43,(AD158+AK35*D19)/AL43,(AD159+AK35*D19)/AM43,(AD160+AK35*D19)/AN43,(AD161+AK35*D19)/AO43)*AP43 -> 366.6666667 | BN70: =MIN((AE157+AK35*D19)/AK43,(AE158+AK35*D19)/AL43,(AE159+AK35*D19)/AM43,(AE160+AK35*D19)/AN43,(AE161+AK35*D19)/AO43)*AP43 -> 406.6666667 | BO70: =MIN((AF157+AK35*D19)/AK43,(AF158+AK35*D19)/AL43,(AF159+AK35*D19)/AM43,(AF160+AK35*D19)/AN43,(AF161+AK35*D19)/AO43)*AP43 -> 409.3333333 | BP70: 412.6666667 | BS70: =IF(AV24=1,AI24,IF(AV25=1,AI25,IF(AV26=1,AI26,IF(AV27=1,AI27,IF(AV28=1,AI28,IF(AV29=1,AI29,IF(AV31=1,AI31,BS83))))))) -> attente | BT70: =IF(AV16=1,AI16,IF(AV17=1,AI17,IF(AV18=1,AI18,IF(AV19=1,AI19,IF(AV20=1,AI20,IF(AV21=1,AI21,IF(AV22=1,AI22,IF(AV23=1,AI23,BS70)))))))) -> attente | BU70: =IF(AV24=1,AY72,IF(AV25=1,AY73,IF(AV26=1,AY74,IF(AV27=1,AY75,IF(AV28=1,AY76,IF(AV29=1,AY77,IF(AV31=1,AY78,0))))))) -> 0 | BV70: =IF(AV16=1,AY64,IF(AV17=1,AY65,IF(AV18=1,AY66,IF(AV19=1,AY67,IF(AV20=1,AY68,IF(AV21=1,AY69,IF(AV22=1,AY70,IF(AV23=1,AY71,BU70)))))))) -> 0 | BW70: =IF(AV8=1,AY56,IF(AV9=1,AY57,IF(AV10=1,AY58,IF(AV11=1,AY59,IF(AV12=1,AY60,IF(AV13=1,AY61,IF(AV14=1,AY62,IF(AV15=1,AY63,BV70)))))))) -> 367 | CA70: =IF($CA$17=$CE$16,CA75,IF($CA$17=$CE$17,CC75,IF($CA$17=$CE$18,CE75,erreur))) ->  | CB70: =IF($CA$17=$CE$16,CB75,IF($CA$17=$CE$17,CD75,IF($CA$17=$CE$18,CF75,erreur))) ->  | CH70: stats brutes de l'adversaire et de mon équippe avec bonus match (sauf 15% stratégie)
E71: 0.7266 | F71: 1.0899 | G71: 1.8165 | H71: 1.0899 | I71: 0.7266 | J71: 1.8165 | K71: 0.95365 | L71: 0.4087 | M71: 1.36235 | N71: 1.36235 | O71: 1.36235 | P71: 2.7247 | AJ71: france 11 | AK71: =MIN((S164+AJ35*D19)/AK42,(S165+AJ35*D19)/AL42,(S166+AJ35*D19)/AM42,(S167+AJ35*D19)/AN42,(S168+AJ35*D19)/AO42)*AP42 -> 316.5 | AL71: =MIN((T164+AJ35*D19)/AK42,(T165+AJ35*D19)/AL42,(T166+AJ35*D19)/AM42,(T167+AJ35*D19)/AN42,(T168+AJ35*D19)/AO42)*AP42 -> 302.5 | AM71: =MIN((U164+AJ35*D19)/AK42,(U165+AJ35*D19)/AL42,(U166+AJ35*D19)/AM42,(U167+AJ35*D19)/AN42,(U168+AJ35*D19)/AO42)*AP42 -> 276.5 | AN71: =MIN((V164+AJ35*D19)/AK42,(V165+AJ35*D19)/AL42,(V166+AJ35*D19)/AM42,(V167+AJ35*D19)/AN42,(V168+AJ35*D19)/AO42)*AP42 -> 299 | AO71: =MIN((W164+AJ35*D19)/AK42,(W165+AJ35*D19)/AL42,(W166+AJ35*D19)/AM42,(W167+AJ35*D19)/AN42,(W168+AJ35*D19)/AO42)*AP42 -> 276.5 | AP71: =MIN((X164+AJ35*D19)/AK42,(X165+AJ35*D19)/AL42,(X166+AJ35*D19)/AM42,(X167+AJ35*D19)/AN42,(X168+AJ35*D19)/AO42)*AP42 -> 304.5 | AQ71: =MIN((Y164+AJ35*D19)/AK42,(Y165+AJ35*D19)/AL42,(Y166+AJ35*D19)/AM42,(Y167+AJ35*D19)/AN42,(Y168+AJ35*D19)/AO42)*AP42 -> 307 | AR71: =MIN((Z164+AJ35*D19)/AK42,(Z165+AJ35*D19)/AL42,(Z166+AJ35*D19)/AM42,(Z167+AJ35*D19)/AN42,(Z168+AJ35*D19)/AO42)*AP42 -> 276.5 | AS71: =MIN((AA164+AJ35*D19)/AK42,(AA165+AJ35*D19)/AL42,(AA166+AJ35*D19)/AM42,(AA167+AJ35*D19)/AN42,(AA168+AJ35*D19)/AO42)*AP42 -> 307 | AT71: =MIN((AB164+AJ35*D19)/AK42,(AB165+AJ35*D19)/AL42,(AB166+AJ35*D19)/AM42,(AB167+AJ35*D19)/AN42,(AB168+AJ35*D19)/AO42)*AP42 -> 308.5 | AU71: =MIN((AC164+AJ35*D19)/AK42,(AC165+AJ35*D19)/AL42,(AC166+AJ35*D19)/AM42,(AC167+AJ35*D19)/AN42,(AC168+AJ35*D19)/AO42)*AP42 -> 310.5 | AV71: =MIN((AD164+AJ35*D19)/AK42,(AD165+AJ35*D19)/AL42,(AD166+AJ35*D19)/AM42,(AD167+AJ35*D19)/AN42,(AD168+AJ35*D19)/AO42)*AP42 -> 276.5 | AW71: =MIN((AE164+AJ35*D19)/AK42,(AE165+AJ35*D19)/AL42,(AE166+AJ35*D19)/AM42,(AE167+AJ35*D19)/AN42,(AE168+AJ35*D19)/AO42)*AP42 -> 310.5 | AX71: =MIN((AF164+AJ35*D19)/AK42,(AF165+AJ35*D19)/AL42,(AF166+AJ35*D19)/AM42,(AF167+AJ35*D19)/AN42,(AF168+AJ35*D19)/AO42)*AP42 -> 308.5 | AY71: 316.5 | BA71: france 11 | BB71: =MIN((S164+AK35*D19)/AK43,(S165+AK35*D19)/AL43,(S166+AK35*D19)/AM43,(S167+AK35*D19)/AN43,(S168+AK35*D19)/AO43)*AP43 -> 392.6666667 | BC71: =MIN((T164+AK35*D19)/AK43,(T165+AK35*D19)/AL43,(T166+AK35*D19)/AM43,(T167+AK35*D19)/AN43,(T168+AK35*D19)/AO43)*AP43 -> 422 | BD71: =MIN((U164+AK35*D19)/AK43,(U165+AK35*D19)/AL43,(U166+AK35*D19)/AM43,(U167+AK35*D19)/AN43,(U168+AK35*D19)/AO43)*AP43 -> 376 | BE71: =MIN((V164+AK35*D19)/AK43,(V165+AK35*D19)/AL43,(V166+AK35*D19)/AM43,(V167+AK35*D19)/AN43,(V168+AK35*D19)/AO43)*AP43 -> 418.6666667 | BF71: =MIN((W164+AK35*D19)/AK43,(W165+AK35*D19)/AL43,(W166+AK35*D19)/AM43,(W167+AK35*D19)/AN43,(W168+AK35*D19)/AO43)*AP43 -> 376 | BG71: =MIN((X164+AK35*D19)/AK43,(X165+AK35*D19)/AL43,(X166+AK35*D19)/AM43,(X167+AK35*D19)/AN43,(X168+AK35*D19)/AO43)*AP43 -> 413.3333333 | BH71: =MIN((Y164+AK35*D19)/AK43,(Y165+AK35*D19)/AL43,(Y166+AK35*D19)/AM43,(Y167+AK35*D19)/AN43,(Y168+AK35*D19)/AO43)*AP43 -> 416.6666667 | BI71: =MIN((Z164+AK35*D19)/AK43,(Z165+AK35*D19)/AL43,(Z166+AK35*D19)/AM43,(Z167+AK35*D19)/AN43,(Z168+AK35*D19)/AO43)*AP43 -> 376 | BJ71: =MIN((AA164+AK35*D19)/AK43,(AA165+AK35*D19)/AL43,(AA166+AK35*D19)/AM43,(AA167+AK35*D19)/AN43,(AA168+AK35*D19)/AO43)*AP43 -> 416.6666667 | BK71: =MIN((AB164+AK35*D19)/AK43,(AB165+AK35*D19)/AL43,(AB166+AK35*D19)/AM43,(AB167+AK35*D19)/AN43,(AB168+AK35*D19)/AO43)*AP43 -> 418.6666667 | BL71: =MIN((AC164+AK35*D19)/AK43,(AC165+AK35*D19)/AL43,(AC166+AK35*D19)/AM43,(AC167+AK35*D19)/AN43,(AC168+AK35*D19)/AO43)*AP43 -> 413.3333333 | BM71: =MIN((AD164+AK35*D19)/AK43,(AD165+AK35*D19)/AL43,(AD166+AK35*D19)/AM43,(AD167+AK35*D19)/AN43,(AD168+AK35*D19)/AO43)*AP43 -> 376 | BN71: =MIN((AE164+AK35*D19)/AK43,(AE165+AK35*D19)/AL43,(AE166+AK35*D19)/AM43,(AE167+AK35*D19)/AN43,(AE168+AK35*D19)/AO43)*AP43 -> 416 | BO71: =MIN((AF164+AK35*D19)/AK43,(AF165+AK35*D19)/AL43,(AF166+AK35*D19)/AM43,(AF167+AK35*D19)/AN43,(AF168+AK35*D19)/AO43)*AP43 -> 418.6666667 | BP71: 422 | BS71: =IF(AV24=2,AI24,IF(AV25=2,AI25,IF(AV26=2,AI26,IF(AV27=2,AI27,IF(AV28=2,AI28,IF(AV29=2,AI29,IF(AV31=2,AI31,BS83))))))) -> attente | BT71: =IF(AV16=2,AI16,IF(AV17=2,AI17,IF(AV18=2,AI18,IF(AV19=2,AI19,IF(AV20=2,AI20,IF(AV21=2,AI21,IF(AV22=2,AI22,IF(AV23=2,AI23,BS71)))))))) -> attente | BU71: =IF(AV24=2,BP72,IF(AV25=2,BP73,IF(AV26=2,BP74,IF(AV27=2,BP75,IF(AV28=2,BP76,IF(AV29=2,BP77,IF(AV31=2,BP78,0))))))) -> 0 | BV71: =IF(AV16=2,BP64,IF(AV17=2,BP65,IF(AV18=2,BP66,IF(AV19=2,BP67,IF(AV20=2,BP68,IF(AV21=2,BP69,IF(AV22=2,BP70,IF(AV23=2,BP71,BU71)))))))) -> 0 | BW71: =IF(AV8=2,BP56,IF(AV9=2,BP57,IF(AV10=2,BP58,IF(AV11=2,BP59,IF(AV12=2,BP60,IF(AV13=2,BP61,IF(AV14=2,BP62,IF(AV15=2,BP63,BV71)))))))) -> 458.6666667 | CJ71: 541 | CS71: 433 | DB71: 352 | DK71: 442
E72: 0.8174 | F72: 0.54495 | G72: 1.36235 | H72: 1.63485 | I72: 1.0899 | J72: 2.72475 | K72: 1.0899 | L72: 0.7266 | M72: 1.8165 | N72: 1.27155 | O72: 0.54495 | P72: 1.8165 | R72: =G13 -> 3 | S72: =S65 -> kit 1 | T72: =T65 -> kit 2/3 | U72: =U65 -> 0 | V72: =V65 -> kit 4 | W72: =W65 -> 0 | X72: kit 5 | Y72: kit 6/7 | Z72: 0 | AA72: 0 | AB72: kit 8 | AC72: kit 9 | AD72: 0 | AE72: =AE65 -> kit 10 | AF72: =AF65 -> kit 11 | AJ72: france 2 | AK72: =MIN((S171+AJ35*D19)/AK42,(S172+AJ35*D19)/AL42,(S173+AJ35*D19)/AM42,(S174+AJ35*D19)/AN42,(S175+AJ35*D19)/AO42)*AP42 -> 262 | AL72: =MIN((T171+AJ35*D19)/AK42,(T172+AJ35*D19)/AL42,(T173+AJ35*D19)/AM42,(T174+AJ35*D19)/AN42,(T175+AJ35*D19)/AO42)*AP42 -> 248 | AM72: =MIN((U171+AJ35*D19)/AK42,(U172+AJ35*D19)/AL42,(U173+AJ35*D19)/AM42,(U174+AJ35*D19)/AN42,(U175+AJ35*D19)/AO42)*AP42 -> 222 | AN72: =MIN((V171+AJ35*D19)/AK42,(V172+AJ35*D19)/AL42,(V173+AJ35*D19)/AM42,(V174+AJ35*D19)/AN42,(V175+AJ35*D19)/AO42)*AP42 -> 244.5 | AO72: =MIN((W171+AJ35*D19)/AK42,(W172+AJ35*D19)/AL42,(W173+AJ35*D19)/AM42,(W174+AJ35*D19)/AN42,(W175+AJ35*D19)/AO42)*AP42 -> 222 | AP72: =MIN((X171+AJ35*D19)/AK42,(X172+AJ35*D19)/AL42,(X173+AJ35*D19)/AM42,(X174+AJ35*D19)/AN42,(X175+AJ35*D19)/AO42)*AP42 -> 250 | AQ72: =MIN((Y171+AJ35*D19)/AK42,(Y172+AJ35*D19)/AL42,(Y173+AJ35*D19)/AM42,(Y174+AJ35*D19)/AN42,(Y175+AJ35*D19)/AO42)*AP42 -> 252.5 | AR72: =MIN((Z171+AJ35*D19)/AK42,(Z172+AJ35*D19)/AL42,(Z173+AJ35*D19)/AM42,(Z174+AJ35*D19)/AN42,(Z175+AJ35*D19)/AO42)*AP42 -> 222 | AS72: =MIN((AA171+AJ35*D19)/AK42,(AA172+AJ35*D19)/AL42,(AA173+AJ35*D19)/AM42,(AA174+AJ35*D19)/AN42,(AA175+AJ35*D19)/AO42)*AP42 -> 252.5 | AT72: =MIN((AB171+AJ35*D19)/AK42,(AB172+AJ35*D19)/AL42,(AB173+AJ35*D19)/AM42,(AB174+AJ35*D19)/AN42,(AB175+AJ35*D19)/AO42)*AP42 -> 254 | AU72: =MIN((AC171+AJ35*D19)/AK42,(AC172+AJ35*D19)/AL42,(AC173+AJ35*D19)/AM42,(AC174+AJ35*D19)/AN42,(AC175+AJ35*D19)/AO42)*AP42 -> 256 | AV72: =MIN((AD171+AJ35*D19)/AK42,(AD172+AJ35*D19)/AL42,(AD173+AJ35*D19)/AM42,(AD174+AJ35*D19)/AN42,(AD175+AJ35*D19)/AO42)*AP42 -> 222 | AW72: =MIN((AE171+AJ35*D19)/AK42,(AE172+AJ35*D19)/AL42,(AE173+AJ35*D19)/AM42,(AE174+AJ35*D19)/AN42,(AE175+AJ35*D19)/AO42)*AP42 -> 256 | AX72: =MIN((AF171+AJ35*D19)/AK42,(AF172+AJ35*D19)/AL42,(AF173+AJ35*D19)/AM42,(AF174+AJ35*D19)/AN42,(AF175+AJ35*D19)/AO42)*AP42 -> 254 | AY72: 262 | BA72: france 2 | BB72: =MIN((S171+AK35*D19)/AK43,(S172+AK35*D19)/AL43,(S173+AK35*D19)/AM43,(S174+AK35*D19)/AN43,(S175+AK35*D19)/AO43)*AP43 -> 402.6666667 | BC72: =MIN((T171+AK35*D19)/AK43,(T172+AK35*D19)/AL43,(T173+AK35*D19)/AM43,(T174+AK35*D19)/AN43,(T175+AK35*D19)/AO43)*AP43 -> 432 | BD72: =MIN((U171+AK35*D19)/AK43,(U172+AK35*D19)/AL43,(U173+AK35*D19)/AM43,(U174+AK35*D19)/AN43,(U175+AK35*D19)/AO43)*AP43 -> 386 | BE72: =MIN((V171+AK35*D19)/AK43,(V172+AK35*D19)/AL43,(V173+AK35*D19)/AM43,(V174+AK35*D19)/AN43,(V175+AK35*D19)/AO43)*AP43 -> 428.6666667 | BF72: =MIN((W171+AK35*D19)/AK43,(W172+AK35*D19)/AL43,(W173+AK35*D19)/AM43,(W174+AK35*D19)/AN43,(W175+AK35*D19)/AO43)*AP43 -> 386 | BG72: =MIN((X171+AK35*D19)/AK43,(X172+AK35*D19)/AL43,(X173+AK35*D19)/AM43,(X174+AK35*D19)/AN43,(X175+AK35*D19)/AO43)*AP43 -> 423.3333333 | BH72: =MIN((Y171+AK35*D19)/AK43,(Y172+AK35*D19)/AL43,(Y173+AK35*D19)/AM43,(Y174+AK35*D19)/AN43,(Y175+AK35*D19)/AO43)*AP43 -> 426.6666667 | BI72: =MIN((Z171+AK35*D19)/AK43,(Z172+AK35*D19)/AL43,(Z173+AK35*D19)/AM43,(Z174+AK35*D19)/AN43,(Z175+AK35*D19)/AO43)*AP43 -> 386 | BJ72: =MIN((AA171+AK35*D19)/AK43,(AA172+AK35*D19)/AL43,(AA173+AK35*D19)/AM43,(AA174+AK35*D19)/AN43,(AA175+AK35*D19)/AO43)*AP43 -> 426.6666667 | BK72: =MIN((AB171+AK35*D19)/AK43,(AB172+AK35*D19)/AL43,(AB173+AK35*D19)/AM43,(AB174+AK35*D19)/AN43,(AB175+AK35*D19)/AO43)*AP43 -> 428.6666667 | BL72: =MIN((AC171+AK35*D19)/AK43,(AC172+AK35*D19)/AL43,(AC173+AK35*D19)/AM43,(AC174+AK35*D19)/AN43,(AC175+AK35*D19)/AO43)*AP43 -> 423.3333333 | BM72: =MIN((AD171+AK35*D19)/AK43,(AD172+AK35*D19)/AL43,(AD173+AK35*D19)/AM43,(AD174+AK35*D19)/AN43,(AD175+AK35*D19)/AO43)*AP43 -> 386 | BN72: =MIN((AE171+AK35*D19)/AK43,(AE172+AK35*D19)/AL43,(AE173+AK35*D19)/AM43,(AE174+AK35*D19)/AN43,(AE175+AK35*D19)/AO43)*AP43 -> 426 | BO72: =MIN((AF171+AK35*D19)/AK43,(AF172+AK35*D19)/AL43,(AF173+AK35*D19)/AM43,(AF174+AK35*D19)/AN43,(AF175+AK35*D19)/AO43)*AP43 -> 428.6666667 | BP72: 432 | BS72: =IF(AV24=3,AI24,IF(AV25=3,AI25,IF(AV26=3,AI26,IF(AV27=3,AI27,IF(AV28=3,AI28,IF(AV29=3,AI29,IF(AV31=3,AI31,BS83))))))) -> attente | BT72: =IF(AV16=3,AI16,IF(AV17=3,AI17,IF(AV18=3,AI18,IF(AV19=3,AI19,IF(AV20=3,AI20,IF(AV21=3,AI21,IF(AV22=3,AI22,IF(AV23=3,AI23,BS72)))))))) -> attente | BU72: =IF(AV24=3,AY99,IF(AV25=3,AY100,IF(AV26=3,AY101,IF(AV27=3,AY102,IF(AV28=3,AY103,IF(AV29=3,AY104,IF(AV31=3,AY105,0))))))) -> 0 | BV72: =IF(AV16=3,AY91,IF(AV17=3,AY92,IF(AV18=3,AY93,IF(AV19=3,AY94,IF(AV20=3,AY95,IF(AV21=3,AY96,IF(AV22=3,AY97,IF(AV23=3,AY98,BU72)))))))) -> 0 | BW72: =IF(AV8=3,AY83,IF(AV9=3,AY84,IF(AV10=3,AY85,IF(AV11=3,AY86,IF(AV12=3,AY87,IF(AV13=3,AY88,IF(AV14=3,AY89,IF(AV15=3,AY90,BV72)))))))) -> 445.3333333 | CA72: =IF(CA15=1,541,IF(CA15=2,433,IF(CA15=3,352,IF(CA15=4,442,"erreur")))) -> 433 | CJ72: defensif | CM72: neutre | CP72: offensif | CS72: defensif | CV72: neutre | CY72: offensif | DB72: defensif | DE72: neutre | DH72: offensif | DK72: defensif | DN72: neutre | DQ72: offensif
D73: total : | E73: =SUM(E62:E72) -> 5.95795 | F73: 14.0233 | G73: =SUM(G62:G72) -> 19.98125 | H73: =SUM(H62:H72) -> 10.0418 | I73: =SUM(I62:I72) -> 9.93395 | J73: =SUM(J62:J72) -> 19.97575 | K73: =SUM(K62:K72) -> 8.0015 | L73: 11.9797 | M73: =SUM(M62:M72) -> 19.9812 | N73: =SUM(N62:N72) -> 7.9561 | O73: 12.0251 | P73: =SUM(P62:P72) -> 19.9812 | R73: =H13+AH39+D16+D17+D21+D19*AG10 -> 604 | S73: =R73+Q10 -> 645 | T73: =R73+R10 -> 673 | U73: =R73+S10 -> 604 | V73: =R73+T10 -> 677 | W73: =R73+U10 -> 604 | X73: =R73+V10 -> 674 | Y73: =R73+W10 -> 665 | Z73: =R73+X10 -> 604 | AA73: =R73+Y10 -> 665 | AB73: =R73+Z10 -> 660 | AC73: =R73+AA10 -> 665 | AD73: =R73+AB10 -> 604 | AE73: =R73+AC10 -> 650 | AF73: =R73+AD10 -> 655 | AJ73: italie 7 | AK73: =MIN((S178+$AJ$35*$D$19)/$AK$42,(S179+$AJ$35*$D$19)/$AL$42,(S180+$AJ$35*$D$19)/$AM$42,(S181+$AJ$35*$D$19)/$AN$42,(S182+$AJ$35*$D$19)/$AO$42)*$AP$42 -> 328.5 | AL73: 314.5 | AM73: 288.5 | AN73: 311 | AO73: 288.5 | AP73: 316.5 | AQ73: 319 | AR73: 288.5 | AS73: 319 | AT73: 320.5 | AU73: 322.5 | AV73: 288.5 | AW73: 322.5 | AX73: 320.5 | AY73: 328.5 | BA73: italie 7 | BB73: =MIN((S178+$AK$35*$D$19)/$AK$43,(S179+$AK$35*$D$19)/$AL$43,(S180+$AK$35*$D$19)/$AM$43,(S181+$AK$35*$D$19)/$AN$43,(S182+$AK$35*$D$19)/$AO$43)*$AP$43 -> 379.3333333 | BC73: =MIN((T178+AK35*D19)/AK43,(T179+AK35*D19)/AL43,(T180+AK35*D19)/AM43,(T181+AK35*D19)/AN43,(T182+AK35*D19)/AO43)*AP43 -> 408.6666667 | BD73: =MIN((U178+AK35*D19)/AK43,(U179+AK35*D19)/AL43,(U180+AK35*D19)/AM43,(U181+AK35*D19)/AN43,(U182+AK35*D19)/AO43)*AP43 -> 362.6666667 | BE73: =MIN((V178+AK35*D19)/AK43,(V179+AK35*D19)/AL43,(V180+AK35*D19)/AM43,(V181+AK35*D19)/AN43,(V182+AK35*D19)/AO43)*AP43 -> 405.3333333 | BF73: =MIN((W178+AK35*D19)/AK43,(W179+AK35*D19)/AL43,(W180+AK35*D19)/AM43,(W181+AK35*D19)/AN43,(W182+AK35*D19)/AO43)*AP43 -> 362.6666667 | BG73: =MIN((X178+AK35*D19)/AK43,(X179+AK35*D19)/AL43,(X180+AK35*D19)/AM43,(X181+AK35*D19)/AN43,(X182+AK35*D19)/AO43)*AP43 -> 400 | BH73: =MIN((Y178+AK35*D19)/AK43,(Y179+AK35*D19)/AL43,(Y180+AK35*D19)/AM43,(Y181+AK35*D19)/AN43,(Y182+AK35*D19)/AO43)*AP43 -> 403.3333333 | BI73: =MIN((Z178+AK35*D19)/AK43,(Z179+AK35*D19)/AL43,(Z180+AK35*D19)/AM43,(Z181+AK35*D19)/AN43,(Z182+AK35*D19)/AO43)*AP43 -> 362.6666667 | BJ73: =MIN((AA178+AK35*D19)/AK43,(AA179+AK35*D19)/AL43,(AA180+AK35*D19)/AM43,(AA181+AK35*D19)/AN43,(AA182+AK35*D19)/AO43)*AP43 -> 403.3333333 | BK73: =MIN((AB178+AK35*D19)/AK43,(AB179+AK35*D19)/AL43,(AB180+AK35*D19)/AM43,(AB181+AK35*D19)/AN43,(AB182+AK35*D19)/AO43)*AP43 -> 405.3333333 | BL73: =MIN((AC178+AK35*D19)/AK43,(AC179+AK35*D19)/AL43,(AC180+AK35*D19)/AM43,(AC181+AK35*D19)/AN43,(AC182+AK35*D19)/AO43)*AP43 -> 400 | BM73: =MIN((AD178+AK35*D19)/AK43,(AD179+AK35*D19)/AL43,(AD180+AK35*D19)/AM43,(AD181+AK35*D19)/AN43,(AD182+AK35*D19)/AO43)*AP43 -> 362.6666667 | BN73: =MIN((AE178+AK35*D19)/AK43,(AE179+AK35*D19)/AL43,(AE180+AK35*D19)/AM43,(AE181+AK35*D19)/AN43,(AE182+AK35*D19)/AO43)*AP43 -> 402.6666667 | BO73: =MIN((AF178+AK35*D19)/AK43,(AF179+AK35*D19)/AL43,(AF180+AK35*D19)/AM43,(AF181+AK35*D19)/AN43,(AF182+AK35*D19)/AO43)*AP43 -> 405.3333333 | BP73: 408.6666667 | BS73: =IF(AV24=4,AI24,IF(AV25=4,AI25,IF(AV26=4,AI26,IF(AV27=4,AI27,IF(AV28=4,AI28,IF(AV29=4,AI29,IF(AV31=4,AI31,BS83))))))) -> attente | BT73: =IF(AV16=4,AI16,IF(AV17=4,AI17,IF(AV18=4,AI18,IF(AV19=4,AI19,IF(AV20=4,AI20,IF(AV21=4,AI21,IF(AV22=4,AI22,IF(AV23=4,AI23,BS73)))))))) -> attente | BU73: =IF(AV24=4,BP99,IF(AV25=4,BP100,IF(AV26=4,BP101,IF(AV27=4,BP102,IF(AV28=4,BP103,IF(AV29=4,BP104,IF(AV31=4,BP105,0))))))) -> 0 | BV73: =IF(AV16=4,BP91,IF(AV17=4,BP92,IF(AV18=4,BP93,IF(AV19=4,BP94,IF(AV20=4,BP95,IF(AV21=4,BP96,IF(AV22=4,BP97,IF(AV23=4,BP98,BU73)))))))) -> 0 | BW73: =IF(AV8=4,BP83,IF(AV9=4,BP84,IF(AV10=4,BP85,IF(AV11=4,BP86,IF(AV12=4,BP87,IF(AV13=4,BP88,IF(AV14=4,BP89,IF(AV15=4,BP90,BV73)))))))) -> 466 | CA73: defensif | CC73: neutre | CE73: offensif | CJ73: att | CK73: def | CL73: tot | CM73: att | CN73: def | CO73: tot | CP73: att | CQ73: def | CR73: tot | CS73: att | CT73: def | CU73: tot | CV73: att | CW73: def | CX73: tot | CY73: att | CZ73: def | DA73: tot | DB73: att | DC73: def | DD73: tot | DE73: att | DF73: def | DG73: tot | DH73: att | DI73: def | DJ73: tot | DK73: att | DL73: def | DM73: tot | DN73: att | DO73: def | DP73: tot | DQ73: att | DR73: def | DS73: tot
E74: 541 neutre | H74: 433 neutre | K74: 352 neutre | N74: 442 neutre | R74: =I13+AH40+D15+D17+D21+D19*AG10 -> 435 | S74: =R74+Q11 -> 515 | T74: =R74+R11 -> 487 | U74: =R74+S11 -> 435 | V74: =R74+T11 -> 480 | W74: =R74+U11 -> 435 | X74: =R74+V11 -> 491 | Y74: =R74+W11 -> 496 | Z74: =R74+X11 -> 435 | AA74: =R74+Y11 -> 496 | AB74: =R74+Z11 -> 499 | AC74: =R74+AA11 -> 503 | AD74: =R74+AB11 -> 435 | AE74: =R74+AC11 -> 503 | AF74: =R74+AD11 -> 499 | AJ74: japon 5 | AK74: =MIN((S185+$AJ$35*$D$19)/$AK$42,(S186+$AJ$35*$D$19)/$AL$42,(S187+$AJ$35*$D$19)/$AM$42,(S188+$AJ$35*$D$19)/$AN$42,(S189+$AJ$35*$D$19)/$AO$42)*$AP$42 -> 276.5 | AL74: 262.5 | AM74: 236.5 | AN74: 259 | AO74: 236.5 | AP74: 264.5 | AQ74: 267 | AR74: 236.5 | AS74: 267 | AT74: 268.5 | AU74: 270.5 | AV74: 236.5 | AW74: 270.5 | AX74: 268.5 | AY74: 276.5 | BA74: japon 5 | BB74: =MIN((S185+$AK$35*$D$19)/$AK$43,(S186+$AK$35*$D$19)/$AL$43,(S187+$AK$35*$D$19)/$AM$43,(S188+$AK$35*$D$19)/$AN$43,(S189+$AK$35*$D$19)/$AO$43)*$AP$43 -> 310 | BC74: 339.3333333 | BD74: 293.3333333 | BE74: 336 | BF74: 293.3333333 | BG74: 330.6666667 | BH74: 334 | BI74: 293.3333333 | BJ74: 334 | BK74: 336 | BL74: 330.6666667 | BM74: 293.3333333 | BN74: 333.3333333 | BO74: 336 | BP74: 339.3333333 | BS74: =IF(AV24=5,AI24,IF(AV25=5,AI25,IF(AV26=5,AI26,IF(AV27=5,AI27,IF(AV28=5,AI28,IF(AV29=5,AI29,IF(AV31=5,AI31,BS83))))))) -> attente | BT74: =IF(AV16=5,AI16,IF(AV17=5,AI17,IF(AV18=5,AI18,IF(AV19=5,AI19,IF(AV20=5,AI20,IF(AV21=5,AI21,IF(AV22=5,AI22,IF(AV23=5,AI23,BS74)))))))) -> attente | BU74: =IF(AV24=5,AY126,IF(AV25=5,AY127,IF(AV26=5,AY128,IF(AV27=5,AY129,IF(AV28=5,AY130,IF(AV29=5,AY131,IF(AV31=5,AY132,0))))))) -> 0 | BV74: =IF(AV16=5,AY118,IF(AV17=5,AY119,IF(AV18=5,AY120,IF(AV19=5,AY121,IF(AV20=5,AY122,IF(AV21=5,AY123,IF(AV22=5,AY124,IF(AV23=5,AY125,BU74)))))))) -> 0 | BW74: =IF(AV8=5,AY110,IF(AV9=5,AY111,IF(AV10=5,AY112,IF(AV11=5,AY113,IF(AV12=5,AY114,IF(AV13=5,AY115,IF(AV14=5,AY116,IF(AV15=5,AY117,BV74)))))))) -> 662 | CA74: att | CB74: def | CC74: att | CD74: def | CE74: att | CF74: def | CH74: adversaire | CJ74: =ROUND(CG69*(100+$BU$13)/100*($BU$14+100)/100*(100+$BU$15)/100*(100+$BU$16)/100*($BU$17+100)/100*(100+$BU$18)/100,2) -> 
E75: 1% attaque | F75: 1% defense | G75: 1% cumulé | H75: 1% attaque | I75: 1% defense | J75: 1% cumulé | K75: 1% attaque | L75: 1% defense | M75: 1% cumulé | N75: 1% attaque | O75: 1% defense | P75: 1% cumulé | R75: =J13+AH41+D15+D17+D21+D19*AG10 -> 503 | S75: =R75+Q12 -> 544 | T75: =R75+R12 -> 563 | U75: =R75+S12 -> 503 | V75: =R75+T12 -> 576 | W75: =R75+U12 -> 503 | X75: =R75+V12 -> 559 | Y75: =R75+W12 -> 564 | Z75: =R75+X12 -> 503 | AA75: =R75+Y12 -> 564 | AB75: =R75+Z12 -> 567 | AC75: =R75+AA12 -> 571 | AD75: =R75+AB12 -> 503 | AE75: =R75+AC12 -> 556 | AF75: =R75+AD12 -> 574 | AJ75: nigeria 4 | AK75: =MIN((S192+$AJ$35*$D$19)/$AK$42,(S193+$AJ$35*$D$19)/$AL$42,(S194+$AJ$35*$D$19)/$AM$42,(S195+$AJ$35*$D$19)/$AN$42,(S196+$AJ$35*$D$19)/$AO$42)*$AP$42 -> 221 | AL75: 207 | AM75: 181 | AN75: 203.5 | AO75: 181 | AP75: 209 | AQ75: 211.5 | AR75: 181 | AS75: 211.5 | AT75: 213 | AU75: 215 | AV75: 181 | AW75: 215 | AX75: 213 | AY75: 221 | BA75: nigeria 4 | BB75: =MIN((S192+$AK$35*$D$19)/$AK$43,(S193+$AK$35*$D$19)/$AL$43,(S194+$AK$35*$D$19)/$AM$43,(S195+$AK$35*$D$19)/$AN$43,(S196+$AK$35*$D$19)/$AO$43)*$AP$43 -> 320.6666667 | BC75: 350 | BD75: 304 | BE75: 346.6666667 | BF75: 304 | BG75: 341.3333333 | BH75: 344.6666667 | BI75: 304 | BJ75: 344.6666667 | BK75: 346.6666667 | BL75: 341.3333333 | BM75: 304 | BN75: 344 | BO75: 346.6666667 | BP75: 350 | BS75: =IF(AV24=6,AI24,IF(AV25=6,AI25,IF(AV26=6,AI26,IF(AV27=6,AI27,IF(AV28=6,AI28,IF(AV29=6,AI29,IF(AV31=6,AI31,BS83))))))) -> attente | BT75: =IF(AV16=6,AI16,IF(AV17=6,AI17,IF(AV18=6,AI18,IF(AV19=6,AI19,IF(AV20=6,AI20,IF(AV21=6,AI21,IF(AV22=6,AI22,IF(AV23=6,AI23,BS75)))))))) -> attente | BU75: =IF(AV24=6,BP126,IF(AV25=6,BP127,IF(AV26=6,BP128,IF(AV27=6,BP129,IF(AV28=6,BP130,IF(AV29=6,BP131,IF(AV31=6,BP132,0))))))) -> 0 | BV75: =IF(AV16=6,BP118,IF(AV17=6,BP119,IF(AV18=6,BP120,IF(AV19=6,BP121,IF(AV20=6,BP122,IF(AV21=6,BP123,IF(AV22=6,BP124,IF(AV23=6,BP125,BU75)))))))) -> 0 | BW75: =IF(AV8=6,BP110,IF(AV9=6,BP111,IF(AV10=6,BP112,IF(AV11=6,BP113,IF(AV12=6,BP114,IF(AV13=6,BP115,IF(AV14=6,BP116,IF(AV15=6,BP117,BV75)))))))) -> 499.2 | CA75: =IF($CA$15=1,CG69,IF($CA$15=2,CP69,IF($CA$15=3,CY69,IF($CA$15=4,DH69,erreur)))) ->  | CB75: =IF($CA$15=1,CH69,IF($CA$15=2,CQ69,IF($CA$15=3,CZ69,IF($CA$15=4,DI69,erreur)))) ->  | CC75: =IF($CA$15=1,CJ69,IF($CA$15=2,CS69,IF($CA$15=3,DB69,IF($CA$15=4,DK69,erreur)))) ->  | CD75: =IF($CA$15=1,CK69,IF($CA$15=2,CT69,IF($CA$15=3,DC69,IF($CA$15=4,DL69,erreur)))) ->  | CE75: =IF($CA$15=1,CM69,IF($CA$15=2,CV69,IF($CA$15=3,DE69,IF($CA$15=4,DN69,erreur)))) ->  | CF75: =IF($CA$15=1,CN69,IF($CA$15=2,CW69,IF($CA$15=3,DF69,IF($CA$15=4,DO69,erreur)))) ->  | CH75: mon équipe | CJ75: =ROUND(CH91*(100+$BN$13)/100*(100+$BN$14)/100*(100+$BN$15)/100*(100+$BN$16)/100*($BN$17+100)/100*(100+$BN$18)/100,2) -> 
E76: 0.05445 | F76: 2.67025 | G76: =E76+F76 -> 2.7247 | H76: 0.16345 | I76: 2.5613 | J76: =H76+I76 -> 2.72475 | K76: 0.05445 | L76: 2.67025 | M76: =K76+L76 -> 2.7247 | N76: 0.05445 | O76: 2.67025 | P76: =N76+O76 -> 2.7247 | R76: =K13+AH42+D16+D17+D21+D19*AG10 -> 599 | S76: =R76+Q13 -> 624 | T76: =R76+R13 -> 668 | U76: =R76+S13 -> 599 | V76: =R76+T13 -> 663 | W76: =R76+U13 -> 599 | X76: =R76+V13 -> 655 | Y76: =R76+W13 -> 660 | Z76: =R76+X13 -> 599 | AA76: =R76+Y13 -> 660 | AB76: =R76+Z13 -> 663 | AC76: =R76+AA13 -> 655 | AD76: =R76+AB13 -> 599 | AE76: =R76+AC13 -> 659 | AF76: =R76+AD13 -> 663 | AJ76: slovaquie 7 | AK76: =MIN((S199+$AJ$35*$D$19)/$AK$42,(S200+$AJ$35*$D$19)/$AL$42,(S201+$AJ$35*$D$19)/$AM$42,(S202+$AJ$35*$D$19)/$AN$42,(S203+$AJ$35*$D$19)/$AO$42)*$AP$42 -> 291.5 | AL76: 277.5 | AM76: 251.5 | AN76: 274 | AO76: 251.5 | AP76: 279.5 | AQ76: 282 | AR76: 251.5 | AS76: 282 | AT76: 283.5 | AU76: 285.5 | AV76: 251.5 | AW76: 285.5 | AX76: 283.5 | AY76: 291.5 | BA76: slovaquie 7 | BB76: =MIN((S199+$AK$35*$D$19)/$AK$43,(S200+$AK$35*$D$19)/$AL$43,(S201+$AK$35*$D$19)/$AM$43,(S202+$AK$35*$D$19)/$AN$43,(S203+$AK$35*$D$19)/$AO$43)*$AP$43 -> 320 | BC76: 349.3333333 | BD76: 303.3333333 | BE76: 346 | BF76: 303.3333333 | BG76: 340.6666667 | BH76: 344 | BI76: 303.3333333 | BJ76: 344 | BK76: 346 | BL76: 340.6666667 | BM76: 303.3333333 | BN76: 343.3333333 | BO76: 346 | BP76: 349.3333333 | BS76: =IF(AV24=7,AI24,IF(AV25=7,AI25,IF(AV26=7,AI26,IF(AV27=7,AI27,IF(AV28=7,AI28,IF(AV29=7,AI29,IF(AV31=7,AI31,BS83))))))) -> attente | BT76: =IF(AV16=7,AI16,IF(AV17=7,AI17,IF(AV18=7,AI18,IF(AV19=7,AI19,IF(AV20=7,AI20,IF(AV21=7,AI21,IF(AV22=7,AI22,IF(AV23=7,AI23,BS76)))))))) -> attente | BU76: =IF(AV24=7,AY153,IF(AV25=7,AY154,IF(AV26=7,AY155,IF(AV27=7,AY156,IF(AV28=7,AY157,IF(AV29=7,AY158,IF(AV31=7,AY159,0))))))) -> 0 | BV76: =IF(AV16=7,AY145,IF(AV17=7,AY146,IF(AV18=7,AY147,IF(AV19=7,AY148,IF(AV20=7,AY149,IF(AV21=7,AY150,IF(AV22=7,AY151,IF(AV23=7,AY152,BU76)))))))) -> 0 | BW76: =IF(AV8=7,AY137,IF(AV9=7,AY138,IF(AV10=7,AY139,IF(AV11=7,AY140,IF(AV12=7,AY141,IF(AV13=7,AY142,IF(AV14=7,AY143,IF(AV15=7,AY144,BV76)))))))) -> 503.2 | CG76: stats brutes joueurs mon equipe par position sans bonus match
E77: 0.4087 | F77: 0.95365 | G77: =E77+F77 -> 1.36235 | H77: 0.8174 | I77: 0.54495 | J77: 1.36235 | K77: 1.1353 | L77: 1.1353 | M77: =K77+L77 -> 2.2706 | N77: 0.54495 | O77: 0.8174 | P77: =N77+O77 -> 1.36235 | R77: =L13+AH43+D15+D17+D21+D19*AG10 -> 408 | S77: =R77+Q14 -> 464 | T77: =R77+R14 -> 460 | U77: =R77+S14 -> 408 | V77: =R77+T14 -> 453 | W77: =R77+U14 -> 408 | X77: =R77+V14 -> 464 | Y77: =R77+W14 -> 461 | Z77: =R77+X14 -> 408 | AA77: =R77+Y14 -> 461 | AB77: =R77+Z14 -> 456 | AC77: =R77+AA14 -> 457 | AD77: =R77+AB14 -> 408 | AE77: =R77+AC14 -> 468 | AF77: =R77+AD14 -> 452 | AJ77: =AJ212 -> slovaquie 7 bis | AK77: =MIN((S206+$AJ$35*$D$19)/$AK$42,(S207+$AJ$35*$D$19)/$AL$42,(S208+$AJ$35*$D$19)/$AM$42,(S209+$AJ$35*$D$19)/$AN$42,(S210+$AJ$35*$D$19)/$AO$42)*$AP$42 -> 322.5 | AL77: 308.5 | AM77: 282.5 | AN77: 305 | AO77: 282.5 | AP77: 310.5 | AQ77: 313 | AR77: 282.5 | AS77: 313 | AT77: 314.5 | AU77: 316.5 | AV77: 282.5 | AW77: 316.5 | AX77: 314.5 | AY77: 322.5 | BA77: =AJ212 -> slovaquie 7 bis | BB77: =MIN((S206+$AK$35*$D$19)/$AK$43,(S207+$AK$35*$D$19)/$AL$43,(S208+$AK$35*$D$19)/$AM$43,(S209+$AK$35*$D$19)/$AN$43,(S210+$AK$35*$D$19)/$AO$43)*$AP$43 -> 390.6666667 | BC77: 420 | BD77: 374 | BE77: 416.6666667 | BF77: 374 | BG77: 411.3333333 | BH77: 414.6666667 | BI77: 374 | BJ77: 414.6666667 | BK77: 416.6666667 | BL77: 411.3333333 | BM77: 374 | BN77: 414 | BO77: 416.6666667 | BP77: 420 | BS77: =IF(AV24=8,AI24,IF(AV25=8,AI25,IF(AV26=8,AI26,IF(AV27=8,AI27,IF(AV28=8,AI28,IF(AV29=8,AI29,IF(AV31=8,AI31,BS83))))))) -> attente | BT77: =IF(AV16=8,AI16,IF(AV17=8,AI17,IF(AV18=8,AI18,IF(AV19=8,AI19,IF(AV20=8,AI20,IF(AV21=8,AI21,IF(AV22=8,AI22,IF(AV23=8,AI23,BS77)))))))) -> attente | BU77: =IF(AV24=8,BP153,IF(AV25=8,BP154,IF(AV26=8,BP155,IF(AV27=8,BP156,IF(AV28=8,BP157,IF(AV29=8,BP158,IF(AV31=8,BP159,0))))))) -> 0 | BV77: =IF(AV16=8,BP145,IF(AV17=8,BP146,IF(AV18=8,BP147,IF(AV19=8,BP148,IF(AV20=8,BP149,IF(AV21=8,BP150,IF(AV22=8,BP151,IF(AV23=8,BP152,BU77)))))))) -> 0 | BW77: =IF(AV8=8,BP137,IF(AV9=8,BP138,IF(AV10=8,BP139,IF(AV11=8,BP140,IF(AV12=8,BP141,IF(AV13=8,BP142,IF(AV14=8,BP143,IF(AV15=8,BP144,BV77)))))))) -> 430 | CH77: 541 | CQ77: 433 | CZ77: 352 | DI77: 442
E78: 0.4087 | F78: 0.95365 | G78: 1.36235 | H78: 0.8174 | I78: 0.54495 | J78: 1.36235 | K78: 1.1353 | L78: 1.1353 | M78: 2.2706 | N78: 0.54495 | O78: 0.8174 | P78: 1.36235 | AJ78: =AJ213 -> 0 | AK78: =MIN((S213+$AJ$35*$D$19)/$AK$42,(S214+$AJ$35*$D$19)/$AL$42,(S215+$AJ$35*$D$19)/$AM$42,(S216+$AJ$35*$D$19)/$AN$42,(S217+$AJ$35*$D$19)/$AO$42)*$AP$42 -> 108 | AL78: 94 | AM78: 68 | AN78: 90.5 | AO78: 68 | AP78: 96 | AQ78: 98.5 | AR78: 68 | AS78: 98.5 | AT78: 100 | AU78: 102 | AV78: 68 | AW78: 102 | AX78: 100 | AY78: 108 | BA78: 0 | BB78: =MIN((S213+$AK$35*$D$19)/$AK$43,(S214+$AK$35*$D$19)/$AL$43,(S215+$AK$35*$D$19)/$AM$43,(S216+$AK$35*$D$19)/$AN$43,(S217+$AK$35*$D$19)/$AO$43)*$AP$43 -> 97.33333333 | BC78: 126.6666667 | BD78: 80.66666667 | BE78: 123.3333333 | BF78: 80.66666667 | BG78: 118 | BH78: 121.3333333 | BI78: 80.66666667 | BJ78: 121.3333333 | BK78: 123.3333333 | BL78: 118 | BM78: 80.66666667 | BN78: 120.6666667 | BO78: 123.3333333 | BP78: 126.6666667 | BS78: =IF(AV24=9,AI24,IF(AV25=9,AI25,IF(AV26=9,AI26,IF(AV27=9,AI27,IF(AV28=9,AI28,IF(AV29=9,AI29,IF(AV31=9,AI31,BS83))))))) -> attente | BT78: =IF(AV16=9,AI16,IF(AV17=9,AI17,IF(AV18=9,AI18,IF(AV19=9,AI19,IF(AV20=9,AI20,IF(AV21=9,AI21,IF(AV22=9,AI22,IF(AV23=9,AI23,BS78)))))))) -> grece 9 | BU78: =IF(AV24=9,AY180,IF(AV25=9,AY181,IF(AV26=9,AY182,IF(AV27=9,AY183,IF(AV28=9,AY184,IF(AV29=9,AY185,IF(AV31=9,AY186,0))))))) -> 0 | BV78: =IF(AV16=9,AY172,IF(AV17=9,AY173,IF(AV18=9,AY174,IF(AV19=9,AY175,IF(AV20=9,AY176,IF(AV21=9,AY177,IF(AV22=9,AY178,IF(AV23=9,AY179,BU78)))))))) -> 334.2857143 | BW78: =IF(AV8=9,AY164,IF(AV9=9,AY165,IF(AV10=9,AY166,IF(AV11=9,AY167,IF(AV12=9,AY168,IF(AV13=9,AY169,IF(AV14=9,AY170,IF(AV15=9,AY171,BV78)))))))) -> 334.2857143 | CH78: defensif | CK78: neutre | CN78: offensif | CQ78: defensif | CT78: neutre | CW78: offensif | CZ78: defensif | DC78: neutre | DF78: offensif | DI78: defensif | DL78: neutre | DO78: offensif
E79: 0.3633 | F79: 1.4532 | G79: 1.8165 | H79: 0.27245 | I79: 0.63575 | J79: 0.9082 | K79: 0.27245 | L79: 0.63575 | M79: 0.9082 | N79: 0.54495 | O79: 1.27155 | P79: 1.8165 | R79: =G14 -> algerie 4 | S79: =S72 -> kit 1 | T79: =T72 -> kit 2/3 | U79: 0 | V79: kit 4 | W79: 0 | X79: kit 5 | Y79: kit 6/7 | Z79: 0 | AA79: 0 | AB79: kit 8 | AC79: kit 9 | AD79: 0 | AE79: =AE72 -> kit 10 | AF79: =AF72 -> kit 11 | AJ79: =AJ214 -> 0 | AK79: =MIN((S220+$AJ$35*$D$19)/$AK$42,(S221+$AJ$35*$D$19)/$AL$42,(S222+$AJ$35*$D$19)/$AM$42,(S223+$AJ$35*$D$19)/$AN$42,(S224+$AJ$35*$D$19)/$AO$42)*$AP$42 -> 108 | AL79: 94 | AM79: 68 | AN79: 90.5 | AO79: 68 | AP79: 96 | AQ79: 98.5 | AR79: 68 | AS79: 98.5 | AT79: 100 | AU79: 102 | AV79: 68 | AW79: 102 | AX79: 100 | AY79: 108 | BA79: 0 | BB79: =MIN((S220+$AK$35*$D$19)/$AK$43,(S221+$AK$35*$D$19)/$AL$43,(S222+$AK$35*$D$19)/$AM$43,(S223+$AK$35*$D$19)/$AN$43,(S224+$AK$35*$D$19)/$AO$43)*$AP$43 -> 97.33333333 | BC79: 126.6666667 | BD79: 80.66666667 | BE79: 123.3333333 | BF79: 80.66666667 | BG79: 118 | BH79: 121.3333333 | BI79: 80.66666667 | BJ79: 121.3333333 | BK79: 123.3333333 | BL79: 118 | BM79: 80.66666667 | BN79: 120.6666667 | BO79: 123.3333333 | BP79: 126.6666667 | BS79: =IF(AV24=10,AI24,IF(AV25=10,AI25,IF(AV26=10,AI26,IF(AV27=10,AI27,IF(AV28=10,AI28,IF(AV29=10,AI29,IF(AV31=10,AI31,BS83))))))) -> attente | BT79: =IF(AV16=10,AI16,IF(AV17=10,AI17,IF(AV18=10,AI18,IF(AV19=10,AI19,IF(AV20=10,AI20,IF(AV21=10,AI21,IF(AV22=10,AI22,IF(AV23=10,AI23,BS79)))))))) -> nigeria 8 | BU79: =IF(AV24=10,BP180,IF(AV25=10,BP181,IF(AV26=10,BP182,IF(AV27=10,BP183,IF(AV28=10,BP184,IF(AV29=10,BP185,IF(AV31=10,BP186,0))))))) -> 0 | BV79: =IF(AV16=10,BP172,IF(AV17=10,BP173,IF(AV18=10,BP174,IF(AV19=10,BP175,IF(AV20=10,BP176,IF(AV21=10,BP177,IF(AV22=10,BP178,IF(AV23=10,BP179,BU79)))))))) -> 359.3333333 | BW79: =IF(AV8=10,BP164,IF(AV9=10,BP165,IF(AV10=10,BP166,IF(AV11=10,BP167,IF(AV12=10,BP168,IF(AV13=10,BP169,IF(AV14=10,BP170,IF(AV15=10,BP171,BV79)))))))) -> 359.3333333 | BZ79: match nul | CH79: att | CI79: def | CJ79: tot | CK79: att | CL79: def | CM79: tot | CN79: att | CO79: def | CP79: tot | CQ79: att | CR79: def | CS79: tot | CT79: att | CU79: def | CV79: tot | CW79: att | CX79: def | CY79: tot | CZ79: att | DA79: def | DB79: tot | DC79: att | DD79: def | DE79: tot | DF79: att | DG79: def | DH79: tot | DI79: att | DJ79: def | DK79: tot | DL79: att | DM79: def | DN79: tot | DO79: att | DP79: def | DQ79: tot
E80: 0.3633 | F80: 1.4532 | G80: 1.8165 | H80: 0.68115 | I80: 0.68115 | J80: 1.3623 | K80: 0.3633 | L80: 0.54495 | M80: 0.90825 | N80: 0.90825 | O80: 0.90825 | P80: 1.8165 | R80: =H14+AH39+D16+D17+D21+D19*AG11 -> 630 | S80: =R80+Q10 -> 671 | T80: =R80+R10 -> 699 | U80: =R80+S10 -> 630 | V80: =R80+T10 -> 703 | W80: =R80+U10 -> 630 | X80: =R80+V10 -> 700 | Y80: =R80+W10 -> 691 | Z80: =R80+X10 -> 630 | AA80: =R80+Y10 -> 691 | AB80: =R80+Z10 -> 686 | AC80: =R80+AA10 -> 691 | AD80: =R80+AB10 -> 630 | AE80: =R80+AC10 -> 676 | AF80: =R80+AD10 -> 681 | AJ80: =AJ215 -> 0 | AK80: =MIN((S227+$AJ$35*$D$19)/$AK$42,(S228+$AJ$35*$D$19)/$AL$42,(S229+$AJ$35*$D$19)/$AM$42,(S229+$AJ$35*$D$19)/$AN$42,(S230+$AJ$35*$D$19)/$AO$42)*$AP$42 -> 108 | AL80: 94 | AM80: 68 | AN80: 90.5 | AO80: 68 | AP80: 96 | AQ80: 98.5 | AR80: 68 | AS80: 98.5 | AT80: 100 | AU80: 102 | AV80: 68 | AW80: 102 | AX80: 100 | AY80: 108 | BA80: 0 | BB80: =MIN((S227+$AK$35*$D$19)/$AK$43,(S228+$AK$35*$D$19)/$AL$43,(S229+$AK$35*$D$19)/$AM$43,(S230+$AK$35*$D$19)/$AN$43,(S231+$AK$35*$D$19)/$AO$43)*$AP$43 -> 97.33333333 | BC80: 126.6666667 | BD80: 80.66666667 | BE80: 123.3333333 | BF80: 80.66666667 | BG80: 118 | BH80: 121.3333333 | BI80: 80.66666667 | BJ80: 121.3333333 | BK80: 123.3333333 | BL80: 118 | BM80: 80.66666667 | BN80: 120.6666667 | BO80: 123.3333333 | BP80: 126.6666667 | BS80: =IF(AV24=11,AI24,IF(AV25=11,AI25,IF(AV26=11,AI26,IF(AV27=11,AI27,IF(AV28=11,AI28,IF(AV29=11,AI29,IF(AV31=11,AI31,BS83))))))) -> attente | BT80: =IF(AV16=11,AI16,IF(AV17=11,AI17,IF(AV18=11,AI18,IF(AV19=11,AI19,IF(AV20=11,AI20,IF(AV21=11,AI21,IF(AV22=11,AI22,IF(AV23=11,AI23,BS80)))))))) -> slovaquie 8 | BU80: =IF(AV24=11,AY207,IF(AV25=11,AY208,IF(AV26=11,AY209,IF(AV27=11,AY210,IF(AV28=11,AY211,IF(AV29=11,AY212,IF(AV31=11,AY213,0))))))) -> 0 | BV80: =IF(AV16=11,AY199,IF(AV17=11,AY200,IF(AV18=11,AY201,IF(AV19=11,AY202,IF(AV20=11,AY203,IF(AV21=11,AY204,IF(AV22=11,AY205,IF(AV23=11,AY206,BU80)))))))) -> 422.6666667 | BW80: =IF(AV8=11,AY191,IF(AV9=11,AY192,IF(AV10=11,AY193,IF(AV11=11,AY194,IF(AV12=11,AY195,IF(AV13=11,AY196,IF(AV14=11,AY197,IF(AV15=11,AY198,BV80)))))))) -> 422.6666667 | BZ80: défaite | CF80: =BA10 -> espagne 9 | CH80: =BW70*E62 -> 19.98315 | CI80: =BW70*F62 -> 979.98175 | CJ80: =BW70*G62 -> 999.9649 | CK80: =BW70*E76 -> 19.98315 | CL80: =BW70*F76 -> 979.98175 | CM80: =BW70*G76 -> 999.9649 | CN80: =BW70*E90 -> 19.98315 | CO80: =BW70*F90 -> 979.98175 | CP80: =BW70*G90 -> 999.9649 | CQ80: =BW70*H62 -> 19.98315 | CR80: =BW70*I62 -> 979.98175 | CS80: =BW70*J62 -> 999.9649 | CT80: =BW70*H76 -> 59.98615 | CU80: =BW70*I76 -> 939.9971 | CV80: =BW70*J76 -> 999.98325 | CW80: =BW70*H90 -> 99.98915 | CX80: =BW70*I90 -> 899.9941 | CY80: =BW70*J90 -> 999.98325 | CZ80: =BW70*K62 -> 19.98315 | DA80: =BW70*L62 -> 979.98175 | DB80: =BW70*M62 -> 999.9649 | DC80: =BW70*K76 -> 19.98315 | DD80: =BW70*L76 -> 979.98175 | DE80: =BW70*M76 -> 999.9649 | DF80: =BW70*K90 -> 19.98315 | DG80: =BW70*L90 -> 979.98175 | DH80: =BW70*M90 -> 999.9649 | DI80: =BW70*N62 -> 19.98315 | DJ80: =BW70*O62 -> 979.98175 | DK80: =BW70*P62 -> 999.9649 | DL80: =BW70*N76 -> 19.98315 | DM80: =BW70*O76 -> 979.98175 | DN80: =BW70*P76 -> 999.9649 | DO80: =BW70*N90 -> 19.98315 | DP80: =BW70*O90 -> 979.98175 | DQ80: =BW70*P90 -> 999.9649
E81: 0.68115 | F81: 1.58945 | G81: 2.2706 | H81: 0.95365 | I81: 0.4087 | J81: 1.36235 | K81: 0.90825 | L81: 0.90825 | M81: 1.8165 | N81: 0.90825 | O81: 0.90825 | P81: 1.8165 | R81: =I14+AH40+D15+D17+D21+D19*AG11 -> 370 | S81: =R81+Q11 -> 450 | T81: =R81+R11 -> 422 | U81: =R81+S11 -> 370 | V81: =R81+T11 -> 415 | W81: =R81+U11 -> 370 | X81: =R81+V11 -> 426 | Y81: =R81+W11 -> 431 | Z81: =R81+X11 -> 370 | AA81: =R81+Y11 -> 431 | AB81: =R81+Z11 -> 434 | AC81: =R81+AA11 -> 438 | AD81: =R81+AB11 -> 370 | AE81: =R81+AC11 -> 438 | AF81: =R81+AD11 -> 434 | BZ81: victoire | CF81: 2 | CH81: 124.9637333 | CI81: 499.9008 | CJ81: 624.8645333 | CK81: 187.4570667 | CL81: 437.4074667 | CM81: 624.8645333 | CN81: 187.4570667 | CO81: 437.4074667 | CP81: 624.8645333 | CQ81: 312.4208 | CR81: 312.4208 | CS81: 624.8416 | CT81: 374.9141333 | CU81: 249.9504 | CV81: 624.8645333 | CW81: 437.4074667 | CX81: 187.4570667 | CY81: 624.8645333 | CZ81: 416.584 | DA81: 624.8645333 | DB81: 1041.448533 | DC81: 520.7242667 | DD81: 520.7242667 | DE81: 1041.448533 | DF81: 624.8645333 | DG81: 416.584 | DH81: 1041.448533 | DI81: 187.4570667 | DJ81: 437.4074667 | DK81: 624.8645333 | DL81: 249.9504 | DM81: 374.9141333 | DN81: 624.8645333 | DO81: 374.9141333 | DP81: 249.9504 | DQ81: 624.8645333
E82: 0.90825 | F82: 0.90825 | G82: 1.8165 | H82: 0.94985 | I82: 0.40705 | J82: 1.3569 | K82: 1.63485 | L82: 1.0899 | M82: 2.72475 | N82: 0.8174 | O82: 0.54495 | P82: 1.36235 | R82: =J14+AH41+D15+D17+D21+D19*AG11 -> 550 | S82: =R82+Q12 -> 591 | T82: =R82+R12 -> 610 | U82: =R82+S12 -> 550 | V82: =R82+T12 -> 623 | W82: =R82+U12 -> 550 | X82: =R82+V12 -> 606 | Y82: =R82+W12 -> 611 | Z82: =R82+X12 -> 550 | AA82: =R82+Y12 -> 611 | AB82: =R82+Z12 -> 614 | AC82: =R82+AA12 -> 618 | AD82: =R82+AB12 -> 550 | AE82: =R82+AC12 -> 603 | AF82: =R82+AD12 -> 621 | AJ82: 3 | AK82: =Q9 -> kit 1 | AL82: kit 2/3 | AM82: 0 | AN82: kit 4 | AO82: 0 | AP82: kit 5 | AQ82: kit 6/7 | AR82: 0 | AS82: 0 | AT82: kit 8 | AU82: kit 9 | AV82: 0 | AW82: kit 10 | AX82: kit 11 | AY82: MAX | BA82: 4 | BB82: =Q9 -> kit 1 | BC82: kit 2/3 | BD82: 0 | BE82: kit 4 | BF82: 0 | BG82: kit 5 | BH82: kit 6/7 | BI82: 0 | BJ82: 0 | BK82: kit 8 | BL82: kit 9 | BM82: 0 | BN82: kit 10 | BO82: kit 11 | BP82: MAX | CF82: 3 | CH82: 121.3310667 | CI82: 485.3688 | CJ82: 606.6998667 | CK82: 182.0077333 | CL82: 424.6921333 | CM82: 606.6998667 | CN82: 182.0077333 | CO82: 424.6921333 | CP82: 606.6998667 | CQ82: 303.3388 | CR82: 303.3388 | CS82: 606.6776 | CT82: 364.0154667 | CU82: 242.6844 | CV82: 606.6998667 | CW82: 424.6921333 | CX82: 182.0077333 | CY82: 606.6998667 | CZ82: 303.3388 | DA82: 707.8350667 | DB82: 1011.173867 | DC82: 505.5869333 | DD82: 505.5869333 | DE82: 1011.173867 | DF82: 606.6998667 | DG82: 404.474 | DH82: 1011.173867 | DI82: 182.0077333 | DJ82: 424.6921333 | DK82: 606.6998667 | DL82: 242.6844 | DM82: 364.0154667 | DN82: 606.6998667 | DO82: 364.0154667 | DP82: 242.6844 | DQ82: 606.6998667
E83: 0.8174 | F83: 0.54495 | G83: 1.36235 | H83: 1.90735 | I83: 0.8174 | J83: 2.72475 | K83: 0.8174 | L83: 0.54495 | M83: 1.36235 | N83: 0.81415 | O83: 0.54275 | P83: 1.3569 | R83: =K14+AH42+D16+D17+D21+D19*AG11 -> 517 | S83: =R83+Q13 -> 542 | T83: =R83+R13 -> 586 | U83: =R83+S13 -> 517 | V83: =R83+T13 -> 581 | W83: =R83+U13 -> 517 | X83: =R83+V13 -> 573 | Y83: =R83+W13 -> 578 | Z83: =R83+X13 -> 517 | AA83: =R83+Y13 -> 578 | AB83: =R83+Z13 -> 581 | AC83: =R83+AA13 -> 573 | AD83: =R83+AB13 -> 517 | AE83: =R83+AC13 -> 577 | AF83: =R83+AD13 -> 581 | AJ83: =AJ191 -> espagne 9 | AK83: =MIN((S59+AL35*D19)/AK44,(S60+AL35*D19)/AL44,(S61+AL35*D19)/AM44,(S62+AL35*D19)/AN44,(S63+AL35*D19)/AO44)*AP44 -> 406.6666667 | AL83: =MIN((T59+AL35*D19)/AK44,(T60+AL35*D19)/AL44,(T61+AL35*D19)/AM44,(T62+AL35*D19)/AN44,(T63+AL35*D19)/AO44)*AP44 -> 436 | AM83: =MIN((U59+AL35*D19)/AK44,(U60+AL35*D19)/AL44,(U61+AL35*D19)/AM44,(U62+AL35*D19)/AN44,(U63+AL35*D19)/AO44)*AP44 -> 390 | AN83: =MIN((V59+AL35*D19)/AK44,(V60+AL35*D19)/AL44,(V61+AL35*D19)/AM44,(V62+AL35*D19)/AN44,(V63+AL35*D19)/AO44)*AP44 -> 432.6666667 | AO83: =MIN((W59+AL35*D19)/AK44,(W60+AL35*D19)/AL44,(W61+AL35*D19)/AM44,(W62+AL35*D19)/AN44,(W63+AL35*D19)/AO44)*AP44 -> 390 | AP83: =MIN((X59+AL35*D19)/AK44,(X60+AL35*D19)/AL44,(X61+AL35*D19)/AM44,(X62+AL35*D19)/AN44,(X63+AL35*D19)/AO44)*AP44 -> 427.3333333 | AQ83: =MIN((Y59+AL35*D19)/AK44,(Y60+AL35*D19)/AL44,(Y61+AL35*D19)/AM44,(Y62+AL35*D19)/AN44,(Y63+AL35*D19)/AO44)*AP44 -> 430.6666667 | AR83: =MIN((Z59+AL35*D19)/AK44,(Z60+AL35*D19)/AL44,(Z61+AL35*D19)/AM44,(Z62+AL35*D19)/AN44,(Z63+AL35*D19)/AO44)*AP44 -> 390 | AS83: =MIN((AA59+AL35*D19)/AK44,(AA60+AL35*D19)/AL44,(AA61+AL35*D19)/AM44,(AA62+AL35*D19)/AN44,(AA63+AL35*D19)/AO44)*AP44 -> 430.6666667 | AT83: =MIN((AB59+AL35*D19)/AK44,(AB60+AL35*D19)/AL44,(AB61+AL35*D19)/AM44,(AB62+AL35*D19)/AN44,(AB63+AL35*D19)/AO44)*AP44 -> 432.6666667 | AU83: =MIN((AC59+AL35*D19)/AK44,(AC60+AL35*D19)/AL44,(AC61+AL35*D19)/AM44,(AC62+AL35*D19)/AN44,(AC63+AL35*D19)/AO44)*AP44 -> 427.3333333 | AV83: =MIN((AD59+AL35*D19)/AK44,(AD60+AL35*D19)/AL44,(AD61+AL35*D19)/AM44,(AD62+AL35*D19)/AN44,(AD63+AL35*D19)/AO44)*AP44 -> 390 | AW83: =MIN((AE59+AL35*D19)/AK44,(AE60+AL35*D19)/AL44,(AE61+AL35*D19)/AM44,(AE62+AL35*D19)/AN44,(AE63+AL35*D19)/AO44)*AP44 -> 430 | AX83: =MIN((AF59+AL35*D19)/AK44,(AF60+AL35*D19)/AL44,(AF61+AL35*D19)/AM44,(AF62+AL35*D19)/AN44,(AF63+AL35*D19)/AO44)*AP44 -> 432.6666667 | AY83: =MAX(AK83:AX83) -> 436 | BA83: =AJ191 -> espagne 9 | BB83: =MIN((S59+AM35*D19)/AK45,(S60+AM35*D19)/AL45,(S61+AM35*D19)/AM45,(S62+AM35*D19)/AN45,(S63+AM35*D19)/AO45)*AP45 -> 391.3333333 | BC83: =MIN((T59+AM35*D19)/AK45,(T60+AM35*D19)/AL45,(T61+AM35*D19)/AM45,(T62+AM35*D19)/AN45,(T63+AM35*D19)/AO45)*AP45 -> 410 | BD83: =MIN((U59+AM35*D19)/AK45,(U60+AM35*D19)/AL45,(U61+AM35*D19)/AM45,(U62+AM35*D19)/AN45,(U63+AM35*D19)/AO45)*AP45 -> 364 | BE83: =MIN((V59+AM35*D19)/AK45,(V60+AM35*D19)/AL45,(V61+AM35*D19)/AM45,(V62+AM35*D19)/AN45,(V63+AM35*D19)/AO45)*AP45 -> 412.6666667 | BF83: =MIN((W59+AM35*D19)/AK45,(W60+AM35*D19)/AL45,(W61+AM35*D19)/AM45,(W62+AM35*D19)/AN45,(W63+AM35*D19)/AO45)*AP45 -> 364 | BG83: =MIN((X59+AM35*D19)/AK45,(X60+AM35*D19)/AL45,(X61+AM35*D19)/AM45,(X62+AM35*D19)/AN45,(X63+AM35*D19)/AO45)*AP45 -> 410.6666667 | BH83: =MIN((Y59+AM35*D19)/AK45,(Y60+AM35*D19)/AL45,(Y61+AM35*D19)/AM45,(Y62+AM35*D19)/AN45,(Y63+AM35*D19)/AO45)*AP45 -> 404.6666667 | BI83: =MIN((Z59+AM35*D19)/AK45,(Z60+AM35*D19)/AL45,(Z61+AM35*D19)/AM45,(Z62+AM35*D19)/AN45,(Z63+AM35*D19)/AO45)*AP45 -> 364 | BJ83: =MIN((AA59+AM35*D19)/AK45,(AA60+AM35*D19)/AL45,(AA61+AM35*D19)/AM45,(AA62+AM35*D19)/AN45,(AA63+AM35*D19)/AO45)*AP45 -> 404.6666667 | BK83: =MIN((AB59+AM35*D19)/AK45,(AB60+AM35*D19)/AL45,(AB61+AM35*D19)/AM45,(AB62+AM35*D19)/AN45,(AB63+AM35*D19)/AO45)*AP45 -> 401.3333333 | BL83: =MIN((AC59+AM35*D19)/AK45,(AC60+AM35*D19)/AL45,(AC61+AM35*D19)/AM45,(AC62+AM35*D19)/AN45,(AC63+AM35*D19)/AO45)*AP45 -> 404.6666667 | BM83: =MIN((AD59+AM35*D19)/AK45,(AD60+AM35*D19)/AL45,(AD61+AM35*D19)/AM45,(AD62+AM35*D19)/AN45,(AD63+AM35*D19)/AO45)*AP45 -> 364 | BN83: =MIN((AE59+AM35*D19)/AK45,(AE60+AM35*D19)/AL45,(AE61+AM35*D19)/AM45,(AE62+AM35*D19)/AN45,(AE63+AM35*D19)/AO45)*AP45 -> 394.6666667 | BO83: =MIN((AF59+AM35*D19)/AK45,(AF60+AM35*D19)/AL45,(AF61+AM35*D19)/AM45,(AF62+AM35*D19)/AN45,(AF63+AM35*D19)/AO45)*AP45 -> 398 | BP83: =MAX(BB83:BO83) -> 412.6666667 | BS83: attente | CF83: algerie 4 | CH83: 84.6489 | CI83: 761.8401 | CJ83: 846.489 | CK83: 169.2978 | CL83: 677.1912 | CM83: 846.489 | CN83: 338.5956 | CO83: 507.8934 | CP83: 846.489 | CQ83: 84.6489 | CR83: 338.5956 | CS83: 423.2445 | CT83: 126.9617 | CU83: 296.2595 | CV83: 423.2212 | CW83: 169.2978 | CX83: 253.9467 | CY83: 423.2445 | CZ83: 126.9617 | DA83: 296.2595 | DB83: 423.2212 | DC83: 126.9617 | DD83: 296.2595 | DE83: 423.2212 | DF83: 211.6106 | DG83: 211.6106 | DH83: 423.2212 | DI83: 169.2978 | DJ83: 677.1912 | DK83: 846.489 | DL83: 253.9467 | DM83: 592.5423 | DN83: 846.489 | DO83: 423.2445 | DP83: 423.2445 | DQ83: 846.489
E84: 1.8165 | F84: 0.4541 | G84: 2.2706 | H84: 2.04355 | I84: 0.22705 | J84: 2.2706 | K84: 1.4532 | L84: 0.3633 | M84: 1.8165 | N84: 1.63485 | O84: 0.18165 | P84: 1.8165 | R84: =L14+AH43+D15+D17+D21+D19*AG11 -> 337 | S84: =R84+Q14 -> 393 | T84: =R84+R14 -> 389 | U84: =R84+S14 -> 337 | V84: =R84+T14 -> 382 | W84: =R84+U14 -> 337 | X84: =R84+V14 -> 393 | Y84: =R84+W14 -> 390 | Z84: =R84+X14 -> 337 | AA84: =R84+Y14 -> 390 | AB84: =R84+Z14 -> 385 | AC84: =R84+AA14 -> 386 | AD84: =R84+AB14 -> 337 | AE84: =R84+AC14 -> 397 | AF84: =R84+AD14 -> 381 | AJ84: 2 | AK84: =MIN((S66+AL35*D19)/AK44,(S67+AL35*D19)/AL44,(S68+AL35*D19)/AM44,(S69+AL35*D19)/AN44,(S70+AL35*D19)/AO44)*AP44 -> 429.3333333 | AL84: =MIN((T66+AL35*D19)/AK44,(T67+AL35*D19)/AL44,(T68+AL35*D19)/AM44,(T69+AL35*D19)/AN44,(T70+AL35*D19)/AO44)*AP44 -> 458.6666667 | AM84: =MIN((U66+AL35*D19)/AK44,(U67+AL35*D19)/AL44,(U68+AL35*D19)/AM44,(U69+AL35*D19)/AN44,(U70+AL35*D19)/AO44)*AP44 -> 412.6666667 | AN84: =MIN((V66+AL35*D19)/AK44,(V67+AL35*D19)/AL44,(V68+AL35*D19)/AM44,(V69+AL35*D19)/AN44,(V70+AL35*D19)/AO44)*AP44 -> 455.3333333 | AO84: =MIN((W66+AL35*D19)/AK44,(W67+AL35*D19)/AL44,(W68+AL35*D19)/AM44,(W69+AL35*D19)/AN44,(W70+AL35*D19)/AO44)*AP44 -> 412.6666667 | AP84: =MIN((X66+AL35*D19)/AK44,(X67+AL35*D19)/AL44,(X68+AL35*D19)/AM44,(X69+AL35*D19)/AN44,(X70+AL35*D19)/AO44)*AP44 -> 450 | AQ84: =MIN((Y66+AL35*D19)/AK44,(Y67+AL35*D19)/AL44,(Y68+AL35*D19)/AM44,(Y69+AL35*D19)/AN44,(Y70+AL35*D19)/AO44)*AP44 -> 453.3333333 | AR84: =MIN((Z66+AL35*D19)/AK44,(Z67+AL35*D19)/AL44,(Z68+AL35*D19)/AM44,(Z69+AL35*D19)/AN44,(Z70+AL35*D19)/AO44)*AP44 -> 412.6666667 | AS84: =MIN((AA66+AL35*D19)/AK44,(AA67+AL35*D19)/AL44,(AA68+AL35*D19)/AM44,(AA69+AL35*D19)/AN44,(AA70+AL35*D19)/AO44)*AP44 -> 453.3333333 | AT84: =MIN((AB66+AL35*D19)/AK44,(AB67+AL35*D19)/AL44,(AB68+AL35*D19)/AM44,(AB69+AL35*D19)/AN44,(AB70+AL35*D19)/AO44)*AP44 -> 455.3333333 | AU84: =MIN((AC66+AL35*D19)/AK44,(AC67+AL35*D19)/AL44,(AC68+AL35*D19)/AM44,(AC69+AL35*D19)/AN44,(AC70+AL35*D19)/AO44)*AP44 -> 450 | AV84: =MIN((AD66+AL35*D19)/AK44,(AD67+AL35*D19)/AL44,(AD68+AL35*D19)/AM44,(AD69+AL35*D19)/AN44,(AD70+AL35*D19)/AO44)*AP44 -> 412.6666667 | AW84: =MIN((AE66+AL35*D19)/AK44,(AE67+AL35*D19)/AL44,(AE68+AL35*D19)/AM44,(AE69+AL35*D19)/AN44,(AE70+AL35*D19)/AO44)*AP44 -> 452.6666667 | AX84: =MIN((AF66+AL35*D19)/AK44,(AF67+AL35*D19)/AL44,(AF68+AL35*D19)/AM44,(AF69+AL35*D19)/AN44,(AF70+AL35*D19)/AO44)*AP44 -> 455.3333333 | AY84: 458.6666667 | BA84: 2 | BB84: =MIN((S66+AM35*D19)/AK45,(S67+AM35*D19)/AL45,(S68+AM35*D19)/AM45,(S69+AM35*D19)/AN45,(S70+AM35*D19)/AO45)*AP45 -> 448.6666667 | BC84: =MIN((T66+AM35*D19)/AK45,(T67+AM35*D19)/AL45,(T68+AM35*D19)/AM45,(T69+AM35*D19)/AN45,(T70+AM35*D19)/AO45)*AP45 -> 467.3333333 | BD84: =MIN((U66+AM35*D19)/AK45,(U67+AM35*D19)/AL45,(U68+AM35*D19)/AM45,(U69+AM35*D19)/AN45,(U70+AM35*D19)/AO45)*AP45 -> 421.3333333 | BE84: =MIN((V66+AM35*D19)/AK45,(V67+AM35*D19)/AL45,(V68+AM35*D19)/AM45,(V69+AM35*D19)/AN45,(V70+AM35*D19)/AO45)*AP45 -> 470 | BF84: =MIN((W66+AM35*D19)/AK45,(W67+AM35*D19)/AL45,(W68+AM35*D19)/AM45,(W69+AM35*D19)/AN45,(W70+AM35*D19)/AO45)*AP45 -> 421.3333333 | BG84: =MIN((X66+AM35*D19)/AK45,(X67+AM35*D19)/AL45,(X68+AM35*D19)/AM45,(X69+AM35*D19)/AN45,(X70+AM35*D19)/AO45)*AP45 -> 468 | BH84: =MIN((Y66+AM35*D19)/AK45,(Y67+AM35*D19)/AL45,(Y68+AM35*D19)/AM45,(Y69+AM35*D19)/AN45,(Y70+AM35*D19)/AO45)*AP45 -> 462 | BI84: =MIN((Z66+AM35*D19)/AK45,(Z67+AM35*D19)/AL45,(Z68+AM35*D19)/AM45,(Z69+AM35*D19)/AN45,(Z70+AM35*D19)/AO45)*AP45 -> 421.3333333 | BJ84: =MIN((AA66+AM35*D19)/AK45,(AA67+AM35*D19)/AL45,(AA68+AM35*D19)/AM45,(AA69+AM35*D19)/AN45,(AA70+AM35*D19)/AO45)*AP45 -> 462 | BK84: =MIN((AB66+AM35*D19)/AK45,(AB67+AM35*D19)/AL45,(AB68+AM35*D19)/AM45,(AB69+AM35*D19)/AN45,(AB70+AM35*D19)/AO45)*AP45 -> 458.6666667 | BL84: =MIN((AC66+AM35*D19)/AK45,(AC67+AM35*D19)/AL45,(AC68+AM35*D19)/AM45,(AC69+AM35*D19)/AN45,(AC70+AM35*D19)/AO45)*AP45 -> 462 | BM84: =MIN((AD66+AM35*D19)/AK45,(AD67+AM35*D19)/AL45,(AD68+AM35*D19)/AM45,(AD69+AM35*D19)/AN45,(AD70+AM35*D19)/AO45)*AP45 -> 421.3333333 | BN84: =MIN((AE66+AM35*D19)/AK45,(AE67+AM35*D19)/AL45,(AE68+AM35*D19)/AM45,(AE69+AM35*D19)/AN45,(AE70+AM35*D19)/AO45)*AP45 -> 452 | BO84: =MIN((AF66+AM35*D19)/AK45,(AF67+AM35*D19)/AL45,(AF68+AM35*D19)/AM45,(AF69+AM35*D19)/AN45,(AF70+AM35*D19)/AO45)*AP45 -> 455.3333333 | BP84: =MAX(BB84:BO84) -> 470 | CF84: ghana 5 | CH84: 120.2523 | CI84: 1082.2707 | CJ84: 1202.523 | CK84: 240.5046 | CL84: 962.0184 | CM84: 1202.523 | CN84: 481.0092 | CO84: 721.5138 | CP84: 1202.523 | CQ84: 270.5594 | CR84: 631.3163 | CS84: 901.8757 | CT84: 450.9213 | CU84: 450.9213 | CV84: 901.8426 | CW84: 631.3163 | CX84: 270.5594 | CY84: 901.8757 | CZ84: 180.3619 | DA84: 420.8665 | DB84: 601.2284 | DC84: 240.5046 | DD84: 360.7569 | DE84: 601.2615 | DF84: 300.6142 | DG84: 300.6142 | DH84: 601.2284 | DI84: 481.0092 | DJ84: 721.5138 | DK84: 1202.523 | DL84: 601.2615 | DM84: 601.2615 | DN84: 1202.523 | DO84: 721.5138 | DP84: 481.0092 | DQ84: 1202.523
E85: 1.27155 | F85: 0.54495 | G85: 1.8165 | H85: 1.4532 | I85: 0.3633 | J85: 1.8165 | K85: 0.95365 | L85: 0.4087 | M85: 1.36235 | N85: 1.90735 | O85: 0.8174 | P85: 2.72475 | AJ85: 3 | AK85: =MIN((S73+AL35*D19)/AK44,(S74+AL35*D19)/AL44,(S75+AL35*D19)/AM44,(S76+AL35*D19)/AN44,(S77+AL35*D19)/AO44)*AP44 -> 416 | AL85: =MIN((T73+AL35*D19)/AK44,(T74+AL35*D19)/AL44,(T75+AL35*D19)/AM44,(T76+AL35*D19)/AN44,(T77+AL35*D19)/AO44)*AP44 -> 445.3333333 | AM85: =MIN((U73+AL35*D19)/AK44,(U74+AL35*D19)/AL44,(U75+AL35*D19)/AM44,(U76+AL35*D19)/AN44,(U77+AL35*D19)/AO44)*AP44 -> 399.3333333 | AN85: =MIN((V73+AL35*D19)/AK44,(V74+AL35*D19)/AL44,(V75+AL35*D19)/AM44,(V76+AL35*D19)/AN44,(V77+AL35*D19)/AO44)*AP44 -> 442 | AO85: =MIN((W73+AL35*D19)/AK44,(W74+AL35*D19)/AL44,(W75+AL35*D19)/AM44,(W76+AL35*D19)/AN44,(W77+AL35*D19)/AO44)*AP44 -> 399.3333333 | AP85: =MIN((X73+AL35*D19)/AK44,(X74+AL35*D19)/AL44,(X75+AL35*D19)/AM44,(X76+AL35*D19)/AN44,(X77+AL35*D19)/AO44)*AP44 -> 436.6666667 | AQ85: =MIN((Y73+AL35*D19)/AK44,(Y74+AL35*D19)/AL44,(Y75+AL35*D19)/AM44,(Y76+AL35*D19)/AN44,(Y77+AL35*D19)/AO44)*AP44 -> 440 | AR85: =MIN((Z73+AL35*D19)/AK44,(Z74+AL35*D19)/AL44,(Z75+AL35*D19)/AM44,(Z76+AL35*D19)/AN44,(Z77+AL35*D19)/AO44)*AP44 -> 399.3333333 | AS85: =MIN((AA73+AL35*D19)/AK44,(AA74+AL35*D19)/AL44,(AA75+AL35*D19)/AM44,(AA76+AL35*D19)/AN44,(AA77+AL35*D19)/AO44)*AP44 -> 440 | AT85: =MIN((AB73+AL35*D19)/AK44,(AB74+AL35*D19)/AL44,(AB75+AL35*D19)/AM44,(AB76+AL35*D19)/AN44,(AB77+AL35*D19)/AO44)*AP44 -> 442 | AU85: =MIN((AC73+AL35*D19)/AK44,(AC74+AL35*D19)/AL44,(AC75+AL35*D19)/AM44,(AC76+AL35*D19)/AN44,(AC77+AL35*D19)/AO44)*AP44 -> 436.6666667 | AV85: =MIN((AD73+AL35*D19)/AK44,(AD74+AL35*D19)/AL44,(AD75+AL35*D19)/AM44,(AD76+AL35*D19)/AN44,(AD77+AL35*D19)/AO44)*AP44 -> 399.3333333 | AW85: =MIN((AE73+AL35*D19)/AK44,(AE74+AL35*D19)/AL44,(AE75+AL35*D19)/AM44,(AE76+AL35*D19)/AN44,(AE77+AL35*D19)/AO44)*AP44 -> 439.3333333 | AX85: =MIN((AF73+AL35*D19)/AK44,(AF74+AL35*D19)/AL44,(AF75+AL35*D19)/AM44,(AF76+AL35*D19)/AN44,(AF77+AL35*D19)/AO44)*AP44 -> 442 | AY85: 445.3333333 | BA85: 3 | BB85: =MIN((S73+AM35*D19)/AK45,(S74+AM35*D19)/AL45,(S75+AM35*D19)/AM45,(S76+AM35*D19)/AN45,(S77+AM35*D19)/AO45)*AP45 -> 430 | BC85: =MIN((T73+AM35*D19)/AK45,(T74+AM35*D19)/AL45,(T75+AM35*D19)/AM45,(T76+AM35*D19)/AN45,(T77+AM35*D19)/AO45)*AP45 -> 448.6666667 | BD85: =MIN((U73+AM35*D19)/AK45,(U74+AM35*D19)/AL45,(U75+AM35*D19)/AM45,(U76+AM35*D19)/AN45,(U77+AM35*D19)/AO45)*AP45 -> 402.4 | BE85: =MIN((V73+AM35*D19)/AK45,(V74+AM35*D19)/AL45,(V75+AM35*D19)/AM45,(V76+AM35*D19)/AN45,(V77+AM35*D19)/AO45)*AP45 -> 451.3333333 | BF85: =MIN((W73+AM35*D19)/AK45,(W74+AM35*D19)/AL45,(W75+AM35*D19)/AM45,(W76+AM35*D19)/AN45,(W77+AM35*D19)/AO45)*AP45 -> 402.4 | BG85: =MIN((X73+AM35*D19)/AK45,(X74+AM35*D19)/AL45,(X75+AM35*D19)/AM45,(X76+AM35*D19)/AN45,(X77+AM35*D19)/AO45)*AP45 -> 447.2 | BH85: =MIN((Y73+AM35*D19)/AK45,(Y74+AM35*D19)/AL45,(Y75+AM35*D19)/AM45,(Y76+AM35*D19)/AN45,(Y77+AM35*D19)/AO45)*AP45 -> 443.3333333 | BI85: =MIN((Z73+AM35*D19)/AK45,(Z74+AM35*D19)/AL45,(Z75+AM35*D19)/AM45,(Z76+AM35*D19)/AN45,(Z77+AM35*D19)/AO45)*AP45 -> 402.4 | BJ85: =MIN((AA73+AM35*D19)/AK45,(AA74+AM35*D19)/AL45,(AA75+AM35*D19)/AM45,(AA76+AM35*D19)/AN45,(AA77+AM35*D19)/AO45)*AP45 -> 443.3333333 | BK85: =MIN((AB73+AM35*D19)/AK45,(AB74+AM35*D19)/AL45,(AB75+AM35*D19)/AM45,(AB76+AM35*D19)/AN45,(AB77+AM35*D19)/AO45)*AP45 -> 440 | BL85: =MIN((AC73+AM35*D19)/AK45,(AC74+AM35*D19)/AL45,(AC75+AM35*D19)/AM45,(AC76+AM35*D19)/AN45,(AC77+AM35*D19)/AO45)*AP45 -> 443.3333333 | BM85: =MIN((AD73+AM35*D19)/AK45,(AD74+AM35*D19)/AL45,(AD75+AM35*D19)/AM45,(AD76+AM35*D19)/AN45,(AD77+AM35*D19)/AO45)*AP45 -> 402.4 | BN85: =MIN((AE73+AM35*D19)/AK45,(AE74+AM35*D19)/AL45,(AE75+AM35*D19)/AM45,(AE76+AM35*D19)/AN45,(AE77+AM35*D19)/AO45)*AP45 -> 433.3333333 | BO85: =MIN((AF73+AM35*D19)/AK45,(AF74+AM35*D19)/AL45,(AF75+AM35*D19)/AM45,(AF76+AM35*D19)/AN45,(AF77+AM35*D19)/AO45)*AP45 -> 436.6666667 | BP85: 451.3333333 | BQ85: constante kit | CF85: slovenie 6 | CH85: 226.68672 | CI85: 906.7968 | CJ85: 1133.48352 | CK85: 340.03008 | CL85: 793.45344 | CM85: 1133.48352 | CN85: 453.3984 | CO85: 680.08512 | CP85: 1133.48352 | CQ85: 408.04608 | CR85: 272.03904 | CS85: 680.08512 | CT85: 476.06208 | CU85: 204.02304 | CV85: 680.08512 | CW85: 476.06208 | CX85: 204.02304 | CY85: 680.08512 | CZ85: 362.71872 | DA85: 544.07808 | DB85: 906.7968 | DC85: 453.3984 | DD85: 453.3984 | DE85: 906.7968 | DF85: 544.07808 | DG85: 362.71872 | DH85: 906.7968 | DI85: 362.71872 | DJ85: 544.07808 | DK85: 906.7968 | DL85: 453.3984 | DM85: 453.3984 | DN85: 906.7968 | DO85: 544.07808 | DP85: 362.71872 | DQ85: 906.7968
E86: 0.95365 | F86: 0.4087 | G86: 1.36235 | H86: 1.90735 | I86: 0.8174 | J86: 2.72475 | K86: 1.27155 | L86: 0.54495 | M86: 1.8165 | N86: 1.27155 | O86: 0.54495 | P86: 1.8165 | R86: =G15 -> ghana 5 | S86: =S79 -> kit 1 | T86: =T79 -> kit 2/3 | U86: 0 | V86: kit 4 | W86: 0 | X86: kit 5 | Y86: kit 6/7 | Z86: 0 | AA86: 0 | AB86: kit 8 | AC86: kit 9 | AD86: 0 | AE86: =AE79 -> kit 10 | AF86: =AF79 -> kit 11 | AJ86: algerie 4 | AK86: =MIN((S80+AL35*D19)/AK44,(S81+AL35*D19)/AL44,(S82+AL35*D19)/AM44,(S83+AL35*D19)/AN44,(S84+AL35*D19)/AO44)*AP44 -> 361.3333333 | AL86: =MIN((T80+AL35*D19)/AK44,(T81+AL35*D19)/AL44,(T82+AL35*D19)/AM44,(T83+AL35*D19)/AN44,(T84+AL35*D19)/AO44)*AP44 -> 389 | AM86: =MIN((U80+AL35*D19)/AK44,(U81+AL35*D19)/AL44,(U82+AL35*D19)/AM44,(U83+AL35*D19)/AN44,(U84+AL35*D19)/AO44)*AP44 -> 337 | AN86: =MIN((V80+AL35*D19)/AK44,(V81+AL35*D19)/AL44,(V82+AL35*D19)/AM44,(V83+AL35*D19)/AN44,(V84+AL35*D19)/AO44)*AP44 -> 382 | AO86: =MIN((W80+AL35*D19)/AK44,(W81+AL35*D19)/AL44,(W82+AL35*D19)/AM44,(W83+AL35*D19)/AN44,(W84+AL35*D19)/AO44)*AP44 -> 337 | AP86: =MIN((X80+AL35*D19)/AK44,(X81+AL35*D19)/AL44,(X82+AL35*D19)/AM44,(X83+AL35*D19)/AN44,(X84+AL35*D19)/AO44)*AP44 -> 382 | AQ86: =MIN((Y80+AL35*D19)/AK44,(Y81+AL35*D19)/AL44,(Y82+AL35*D19)/AM44,(Y83+AL35*D19)/AN44,(Y84+AL35*D19)/AO44)*AP44 -> 385.3333333 | AR86: =MIN((Z80+AL35*D19)/AK44,(Z81+AL35*D19)/AL44,(Z82+AL35*D19)/AM44,(Z83+AL35*D19)/AN44,(Z84+AL35*D19)/AO44)*AP44 -> 337 | AS86: =MIN((AA80+AL35*D19)/AK44,(AA81+AL35*D19)/AL44,(AA82+AL35*D19)/AM44,(AA83+AL35*D19)/AN44,(AA84+AL35*D19)/AO44)*AP44 -> 385.3333333 | AT86: =MIN((AB80+AL35*D19)/AK44,(AB81+AL35*D19)/AL44,(AB82+AL35*D19)/AM44,(AB83+AL35*D19)/AN44,(AB84+AL35*D19)/AO44)*AP44 -> 385 | AU86: =MIN((AC80+AL35*D19)/AK44,(AC81+AL35*D19)/AL44,(AC82+AL35*D19)/AM44,(AC83+AL35*D19)/AN44,(AC84+AL35*D19)/AO44)*AP44 -> 382 | AV86: =MIN((AD80+AL35*D19)/AK44,(AD81+AL35*D19)/AL44,(AD82+AL35*D19)/AM44,(AD83+AL35*D19)/AN44,(AD84+AL35*D19)/AO44)*AP44 -> 337 | AW86: =MIN((AE80+AL35*D19)/AK44,(AE81+AL35*D19)/AL44,(AE82+AL35*D19)/AM44,(AE83+AL35*D19)/AN44,(AE84+AL35*D19)/AO44)*AP44 -> 384.6666667 | AX86: =MIN((AF80+AL35*D19)/AK44,(AF81+AL35*D19)/AL44,(AF82+AL35*D19)/AM44,(AF83+AL35*D19)/AN44,(AF84+AL35*D19)/AO44)*AP44 -> 381 | AY86: 389 | BA86: algerie 4 | BB86: =MIN((S80+AM35*D19)/AK45,(S81+AM35*D19)/AL45,(S82+AM35*D19)/AM45,(S83+AM35*D19)/AN45,(S84+AM35*D19)/AO45)*AP45 -> 433.6 | BC86: =MIN((T80+AM35*D19)/AK45,(T81+AM35*D19)/AL45,(T82+AM35*D19)/AM45,(T83+AM35*D19)/AN45,(T84+AM35*D19)/AO45)*AP45 -> 466 | BD86: =MIN((U80+AM35*D19)/AK45,(U81+AM35*D19)/AL45,(U82+AM35*D19)/AM45,(U83+AM35*D19)/AN45,(U84+AM35*D19)/AO45)*AP45 -> 413.6 | BE86: =MIN((V80+AM35*D19)/AK45,(V81+AM35*D19)/AL45,(V82+AM35*D19)/AM45,(V83+AM35*D19)/AN45,(V84+AM35*D19)/AO45)*AP45 -> 464.8 | BF86: =MIN((W80+AM35*D19)/AK45,(W81+AM35*D19)/AL45,(W82+AM35*D19)/AM45,(W83+AM35*D19)/AN45,(W84+AM35*D19)/AO45)*AP45 -> 413.6 | BG86: =MIN((X80+AM35*D19)/AK45,(X81+AM35*D19)/AL45,(X82+AM35*D19)/AM45,(X83+AM35*D19)/AN45,(X84+AM35*D19)/AO45)*AP45 -> 458.4 | BH86: =MIN((Y80+AM35*D19)/AK45,(Y81+AM35*D19)/AL45,(Y82+AM35*D19)/AM45,(Y83+AM35*D19)/AN45,(Y84+AM35*D19)/AO45)*AP45 -> 460.6666667 | BI86: =MIN((Z80+AM35*D19)/AK45,(Z81+AM35*D19)/AL45,(Z82+AM35*D19)/AM45,(Z83+AM35*D19)/AN45,(Z84+AM35*D19)/AO45)*AP45 -> 413.6 | BJ86: =MIN((AA80+AM35*D19)/AK45,(AA81+AM35*D19)/AL45,(AA82+AM35*D19)/AM45,(AA83+AM35*D19)/AN45,(AA84+AM35*D19)/AO45)*AP45 -> 460.6666667 | BK86: =MIN((AB80+AM35*D19)/AK45,(AB81+AM35*D19)/AL45,(AB82+AM35*D19)/AM45,(AB83+AM35*D19)/AN45,(AB84+AM35*D19)/AO45)*AP45 -> 457.3333333 | BL86: =MIN((AC80+AM35*D19)/AK45,(AC81+AM35*D19)/AL45,(AC82+AM35*D19)/AM45,(AC83+AM35*D19)/AN45,(AC84+AM35*D19)/AO45)*AP45 -> 458.4 | BM86: =MIN((AD80+AM35*D19)/AK45,(AD81+AM35*D19)/AL45,(AD82+AM35*D19)/AM45,(AD83+AM35*D19)/AN45,(AD84+AM35*D19)/AO45)*AP45 -> 413.6 | BN86: =MIN((AE80+AM35*D19)/AK45,(AE81+AM35*D19)/AL45,(AE82+AM35*D19)/AM45,(AE83+AM35*D19)/AN45,(AE84+AM35*D19)/AO45)*AP45 -> 450.6666667 | BO86: =MIN((AF80+AM35*D19)/AK45,(AF81+AM35*D19)/AL45,(AF82+AM35*D19)/AM45,(AF83+AM35*D19)/AN45,(AF84+AM35*D19)/AO45)*AP45 -> 454 | BP86: 466 | BR86: =BB109 -> kit 1 | BS86: kit 2/3 | BT86: 0 | BU86: kit 4 | BV86: 0 | BW86: kit 5 | BX86: kit 6/7 | BY86: 0 | BZ86: 0 | CA86: kit 8 | CB86: kit 9 | CC86: 0 | CD86: kit 10 | CE86: kit 11 | CF86: grece 7 | CH86: 365.62512 | CI86: 548.43768 | CJ86: 914.0628 | CK86: 457.0314 | CL86: 457.0314 | CM86: 914.0628 | CN86: 548.43768 | CO86: 365.62512 | CP86: 914.0628 | CQ86: 409.68028 | CR86: 273.1118 | CS86: 682.79208 | CT86: 477.96452 | CU86: 204.82756 | CV86: 682.79208 | CW86: 477.96452 | CX86: 204.82756 | CY86: 682.79208 | CZ86: 548.43768 | DA86: 822.65652 | DB86: 1371.0942 | DC86: 822.65652 | DD86: 548.43768 | DE86: 1371.0942 | DF86: 959.77852 | DG86: 411.31568 | DH86: 1371.0942 | DI86: 342.75468 | DJ86: 342.75468 | DK86: 685.50936 | DL86: 411.31568 | DM86: 274.21884 | DN86: 685.53452 | DO86: 548.43768 | DP86: 137.09684 | DQ86: 685.53452
D87: total : | E87: =SUM(E76:E86) -> 8.04695 | F87: 11.93435 | G87: =SUM(G76:G86) -> 19.9813 | H87: =SUM(H76:H86) -> 11.9668 | I87: 8.009 | J87: 19.9758 | K87: 9.9997 | L87: 9.9816 | M87: 19.9813 | N87: 9.9511 | O87: 10.0248 | P87: 19.9759 | R87: =H15+AH39+D16+D17+D21+D19*AG12 -> 589 | S87: =R87+Q10 -> 630 | T87: =R87+R10 -> 658 | U87: =R87+S10 -> 589 | V87: =R87+T10 -> 662 | W87: =R87+U10 -> 589 | X87: =R87+V10 -> 659 | Y87: =R87+W10 -> 650 | Z87: =R87+X10 -> 589 | AA87: =R87+Y10 -> 650 | AB87: =R87+Z10 -> 645 | AC87: =R87+AA10 -> 650 | AD87: =R87+AB10 -> 589 | AE87: =R87+AC10 -> 635 | AF87: =R87+AD10 -> 640 | AJ87: ghana 5 | AK87: =MIN((S87+AL35*D19)/AK44,(S88+AL35*D19)/AL44,(S89+AL35*D19)/AM44,(S90+AL35*D19)/AN44,(S91+AL35*D19)/AO44)*AP44 -> 371.3333333 | AL87: =MIN((T87+AL35*D19)/AK44,(T88+AL35*D19)/AL44,(T89+AL35*D19)/AM44,(T90+AL35*D19)/AN44,(T91+AL35*D19)/AO44)*AP44 -> 400.6666667 | AM87: =MIN((U87+AL35*D19)/AK44,(U88+AL35*D19)/AL44,(U89+AL35*D19)/AM44,(U90+AL35*D19)/AN44,(U91+AL35*D19)/AO44)*AP44 -> 354.6666667 | AN87: =MIN((V87+AL35*D19)/AK44,(V88+AL35*D19)/AL44,(V89+AL35*D19)/AM44,(V90+AL35*D19)/AN44,(V91+AL35*D19)/AO44)*AP44 -> 397.3333333 | AO87: =MIN((W87+AL35*D19)/AK44,(W88+AL35*D19)/AL44,(W89+AL35*D19)/AM44,(W90+AL35*D19)/AN44,(W91+AL35*D19)/AO44)*AP44 -> 354.6666667 | AP87: =MIN((X87+AL35*D19)/AK44,(X88+AL35*D19)/AL44,(X89+AL35*D19)/AM44,(X90+AL35*D19)/AN44,(X91+AL35*D19)/AO44)*AP44 -> 392 | AQ87: =MIN((Y87+AL35*D19)/AK44,(Y88+AL35*D19)/AL44,(Y89+AL35*D19)/AM44,(Y90+AL35*D19)/AN44,(Y91+AL35*D19)/AO44)*AP44 -> 395.3333333 | AR87: =MIN((Z87+AL35*D19)/AK44,(Z88+AL35*D19)/AL44,(Z89+AL35*D19)/AM44,(Z90+AL35*D19)/AN44,(Z91+AL35*D19)/AO44)*AP44 -> 354.6666667 | AS87: =MIN((AA87+AL35*D19)/AK44,(AA88+AL35*D19)/AL44,(AA89+AL35*D19)/AM44,(AA90+AL35*D19)/AN44,(AA91+AL35*D19)/AO44)*AP44 -> 395.3333333 | AT87: =MIN((AB87+AL35*D19)/AK44,(AB88+AL35*D19)/AL44,(AB89+AL35*D19)/AM44,(AB90+AL35*D19)/AN44,(AB91+AL35*D19)/AO44)*AP44 -> 397.3333333 | AU87: =MIN((AC87+AL35*D19)/AK44,(AC88+AL35*D19)/AL44,(AC89+AL35*D19)/AM44,(AC90+AL35*D19)/AN44,(AC91+AL35*D19)/AO44)*AP44 -> 392 | AV87: =MIN((AD87+AL35*D19)/AK44,(AD88+AL35*D19)/AL44,(AD89+AL35*D19)/AM44,(AD90+AL35*D19)/AN44,(AD91+AL35*D19)/AO44)*AP44 -> 354.6666667 | AW87: =MIN((AE87+AL35*D19)/AK44,(AE88+AL35*D19)/AL44,(AE89+AL35*D19)/AM44,(AE90+AL35*D19)/AN44,(AE91+AL35*D19)/AO44)*AP44 -> 394.6666667 | AX87: =MIN((AF87+AL35*D19)/AK44,(AF88+AL35*D19)/AL44,(AF89+AL35*D19)/AM44,(AF90+AL35*D19)/AN44,(AF91+AL35*D19)/AO44)*AP44 -> 397.3333333 | AY87: 400.6666667 | BA87: ghana 5 | BB87: =MIN((S87+AM35*D19)/AK45,(S88+AM35*D19)/AL45,(S89+AM35*D19)/AM45,(S90+AM35*D19)/AN45,(S91+AM35*D19)/AO45)*AP45 -> 420 | BC87: =MIN((T87+AM35*D19)/AK45,(T88+AM35*D19)/AL45,(T89+AM35*D19)/AM45,(T90+AM35*D19)/AN45,(T91+AM35*D19)/AO45)*AP45 -> 438.6666667 | BD87: =MIN((U87+AM35*D19)/AK45,(U88+AM35*D19)/AL45,(U89+AM35*D19)/AM45,(U90+AM35*D19)/AN45,(U91+AM35*D19)/AO45)*AP45 -> 392.6666667 | BE87: =MIN((V87+AM35*D19)/AK45,(V88+AM35*D19)/AL45,(V89+AM35*D19)/AM45,(V90+AM35*D19)/AN45,(V91+AM35*D19)/AO45)*AP45 -> 441.3333333 | BF87: =MIN((W87+AM35*D19)/AK45,(W88+AM35*D19)/AL45,(W89+AM35*D19)/AM45,(W90+AM35*D19)/AN45,(W91+AM35*D19)/AO45)*AP45 -> 392.6666667 | BG87: =MIN((X87+AM35*D19)/AK45,(X88+AM35*D19)/AL45,(X89+AM35*D19)/AM45,(X90+AM35*D19)/AN45,(X91+AM35*D19)/AO45)*AP45 -> 439.3333333 | BH87: =MIN((Y87+AM35*D19)/AK45,(Y88+AM35*D19)/AL45,(Y89+AM35*D19)/AM45,(Y90+AM35*D19)/AN45,(Y91+AM35*D19)/AO45)*AP45 -> 433.3333333 | BI87: =MIN((Z87+AM35*D19)/AK45,(Z88+AM35*D19)/AL45,(Z89+AM35*D19)/AM45,(Z90+AM35*D19)/AN45,(Z91+AM35*D19)/AO45)*AP45 -> 392.6666667 | BJ87: =MIN((AA87+AM35*D19)/AK45,(AA88+AM35*D19)/AL45,(AA89+AM35*D19)/AM45,(AA90+AM35*D19)/AN45,(AA91+AM35*D19)/AO45)*AP45 -> 433.3333333 | BK87: =MIN((AB87+AM35*D19)/AK45,(AB88+AM35*D19)/AL45,(AB89+AM35*D19)/AM45,(AB90+AM35*D19)/AN45,(AB91+AM35*D19)/AO45)*AP45 -> 430 | BL87: =MIN((AC87+AM35*D19)/AK45,(AC88+AM35*D19)/AL45,(AC89+AM35*D19)/AM45,(AC90+AM35*D19)/AN45,(AC91+AM35*D19)/AO45)*AP45 -> 433.3333333 | BM87: =MIN((AD87+AM35*D19)/AK45,(AD88+AM35*D19)/AL45,(AD89+AM35*D19)/AM45,(AD90+AM35*D19)/AN45,(AD91+AM35*D19)/AO45)*AP45 -> 392.6666667 | BN87: =MIN((AE87+AM35*D19)/AK45,(AE88+AM35*D19)/AL45,(AE89+AM35*D19)/AM45,(AE90+AM35*D19)/AN45,(AE91+AM35*D19)/AO45)*AP45 -> 423.3333333 | BO87: =MIN((AF87+AM35*D19)/AK45,(AF88+AM35*D19)/AL45,(AF89+AM35*D19)/AM45,(AF90+AM35*D19)/AN45,(AF91+AM35*D19)/AO45)*AP45 -> 426.6666667 | BP87: 441.3333333 | BR87: =BB109 -> kit 1 | BS87: kit 2/3 | BT87: 0 | BU87: kit 4 | BV87: 0 | BW87: kit 5 | BX87: kit 6/7 | BY87: 0 | BZ87: 0 | CA87: kit 8 | CB87: kit 9 | CC87: 0 | CD87: kit 10 | CE87: kit 11 | CF87: australie 11 | CH87: 292.8945 | CI87: 292.8945 | CJ87: 585.789 | CK87: 351.482 | CL87: 234.3285 | CM87: 585.8105 | CN87: 410.0695 | CO87: 175.741 | CP87: 585.8105 | CQ87: 702.9855 | CR87: 468.657 | CS87: 1171.6425 | CT87: 820.1605 | CU87: 351.482 | CV87: 1171.6425 | CW87: 1054.489 | CX87: 117.1535 | CY87: 1171.6425 | CZ87: 292.8945 | DA87: 292.8945 | DB87: 585.789 | DC87: 351.482 | DD87: 234.3285 | DE87: 585.8105 | DF87: 468.657 | DG87: 117.1535 | DH87: 585.8105 | DI87: 292.8945 | DJ87: 292.8945 | DK87: 585.789 | DL87: 350.0845 | DM87: 233.3825 | DN87: 583.467 | DO87: 468.657 | DP87: 117.1535 | DQ87: 585.8105
E88: 541 offensif | H88: 433 offensif | K88: 352 offensif | N88: 442 offensif | R88: =I15+AH40+D15+D17+D21+D19*AG12 -> 572 | S88: =R88+Q11 -> 652 | T88: =R88+R11 -> 624 | U88: =R88+S11 -> 572 | V88: =R88+T11 -> 617 | W88: =R88+U11 -> 572 | X88: =R88+V11 -> 628 | Y88: =R88+W11 -> 633 | Z88: =R88+X11 -> 572 | AA88: =R88+Y11 -> 633 | AB88: =R88+Z11 -> 636 | AC88: =R88+AA11 -> 640 | AD88: =R88+AB11 -> 572 | AE88: =R88+AC11 -> 640 | AF88: =R88+AD11 -> 636 | AJ88: slovenie 6 | AK88: =MIN((S94+AL35*D19)/AK44,(S95+AL35*D19)/AL44,(S96+AL35*D19)/AM44,(S97+AL35*D19)/AN44,(S98+AL35*D19)/AO44)*AP44 -> 386.6666667 | AL88: =MIN((T94+AL35*D19)/AK44,(T95+AL35*D19)/AL44,(T96+AL35*D19)/AM44,(T97+AL35*D19)/AN44,(T98+AL35*D19)/AO44)*AP44 -> 416 | AM88: =MIN((U94+AL35*D19)/AK44,(U95+AL35*D19)/AL44,(U96+AL35*D19)/AM44,(U97+AL35*D19)/AN44,(U98+AL35*D19)/AO44)*AP44 -> 370 | AN88: =MIN((V94+AL35*D19)/AK44,(V95+AL35*D19)/AL44,(V96+AL35*D19)/AM44,(V97+AL35*D19)/AN44,(V98+AL35*D19)/AO44)*AP44 -> 412.6666667 | AO88: =MIN((W94+AL35*D19)/AK44,(W95+AL35*D19)/AL44,(W96+AL35*D19)/AM44,(W97+AL35*D19)/AN44,(W98+AL35*D19)/AO44)*AP44 -> 370 | AP88: =MIN((X94+AL35*D19)/AK44,(X95+AL35*D19)/AL44,(X96+AL35*D19)/AM44,(X97+AL35*D19)/AN44,(X98+AL35*D19)/AO44)*AP44 -> 407.3333333 | AQ88: =MIN((Y94+AL35*D19)/AK44,(Y95+AL35*D19)/AL44,(Y96+AL35*D19)/AM44,(Y97+AL35*D19)/AN44,(Y98+AL35*D19)/AO44)*AP44 -> 410.6666667 | AR88: =MIN((Z94+AL35*D19)/AK44,(Z95+AL35*D19)/AL44,(Z96+AL35*D19)/AM44,(Z97+AL35*D19)/AN44,(Z98+AL35*D19)/AO44)*AP44 -> 370 | AS88: =MIN((AA94+AL35*D19)/AK44,(AA95+AL35*D19)/AL44,(AA96+AL35*D19)/AM44,(AA97+AL35*D19)/AN44,(AA98+AL35*D19)/AO44)*AP44 -> 410.6666667 | AT88: =MIN((AB94+AL35*D19)/AK44,(AB95+AL35*D19)/AL44,(AB96+AL35*D19)/AM44,(AB97+AL35*D19)/AN44,(AB98+AL35*D19)/AO44)*AP44 -> 412.6666667 | AU88: =MIN((AC94+AL35*D19)/AK44,(AC95+AL35*D19)/AL44,(AC96+AL35*D19)/AM44,(AC97+AL35*D19)/AN44,(AC98+AL35*D19)/AO44)*AP44 -> 407.3333333 | AV88: =MIN((AD94+AL35*D19)/AK44,(AD95+AL35*D19)/AL44,(AD96+AL35*D19)/AM44,(AD97+AL35*D19)/AN44,(AD98+AL35*D19)/AO44)*AP44 -> 370 | AW88: =MIN((AE94+AL35*D19)/AK44,(AE95+AL35*D19)/AL44,(AE96+AL35*D19)/AM44,(AE97+AL35*D19)/AN44,(AE98+AL35*D19)/AO44)*AP44 -> 410 | AX88: =MIN((AF94+AL35*D19)/AK44,(AF95+AL35*D19)/AL44,(AF96+AL35*D19)/AM44,(AF97+AL35*D19)/AN44,(AF98+AL35*D19)/AO44)*AP44 -> 412.6666667 | AY88: 416 | BA88: slovenie 6 | BB88: =MIN((S94+AM35*D19)/AK45,(S95+AM35*D19)/AL45,(S96+AM35*D19)/AM45,(S97+AM35*D19)/AN45,(S98+AM35*D19)/AO45)*AP45 -> 410 | BC88: =MIN((T94+AM35*D19)/AK45,(T95+AM35*D19)/AL45,(T96+AM35*D19)/AM45,(T97+AM35*D19)/AN45,(T98+AM35*D19)/AO45)*AP45 -> 428.6666667 | BD88: =MIN((U94+AM35*D19)/AK45,(U95+AM35*D19)/AL45,(U96+AM35*D19)/AM45,(U97+AM35*D19)/AN45,(U98+AM35*D19)/AO45)*AP45 -> 382.6666667 | BE88: =MIN((V94+AM35*D19)/AK45,(V95+AM35*D19)/AL45,(V96+AM35*D19)/AM45,(V97+AM35*D19)/AN45,(V98+AM35*D19)/AO45)*AP45 -> 431.3333333 | BF88: =MIN((W94+AM35*D19)/AK45,(W95+AM35*D19)/AL45,(W96+AM35*D19)/AM45,(W97+AM35*D19)/AN45,(W98+AM35*D19)/AO45)*AP45 -> 382.6666667 | BG88: =MIN((X94+AM35*D19)/AK45,(X95+AM35*D19)/AL45,(X96+AM35*D19)/AM45,(X97+AM35*D19)/AN45,(X98+AM35*D19)/AO45)*AP45 -> 429.3333333 | BH88: =MIN((Y94+AM35*D19)/AK45,(Y95+AM35*D19)/AL45,(Y96+AM35*D19)/AM45,(Y97+AM35*D19)/AN45,(Y98+AM35*D19)/AO45)*AP45 -> 423.3333333 | BI88: =MIN((Z94+AM35*D19)/AK45,(Z95+AM35*D19)/AL45,(Z96+AM35*D19)/AM45,(Z97+AM35*D19)/AN45,(Z98+AM35*D19)/AO45)*AP45 -> 382.6666667 | BJ88: =MIN((AA94+AM35*D19)/AK45,(AA95+AM35*D19)/AL45,(AA96+AM35*D19)/AM45,(AA97+AM35*D19)/AN45,(AA98+AM35*D19)/AO45)*AP45 -> 423.3333333 | BK88: =MIN((AB94+AM35*D19)/AK45,(AB95+AM35*D19)/AL45,(AB96+AM35*D19)/AM45,(AB97+AM35*D19)/AN45,(AB98+AM35*D19)/AO45)*AP45 -> 420 | BL88: =MIN((AC94+AM35*D19)/AK45,(AC95+AM35*D19)/AL45,(AC96+AM35*D19)/AM45,(AC97+AM35*D19)/AN45,(AC98+AM35*D19)/AO45)*AP45 -> 423.3333333 | BM88: =MIN((AD94+AM35*D19)/AK45,(AD95+AM35*D19)/AL45,(AD96+AM35*D19)/AM45,(AD97+AM35*D19)/AN45,(AD98+AM35*D19)/AO45)*AP45 -> 382.6666667 | BN88: =MIN((AE94+AM35*D19)/AK45,(AE95+AM35*D19)/AL45,(AE96+AM35*D19)/AM45,(AE97+AM35*D19)/AN45,(AE98+AM35*D19)/AO45)*AP45 -> 413.3333333 | BO88: =MIN((AF94+AM35*D19)/AK45,(AF95+AM35*D19)/AL45,(AF96+AM35*D19)/AM45,(AF97+AM35*D19)/AN45,(AF98+AM35*D19)/AO45)*AP45 -> 416.6666667 | BP88: 431.3333333 | BR88: =BB109 -> kit 1 | BS88: kit 2/3 | BT88: 0 | BU88: kit 4 | BV88: 0 | BW88: kit 5 | BX88: kit 6/7 | BY88: 0 | BZ88: 0 | CA88: kit 8 | CB88: kit 9 | CC88: 0 | CD88: kit 10 | CE88: kit 11 | CF88: grece 9 | CH88: 531.3304286 | CI88: 227.6987143 | CJ88: 759.0291429 | CK88: 607.23 | CL88: 151.7991429 | CM88: 759.0291429 | CN88: 751.4575714 | CO88: 7.588285714 | CP88: 759.0458571 | CQ88: 683.1295714 | CR88: 75.89957143 | CS88: 759.0291429 | CT88: 683.1295714 | CU88: 75.89957143 | CV88: 759.0291429 | CW88: 683.1295714 | CX88: 75.89957143 | CY88: 759.0291429 | CZ88: 425.061 | DA88: 182.169 | DB88: 607.23 | DC88: 485.784 | DD88: 121.446 | DE88: 607.23 | DF88: 546.507 | DG88: 60.723 | DH88: 607.23 | DI88: 425.061 | DJ88: 182.169 | DK88: 607.23 | DL88: 546.507 | DM88: 60.723 | DN88: 607.23 | DO88: 546.507 | DP88: 60.723 | DQ88: 607.23
E89: 1% attaque | F89: 1% defense | G89: 1% cumulé | H89: 1% attaque | I89: 1% defense | J89: 1% cumulé | K89: 1% attaque | L89: 1% defense | M89: 1% cumulé | N89: 1% attaque | O89: 1% defense | P89: 1% cumulé | R89: =J15+AH41+D15+D17+D21+D19*AG12 -> 564 | S89: =R89+Q12 -> 605 | T89: =R89+R12 -> 624 | U89: =R89+S12 -> 564 | V89: =R89+T12 -> 637 | W89: =R89+U12 -> 564 | X89: =R89+V12 -> 620 | Y89: =R89+W12 -> 625 | Z89: =R89+X12 -> 564 | AA89: =R89+Y12 -> 625 | AB89: =R89+Z12 -> 628 | AC89: =R89+AA12 -> 632 | AD89: =R89+AB12 -> 564 | AE89: =R89+AC12 -> 617 | AF89: =R89+AD12 -> 635 | AJ89: grece 7 | AK89: =MIN((S101+AL35*D19)/AK44,(S102+AL35*D19)/AL44,(S103+AL35*D19)/AM44,(S104+AL35*D19)/AN44,(S105+AL35*D19)/AO44)*AP44 -> 392.6666667 | AL89: =MIN((T101+AL35*D19)/AK44,(T102+AL35*D19)/AL44,(T103+AL35*D19)/AM44,(T104+AL35*D19)/AN44,(T105+AL35*D19)/AO44)*AP44 -> 422 | AM89: =MIN((U101+AL35*D19)/AK44,(U102+AL35*D19)/AL44,(U103+AL35*D19)/AM44,(U104+AL35*D19)/AN44,(U105+AL35*D19)/AO44)*AP44 -> 376 | AN89: =MIN((V101+AL35*D19)/AK44,(V102+AL35*D19)/AL44,(V103+AL35*D19)/AM44,(V104+AL35*D19)/AN44,(V105+AL35*D19)/AO44)*AP44 -> 418.6666667 | AO89: =MIN((W101+AL35*D19)/AK44,(W102+AL35*D19)/AL44,(W103+AL35*D19)/AM44,(W104+AL35*D19)/AN44,(W105+AL35*D19)/AO44)*AP44 -> 376 | AP89: =MIN((X101+AL35*D19)/AK44,(X102+AL35*D19)/AL44,(X103+AL35*D19)/AM44,(X104+AL35*D19)/AN44,(X105+AL35*D19)/AO44)*AP44 -> 413.3333333 | AQ89: =MIN((Y101+AL35*D19)/AK44,(Y102+AL35*D19)/AL44,(Y103+AL35*D19)/AM44,(Y104+AL35*D19)/AN44,(Y105+AL35*D19)/AO44)*AP44 -> 416.6666667 | AR89: =MIN((Z101+AL35*D19)/AK44,(Z102+AL35*D19)/AL44,(Z103+AL35*D19)/AM44,(Z104+AL35*D19)/AN44,(Z105+AL35*D19)/AO44)*AP44 -> 376 | AS89: =MIN((AA101+AL35*D19)/AK44,(AA102+AL35*D19)/AL44,(AA103+AL35*D19)/AM44,(AA104+AL35*D19)/AN44,(AA105+AL35*D19)/AO44)*AP44 -> 416.6666667 | AT89: =MIN((AB101+AL35*D19)/AK44,(AB102+AL35*D19)/AL44,(AB103+AL35*D19)/AM44,(AB104+AL35*D19)/AN44,(AB105+AL35*D19)/AO44)*AP44 -> 418.6666667 | AU89: =MIN((AC101+AL35*D19)/AK44,(AC102+AL35*D19)/AL44,(AC103+AL35*D19)/AM44,(AC104+AL35*D19)/AN44,(AC105+AL35*D19)/AO44)*AP44 -> 413.3333333 | AV89: =MIN((AD101+AL35*D19)/AK44,(AD102+AL35*D19)/AL44,(AD103+AL35*D19)/AM44,(AD104+AL35*D19)/AN44,(AD105+AL35*D19)/AO44)*AP44 -> 376 | AW89: =MIN((AE101+AL35*D19)/AK44,(AE102+AL35*D19)/AL44,(AE103+AL35*D19)/AM44,(AE104+AL35*D19)/AN44,(AE105+AL35*D19)/AO44)*AP44 -> 416 | AX89: =MIN((AF101+AL35*D19)/AK44,(AF102+AL35*D19)/AL44,(AF103+AL35*D19)/AM44,(AF104+AL35*D19)/AN44,(AF105+AL35*D19)/AO44)*AP44 -> 418.6666667 | AY89: 422 | BA89: grece 7 | BB89: =MIN((S101+AM35*D19)/AK45,(S102+AM35*D19)/AL45,(S103+AM35*D19)/AM45,(S104+AM35*D19)/AN45,(S105+AM35*D19)/AO45)*AP45 -> 415.3333333 | BC89: =MIN((T101+AM35*D19)/AK45,(T102+AM35*D19)/AL45,(T103+AM35*D19)/AM45,(T104+AM35*D19)/AN45,(T105+AM35*D19)/AO45)*AP45 -> 434 | BD89: =MIN((U101+AM35*D19)/AK45,(U102+AM35*D19)/AL45,(U103+AM35*D19)/AM45,(U104+AM35*D19)/AN45,(U105+AM35*D19)/AO45)*AP45 -> 388 | BE89: =MIN((V101+AM35*D19)/AK45,(V102+AM35*D19)/AL45,(V103+AM35*D19)/AM45,(V104+AM35*D19)/AN45,(V105+AM35*D19)/AO45)*AP45 -> 436.6666667 | BF89: =MIN((W101+AM35*D19)/AK45,(W102+AM35*D19)/AL45,(W103+AM35*D19)/AM45,(W104+AM35*D19)/AN45,(W105+AM35*D19)/AO45)*AP45 -> 388 | BG89: =MIN((X101+AM35*D19)/AK45,(X102+AM35*D19)/AL45,(X103+AM35*D19)/AM45,(X104+AM35*D19)/AN45,(X105+AM35*D19)/AO45)*AP45 -> 434.6666667 | BH89: =MIN((Y101+AM35*D19)/AK45,(Y102+AM35*D19)/AL45,(Y103+AM35*D19)/AM45,(Y104+AM35*D19)/AN45,(Y105+AM35*D19)/AO45)*AP45 -> 428.6666667 | BI89: =MIN((Z101+AM35*D19)/AK45,(Z102+AM35*D19)/AL45,(Z103+AM35*D19)/AM45,(Z104+AM35*D19)/AN45,(Z105+AM35*D19)/AO45)*AP45 -> 388 | BJ89: =MIN((AA101+AM35*D19)/AK45,(AA102+AM35*D19)/AL45,(AA103+AM35*D19)/AM45,(AA104+AM35*D19)/AN45,(AA105+AM35*D19)/AO45)*AP45 -> 428.6666667 | BK89: =MIN((AB101+AM35*D19)/AK45,(AB102+AM35*D19)/AL45,(AB103+AM35*D19)/AM45,(AB104+AM35*D19)/AN45,(AB105+AM35*D19)/AO45)*AP45 -> 425.3333333 | BL89: =MIN((AC101+AM35*D19)/AK45,(AC102+AM35*D19)/AL45,(AC103+AM35*D19)/AM45,(AC104+AM35*D19)/AN45,(AC105+AM35*D19)/AO45)*AP45 -> 428.6666667 | BM89: =MIN((AD101+AM35*D19)/AK45,(AD102+AM35*D19)/AL45,(AD103+AM35*D19)/AM45,(AD104+AM35*D19)/AN45,(AD105+AM35*D19)/AO45)*AP45 -> 388 | BN89: =MIN((AE101+AM35*D19)/AK45,(AE102+AM35*D19)/AL45,(AE103+AM35*D19)/AM45,(AE104+AM35*D19)/AN45,(AE105+AM35*D19)/AO45)*AP45 -> 418.6666667 | BO89: =MIN((AF101+AM35*D19)/AK45,(AF102+AM35*D19)/AL45,(AF103+AM35*D19)/AM45,(AF104+AM35*D19)/AN45,(AF105+AM35*D19)/AO45)*AP45 -> 422 | BP89: 436.6666667 | BR89: =BB109 -> kit 1 | BS89: kit 2/3 | BT89: 0 | BU89: kit 4 | BV89: 0 | BW89: kit 5 | BX89: kit 6/7 | BY89: 0 | BZ89: 0 | CA89: kit 8 | CB89: kit 9 | CC89: 0 | CD89: kit 10 | CE89: kit 11 | CF89: nigeria 8 | CH89: 261.0916 | CI89: 391.6374 | CJ89: 652.729 | CK89: 456.9103 | CL89: 195.8187 | CM89: 652.729 | CN89: 522.1832 | CO89: 130.5458 | CP89: 652.729 | CQ89: 391.6374 | CR89: 261.0916 | CS89: 652.729 | CT89: 522.1832 | CU89: 130.5458 | CV89: 652.729 | CW89: 587.4561 | CX89: 65.2729 | CY89: 652.729 | CZ89: 342.6782333 | DA89: 146.8595333 | DB89: 489.5377667 | DC89: 342.6782333 | DD89: 146.8595333 | DE89: 489.5377667 | DF89: 391.6374 | DG89: 97.90036667 | DH89: 489.5377667 | DI89: 489.5377667 | DJ89: 489.5377667 | DK89: 979.0755333 | DL89: 685.3744333 | DM89: 293.7190667 | DN89: 979.0935 | DO89: 685.3744333 | DP89: 293.7190667 | DQ89: 979.0935
E90: 0.05445 | F90: 2.67025 | G90: =E90+F90 -> 2.7247 | H90: 0.27245 | I90: 2.4523 | J90: =H90+I90 -> 2.72475 | K90: 0.05445 | L90: 2.67025 | M90: =K90+L90 -> 2.7247 | N90: 0.05445 | O90: 2.67025 | P90: =N90+O90 -> 2.7247 | R90: =K15+AH42+D16+D17+D21+D19*AG12 -> 532 | S90: =R90+Q13 -> 557 | T90: =R90+R13 -> 601 | U90: =R90+S13 -> 532 | V90: =R90+T13 -> 596 | W90: =R90+U13 -> 532 | X90: =R90+V13 -> 588 | Y90: =R90+W13 -> 593 | Z90: =R90+X13 -> 532 | AA90: =R90+Y13 -> 593 | AB90: =R90+Z13 -> 596 | AC90: =R90+AA13 -> 588 | AD90: =R90+AB13 -> 532 | AE90: =R90+AC13 -> 592 | AF90: =R90+AD13 -> 596 | AJ90: australie 11 | AK90: =MIN((S108+AL35*D19)/AK44,(S109+AL35*D19)/AL44,(S110+AL35*D19)/AM44,(S111+AL35*D19)/AN44,(S112+AL35*D19)/AO44)*AP44 -> 404 | AL90: =MIN((T108+AL35*D19)/AK44,(T109+AL35*D19)/AL44,(T110+AL35*D19)/AM44,(T111+AL35*D19)/AN44,(T112+AL35*D19)/AO44)*AP44 -> 433.3333333 | AM90: =MIN((U108+AL35*D19)/AK44,(U109+AL35*D19)/AL44,(U110+AL35*D19)/AM44,(U111+AL35*D19)/AN44,(U112+AL35*D19)/AO44)*AP44 -> 387.3333333 | AN90: =MIN((V108+AL35*D19)/AK44,(V109+AL35*D19)/AL44,(V110+AL35*D19)/AM44,(V111+AL35*D19)/AN44,(V112+AL35*D19)/AO44)*AP44 -> 430 | AO90: =MIN((W108+AL35*D19)/AK44,(W109+AL35*D19)/AL44,(W110+AL35*D19)/AM44,(W111+AL35*D19)/AN44,(W112+AL35*D19)/AO44)*AP44 -> 387.3333333 | AP90: =MIN((X108+AL35*D19)/AK44,(X109+AL35*D19)/AL44,(X110+AL35*D19)/AM44,(X111+AL35*D19)/AN44,(X112+AL35*D19)/AO44)*AP44 -> 424.6666667 | AQ90: =MIN((Y108+AL35*D19)/AK44,(Y109+AL35*D19)/AL44,(Y110+AL35*D19)/AM44,(Y111+AL35*D19)/AN44,(Y112+AL35*D19)/AO44)*AP44 -> 428 | AR90: =MIN((Z108+AL35*D19)/AK44,(Z109+AL35*D19)/AL44,(Z110+AL35*D19)/AM44,(Z111+AL35*D19)/AN44,(Z112+AL35*D19)/AO44)*AP44 -> 387.3333333 | AS90: =MIN((AA108+AL35*D19)/AK44,(AA109+AL35*D19)/AL44,(AA110+AL35*D19)/AM44,(AA111+AL35*D19)/AN44,(AA112+AL35*D19)/AO44)*AP44 -> 428 | AT90: =MIN((AB108+AL35*D19)/AK44,(AB109+AL35*D19)/AL44,(AB110+AL35*D19)/AM44,(AB111+AL35*D19)/AN44,(AB112+AL35*D19)/AO44)*AP44 -> 430 | AU90: =MIN((AC108+AL35*D19)/AK44,(AC109+AL35*D19)/AL44,(AC110+AL35*D19)/AM44,(AC111+AL35*D19)/AN44,(AC112+AL35*D19)/AO44)*AP44 -> 424.6666667 | AV90: =MIN((AD108+AL35*D19)/AK44,(AD109+AL35*D19)/AL44,(AD110+AL35*D19)/AM44,(AD111+AL35*D19)/AN44,(AD112+AL35*D19)/AO44)*AP44 -> 387.3333333 | AW90: =MIN((AE108+AL35*D19)/AK44,(AE109+AL35*D19)/AL44,(AE110+AL35*D19)/AM44,(AE111+AL35*D19)/AN44,(AE112+AL35*D19)/AO44)*AP44 -> 427.3333333 | AX90: =MIN((AF108+AL35*D19)/AK44,(AF109+AL35*D19)/AL44,(AF110+AL35*D19)/AM44,(AF111+AL35*D19)/AN44,(AF112+AL35*D19)/AO44)*AP44 -> 430 | AY90: 433.3333333 | BA90: australie 11 | BB90: =MIN((S108+AM35*D19)/AK45,(S109+AM35*D19)/AL45,(S110+AM35*D19)/AM45,(S111+AM35*D19)/AN45,(S112+AM35*D19)/AO45)*AP45 -> 380.6666667 | BC90: =MIN((T108+AM35*D19)/AK45,(T109+AM35*D19)/AL45,(T110+AM35*D19)/AM45,(T111+AM35*D19)/AN45,(T112+AM35*D19)/AO45)*AP45 -> 399.3333333 | BD90: =MIN((U108+AM35*D19)/AK45,(U109+AM35*D19)/AL45,(U110+AM35*D19)/AM45,(U111+AM35*D19)/AN45,(U112+AM35*D19)/AO45)*AP45 -> 353.3333333 | BE90: =MIN((V108+AM35*D19)/AK45,(V109+AM35*D19)/AL45,(V110+AM35*D19)/AM45,(V111+AM35*D19)/AN45,(V112+AM35*D19)/AO45)*AP45 -> 402 | BF90: =MIN((W108+AM35*D19)/AK45,(W109+AM35*D19)/AL45,(W110+AM35*D19)/AM45,(W111+AM35*D19)/AN45,(W112+AM35*D19)/AO45)*AP45 -> 353.3333333 | BG90: =MIN((X108+AM35*D19)/AK45,(X109+AM35*D19)/AL45,(X110+AM35*D19)/AM45,(X111+AM35*D19)/AN45,(X112+AM35*D19)/AO45)*AP45 -> 400 | BH90: =MIN((Y108+AM35*D19)/AK45,(Y109+AM35*D19)/AL45,(Y110+AM35*D19)/AM45,(Y111+AM35*D19)/AN45,(Y112+AM35*D19)/AO45)*AP45 -> 394 | BI90: =MIN((Z108+AM35*D19)/AK45,(Z109+AM35*D19)/AL45,(Z110+AM35*D19)/AM45,(Z111+AM35*D19)/AN45,(Z112+AM35*D19)/AO45)*AP45 -> 353.3333333 | BJ90: =MIN((AA108+AM35*D19)/AK45,(AA109+AM35*D19)/AL45,(AA110+AM35*D19)/AM45,(AA111+AM35*D19)/AN45,(AA112+AM35*D19)/AO45)*AP45 -> 394 | BK90: =MIN((AB108+AM35*D19)/AK45,(AB109+AM35*D19)/AL45,(AB110+AM35*D19)/AM45,(AB111+AM35*D19)/AN45,(AB112+AM35*D19)/AO45)*AP45 -> 390.6666667 | BL90: =MIN((AC108+AM35*D19)/AK45,(AC109+AM35*D19)/AL45,(AC110+AM35*D19)/AM45,(AC111+AM35*D19)/AN45,(AC112+AM35*D19)/AO45)*AP45 -> 394 | BM90: =MIN((AD108+AM35*D19)/AK45,(AD109+AM35*D19)/AL45,(AD110+AM35*D19)/AM45,(AD111+AM35*D19)/AN45,(AD112+AM35*D19)/AO45)*AP45 -> 353.3333333 | BN90: =MIN((AE108+AM35*D19)/AK45,(AE109+AM35*D19)/AL45,(AE110+AM35*D19)/AM45,(AE111+AM35*D19)/AN45,(AE112+AM35*D19)/AO45)*AP45 -> 384 | BO90: =MIN((AF108+AM35*D19)/AK45,(AF109+AM35*D19)/AL45,(AF110+AM35*D19)/AM45,(AF111+AM35*D19)/AN45,(AF112+AM35*D19)/AO45)*AP45 -> 387.3333333 | BP90: 402 | BR90: =BB109 -> kit 1 | BS90: kit 2/3 | BT90: 0 | BU90: kit 4 | BV90: 0 | BW90: kit 5 | BX90: kit 6/7 | BY90: 0 | BZ90: 0 | CA90: kit 8 | CB90: kit 9 | CC90: 0 | CD90: kit 10 | CE90: kit 11 | CF90: slovaquie 8 | CH90: 345.4877333 | CI90: 230.3322 | CJ90: 575.8199333 | CK90: 403.0760667 | CL90: 172.7438667 | CM90: 575.8199333 | CN90: 403.0760667 | CO90: 172.7438667 | CP90: 575.8199333 | CQ90: 690.9966 | CR90: 460.6644 | CS90: 1151.661 | CT90: 806.1732667 | CU90: 345.4877333 | CV90: 1151.661 | CW90: 1036.505467 | CX90: 115.1555333 | CY90: 1151.661 | CZ90: 460.6644 | DA90: 307.1096 | DB90: 767.774 | DC90: 537.4418 | DD90: 230.3322 | DE90: 767.774 | DF90: 614.2192 | DG90: 153.5548 | DH90: 767.774 | DI90: 537.4418 | DJ90: 230.3322 | DK90: 767.774 | DL90: 537.4418 | DM90: 230.3322 | DN90: 767.774 | DO90: 614.2192 | DP90: 153.5548 | DQ90: 767.774
E91: 0.4087 | F91: 0.95365 | G91: =E91+F91 -> 1.36235 | H91: 0.95365 | I91: 0.4087 | J91: 1.36235 | K91: 1.36235 | L91: 0.90825 | M91: =K91+L91 -> 2.2706 | N91: 0.8174 | O91: 0.54495 | P91: =N91+O91 -> 1.36235 | R91: =L15+AH43+D15+D17+D21+D19*AG12 -> 470 | S91: =R91+Q14 -> 526 | T91: =R91+R14 -> 522 | U91: =R91+S14 -> 470 | V91: =R91+T14 -> 515 | W91: =R91+U14 -> 470 | X91: =R91+V14 -> 526 | Y91: =R91+W14 -> 523 | Z91: =R91+X14 -> 470 | AA91: =R91+Y14 -> 523 | AB91: =R91+Z14 -> 518 | AC91: =R91+AA14 -> 519 | AD91: =R91+AB14 -> 470 | AE91: =R91+AC14 -> 530 | AF91: =R91+AD14 -> 514 | AJ91: grece 9 | AK91: =MIN((S115+AL35*D19)/AK44,(S116+AL35*D19)/AL44,(S117+AL35*D19)/AM44,(S118+AL35*D19)/AN44,(S119+AL35*D19)/AO44)*AP44 -> 314 | AL91: =MIN((T115+AL35*D19)/AK44,(T116+AL35*D19)/AL44,(T117+AL35*D19)/AM44,(T118+AL35*D19)/AN44,(T119+AL35*D19)/AO44)*AP44 -> 343.3333333 | AM91: =MIN((U115+AL35*D19)/AK44,(U116+AL35*D19)/AL44,(U117+AL35*D19)/AM44,(U118+AL35*D19)/AN44,(U119+AL35*D19)/AO44)*AP44 -> 297.3333333 | AN91: =MIN((V115+AL35*D19)/AK44,(V116+AL35*D19)/AL44,(V117+AL35*D19)/AM44,(V118+AL35*D19)/AN44,(V119+AL35*D19)/AO44)*AP44 -> 340 | AO91: =MIN((W115+AL35*D19)/AK44,(W116+AL35*D19)/AL44,(W117+AL35*D19)/AM44,(W118+AL35*D19)/AN44,(W119+AL35*D19)/AO44)*AP44 -> 297.3333333 | AP91: =MIN((X115+AL35*D19)/AK44,(X116+AL35*D19)/AL44,(X117+AL35*D19)/AM44,(X118+AL35*D19)/AN44,(X119+AL35*D19)/AO44)*AP44 -> 334.6666667 | AQ91: =MIN((Y115+AL35*D19)/AK44,(Y116+AL35*D19)/AL44,(Y117+AL35*D19)/AM44,(Y118+AL35*D19)/AN44,(Y119+AL35*D19)/AO44)*AP44 -> 338 | AR91: =MIN((Z115+AL35*D19)/AK44,(Z116+AL35*D19)/AL44,(Z117+AL35*D19)/AM44,(Z118+AL35*D19)/AN44,(Z119+AL35*D19)/AO44)*AP44 -> 297.3333333 | AS91: =MIN((AA115+AL35*D19)/AK44,(AA116+AL35*D19)/AL44,(AA117+AL35*D19)/AM44,(AA118+AL35*D19)/AN44,(AA119+AL35*D19)/AO44)*AP44 -> 338 | AT91: =MIN((AB115+AL35*D19)/AK44,(AB116+AL35*D19)/AL44,(AB117+AL35*D19)/AM44,(AB118+AL35*D19)/AN44,(AB119+AL35*D19)/AO44)*AP44 -> 340 | AU91: =MIN((AC115+AL35*D19)/AK44,(AC116+AL35*D19)/AL44,(AC117+AL35*D19)/AM44,(AC118+AL35*D19)/AN44,(AC119+AL35*D19)/AO44)*AP44 -> 334.6666667 | AV91: =MIN((AD115+AL35*D19)/AK44,(AD116+AL35*D19)/AL44,(AD117+AL35*D19)/AM44,(AD118+AL35*D19)/AN44,(AD119+AL35*D19)/AO44)*AP44 -> 297.3333333 | AW91: =MIN((AE115+AL35*D19)/AK44,(AE116+AL35*D19)/AL44,(AE117+AL35*D19)/AM44,(AE118+AL35*D19)/AN44,(AE119+AL35*D19)/AO44)*AP44 -> 337.3333333 | AX91: =MIN((AF115+AL35*D19)/AK44,(AF116+AL35*D19)/AL44,(AF117+AL35*D19)/AM44,(AF118+AL35*D19)/AN44,(AF119+AL35*D19)/AO44)*AP44 -> 340 | AY91: 343.3333333 | BA91: grece 9 | BB91: =MIN((S115+AM35*D19)/AK45,(S116+AM35*D19)/AL45,(S117+AM35*D19)/AM45,(S118+AM35*D19)/AN45,(S119+AM35*D19)/AO45)*AP45 -> 376.6666667 | BC91: =MIN((T115+AM35*D19)/AK45,(T116+AM35*D19)/AL45,(T117+AM35*D19)/AM45,(T118+AM35*D19)/AN45,(T119+AM35*D19)/AO45)*AP45 -> 395.3333333 | BD91: =MIN((U115+AM35*D19)/AK45,(U116+AM35*D19)/AL45,(U117+AM35*D19)/AM45,(U118+AM35*D19)/AN45,(U119+AM35*D19)/AO45)*AP45 -> 349.3333333 | BE91: =MIN((V115+AM35*D19)/AK45,(V116+AM35*D19)/AL45,(V117+AM35*D19)/AM45,(V118+AM35*D19)/AN45,(V119+AM35*D19)/AO45)*AP45 -> 398 | BF91: =MIN((W115+AM35*D19)/AK45,(W116+AM35*D19)/AL45,(W117+AM35*D19)/AM45,(W118+AM35*D19)/AN45,(W119+AM35*D19)/AO45)*AP45 -> 349.3333333 | BG91: =MIN((X115+AM35*D19)/AK45,(X116+AM35*D19)/AL45,(X117+AM35*D19)/AM45,(X118+AM35*D19)/AN45,(X119+AM35*D19)/AO45)*AP45 -> 396 | BH91: =MIN((Y115+AM35*D19)/AK45,(Y116+AM35*D19)/AL45,(Y117+AM35*D19)/AM45,(Y118+AM35*D19)/AN45,(Y119+AM35*D19)/AO45)*AP45 -> 390 | BI91: =MIN((Z115+AM35*D19)/AK45,(Z116+AM35*D19)/AL45,(Z117+AM35*D19)/AM45,(Z118+AM35*D19)/AN45,(Z119+AM35*D19)/AO45)*AP45 -> 349.3333333 | BJ91: =MIN((AA115+AM35*D19)/AK45,(AA116+AM35*D19)/AL45,(AA117+AM35*D19)/AM45,(AA118+AM35*D19)/AN45,(AA119+AM35*D19)/AO45)*AP45 -> 390 | BK91: =MIN((AB115+AM35*D19)/AK45,(AB116+AM35*D19)/AL45,(AB117+AM35*D19)/AM45,(AB118+AM35*D19)/AN45,(AB119+AM35*D19)/AO45)*AP45 -> 386.6666667 | BL91: =MIN((AC115+AM35*D19)/AK45,(AC116+AM35*D19)/AL45,(AC117+AM35*D19)/AM45,(AC118+AM35*D19)/AN45,(AC119+AM35*D19)/AO45)*AP45 -> 390 | BM91: =MIN((AD115+AM35*D19)/AK45,(AD116+AM35*D19)/AL45,(AD117+AM35*D19)/AM45,(AD118+AM35*D19)/AN45,(AD119+AM35*D19)/AO45)*AP45 -> 349.3333333 | BN91: =MIN((AE115+AM35*D19)/AK45,(AE116+AM35*D19)/AL45,(AE117+AM35*D19)/AM45,(AE118+AM35*D19)/AN45,(AE119+AM35*D19)/AO45)*AP45 -> 380 | BO91: =MIN((AF115+AM35*D19)/AK45,(AF116+AM35*D19)/AL45,(AF117+AM35*D19)/AM45,(AF118+AM35*D19)/AN45,(AF119+AM35*D19)/AO45)*AP45 -> 383.3333333 | BP91: 398 | BR91: =BB109 -> kit 1 | BS91: kit 2/3 | BT91: 0 | BU91: kit 4 | BV91: 0 | BW91: kit 5 | BX91: kit 6/7 | BY91: 0 | BZ91: 0 | CA91: kit 8 | CB91: kit 9 | CC91: 0 | CD91: kit 10 | CE91: kit 11 | CF91: total | CH91: =SUM(CH80:CH90) -> 2494.295252 | CI91: 6407.159444 | CJ91: 8901.454696 | CK91: 3415.010197 | CL91: 5486.466 | CM91: 8901.476196 | CN91: 4297.675168 | CO91: 4603.817742 | CP91: 8901.49291 | CQ91: 4277.426481 | CR91: 4377.116661 | CS91: 8654.543143 | CT91: 5162.471888 | CU91: 3492.078405 | CV91: 8654.550293 | CW91: 6078.309588 | CX91: 2576.297105 | CY91: 8654.606693 | CZ91: 3479.684083 | DA91: 5325.574583 | DB91: 8805.258667 | DC91: 4407.201603 | DD91: 4398.111663 | DE91: 8805.313267 | DF91: 5288.64955 | DG91: 3516.630617 | DH91: 8805.280167 | DI91: 3490.163417 | DJ91: 5322.552577 | DK91: 8812.715993 | DL91: 4351.947963 | DM91: 4458.489157 | DN91: 8810.43712 | DO91: 5310.944443 | DP91: 3501.836177 | DQ91: 8812.78062
E92: 0.4087 | F92: 0.95365 | G92: 1.36235 | H92: 0.95365 | I92: 0.4087 | J92: 1.36235 | K92: 1.36235 | L92: 0.90825 | M92: 2.2706 | N92: 0.8174 | O92: 0.54495 | P92: 1.36235 | AJ92: nigeria 8 | AK92: =MIN((S122+AL35*D19)/AK44,(S123+AL35*D19)/AL44,(S124+AL35*D19)/AM44,(S125+AL35*D19)/AN44,(S126+AL35*D19)/AO44)*AP44 -> 392.6666667 | AL92: =MIN((T122+AL35*D19)/AK44,(T123+AL35*D19)/AL44,(T124+AL35*D19)/AM44,(T125+AL35*D19)/AN44,(T126+AL35*D19)/AO44)*AP44 -> 422 | AM92: =MIN((U122+AL35*D19)/AK44,(U123+AL35*D19)/AL44,(U124+AL35*D19)/AM44,(U125+AL35*D19)/AN44,(U126+AL35*D19)/AO44)*AP44 -> 376 | AN92: =MIN((V122+AL35*D19)/AK44,(V123+AL35*D19)/AL44,(V124+AL35*D19)/AM44,(V125+AL35*D19)/AN44,(V126+AL35*D19)/AO44)*AP44 -> 418.6666667 | AO92: =MIN((W122+AL35*D19)/AK44,(W123+AL35*D19)/AL44,(W124+AL35*D19)/AM44,(W125+AL35*D19)/AN44,(W126+AL35*D19)/AO44)*AP44 -> 376 | AP92: =MIN((X122+AL35*D19)/AK44,(X123+AL35*D19)/AL44,(X124+AL35*D19)/AM44,(X125+AL35*D19)/AN44,(X126+AL35*D19)/AO44)*AP44 -> 413.3333333 | AQ92: =MIN((Y122+AL35*D19)/AK44,(Y123+AL35*D19)/AL44,(Y124+AL35*D19)/AM44,(Y125+AL35*D19)/AN44,(Y126+AL35*D19)/AO44)*AP44 -> 416.6666667 | AR92: =MIN((Z122+AL35*D19)/AK44,(Z123+AL35*D19)/AL44,(Z124+AL35*D19)/AM44,(Z125+AL35*D19)/AN44,(Z126+AL35*D19)/AO44)*AP44 -> 376 | AS92: =MIN((AA122+AL35*D19)/AK44,(AA123+AL35*D19)/AL44,(AA124+AL35*D19)/AM44,(AA125+AL35*D19)/AN44,(AA126+AL35*D19)/AO44)*AP44 -> 416.6666667 | AT92: =MIN((AB122+AL35*D19)/AK44,(AB123+AL35*D19)/AL44,(AB124+AL35*D19)/AM44,(AB125+AL35*D19)/AN44,(AB126+AL35*D19)/AO44)*AP44 -> 418.6666667 | AU92: =MIN((AC122+AL35*D19)/AK44,(AC123+AL35*D19)/AL44,(AC124+AL35*D19)/AM44,(AC125+AL35*D19)/AN44,(AC126+AL35*D19)/AO44)*AP44 -> 413.3333333 | AV92: =MIN((AD122+AL35*D19)/AK44,(AD123+AL35*D19)/AL44,(AD124+AL35*D19)/AM44,(AD125+AL35*D19)/AN44,(AD126+AL35*D19)/AO44)*AP44 -> 376 | AW92: =MIN((AE122+AL35*D19)/AK44,(AE123+AL35*D19)/AL44,(AE124+AL35*D19)/AM44,(AE125+AL35*D19)/AN44,(AE126+AL35*D19)/AO44)*AP44 -> 416 | AX92: =MIN((AF122+AL35*D19)/AK44,(AF123+AL35*D19)/AL44,(AF124+AL35*D19)/AM44,(AF125+AL35*D19)/AN44,(AF126+AL35*D19)/AO44)*AP44 -> 418.6666667 | AY92: 422 | BA92: nigeria 8 | BB92: =MIN((S122+AM35*D19)/AK45,(S123+AM35*D19)/AL45,(S124+AM35*D19)/AM45,(S125+AM35*D19)/AN45,(S126+AM35*D19)/AO45)*AP45 -> 416 | BC92: =MIN((T122+AM35*D19)/AK45,(T123+AM35*D19)/AL45,(T124+AM35*D19)/AM45,(T125+AM35*D19)/AN45,(T126+AM35*D19)/AO45)*AP45 -> 434.6666667 | BD92: =MIN((U122+AM35*D19)/AK45,(U123+AM35*D19)/AL45,(U124+AM35*D19)/AM45,(U125+AM35*D19)/AN45,(U126+AM35*D19)/AO45)*AP45 -> 388.6666667 | BE92: =MIN((V122+AM35*D19)/AK45,(V123+AM35*D19)/AL45,(V124+AM35*D19)/AM45,(V125+AM35*D19)/AN45,(V126+AM35*D19)/AO45)*AP45 -> 437.3333333 | BF92: =MIN((W122+AM35*D19)/AK45,(W123+AM35*D19)/AL45,(W124+AM35*D19)/AM45,(W125+AM35*D19)/AN45,(W126+AM35*D19)/AO45)*AP45 -> 388.6666667 | BG92: =MIN((X122+AM35*D19)/AK45,(X123+AM35*D19)/AL45,(X124+AM35*D19)/AM45,(X125+AM35*D19)/AN45,(X126+AM35*D19)/AO45)*AP45 -> 435.3333333 | BH92: =MIN((Y122+AM35*D19)/AK45,(Y123+AM35*D19)/AL45,(Y124+AM35*D19)/AM45,(Y125+AM35*D19)/AN45,(Y126+AM35*D19)/AO45)*AP45 -> 429.3333333 | BI92: =MIN((Z122+AM35*D19)/AK45,(Z123+AM35*D19)/AL45,(Z124+AM35*D19)/AM45,(Z125+AM35*D19)/AN45,(Z126+AM35*D19)/AO45)*AP45 -> 388.6666667 | BJ92: =MIN((AA122+AM35*D19)/AK45,(AA123+AM35*D19)/AL45,(AA124+AM35*D19)/AM45,(AA125+AM35*D19)/AN45,(AA126+AM35*D19)/AO45)*AP45 -> 429.3333333 | BK92: =MIN((AB122+AM35*D19)/AK45,(AB123+AM35*D19)/AL45,(AB124+AM35*D19)/AM45,(AB125+AM35*D19)/AN45,(AB126+AM35*D19)/AO45)*AP45 -> 426 | BL92: =MIN((AC122+AM35*D19)/AK45,(AC123+AM35*D19)/AL45,(AC124+AM35*D19)/AM45,(AC125+AM35*D19)/AN45,(AC126+AM35*D19)/AO45)*AP45 -> 429.3333333 | BM92: =MIN((AD122+AM35*D19)/AK45,(AD123+AM35*D19)/AL45,(AD124+AM35*D19)/AM45,(AD125+AM35*D19)/AN45,(AD126+AM35*D19)/AO45)*AP45 -> 388.6666667 | BN92: =MIN((AE122+AM35*D19)/AK45,(AE123+AM35*D19)/AL45,(AE124+AM35*D19)/AM45,(AE125+AM35*D19)/AN45,(AE126+AM35*D19)/AO45)*AP45 -> 419.3333333 | BO92: =MIN((AF122+AM35*D19)/AK45,(AF123+AM35*D19)/AL45,(AF124+AM35*D19)/AM45,(AF125+AM35*D19)/AN45,(AF126+AM35*D19)/AO45)*AP45 -> 422.6666667 | BP92: 437.3333333 | BR92: =BB109 -> kit 1 | BS92: kit 2/3 | BT92: 0 | BU92: kit 4 | BV92: 0 | BW92: kit 5 | BX92: kit 6/7 | BY92: 0 | BZ92: 0 | CA92: kit 8 | CB92: kit 9 | CC92: 0 | CD92: kit 10 | CE92: kit 11 | CF92: rapport atttaque adversaire defense mon équipe et inversement avec bonus stratégie
E93: 0.7266 | F93: 1.0899 | G93: 1.8165 | H93: 0.3633 | I93: 0.54495 | J93: 0.90825 | K93: 0.4541 | L93: 0.4541 | M93: 0.9082 | N93: 0.90825 | O93: 0.90825 | P93: 1.8165 | R93: =G16 -> slovenie 6 | S93: =S86 -> kit 1 | T93: =T86 -> kit 2/3 | U93: 0 | V93: kit 4 | W93: 0 | X93: kit 5 | Y93: kit 6/7 | Z93: 0 | AA93: 0 | AB93: kit 8 | AC93: kit 9 | AD93: 0 | AE93: =AE86 -> kit 10 | AF93: =AF86 -> kit 11 | AJ93: slovaquie 8 | AK93: =MIN((S129+AL35*D19)/AK44,(S130+AL35*D19)/AL44,(S131+AL35*D19)/AM44,(S132+AL35*D19)/AN44,(S133+AL35*D19)/AO44)*AP44 -> 402 | AL93: =MIN((T129+AL35*D19)/AK44,(T130+AL35*D19)/AL44,(T131+AL35*D19)/AM44,(T132+AL35*D19)/AN44,(T133+AL35*D19)/AO44)*AP44 -> 431.3333333 | AM93: =MIN((U129+AL35*D19)/AK44,(U130+AL35*D19)/AL44,(U131+AL35*D19)/AM44,(U132+AL35*D19)/AN44,(U133+AL35*D19)/AO44)*AP44 -> 385.3333333 | AN93: =MIN((V129+AL35*D19)/AK44,(V130+AL35*D19)/AL44,(V131+AL35*D19)/AM44,(V132+AL35*D19)/AN44,(V133+AL35*D19)/AO44)*AP44 -> 428 | AO93: =MIN((W129+AL35*D19)/AK44,(W130+AL35*D19)/AL44,(W131+AL35*D19)/AM44,(W132+AL35*D19)/AN44,(W133+AL35*D19)/AO44)*AP44 -> 385.3333333 | AP93: =MIN((X129+AL35*D19)/AK44,(X130+AL35*D19)/AL44,(X131+AL35*D19)/AM44,(X132+AL35*D19)/AN44,(X133+AL35*D19)/AO44)*AP44 -> 422.6666667 | AQ93: =MIN((Y129+AL35*D19)/AK44,(Y130+AL35*D19)/AL44,(Y131+AL35*D19)/AM44,(Y132+AL35*D19)/AN44,(Y133+AL35*D19)/AO44)*AP44 -> 426 | AR93: =MIN((Z129+AL35*D19)/AK44,(Z130+AL35*D19)/AL44,(Z131+AL35*D19)/AM44,(Z132+AL35*D19)/AN44,(Z133+AL35*D19)/AO44)*AP44 -> 385.3333333 | AS93: =MIN((AA129+AL35*D19)/AK44,(AA130+AL35*D19)/AL44,(AA131+AL35*D19)/AM44,(AA132+AL35*D19)/AN44,(AA133+AL35*D19)/AO44)*AP44 -> 426 | AT93: =MIN((AB129+AL35*D19)/AK44,(AB130+AL35*D19)/AL44,(AB131+AL35*D19)/AM44,(AB132+AL35*D19)/AN44,(AB133+AL35*D19)/AO44)*AP44 -> 428 | AU93: =MIN((AC129+AL35*D19)/AK44,(AC130+AL35*D19)/AL44,(AC131+AL35*D19)/AM44,(AC132+AL35*D19)/AN44,(AC133+AL35*D19)/AO44)*AP44 -> 422.6666667 | AV93: =MIN((AD129+AL35*D19)/AK44,(AD130+AL35*D19)/AL44,(AD131+AL35*D19)/AM44,(AD132+AL35*D19)/AN44,(AD133+AL35*D19)/AO44)*AP44 -> 385.3333333 | AW93: =MIN((AE129+AL35*D19)/AK44,(AE130+AL35*D19)/AL44,(AE131+AL35*D19)/AM44,(AE132+AL35*D19)/AN44,(AE133+AL35*D19)/AO44)*AP44 -> 425.3333333 | AX93: =MIN((AF129+AL35*D19)/AK44,(AF130+AL35*D19)/AL44,(AF131+AL35*D19)/AM44,(AF132+AL35*D19)/AN44,(AF133+AL35*D19)/AO44)*AP44 -> 428 | AY93: 431.3333333 | BA93: slovaquie 8 | BB93: =MIN((S129+AM35*D19)/AK45,(S130+AM35*D19)/AL45,(S131+AM35*D19)/AM45,(S132+AM35*D19)/AN45,(S133+AM35*D19)/AO45)*AP45 -> 376.6666667 | BC93: =MIN((T129+AM35*D19)/AK45,(T130+AM35*D19)/AL45,(T131+AM35*D19)/AM45,(T132+AM35*D19)/AN45,(T133+AM35*D19)/AO45)*AP45 -> 395.3333333 | BD93: =MIN((U129+AM35*D19)/AK45,(U130+AM35*D19)/AL45,(U131+AM35*D19)/AM45,(U132+AM35*D19)/AN45,(U133+AM35*D19)/AO45)*AP45 -> 349.3333333 | BE93: =MIN((V129+AM35*D19)/AK45,(V130+AM35*D19)/AL45,(V131+AM35*D19)/AM45,(V132+AM35*D19)/AN45,(V133+AM35*D19)/AO45)*AP45 -> 398 | BF93: =MIN((W129+AM35*D19)/AK45,(W130+AM35*D19)/AL45,(W131+AM35*D19)/AM45,(W132+AM35*D19)/AN45,(W133+AM35*D19)/AO45)*AP45 -> 349.3333333 | BG93: =MIN((X129+AM35*D19)/AK45,(X130+AM35*D19)/AL45,(X131+AM35*D19)/AM45,(X132+AM35*D19)/AN45,(X133+AM35*D19)/AO45)*AP45 -> 396 | BH93: =MIN((Y129+AM35*D19)/AK45,(Y130+AM35*D19)/AL45,(Y131+AM35*D19)/AM45,(Y132+AM35*D19)/AN45,(Y133+AM35*D19)/AO45)*AP45 -> 390 | BI93: =MIN((Z129+AM35*D19)/AK45,(Z130+AM35*D19)/AL45,(Z131+AM35*D19)/AM45,(Z132+AM35*D19)/AN45,(Z133+AM35*D19)/AO45)*AP45 -> 349.3333333 | BJ93: =MIN((AA129+AM35*D19)/AK45,(AA130+AM35*D19)/AL45,(AA131+AM35*D19)/AM45,(AA132+AM35*D19)/AN45,(AA133+AM35*D19)/AO45)*AP45 -> 390 | BK93: =MIN((AB129+AM35*D19)/AK45,(AB130+AM35*D19)/AL45,(AB131+AM35*D19)/AM45,(AB132+AM35*D19)/AN45,(AB133+AM35*D19)/AO45)*AP45 -> 386.6666667 | BL93: =MIN((AC129+AM35*D19)/AK45,(AC130+AM35*D19)/AL45,(AC131+AM35*D19)/AM45,(AC132+AM35*D19)/AN45,(AC133+AM35*D19)/AO45)*AP45 -> 390 | BM93: =MIN((AD129+AM35*D19)/AK45,(AD130+AM35*D19)/AL45,(AD131+AM35*D19)/AM45,(AD132+AM35*D19)/AN45,(AD133+AM35*D19)/AO45)*AP45 -> 349.3333333 | BN93: =MIN((AE129+AM35*D19)/AK45,(AE130+AM35*D19)/AL45,(AE131+AM35*D19)/AM45,(AE132+AM35*D19)/AN45,(AE133+AM35*D19)/AO45)*AP45 -> 380 | BO93: =MIN((AF129+AM35*D19)/AK45,(AF130+AM35*D19)/AL45,(AF131+AM35*D19)/AM45,(AF132+AM35*D19)/AN45,(AF133+AM35*D19)/AO45)*AP45 -> 383.3333333 | BP93: 398 | BR93: =BB109 -> kit 1 | BS93: kit 2/3 | BT93: 0 | BU93: kit 4 | BV93: 0 | BW93: kit 5 | BX93: kit 6/7 | BY93: 0 | BZ93: 0 | CA93: kit 8 | CB93: kit 9 | CC93: 0 | CD93: kit 10 | CE93: kit 11
E94: 0.7266 | F94: 1.0899 | G94: 1.8165 | H94: 0.95365 | I94: 0.4087 | J94: 1.36235 | K94: 0.4541 | L94: 0.4541 | M94: 0.9082 | N94: 1.0899 | O94: 0.7266 | P94: 1.8165 | R94: =H16+AH39+D16+D17+D21+D19*AG13 -> 574 | S94: =R94+Q10 -> 615 | T94: =R94+R10 -> 643 | U94: =R94+S10 -> 574 | V94: =R94+T10 -> 647 | W94: =R94+U10 -> 574 | X94: =R94+V10 -> 644 | Y94: =R94+W10 -> 635 | Z94: =R94+X10 -> 574 | AA94: =R94+Y10 -> 635 | AB94: =R94+Z10 -> 630 | AC94: =R94+AA10 -> 635 | AD94: =R94+AB10 -> 574 | AE94: =R94+AC10 -> 620 | AF94: =R94+AD10 -> 625 | AJ94: afrique du sud 4 | AK94: =MIN((S136+AL35*D19)/AK44,(S137+AL35*D19)/AL44,(S138+AL35*D19)/AM44,(S139+AL35*D19)/AN44,(S140+AL35*D19)/AO44)*AP44 -> 334.6666667 | AL94: =MIN((T136+AL35*D19)/AK44,(T137+AL35*D19)/AL44,(T138+AL35*D19)/AM44,(T139+AL35*D19)/AN44,(T140+AL35*D19)/AO44)*AP44 -> 364 | AM94: =MIN((U136+AL35*D19)/AK44,(U137+AL35*D19)/AL44,(U138+AL35*D19)/AM44,(U139+AL35*D19)/AN44,(U140+AL35*D19)/AO44)*AP44 -> 318 | AN94: =MIN((V136+AL35*D19)/AK44,(V137+AL35*D19)/AL44,(V138+AL35*D19)/AM44,(V139+AL35*D19)/AN44,(V140+AL35*D19)/AO44)*AP44 -> 360.6666667 | AO94: =MIN((W136+AL35*D19)/AK44,(W137+AL35*D19)/AL44,(W138+AL35*D19)/AM44,(W139+AL35*D19)/AN44,(W140+AL35*D19)/AO44)*AP44 -> 318 | AP94: =MIN((X136+AL35*D19)/AK44,(X137+AL35*D19)/AL44,(X138+AL35*D19)/AM44,(X139+AL35*D19)/AN44,(X140+AL35*D19)/AO44)*AP44 -> 355.3333333 | AQ94: =MIN((Y136+AL35*D19)/AK44,(Y137+AL35*D19)/AL44,(Y138+AL35*D19)/AM44,(Y139+AL35*D19)/AN44,(Y140+AL35*D19)/AO44)*AP44 -> 358.6666667 | AR94: =MIN((Z136+AL35*D19)/AK44,(Z137+AL35*D19)/AL44,(Z138+AL35*D19)/AM44,(Z139+AL35*D19)/AN44,(Z140+AL35*D19)/AO44)*AP44 -> 318 | AS94: =MIN((AA136+AL35*D19)/AK44,(AA137+AL35*D19)/AL44,(AA138+AL35*D19)/AM44,(AA139+AL35*D19)/AN44,(AA140+AL35*D19)/AO44)*AP44 -> 358.6666667 | AT94: =MIN((AB136+AL35*D19)/AK44,(AB137+AL35*D19)/AL44,(AB138+AL35*D19)/AM44,(AB139+AL35*D19)/AN44,(AB140+AL35*D19)/AO44)*AP44 -> 360.6666667 | AU94: =MIN((AC136+AL35*D19)/AK44,(AC137+AL35*D19)/AL44,(AC138+AL35*D19)/AM44,(AC139+AL35*D19)/AN44,(AC140+AL35*D19)/AO44)*AP44 -> 355.3333333 | AV94: =MIN((AD136+AL35*D19)/AK44,(AD137+AL35*D19)/AL44,(AD138+AL35*D19)/AM44,(AD139+AL35*D19)/AN44,(AD140+AL35*D19)/AO44)*AP44 -> 318 | AW94: =MIN((AE136+AL35*D19)/AK44,(AE137+AL35*D19)/AL44,(AE138+AL35*D19)/AM44,(AE139+AL35*D19)/AN44,(AE140+AL35*D19)/AO44)*AP44 -> 358 | AX94: =MIN((AF136+AL35*D19)/AK44,(AF137+AL35*D19)/AL44,(AF138+AL35*D19)/AM44,(AF139+AL35*D19)/AN44,(AF140+AL35*D19)/AO44)*AP44 -> 360.6666667 | AY94: 364 | BA94: afrique du sud 4 | BB94: =MIN((S136+AM35*D19)/AK45,(S137+AM35*D19)/AL45,(S138+AM35*D19)/AM45,(S139+AM35*D19)/AN45,(S140+AM35*D19)/AO45)*AP45 -> 401.6 | BC94: =MIN((T136+AM35*D19)/AK45,(T137+AM35*D19)/AL45,(T138+AM35*D19)/AM45,(T139+AM35*D19)/AN45,(T140+AM35*D19)/AO45)*AP45 -> 436.8 | BD94: =MIN((U136+AM35*D19)/AK45,(U137+AM35*D19)/AL45,(U138+AM35*D19)/AM45,(U139+AM35*D19)/AN45,(U140+AM35*D19)/AO45)*AP45 -> 381.6 | BE94: =MIN((V136+AM35*D19)/AK45,(V137+AM35*D19)/AL45,(V138+AM35*D19)/AM45,(V139+AM35*D19)/AN45,(V140+AM35*D19)/AO45)*AP45 -> 432.8 | BF94: =MIN((W136+AM35*D19)/AK45,(W137+AM35*D19)/AL45,(W138+AM35*D19)/AM45,(W139+AM35*D19)/AN45,(W140+AM35*D19)/AO45)*AP45 -> 381.6 | BG94: =MIN((X136+AM35*D19)/AK45,(X137+AM35*D19)/AL45,(X138+AM35*D19)/AM45,(X139+AM35*D19)/AN45,(X140+AM35*D19)/AO45)*AP45 -> 426.4 | BH94: =MIN((Y136+AM35*D19)/AK45,(Y137+AM35*D19)/AL45,(Y138+AM35*D19)/AM45,(Y139+AM35*D19)/AN45,(Y140+AM35*D19)/AO45)*AP45 -> 430.4 | BI94: =MIN((Z136+AM35*D19)/AK45,(Z137+AM35*D19)/AL45,(Z138+AM35*D19)/AM45,(Z139+AM35*D19)/AN45,(Z140+AM35*D19)/AO45)*AP45 -> 381.6 | BJ94: =MIN((AA136+AM35*D19)/AK45,(AA137+AM35*D19)/AL45,(AA138+AM35*D19)/AM45,(AA139+AM35*D19)/AN45,(AA140+AM35*D19)/AO45)*AP45 -> 430.4 | BK94: =MIN((AB136+AM35*D19)/AK45,(AB137+AM35*D19)/AL45,(AB138+AM35*D19)/AM45,(AB139+AM35*D19)/AN45,(AB140+AM35*D19)/AO45)*AP45 -> 432.6666667 | BL94: =MIN((AC136+AM35*D19)/AK45,(AC137+AM35*D19)/AL45,(AC138+AM35*D19)/AM45,(AC139+AM35*D19)/AN45,(AC140+AM35*D19)/AO45)*AP45 -> 426.4 | BM94: =MIN((AD136+AM35*D19)/AK45,(AD137+AM35*D19)/AL45,(AD138+AM35*D19)/AM45,(AD139+AM35*D19)/AN45,(AD140+AM35*D19)/AO45)*AP45 -> 381.6 | BN94: =MIN((AE136+AM35*D19)/AK45,(AE137+AM35*D19)/AL45,(AE138+AM35*D19)/AM45,(AE139+AM35*D19)/AN45,(AE140+AM35*D19)/AO45)*AP45 -> 426 | BO94: =MIN((AF136+AM35*D19)/AK45,(AF137+AM35*D19)/AL45,(AF138+AM35*D19)/AM45,(AF139+AM35*D19)/AN45,(AF140+AM35*D19)/AO45)*AP45 -> 429.3333333 | BP94: 436.8 | BR94: =BB109 -> kit 1 | BS94: kit 2/3 | BT94: 0 | BU94: kit 4 | BV94: 0 | BW94: kit 5 | BX94: kit 6/7 | BY94: 0 | BZ94: 0 | CA94: kit 8 | CB94: kit 9 | CC94: 0 | CD94: kit 10 | CE94: kit 11 | CG94: tactique adversaire | CJ94: 541 | CS94: 433 | DB94: 352 | DK94: 442
E95: 0.90825 | F95: 1.36235 | G95: 2.2706 | H95: 0.95365 | I95: 0.4087 | J95: 1.36235 | K95: 1.0899 | L95: 0.7266 | M95: 1.8165 | N95: 1.0899 | O95: 0.7266 | P95: 1.8165 | R95: =I16+AH40+D15+D17+D21+D19*AG13 -> 612 | S95: =R95+Q11 -> 692 | T95: =R95+R11 -> 664 | U95: =R95+S11 -> 612 | V95: =R95+T11 -> 657 | W95: =R95+U11 -> 612 | X95: =R95+V11 -> 668 | Y95: =R95+W11 -> 673 | Z95: =R95+X11 -> 612 | AA95: =R95+Y11 -> 673 | AB95: =R95+Z11 -> 676 | AC95: =R95+AA11 -> 680 | AD95: =R95+AB11 -> 612 | AE95: =R95+AC11 -> 680 | AF95: =R95+AD11 -> 676 | AJ95: allemagne 11 | AK95: =MIN((S143+AL35*D19)/AK44,(S144+AL35*D19)/AL44,(S145+AL35*D19)/AM44,(S146+AL35*D19)/AN44,(S147+AL35*D19)/AO44)*AP44 -> 396.6666667 | AL95: =MIN((T143+AL35*D19)/AK44,(T144+AL35*D19)/AL44,(T145+AL35*D19)/AM44,(T146+AL35*D19)/AN44,(T147+AL35*D19)/AO44)*AP44 -> 426 | AM95: =MIN((U143+AL35*D19)/AK44,(U144+AL35*D19)/AL44,(U145+AL35*D19)/AM44,(U146+AL35*D19)/AN44,(U147+AL35*D19)/AO44)*AP44 -> 380 | AN95: =MIN((V143+AL35*D19)/AK44,(V144+AL35*D19)/AL44,(V145+AL35*D19)/AM44,(V146+AL35*D19)/AN44,(V147+AL35*D19)/AO44)*AP44 -> 422.6666667 | AO95: =MIN((W143+AL35*D19)/AK44,(W144+AL35*D19)/AL44,(W145+AL35*D19)/AM44,(W146+AL35*D19)/AN44,(W147+AL35*D19)/AO44)*AP44 -> 380 | AP95: =MIN((X143+AL35*D19)/AK44,(X144+AL35*D19)/AL44,(X145+AL35*D19)/AM44,(X146+AL35*D19)/AN44,(X147+AL35*D19)/AO44)*AP44 -> 417.3333333 | AQ95: =MIN((Y143+AL35*D19)/AK44,(Y144+AL35*D19)/AL44,(Y145+AL35*D19)/AM44,(Y146+AL35*D19)/AN44,(Y147+AL35*D19)/AO44)*AP44 -> 420.6666667 | AR95: =MIN((Z143+AL35*D19)/AK44,(Z144+AL35*D19)/AL44,(Z145+AL35*D19)/AM44,(Z146+AL35*D19)/AN44,(Z147+AL35*D19)/AO44)*AP44 -> 380 | AS95: =MIN((AA143+AL35*D19)/AK44,(AA144+AL35*D19)/AL44,(AA145+AL35*D19)/AM44,(AA146+AL35*D19)/AN44,(AA147+AL35*D19)/AO44)*AP44 -> 420.6666667 | AT95: =MIN((AB143+AL35*D19)/AK44,(AB144+AL35*D19)/AL44,(AB145+AL35*D19)/AM44,(AB146+AL35*D19)/AN44,(AB147+AL35*D19)/AO44)*AP44 -> 422.6666667 | AU95: =MIN((AC143+AL35*D19)/AK44,(AC144+AL35*D19)/AL44,(AC145+AL35*D19)/AM44,(AC146+AL35*D19)/AN44,(AC147+AL35*D19)/AO44)*AP44 -> 417.3333333 | AV95: =MIN((AD143+AL35*D19)/AK44,(AD144+AL35*D19)/AL44,(AD145+AL35*D19)/AM44,(AD146+AL35*D19)/AN44,(AD147+AL35*D19)/AO44)*AP44 -> 380 | AW95: =MIN((AE143+AL35*D19)/AK44,(AE144+AL35*D19)/AL44,(AE145+AL35*D19)/AM44,(AE146+AL35*D19)/AN44,(AE147+AL35*D19)/AO44)*AP44 -> 420 | AX95: =MIN((AF143+AL35*D19)/AK44,(AF144+AL35*D19)/AL44,(AF145+AL35*D19)/AM44,(AF146+AL35*D19)/AN44,(AF147+AL35*D19)/AO44)*AP44 -> 422.6666667 | AY95: 426 | BA95: allemagne 11 | BB95: =MIN((S143+AM35*D19)/AK45,(S144+AM35*D19)/AL45,(S145+AM35*D19)/AM45,(S146+AM35*D19)/AN45,(S147+AM35*D19)/AO45)*AP45 -> 387.3333333 | BC95: =MIN((T143+AM35*D19)/AK45,(T144+AM35*D19)/AL45,(T145+AM35*D19)/AM45,(T146+AM35*D19)/AN45,(T147+AM35*D19)/AO45)*AP45 -> 406 | BD95: =MIN((U143+AM35*D19)/AK45,(U144+AM35*D19)/AL45,(U145+AM35*D19)/AM45,(U146+AM35*D19)/AN45,(U147+AM35*D19)/AO45)*AP45 -> 360 | BE95: =MIN((V143+AM35*D19)/AK45,(V144+AM35*D19)/AL45,(V145+AM35*D19)/AM45,(V146+AM35*D19)/AN45,(V147+AM35*D19)/AO45)*AP45 -> 408.6666667 | BF95: =MIN((W143+AM35*D19)/AK45,(W144+AM35*D19)/AL45,(W145+AM35*D19)/AM45,(W146+AM35*D19)/AN45,(W147+AM35*D19)/AO45)*AP45 -> 360 | BG95: =MIN((X143+AM35*D19)/AK45,(X144+AM35*D19)/AL45,(X145+AM35*D19)/AM45,(X146+AM35*D19)/AN45,(X147+AM35*D19)/AO45)*AP45 -> 406.6666667 | BH95: =MIN((Y143+AM35*D19)/AK45,(Y144+AM35*D19)/AL45,(Y145+AM35*D19)/AM45,(Y146+AM35*D19)/AN45,(Y147+AM35*D19)/AO45)*AP45 -> 400.6666667 | BI95: =MIN((Z143+AM35*D19)/AK45,(Z144+AM35*D19)/AL45,(Z145+AM35*D19)/AM45,(Z146+AM35*D19)/AN45,(Z147+AM35*D19)/AO45)*AP45 -> 360 | BJ95: =MIN((AA143+AM35*D19)/AK45,(AA144+AM35*D19)/AL45,(AA145+AM35*D19)/AM45,(AA146+AM35*D19)/AN45,(AA147+AM35*D19)/AO45)*AP45 -> 400.6666667 | BK95: =MIN((AB143+AM35*D19)/AK45,(AB144+AM35*D19)/AL45,(AB145+AM35*D19)/AM45,(AB146+AM35*D19)/AN45,(AB147+AM35*D19)/AO45)*AP45 -> 397.3333333 | BL95: =MIN((AC143+AM35*D19)/AK45,(AC144+AM35*D19)/AL45,(AC145+AM35*D19)/AM45,(AC146+AM35*D19)/AN45,(AC147+AM35*D19)/AO45)*AP45 -> 400.6666667 | BM95: =MIN((AD143+AM35*D19)/AK45,(AD144+AM35*D19)/AL45,(AD145+AM35*D19)/AM45,(AD146+AM35*D19)/AN45,(AD147+AM35*D19)/AO45)*AP45 -> 360 | BN95: =MIN((AE143+AM35*D19)/AK45,(AE144+AM35*D19)/AL45,(AE145+AM35*D19)/AM45,(AE146+AM35*D19)/AN45,(AE147+AM35*D19)/AO45)*AP45 -> 390.6666667 | BO95: =MIN((AF143+AM35*D19)/AK45,(AF144+AM35*D19)/AL45,(AF145+AM35*D19)/AM45,(AF146+AM35*D19)/AN45,(AF147+AM35*D19)/AO45)*AP45 -> 394 | BP95: 408.6666667 | BR95: =BB109 -> kit 1 | BS95: kit 2/3 | BT95: 0 | BU95: kit 4 | BV95: 0 | BW95: kit 5 | BX95: kit 6/7 | BY95: 0 | BZ95: 0 | CA95: kit 8 | CB95: kit 9 | CC95: 0 | CD95: kit 10 | CE95: kit 11 | CJ95: defensif | CM95: neutre | CP95: offensif | CS95: defensif | CV95: neutre | CY95: offensif | DB95: defensif | DE95: neutre | DH95: offensif | DK95: defensif | DN95: neutre | DQ95: offensif
E96: 1.0899 | F96: 0.7266 | G96: 1.8165 | H96: 0.94985 | I96: 0.40705 | J96: 1.3569 | K96: 1.90735 | L96: 0.8174 | M96: 2.72475 | N96: 1.0899 | O96: 0.27245 | P96: 1.36235 | R96: =J16+AH41+D15+D17+D21+D19*AG13 -> 568 | S96: =R96+Q12 -> 609 | T96: =R96+R12 -> 628 | U96: =R96+S12 -> 568 | V96: =R96+T12 -> 641 | W96: =R96+U12 -> 568 | X96: =R96+V12 -> 624 | Y96: =R96+W12 -> 629 | Z96: =R96+X12 -> 568 | AA96: =R96+Y12 -> 629 | AB96: =R96+Z12 -> 632 | AC96: =R96+AA12 -> 636 | AD96: =R96+AB12 -> 568 | AE96: =R96+AC12 -> 621 | AF96: =R96+AD12 -> 639 | AJ96: chili 11 | AK96: =MIN((S150+AL35*D19)/AK44,(S151+AL35*D19)/AL44,(S152+AL35*D19)/AM44,(S153+AL35*D19)/AN44,(S154+AL35*D19)/AO44)*AP44 -> 376 | AL96: =MIN((T150+AL35*D19)/AK44,(T151+AL35*D19)/AL44,(T152+AL35*D19)/AM44,(T153+AL35*D19)/AN44,(T154+AL35*D19)/AO44)*AP44 -> 405.3333333 | AM96: =MIN((U150+AL35*D19)/AK44,(U151+AL35*D19)/AL44,(U152+AL35*D19)/AM44,(U153+AL35*D19)/AN44,(U154+AL35*D19)/AO44)*AP44 -> 359.3333333 | AN96: =MIN((V150+AL35*D19)/AK44,(V151+AL35*D19)/AL44,(V152+AL35*D19)/AM44,(V153+AL35*D19)/AN44,(V154+AL35*D19)/AO44)*AP44 -> 402 | AO96: =MIN((W150+AL35*D19)/AK44,(W151+AL35*D19)/AL44,(W152+AL35*D19)/AM44,(W153+AL35*D19)/AN44,(W154+AL35*D19)/AO44)*AP44 -> 359.3333333 | AP96: =MIN((X150+AL35*D19)/AK44,(X151+AL35*D19)/AL44,(X152+AL35*D19)/AM44,(X153+AL35*D19)/AN44,(X154+AL35*D19)/AO44)*AP44 -> 396.6666667 | AQ96: =MIN((Y150+AL35*D19)/AK44,(Y151+AL35*D19)/AL44,(Y152+AL35*D19)/AM44,(Y153+AL35*D19)/AN44,(Y154+AL35*D19)/AO44)*AP44 -> 400 | AR96: =MIN((Z150+AL35*D19)/AK44,(Z151+AL35*D19)/AL44,(Z152+AL35*D19)/AM44,(Z153+AL35*D19)/AN44,(Z154+AL35*D19)/AO44)*AP44 -> 359.3333333 | AS96: =MIN((AA150+AL35*D19)/AK44,(AA151+AL35*D19)/AL44,(AA152+AL35*D19)/AM44,(AA153+AL35*D19)/AN44,(AA154+AL35*D19)/AO44)*AP44 -> 400 | AT96: =MIN((AB150+AL35*D19)/AK44,(AB151+AL35*D19)/AL44,(AB152+AL35*D19)/AM44,(AB153+AL35*D19)/AN44,(AB154+AL35*D19)/AO44)*AP44 -> 402 | AU96: =MIN((AC150+AL35*D19)/AK44,(AC151+AL35*D19)/AL44,(AC152+AL35*D19)/AM44,(AC153+AL35*D19)/AN44,(AC154+AL35*D19)/AO44)*AP44 -> 396.6666667 | AV96: =MIN((AD150+AL35*D19)/AK44,(AD151+AL35*D19)/AL44,(AD152+AL35*D19)/AM44,(AD153+AL35*D19)/AN44,(AD154+AL35*D19)/AO44)*AP44 -> 359.3333333 | AW96: =MIN((AE150+AL35*D19)/AK44,(AE151+AL35*D19)/AL44,(AE152+AL35*D19)/AM44,(AE153+AL35*D19)/AN44,(AE154+AL35*D19)/AO44)*AP44 -> 399.3333333 | AX96: =MIN((AF150+AL35*D19)/AK44,(AF151+AL35*D19)/AL44,(AF152+AL35*D19)/AM44,(AF153+AL35*D19)/AN44,(AF154+AL35*D19)/AO44)*AP44 -> 402 | AY96: 405.3333333 | BA96: chili 11 | BB96: =MIN((S150+AM35*D19)/AK45,(S151+AM35*D19)/AL45,(S152+AM35*D19)/AM45,(S153+AM35*D19)/AN45,(S154+AM35*D19)/AO45)*AP45 -> 334.6666667 | BC96: =MIN((T150+AM35*D19)/AK45,(T151+AM35*D19)/AL45,(T152+AM35*D19)/AM45,(T153+AM35*D19)/AN45,(T154+AM35*D19)/AO45)*AP45 -> 353.3333333 | BD96: =MIN((U150+AM35*D19)/AK45,(U151+AM35*D19)/AL45,(U152+AM35*D19)/AM45,(U153+AM35*D19)/AN45,(U154+AM35*D19)/AO45)*AP45 -> 307.3333333 | BE96: =MIN((V150+AM35*D19)/AK45,(V151+AM35*D19)/AL45,(V152+AM35*D19)/AM45,(V153+AM35*D19)/AN45,(V154+AM35*D19)/AO45)*AP45 -> 356 | BF96: =MIN((W150+AM35*D19)/AK45,(W151+AM35*D19)/AL45,(W152+AM35*D19)/AM45,(W153+AM35*D19)/AN45,(W154+AM35*D19)/AO45)*AP45 -> 307.3333333 | BG96: =MIN((X150+AM35*D19)/AK45,(X151+AM35*D19)/AL45,(X152+AM35*D19)/AM45,(X153+AM35*D19)/AN45,(X154+AM35*D19)/AO45)*AP45 -> 354 | BH96: =MIN((Y150+AM35*D19)/AK45,(Y151+AM35*D19)/AL45,(Y152+AM35*D19)/AM45,(Y153+AM35*D19)/AN45,(Y154+AM35*D19)/AO45)*AP45 -> 348 | BI96: =MIN((Z150+AM35*D19)/AK45,(Z151+AM35*D19)/AL45,(Z152+AM35*D19)/AM45,(Z153+AM35*D19)/AN45,(Z154+AM35*D19)/AO45)*AP45 -> 307.3333333 | BJ96: =MIN((AA150+AM35*D19)/AK45,(AA151+AM35*D19)/AL45,(AA152+AM35*D19)/AM45,(AA153+AM35*D19)/AN45,(AA154+AM35*D19)/AO45)*AP45 -> 348 | BK96: =MIN((AB150+AM35*D19)/AK45,(AB151+AM35*D19)/AL45,(AB152+AM35*D19)/AM45,(AB153+AM35*D19)/AN45,(AB154+AM35*D19)/AO45)*AP45 -> 344.6666667 | BL96: =MIN((AC150+AM35*D19)/AK45,(AC151+AM35*D19)/AL45,(AC152+AM35*D19)/AM45,(AC153+AM35*D19)/AN45,(AC154+AM35*D19)/AO45)*AP45 -> 348 | BM96: =MIN((AD150+AM35*D19)/AK45,(AD151+AM35*D19)/AL45,(AD152+AM35*D19)/AM45,(AD153+AM35*D19)/AN45,(AD154+AM35*D19)/AO45)*AP45 -> 307.3333333 | BN96: =MIN((AE150+AM35*D19)/AK45,(AE151+AM35*D19)/AL45,(AE152+AM35*D19)/AM45,(AE153+AM35*D19)/AN45,(AE154+AM35*D19)/AO45)*AP45 -> 338 | BO96: =MIN((AF150+AM35*D19)/AK45,(AF151+AM35*D19)/AL45,(AF152+AM35*D19)/AM45,(AF153+AM35*D19)/AN45,(AF154+AM35*D19)/AO45)*AP45 -> 341.3333333 | BP96: 356 | BR96: =BB109 -> kit 1 | BS96: kit 2/3 | BT96: 0 | BU96: kit 4 | BV96: 0 | BW96: kit 5 | BX96: kit 6/7 | BY96: 0 | BZ96: 0 | CA96: kit 8 | CB96: kit 9 | CC96: 0 | CD96: kit 10 | CE96: kit 11 | CG96: rapport et | CJ96: att A | CK96: att ME | CL96: compa | CM96: att A | CN96: att ME | CO96: compa | CP96: att A | CQ96: att ME | CR96: compa | CS96: att A | CT96: att ME | CU96: compa | CV96: att A | CW96: att ME | CX96: compa | CY96: att A | CZ96: att ME | DA96: compa | DB96: att A | DC96: att ME | DD96: compa | DE96: att A | DF96: att ME | DG96: compa | DH96: att A | DI96: att ME | DJ96: compa | DK96: att A | DL96: att ME | DM96: compa | DN96: att A | DO96: att ME | DP96: compa | DQ96: att A | DR96: att ME | DS96: compa
E97: 0.95365 | F97: 0.4087 | G97: 1.36235 | H97: 2.4523 | I97: 0.27245 | J97: 2.72475 | K97: 1.0899 | L97: 0.27245 | M97: 1.36235 | N97: 1.0899 | O97: 0.27245 | P97: 1.36235 | R97: =K16+AH42+D16+D17+D21+D19*AG13 -> 555 | S97: =R97+Q13 -> 580 | T97: =R97+R13 -> 624 | U97: =R97+S13 -> 555 | V97: =R97+T13 -> 619 | W97: =R97+U13 -> 555 | X97: =R97+V13 -> 611 | Y97: =R97+W13 -> 616 | Z97: =R97+X13 -> 555 | AA97: =R97+Y13 -> 616 | AB97: =R97+Z13 -> 619 | AC97: =R97+AA13 -> 611 | AD97: =R97+AB13 -> 555 | AE97: =R97+AC13 -> 615 | AF97: =R97+AD13 -> 619 | AJ97: corée du sud 3 | AK97: =MIN((S157+AL35*D19)/AK44,(S158+AL35*D19)/AL44,(S159+AL35*D19)/AM44,(S160+AL35*D19)/AN44,(S161+AL35*D19)/AO44)*AP44 -> 383.3333333 | AL97: =MIN((T157+AL35*D19)/AK44,(T158+AL35*D19)/AL44,(T159+AL35*D19)/AM44,(T160+AL35*D19)/AN44,(T161+AL35*D19)/AO44)*AP44 -> 412.6666667 | AM97: =MIN((U157+AL35*D19)/AK44,(U158+AL35*D19)/AL44,(U159+AL35*D19)/AM44,(U160+AL35*D19)/AN44,(U161+AL35*D19)/AO44)*AP44 -> 366.6666667 | AN97: =MIN((V157+AL35*D19)/AK44,(V158+AL35*D19)/AL44,(V159+AL35*D19)/AM44,(V160+AL35*D19)/AN44,(V161+AL35*D19)/AO44)*AP44 -> 409.3333333 | AO97: =MIN((W157+AL35*D19)/AK44,(W158+AL35*D19)/AL44,(W159+AL35*D19)/AM44,(W160+AL35*D19)/AN44,(W161+AL35*D19)/AO44)*AP44 -> 366.6666667 | AP97: =MIN((X157+AL35*D19)/AK44,(X158+AL35*D19)/AL44,(X159+AL35*D19)/AM44,(X160+AL35*D19)/AN44,(X161+AL35*D19)/AO44)*AP44 -> 404 | AQ97: =MIN((Y157+AL35*D19)/AK44,(Y158+AL35*D19)/AL44,(Y159+AL35*D19)/AM44,(Y160+AL35*D19)/AN44,(Y161+AL35*D19)/AO44)*AP44 -> 407.3333333 | AR97: =MIN((Z157+AL35*D19)/AK44,(Z158+AL35*D19)/AL44,(Z159+AL35*D19)/AM44,(Z160+AL35*D19)/AN44,(Z161+AL35*D19)/AO44)*AP44 -> 366.6666667 | AS97: =MIN((AA157+AL35*D19)/AK44,(AA158+AL35*D19)/AL44,(AA159+AL35*D19)/AM44,(AA160+AL35*D19)/AN44,(AA161+AL35*D19)/AO44)*AP44 -> 407.3333333 | AT97: =MIN((AB157+AL35*D19)/AK44,(AB158+AL35*D19)/AL44,(AB159+AL35*D19)/AM44,(AB160+AL35*D19)/AN44,(AB161+AL35*D19)/AO44)*AP44 -> 409.3333333 | AU97: =MIN((AC157+AL35*D19)/AK44,(AC158+AL35*D19)/AL44,(AC159+AL35*D19)/AM44,(AC160+AL35*D19)/AN44,(AC161+AL35*D19)/AO44)*AP44 -> 404 | AV97: =MIN((AD157+AL35*D19)/AK44,(AD158+AL35*D19)/AL44,(AD159+AL35*D19)/AM44,(AD160+AL35*D19)/AN44,(AD161+AL35*D19)/AO44)*AP44 -> 366.6666667 | AW97: =MIN((AE157+AL35*D19)/AK44,(AE158+AL35*D19)/AL44,(AE159+AL35*D19)/AM44,(AE160+AL35*D19)/AN44,(AE161+AL35*D19)/AO44)*AP44 -> 406.6666667 | AX97: =MIN((AF157+AL35*D19)/AK44,(AF158+AL35*D19)/AL44,(AF159+AL35*D19)/AM44,(AF160+AL35*D19)/AN44,(AF161+AL35*D19)/AO44)*AP44 -> 409.3333333 | AY97: 412.6666667 | BA97: corée du sud 3 | BB97: =MIN((S157+AM35*D19)/AK45,(S158+AM35*D19)/AL45,(S159+AM35*D19)/AM45,(S160+AM35*D19)/AN45,(S161+AM35*D19)/AO45)*AP45 -> 406.6666667 | BC97: =MIN((T157+AM35*D19)/AK45,(T158+AM35*D19)/AL45,(T159+AM35*D19)/AM45,(T160+AM35*D19)/AN45,(T161+AM35*D19)/AO45)*AP45 -> 425.3333333 | BD97: =MIN((U157+AM35*D19)/AK45,(U158+AM35*D19)/AL45,(U159+AM35*D19)/AM45,(U160+AM35*D19)/AN45,(U161+AM35*D19)/AO45)*AP45 -> 379.3333333 | BE97: =MIN((V157+AM35*D19)/AK45,(V158+AM35*D19)/AL45,(V159+AM35*D19)/AM45,(V160+AM35*D19)/AN45,(V161+AM35*D19)/AO45)*AP45 -> 428 | BF97: =MIN((W157+AM35*D19)/AK45,(W158+AM35*D19)/AL45,(W159+AM35*D19)/AM45,(W160+AM35*D19)/AN45,(W161+AM35*D19)/AO45)*AP45 -> 379.3333333 | BG97: =MIN((X157+AM35*D19)/AK45,(X158+AM35*D19)/AL45,(X159+AM35*D19)/AM45,(X160+AM35*D19)/AN45,(X161+AM35*D19)/AO45)*AP45 -> 424.8 | BH97: =MIN((Y157+AM35*D19)/AK45,(Y158+AM35*D19)/AL45,(Y159+AM35*D19)/AM45,(Y160+AM35*D19)/AN45,(Y161+AM35*D19)/AO45)*AP45 -> 420 | BI97: =MIN((Z157+AM35*D19)/AK45,(Z158+AM35*D19)/AL45,(Z159+AM35*D19)/AM45,(Z160+AM35*D19)/AN45,(Z161+AM35*D19)/AO45)*AP45 -> 379.3333333 | BJ97: =MIN((AA157+AM35*D19)/AK45,(AA158+AM35*D19)/AL45,(AA159+AM35*D19)/AM45,(AA160+AM35*D19)/AN45,(AA161+AM35*D19)/AO45)*AP45 -> 420 | BK97: =MIN((AB157+AM35*D19)/AK45,(AB158+AM35*D19)/AL45,(AB159+AM35*D19)/AM45,(AB160+AM35*D19)/AN45,(AB161+AM35*D19)/AO45)*AP45 -> 416.6666667 | BL97: =MIN((AC157+AM35*D19)/AK45,(AC158+AM35*D19)/AL45,(AC159+AM35*D19)/AM45,(AC160+AM35*D19)/AN45,(AC161+AM35*D19)/AO45)*AP45 -> 420 | BM97: =MIN((AD157+AM35*D19)/AK45,(AD158+AM35*D19)/AL45,(AD159+AM35*D19)/AM45,(AD160+AM35*D19)/AN45,(AD161+AM35*D19)/AO45)*AP45 -> 379.3333333 | BN97: =MIN((AE157+AM35*D19)/AK45,(AE158+AM35*D19)/AL45,(AE159+AM35*D19)/AM45,(AE160+AM35*D19)/AN45,(AE161+AM35*D19)/AO45)*AP45 -> 410 | BO97: =MIN((AF157+AM35*D19)/AK45,(AF158+AM35*D19)/AL45,(AF159+AM35*D19)/AM45,(AF160+AM35*D19)/AN45,(AF161+AM35*D19)/AO45)*AP45 -> 413.3333333 | BP97: 428 | BR97: =BB109 -> kit 1 | BS97: kit 2/3 | BT97: 0 | BU97: kit 4 | BV97: 0 | BW97: kit 5 | BX97: kit 6/7 | BY97: 0 | BZ97: 0 | CA97: kit 8 | CB97: kit 9 | CC97: 0 | CD97: kit 10 | CE97: kit 11 | CG97: comparaison | CJ97: def ME | CK97: def A | CL97: raison | CM97: def ME | CN97: def A | CO97: raison | CP97: def ME | CQ97: def A | CR97: raison | CS97: def ME | CT97: def A | CU97: raison | CV97: def ME | CW97: def A | CX97: raison | CY97: def ME | CZ97: def A | DA97: raison | DB97: def ME | DC97: def A | DD97: raison | DE97: def ME | DF97: def A | DG97: raison | DH97: def ME | DI97: def A | DJ97: raison | DK97: def ME | DL97: def A | DM97: raison | DN97: def ME | DO97: def A | DP97: raison | DQ97: def ME | DR97: def A | DS97: raison
E98: 2.24795 | F98: 0.0227 | G98: 2.27065 | H98: 2.04355 | I98: 0.22705 | J98: 2.2706 | K98: 1.63485 | L98: 0.18165 | M98: 1.8165 | N98: 1.63485 | O98: 0.18165 | P98: 1.8165 | R98: =L16+AH43+D15+D17+D21+D19*AG13 -> 500 | S98: =R98+Q14 -> 556 | T98: =R98+R14 -> 552 | U98: =R98+S14 -> 500 | V98: =R98+T14 -> 545 | W98: =R98+U14 -> 500 | X98: =R98+V14 -> 556 | Y98: =R98+W14 -> 553 | Z98: =R98+X14 -> 500 | AA98: =R98+Y14 -> 553 | AB98: =R98+Z14 -> 548 | AC98: =R98+AA14 -> 549 | AD98: =R98+AB14 -> 500 | AE98: =R98+AC14 -> 560 | AF98: =R98+AD14 -> 544 | AJ98: france 11 | AK98: =MIN((S164+AL35*D19)/AK44,(S165+AL35*D19)/AL44,(S166+AL35*D19)/AM44,(S167+AL35*D19)/AN44,(S168+AL35*D19)/AO44)*AP44 -> 392.6666667 | AL98: =MIN((T164+AL35*D19)/AK44,(T165+AL35*D19)/AL44,(T166+AL35*D19)/AM44,(T167+AL35*D19)/AN44,(T168+AL35*D19)/AO44)*AP44 -> 422 | AM98: =MIN((U164+AL35*D19)/AK44,(U165+AL35*D19)/AL44,(U166+AL35*D19)/AM44,(U167+AL35*D19)/AN44,(U168+AL35*D19)/AO44)*AP44 -> 376 | AN98: =MIN((V164+AL35*D19)/AK44,(V165+AL35*D19)/AL44,(V166+AL35*D19)/AM44,(V167+AL35*D19)/AN44,(V168+AL35*D19)/AO44)*AP44 -> 418.6666667 | AO98: =MIN((W164+AL35*D19)/AK44,(W165+AL35*D19)/AL44,(W166+AL35*D19)/AM44,(W167+AL35*D19)/AN44,(W168+AL35*D19)/AO44)*AP44 -> 376 | AP98: =MIN((X164+AL35*D19)/AK44,(X165+AL35*D19)/AL44,(X166+AL35*D19)/AM44,(X167+AL35*D19)/AN44,(X168+AL35*D19)/AO44)*AP44 -> 413.3333333 | AQ98: =MIN((Y164+AL35*D19)/AK44,(Y165+AL35*D19)/AL44,(Y166+AL35*D19)/AM44,(Y167+AL35*D19)/AN44,(Y168+AL35*D19)/AO44)*AP44 -> 416.6666667 | AR98: =MIN((Z164+AL35*D19)/AK44,(Z165+AL35*D19)/AL44,(Z166+AL35*D19)/AM44,(Z167+AL35*D19)/AN44,(Z168+AL35*D19)/AO44)*AP44 -> 376 | AS98: =MIN((AA164+AL35*D19)/AK44,(AA165+AL35*D19)/AL44,(AA166+AL35*D19)/AM44,(AA167+AL35*D19)/AN44,(AA168+AL35*D19)/AO44)*AP44 -> 416.6666667 | AT98: =MIN((AB164+AL35*D19)/AK44,(AB165+AL35*D19)/AL44,(AB166+AL35*D19)/AM44,(AB167+AL35*D19)/AN44,(AB168+AL35*D19)/AO44)*AP44 -> 418.6666667 | AU98: =MIN((AC164+AL35*D19)/AK44,(AC165+AL35*D19)/AL44,(AC166+AL35*D19)/AM44,(AC167+AL35*D19)/AN44,(AC168+AL35*D19)/AO44)*AP44 -> 413.3333333 | AV98: =MIN((AD164+AL35*D19)/AK44,(AD165+AL35*D19)/AL44,(AD166+AL35*D19)/AM44,(AD167+AL35*D19)/AN44,(AD168+AL35*D19)/AO44)*AP44 -> 376 | AW98: =MIN((AE164+AL35*D19)/AK44,(AE165+AL35*D19)/AL44,(AE166+AL35*D19)/AM44,(AE167+AL35*D19)/AN44,(AE168+AL35*D19)/AO44)*AP44 -> 416 | AX98: =MIN((AF164+AL35*D19)/AK44,(AF165+AL35*D19)/AL44,(AF166+AL35*D19)/AM44,(AF167+AL35*D19)/AN44,(AF168+AL35*D19)/AO44)*AP44 -> 418.6666667 | AY98: 422 | BA98: france 11 | BB98: =MIN((S164+AM35*D19)/AK45,(S165+AM35*D19)/AL45,(S166+AM35*D19)/AM45,(S167+AM35*D19)/AN45,(S168+AM35*D19)/AO45)*AP45 -> 359.3333333 | BC98: =MIN((T164+AM35*D19)/AK45,(T165+AM35*D19)/AL45,(T166+AM35*D19)/AM45,(T167+AM35*D19)/AN45,(T168+AM35*D19)/AO45)*AP45 -> 378 | BD98: =MIN((U164+AM35*D19)/AK45,(U165+AM35*D19)/AL45,(U166+AM35*D19)/AM45,(U167+AM35*D19)/AN45,(U168+AM35*D19)/AO45)*AP45 -> 332 | BE98: =MIN((V164+AM35*D19)/AK45,(V165+AM35*D19)/AL45,(V166+AM35*D19)/AM45,(V167+AM35*D19)/AN45,(V168+AM35*D19)/AO45)*AP45 -> 380.6666667 | BF98: =MIN((W164+AM35*D19)/AK45,(W165+AM35*D19)/AL45,(W166+AM35*D19)/AM45,(W167+AM35*D19)/AN45,(W168+AM35*D19)/AO45)*AP45 -> 332 | BG98: =MIN((X164+AM35*D19)/AK45,(X165+AM35*D19)/AL45,(X166+AM35*D19)/AM45,(X167+AM35*D19)/AN45,(X168+AM35*D19)/AO45)*AP45 -> 378.6666667 | BH98: =MIN((Y164+AM35*D19)/AK45,(Y165+AM35*D19)/AL45,(Y166+AM35*D19)/AM45,(Y167+AM35*D19)/AN45,(Y168+AM35*D19)/AO45)*AP45 -> 372.6666667 | BI98: =MIN((Z164+AM35*D19)/AK45,(Z165+AM35*D19)/AL45,(Z166+AM35*D19)/AM45,(Z167+AM35*D19)/AN45,(Z168+AM35*D19)/AO45)*AP45 -> 332 | BJ98: =MIN((AA164+AM35*D19)/AK45,(AA165+AM35*D19)/AL45,(AA166+AM35*D19)/AM45,(AA167+AM35*D19)/AN45,(AA168+AM35*D19)/AO45)*AP45 -> 372.6666667 | BK98: =MIN((AB164+AM35*D19)/AK45,(AB165+AM35*D19)/AL45,(AB166+AM35*D19)/AM45,(AB167+AM35*D19)/AN45,(AB168+AM35*D19)/AO45)*AP45 -> 369.3333333 | BL98: =MIN((AC164+AM35*D19)/AK45,(AC165+AM35*D19)/AL45,(AC166+AM35*D19)/AM45,(AC167+AM35*D19)/AN45,(AC168+AM35*D19)/AO45)*AP45 -> 372.6666667 | BM98: =MIN((AD164+AM35*D19)/AK45,(AD165+AM35*D19)/AL45,(AD166+AM35*D19)/AM45,(AD167+AM35*D19)/AN45,(AD168+AM35*D19)/AO45)*AP45 -> 332 | BN98: =MIN((AE164+AM35*D19)/AK45,(AE165+AM35*D19)/AL45,(AE166+AM35*D19)/AM45,(AE167+AM35*D19)/AN45,(AE168+AM35*D19)/AO45)*AP45 -> 362.6666667 | BO98: =MIN((AF164+AM35*D19)/AK45,(AF165+AM35*D19)/AL45,(AF166+AM35*D19)/AM45,(AF167+AM35*D19)/AN45,(AF168+AM35*D19)/AO45)*AP45 -> 366 | BP98: 380.6666667 | BR98: =BB109 -> kit 1 | BS98: kit 2/3 | BT98: 0 | BU98: kit 4 | BV98: 0 | BW98: kit 5 | BX98: kit 6/7 | BY98: 0 | BZ98: 0 | CA98: kit 8 | CB98: kit 9 | CC98: 0 | CD98: kit 10 | CE98: kit 11 | CG98: mon équipe | CH98: 541 | CI98: def | CJ98: =$CJ$74/CK75 ->  | CK98: =CJ75/$CK$74 ->  | CL98: =CJ98-CK98 ->  | CM98: =$CM$74/CK75 ->  | CN98: =CJ75/$CN$74 ->  | CO98: =CM98-CN98 ->  | CP98: =$CP$74/CK75 ->  | CQ98: =CJ75/$CQ$74 ->  | CR98: =CP98-CQ98 ->  | CS98: =1.15*$CS$74/CK75 ->  | CT98: =CJ75/(1.15*$CT$74) ->  | CU98: =CS98-CT98 ->  | CV98: =1.15*$CV$74/CK75 ->  | CW98: =CJ75/(1.15*$CW$74) ->  | CX98: =CV98-CW98 ->  | CY98: =1.15*$CY$74/CK75 ->  | CZ98: =CJ75/(1.15*$CZ$74) ->  | DA98: =CY98-CZ98 ->  | DB98: =$DB$74/(1.15*CK75) ->  | DC98: =1.15*CJ75/$DC$74 ->  | DD98: =DB98-DC98 ->  | DE98: =$DE$74/(1.15*CK75) ->  | DF98: =1.15*CJ75/$DF$74 ->  | DG98: =DE98-DF98 ->  | DH98: =$DH$74/(1.15*CK75) ->  | DI98: =1.15*CJ75/$DI$74 ->  | DJ98: =DH98-DI98 ->  | DK98: =$DK$74/CK75 ->  | DL98: =CJ75/$DL$74 ->  | DM98: =DK98-DL98 ->  | DN98: =$DN$74/CK75 ->  | DO98: =CJ75/$DO$74 ->  | DP98: =DN98-DO98 ->  | DQ98: =$DQ$74/CK75 ->  | DR98: =CJ75/$DR$74 ->  | DS98: =DQ98-DR98 -> 
E99: 1.4532 | F99: 0.3633 | G99: 1.8165 | H99: 1.63485 | I99: 0.18165 | J99: 1.8165 | K99: 1.0899 | L99: 0.27245 | M99: 1.36235 | N99: 1.90735 | O99: 0.8174 | P99: 2.72475 | AJ99: france 2 | AK99: =MIN((S171+AL35*D19)/AK44,(S172+AL35*D19)/AL44,(S173+AL35*D19)/AM44,(S174+AL35*D19)/AN44,(S175+AL35*D19)/AO44)*AP44 -> 402.6666667 | AL99: =MIN((T171+AL35*D19)/AK44,(T172+AL35*D19)/AL44,(T173+AL35*D19)/AM44,(T174+AL35*D19)/AN44,(T175+AL35*D19)/AO44)*AP44 -> 432 | AM99: =MIN((U171+AL35*D19)/AK44,(U172+AL35*D19)/AL44,(U173+AL35*D19)/AM44,(U174+AL35*D19)/AN44,(U175+AL35*D19)/AO44)*AP44 -> 386 | AN99: =MIN((V171+AL35*D19)/AK44,(V172+AL35*D19)/AL44,(V173+AL35*D19)/AM44,(V174+AL35*D19)/AN44,(V175+AL35*D19)/AO44)*AP44 -> 428.6666667 | AO99: =MIN((W171+AL35*D19)/AK44,(W172+AL35*D19)/AL44,(W173+AL35*D19)/AM44,(W174+AL35*D19)/AN44,(W175+AL35*D19)/AO44)*AP44 -> 386 | AP99: =MIN((X171+AL35*D19)/AK44,(X172+AL35*D19)/AL44,(X173+AL35*D19)/AM44,(X174+AL35*D19)/AN44,(X175+AL35*D19)/AO44)*AP44 -> 423.3333333 | AQ99: =MIN((Y171+AL35*D19)/AK44,(Y172+AL35*D19)/AL44,(Y173+AL35*D19)/AM44,(Y174+AL35*D19)/AN44,(Y175+AL35*D19)/AO44)*AP44 -> 426.6666667 | AR99: =MIN((Z171+AL35*D19)/AK44,(Z172+AL35*D19)/AL44,(Z173+AL35*D19)/AM44,(Z174+AL35*D19)/AN44,(Z175+AL35*D19)/AO44)*AP44 -> 386 | AS99: =MIN((AA171+AL35*D19)/AK44,(AA172+AL35*D19)/AL44,(AA173+AL35*D19)/AM44,(AA174+AL35*D19)/AN44,(AA175+AL35*D19)/AO44)*AP44 -> 426.6666667 | AT99: =MIN((AB171+AL35*D19)/AK44,(AB172+AL35*D19)/AL44,(AB173+AL35*D19)/AM44,(AB174+AL35*D19)/AN44,(AB175+AL35*D19)/AO44)*AP44 -> 428.6666667 | AU99: =MIN((AC171+AL35*D19)/AK44,(AC172+AL35*D19)/AL44,(AC173+AL35*D19)/AM44,(AC174+AL35*D19)/AN44,(AC175+AL35*D19)/AO44)*AP44 -> 423.3333333 | AV99: =MIN((AD171+AL35*D19)/AK44,(AD172+AL35*D19)/AL44,(AD173+AL35*D19)/AM44,(AD174+AL35*D19)/AN44,(AD175+AL35*D19)/AO44)*AP44 -> 386 | AW99: =MIN((AE171+AL35*D19)/AK44,(AE172+AL35*D19)/AL44,(AE173+AL35*D19)/AM44,(AE174+AL35*D19)/AN44,(AE175+AL35*D19)/AO44)*AP44 -> 426 | AX99: =MIN((AF171+AL35*D19)/AK44,(AF172+AL35*D19)/AL44,(AF173+AL35*D19)/AM44,(AF174+AL35*D19)/AN44,(AF175+AL35*D19)/AO44)*AP44 -> 428.6666667 | AY99: 432 | BA99: france 2 | BB99: =MIN((S171+AM35*D19)/AK45,(S172+AM35*D19)/AL45,(S173+AM35*D19)/AM45,(S174+AM35*D19)/AN45,(S175+AM35*D19)/AO45)*AP45 -> 429.3333333 | BC99: =MIN((T171+AM35*D19)/AK45,(T172+AM35*D19)/AL45,(T173+AM35*D19)/AM45,(T174+AM35*D19)/AN45,(T175+AM35*D19)/AO45)*AP45 -> 448 | BD99: =MIN((U171+AM35*D19)/AK45,(U172+AM35*D19)/AL45,(U173+AM35*D19)/AM45,(U174+AM35*D19)/AN45,(U175+AM35*D19)/AO45)*AP45 -> 402 | BE99: =MIN((V171+AM35*D19)/AK45,(V172+AM35*D19)/AL45,(V173+AM35*D19)/AM45,(V174+AM35*D19)/AN45,(V175+AM35*D19)/AO45)*AP45 -> 450.6666667 | BF99: =MIN((W171+AM35*D19)/AK45,(W172+AM35*D19)/AL45,(W173+AM35*D19)/AM45,(W174+AM35*D19)/AN45,(W175+AM35*D19)/AO45)*AP45 -> 402 | BG99: =MIN((X171+AM35*D19)/AK45,(X172+AM35*D19)/AL45,(X173+AM35*D19)/AM45,(X174+AM35*D19)/AN45,(X175+AM35*D19)/AO45)*AP45 -> 448.6666667 | BH99: =MIN((Y171+AM35*D19)/AK45,(Y172+AM35*D19)/AL45,(Y173+AM35*D19)/AM45,(Y174+AM35*D19)/AN45,(Y175+AM35*D19)/AO45)*AP45 -> 442.6666667 | BI99: =MIN((Z171+AM35*D19)/AK45,(Z172+AM35*D19)/AL45,(Z173+AM35*D19)/AM45,(Z174+AM35*D19)/AN45,(Z175+AM35*D19)/AO45)*AP45 -> 402 | BJ99: =MIN((AA171+AM35*D19)/AK45,(AA172+AM35*D19)/AL45,(AA173+AM35*D19)/AM45,(AA174+AM35*D19)/AN45,(AA175+AM35*D19)/AO45)*AP45 -> 442.6666667 | BK99: =MIN((AB171+AM35*D19)/AK45,(AB172+AM35*D19)/AL45,(AB173+AM35*D19)/AM45,(AB174+AM35*D19)/AN45,(AB175+AM35*D19)/AO45)*AP45 -> 439.3333333 | BL99: =MIN((AC171+AM35*D19)/AK45,(AC172+AM35*D19)/AL45,(AC173+AM35*D19)/AM45,(AC174+AM35*D19)/AN45,(AC175+AM35*D19)/AO45)*AP45 -> 442.6666667 | BM99: =MIN((AD171+AM35*D19)/AK45,(AD172+AM35*D19)/AL45,(AD173+AM35*D19)/AM45,(AD174+AM35*D19)/AN45,(AD175+AM35*D19)/AO45)*AP45 -> 402 | BN99: =MIN((AE171+AM35*D19)/AK45,(AE172+AM35*D19)/AL45,(AE173+AM35*D19)/AM45,(AE174+AM35*D19)/AN45,(AE175+AM35*D19)/AO45)*AP45 -> 432.6666667 | BO99: =MIN((AF171+AM35*D19)/AK45,(AF172+AM35*D19)/AL45,(AF173+AM35*D19)/AM45,(AF174+AM35*D19)/AN45,(AF175+AM35*D19)/AO45)*AP45 -> 436 | BP99: 450.6666667 | BR99: =BB109 -> kit 1 | BS99: kit 2/3 | BT99: 0 | BU99: kit 4 | BV99: 0 | BW99: kit 5 | BX99: kit 6/7 | BY99: 0 | BZ99: 0 | CA99: kit 8 | CB99: kit 9 | CC99: 0 | CD99: kit 10 | CE99: kit 11 | CI99: neutre | CJ99: =$CJ$74/CN75 ->  | CK99: =CM75/$CK$74 ->  | CM99: =$CM$74/CN75 ->  | CN99: =CM75/$CN$74 ->  | CP99: =$CP$74/CN75 ->  | CQ99: =CM75/$CQ$74 ->  | CS99: =1.15*$CS$74/CN75 ->  | CT99: =CM75/(1.15*$CT$74) ->  | CV99: =1.15*$CV$74/CN75 ->  | CW99: =CM75/(1.15*$CW$74) ->  | CY99: =1.15*$CY$74/CN75 ->  | CZ99: =CM75/(1.15*$CZ$74) ->  | DB99: =$DB$74/(1.15*CN75) ->  | DC99: =1.15*CM75/$DC$74 ->  | DE99: =$DE$74/(1.15*CN75) ->  | DF99: =1.15*CM75/$DF$74 ->  | DH99: =$DH$74/(1.15*CN75) ->  | DI99: =1.15*CM75/$DI$74 ->  | DK99: =$DK$74/CN75 ->  | DL99: =CM75/$DL$74 ->  | DN99: =$DN$74/CN75 ->  | DO99: =CM75/$DO$74 ->  | DQ99: =$DQ$74/CN75 ->  | DR99: =CM75/$DR$74 -> 
E100: 0.95365 | F100: 0.4087 | G100: 1.36235 | H100: 2.4523 | I100: 0.27245 | J100: 2.72475 | K100: 1.4532 | L100: 0.3633 | M100: 1.8165 | N100: 1.4532 | O100: 0.3633 | P100: 1.8165 | R100: =G17 -> grece 7 | S100: =S93 -> kit 1 | T100: =T93 -> kit 2/3 | U100: 0 | V100: kit 4 | W100: 0 | X100: kit 5 | Y100: kit 6/7 | Z100: 0 | AA100: 0 | AB100: kit 8 | AC100: kit 9 | AD100: 0 | AE100: =AE93 -> kit 10 | AF100: =AF93 -> kit 11 | AJ100: italie 7 | AK100: =MIN((S178+$AL$35*$D$19)/$AK$44,(S179+$AL$35*$D$19)/$AL$44,(S180+$AL$35*$D$19)/$AM$44,(S181+$AL$35*$D$19)/$AN$44,(S182+$AL$35*$D$19)/$AO$44)*$AP$44 -> 379.3333333 | AL100: 408.6666667 | AM100: 362.6666667 | AN100: 405.3333333 | AO100: 362.6666667 | AP100: 400 | AQ100: 403.3333333 | AR100: 362.6666667 | AS100: 403.3333333 | AT100: 405.3333333 | AU100: 400 | AV100: 362.6666667 | AW100: 402.6666667 | AX100: 405.3333333 | AY100: 408.6666667 | BA100: italie 7 | BB100: =MIN((S178+$AM$35*$D$19)/$AK$45,(S179+$AM$35*$D$19)/$AL$45,(S180+$AM$35*$D$19)/$AM$45,(S181+$AM$35*$D$19)/$AN$45,(S182+$AM$35*$D$19)/$AO$45)*$AP$45 -> 400.6666667 | BC100: =MIN((T178+AM35*D19)/AK45,(T179+AM35*D19)/AL45,(T180+AM35*D19)/AM45,(T181+AM35*D19)/AN45,(T182+AM35*D19)/AO45)*AP45 -> 419.3333333 | BD100: =MIN((U178+AM35*D19)/AK45,(U179+AM35*D19)/AL45,(U180+AM35*D19)/AM45,(U181+AM35*D19)/AN45,(U182+AM35*D19)/AO45)*AP45 -> 373.3333333 | BE100: =MIN((V178+AM35*D19)/AK45,(V179+AM35*D19)/AL45,(V180+AM35*D19)/AM45,(V181+AM35*D19)/AN45,(V182+AM35*D19)/AO45)*AP45 -> 422 | BF100: =MIN((W178+AM35*D19)/AK45,(W179+AM35*D19)/AL45,(W180+AM35*D19)/AM45,(W181+AM35*D19)/AN45,(W182+AM35*D19)/AO45)*AP45 -> 373.3333333 | BG100: =MIN((X178+AM35*D19)/AK45,(X179+AM35*D19)/AL45,(X180+AM35*D19)/AM45,(X181+AM35*D19)/AN45,(X182+AM35*D19)/AO45)*AP45 -> 420 | BH100: =MIN((Y178+AM35*D19)/AK45,(Y179+AM35*D19)/AL45,(Y180+AM35*D19)/AM45,(Y181+AM35*D19)/AN45,(Y182+AM35*D19)/AO45)*AP45 -> 414 | BI100: =MIN((Z178+AM35*D19)/AK45,(Z179+AM35*D19)/AL45,(Z180+AM35*D19)/AM45,(Z181+AM35*D19)/AN45,(Z182+AM35*D19)/AO45)*AP45 -> 373.3333333 | BJ100: =MIN((AA178+AM35*D19)/AK45,(AA179+AM35*D19)/AL45,(AA180+AM35*D19)/AM45,(AA181+AM35*D19)/AN45,(AA182+AM35*D19)/AO45)*AP45 -> 414 | BK100: =MIN((AB178+AM35*D19)/AK45,(AB179+AM35*D19)/AL45,(AB180+AM35*D19)/AM45,(AB181+AM35*D19)/AN45,(AB182+AM35*D19)/AO45)*AP45 -> 410.6666667 | BL100: =MIN((AC178+AM35*D19)/AK45,(AC179+AM35*D19)/AL45,(AC180+AM35*D19)/AM45,(AC181+AM35*D19)/AN45,(AC182+AM35*D19)/AO45)*AP45 -> 414 | BM100: =MIN((AD178+AM35*D19)/AK45,(AD179+AM35*D19)/AL45,(AD180+AM35*D19)/AM45,(AD181+AM35*D19)/AN45,(AD182+AM35*D19)/AO45)*AP45 -> 373.3333333 | BN100: =MIN((AE178+AM35*D19)/AK45,(AE179+AM35*D19)/AL45,(AE180+AM35*D19)/AM45,(AE181+AM35*D19)/AN45,(AE182+AM35*D19)/AO45)*AP45 -> 404 | BO100: =MIN((AF178+AM35*D19)/AK45,(AF179+AM35*D19)/AL45,(AF180+AM35*D19)/AM45,(AF181+AM35*D19)/AN45,(AF182+AM35*D19)/AO45)*AP45 -> 407.3333333 | BP100: 422 | BR100: =BB109 -> kit 1 | BS100: kit 2/3 | BT100: 0 | BU100: kit 4 | BV100: 0 | BW100: kit 5 | BX100: kit 6/7 | BY100: 0 | BZ100: 0 | CA100: kit 8 | CB100: kit 9 | CC100: 0 | CD100: kit 10 | CE100: kit 11 | CI100: off | CJ100: =$CJ$74/CQ75 ->  | CK100: =CP75/$CK$74 ->  | CM100: =$CM$74/CQ75 ->  | CN100: =CP75/$CN$74 ->  | CP100: =$CP$74/CQ75 ->  | CQ100: =CP75/$CQ$74 ->  | CS100: =1.15*$CS$74/CQ75 ->  | CT100: =CP75/(1.15*$CT$74) ->  | CV100: =1.15*$CV$74/CQ75 ->  | CW100: =CP75/(1.15*$CW$74) ->  | CY100: =1.15*$CY$74/CQ75 ->  | CZ100: =CP75/(1.15*$CZ$74) ->  | DB100: =$DB$74/(1.15*CQ75) ->  | DC100: =1.15*CP75/$DC$74 ->  | DE100: =$DE$74/(1.15*CQ75) ->  | DF100: =1.15*CP75/$DF$74 ->  | DH100: =$DH$74/(1.15*CQ75) ->  | DI100: =1.15*CP75/$DI$74 ->  | DK100: =$DK$74/CQ75 ->  | DL100: =CP75/$DL$74 ->  | DN100: =$DN$74/CQ75 ->  | DO100: =CP75/$DO$74 ->  | DQ100: =$DQ$74/CQ75 ->  | DR100: =CP75/$DR$74 -> 
D101: total : | E101: =SUM(E90:E100) -> 9.93165 | F101: 10.0497 | G101: =SUM(G90:G100) -> 19.98135 | H101: =SUM(H90:H100) -> 13.9832 | I101: 5.9927 | J101: 19.9759 | K101: 11.95245 | L101: 8.0288 | M101: 19.98125 | N101: 11.9525 | O101: 8.02885 | P101: 19.98135 | R101: =H17+AH39+D16+D17+D21+D19*AG14 -> 582 | S101: =R101+Q10 -> 623 | T101: =R101+R10 -> 651 | U101: =R101+S10 -> 582 | V101: =R101+T10 -> 655 | W101: =R101+U10 -> 582 | X101: =R101+V10 -> 652 | Y101: =R101+W10 -> 643 | Z101: =R101+X10 -> 582 | AA101: =R101+Y10 -> 643 | AB101: =R101+Z10 -> 638 | AC101: =R101+AA10 -> 643 | AD101: =R101+AB10 -> 582 | AE101: =R101+AC10 -> 628 | AF101: =R101+AD10 -> 633 | AJ101: japon 5 | AK101: =MIN((S185+$AL$35*$D$19)/$AK$44,(S186+$AL$35*$D$19)/$AL$44,(S187+$AL$35*$D$19)/$AM$44,(S188+$AL$35*$D$19)/$AN$44,(S189+$AL$35*$D$19)/$AO$44)*$AP$44 -> 310 | AL101: 339.3333333 | AM101: 293.3333333 | AN101: 336 | AO101: 293.3333333 | AP101: 330.6666667 | AQ101: 334 | AR101: 293.3333333 | AS101: 334 | AT101: 336 | AU101: 330.6666667 | AV101: 293.3333333 | AW101: 333.3333333 | AX101: 336 | AY101: 339.3333333 | BA101: japon 5 | BB101: =MIN((S185+$AM$35*$D$19)/$AK$45,(S186+$AM$35*$D$19)/$AL$45,(S187+$AM$35*$D$19)/$AM$45,(S188+$AM$35*$D$19)/$AN$45,(S189+$AM$35*$D$19)/$AO$45)*$AP$45 -> 372 | BC101: 407.2 | BD101: 352 | BE101: 403.2 | BF101: 352 | BG101: 396.8 | BH101: 400.8 | BI101: 352 | BJ101: 400.8 | BK101: 403.2 | BL101: 396.8 | BM101: 352 | BN101: 400 | BO101: 403.2 | BP101: 407.2 | BR101: =BB109 -> kit 1 | BS101: kit 2/3 | BT101: 0 | BU101: kit 4 | BV101: 0 | BW101: kit 5 | BX101: kit 6/7 | BY101: 0 | BZ101: 0 | CA101: kit 8 | CB101: kit 9 | CC101: 0 | CD101: kit 10 | CE101: kit 11 | CH101: 433 | CI101: def | CJ101: =$CJ$74/(CT75*1.15) ->  | CK101: =CS75*1.15/$CK$74 ->  | CM101: =$CM$74/(1.15*CT75) ->  | CN101: =1.15*CS75/$CN$74 ->  | CP101: =$CP$74/(1.15*CT75) ->  | CQ101: =1.15*CS75/$CQ$74 ->  | CS101: =$CS$74/CT75 ->  | CT101: =CS75/$CT$74 ->  | CV101: =$CV$74/CT75 ->  | CW101: =CS75/$CW$74 ->  | CY101: =$CY$74/CT75 ->  | CZ101: =CS75/$CZ$74 ->  | DB101: =$DB$74/CT75 ->  | DC101: =CS75/$DC$74 ->  | DE101: =$DE$74/CT75 ->  | DF101: =CS75/$DF$74 ->  | DH101: =$DH$74/CT75 ->  | DI101: =CS75/$DI$74 ->  | DK101: =1.15*$DK$74/CT75 ->  | DL101: =CS75/(1.15*$DL$74) ->  | DN101: =1.15*$DN$74/CT75 ->  | DO101: =CS75/(1.15*$DO$74) ->  | DQ101: =1.15*$DQ$74/CT75 ->  | DR101: =CS75/(1.15*$DR$74) -> 
R102: =I17+AH40+D15+D17+D21+D19*AG14 -> 595 | S102: =R102+Q11 -> 675 | T102: =R102+R11 -> 647 | U102: =R102+S11 -> 595 | V102: =R102+T11 -> 640 | W102: =R102+U11 -> 595 | X102: =R102+V11 -> 651 | Y102: =R102+W11 -> 656 | Z102: =R102+X11 -> 595 | AA102: =R102+Y11 -> 656 | AB102: =R102+Z11 -> 659 | AC102: =R102+AA11 -> 663 | AD102: =R102+AB11 -> 595 | AE102: =R102+AC11 -> 663 | AF102: =R102+AD11 -> 659 | AJ102: nigeria 4 | AK102: =MIN((S192+$AL$35*$D$19)/$AK$44,(S193+$AL$35*$D$19)/$AL$44,(S194+$AL$35*$D$19)/$AM$44,(S195+$AL$35*$D$19)/$AN$44,(S196+$AL$35*$D$19)/$AO$44)*$AP$44 -> 320.6666667 | AL102: 350 | AM102: 304 | AN102: 346.6666667 | AO102: 304 | AP102: 341.3333333 | AQ102: 344.6666667 | AR102: 304 | AS102: 344.6666667 | AT102: 346.6666667 | AU102: 341.3333333 | AV102: 304 | AW102: 344 | AX102: 346.6666667 | AY102: 350 | BA102: nigeria 4 | BB102: =MIN((S192+$AM$35*$D$19)/$AK$45,(S193+$AM$35*$D$19)/$AL$45,(S194+$AM$35*$D$19)/$AM$45,(S195+$AM$35*$D$19)/$AN$45,(S196+$AM$35*$D$19)/$AO$45)*$AP$45 -> 384.8 | BC102: 420 | BD102: 364.8 | BE102: 416 | BF102: 364.8 | BG102: 409.6 | BH102: 413.6 | BI102: 364.8 | BJ102: 413.6 | BK102: 411.3333333 | BL102: 409.6 | BM102: 364.8 | BN102: 404.6666667 | BO102: 408 | BP102: 420 | BR102: =BB109 -> kit 1 | BS102: kit 2/3 | BT102: 0 | BU102: kit 4 | BV102: 0 | BW102: kit 5 | BX102: kit 6/7 | BY102: 0 | BZ102: 0 | CA102: kit 8 | CB102: kit 9 | CC102: 0 | CD102: kit 10 | CE102: kit 11 | CI102: neutre | CJ102: =$CJ$74/(CW75*1.15) ->  | CK102: =CV75*1.15/$CK$74 ->  | CM102: =$CM$74/(1.15*CW75) ->  | CN102: =1.15*CV75/$CN$74 ->  | CP102: =$CP$74/(1.15*CW75) ->  | CQ102: =1.15*CV75/$CQ$74 ->  | CS102: =$CS$74/CW75 ->  | CT102: =CV75/$CT$74 ->  | CV102: =$CV$74/CW75 ->  | CW102: =CV75/$CW$74 ->  | CY102: =$CY$74/CW75 ->  | CZ102: =CV75/$CZ$74 ->  | DB102: =$DB$74/CW75 ->  | DC102: =CV75/$DC$74 ->  | DE102: =$DE$74/CW75 ->  | DF102: =CV75/$DF$74 ->  | DH102: =$DH$74/CW75 ->  | DI102: =CV75/$DI$74 ->  | DK102: =1.15*$DK$74/CW75 ->  | DL102: =CV75/(1.15*$DL$74) ->  | DN102: =1.15*$DN$74/CW75 ->  | DO102: =CV75/(1.15*$DO$74) ->  | DQ102: =1.15*$DQ$74/CW75 ->  | DR102: =CV75/(1.15*$DR$74) -> 
D103: Calcul du capitaine | G103: ss kit ss vitamine | H103: kit ss vit | I103: kit + vit | R103: =J17+AH41+D15+D17+D21+D19*AG14 -> 569 | S103: =R103+Q12 -> 610 | T103: =R103+R12 -> 629 | U103: =R103+S12 -> 569 | V103: =R103+T12 -> 642 | W103: =R103+U12 -> 569 | X103: =R103+V12 -> 625 | Y103: =R103+W12 -> 630 | Z103: =R103+X12 -> 569 | AA103: =R103+Y12 -> 630 | AB103: =R103+Z12 -> 633 | AC103: =R103+AA12 -> 637 | AD103: =R103+AB12 -> 569 | AE103: =R103+AC12 -> 622 | AF103: =R103+AD12 -> 640 | AJ103: slovaquie 7 | AK103: =MIN((S199+$AL$35*$D$19)/$AK$44,(S200+$AL$35*$D$19)/$AL$44,(S201+$AL$35*$D$19)/$AM$44,(S202+$AL$35*$D$19)/$AN$44,(S203+$AL$35*$D$19)/$AO$44)*$AP$44 -> 320 | AL103: 349.3333333 | AM103: 303.3333333 | AN103: 346 | AO103: 303.3333333 | AP103: 340.6666667 | AQ103: 344 | AR103: 303.3333333 | AS103: 344 | AT103: 346 | AU103: 340.6666667 | AV103: 303.3333333 | AW103: 343.3333333 | AX103: 346 | AY103: 349.3333333 | BA103: slovaquie 7 | BB103: =MIN((S199+$AM$35*$D$19)/$AK$45,(S200+$AM$35*$D$19)/$AL$45,(S201+$AM$35*$D$19)/$AM$45,(S202+$AM$35*$D$19)/$AN$45,(S203+$AM$35*$D$19)/$AO$45)*$AP$45 -> 358.6666667 | BC103: 377.3333333 | BD103: 331.3333333 | BE103: 380 | BF103: 331.3333333 | BG103: 378 | BH103: 372 | BI103: 331.3333333 | BJ103: 372 | BK103: 368.6666667 | BL103: 372 | BM103: 331.3333333 | BN103: 362 | BO103: 365.3333333 | BP103: 380 | BR103: =BB109 -> kit 1 | BS103: =$BC$109 -> kit 2/3 | BT103: =$BD$109 -> 0 | BU103: =$BE$109 -> kit 4 | BV103: =$BF$109 -> 0 | BW103: =$BG$109 -> kit 5 | BX103: =$BH$109 -> kit 6/7 | BY103: =$BI$109 -> 0 | BZ103: =$BJ$109 -> 0 | CA103: =$BK$109 -> kit 8 | CB103: =$BL$109 -> kit 9 | CC103: =$BM$109 -> 0 | CD103: =$BN$109 -> kit 10 | CE103: =$BO$109 -> kit 11 | CI103: off | CJ103: =$CJ$74/(CZ75*1.15) ->  | CK103: =CY75*1.15/$CK$74 ->  | CM103: =$CM$74/(1.15*CZ75) ->  | CN103: =1.15*CY75/$CN$74 ->  | CP103: =$CP$74/(1.15*CZ75) ->  | CQ103: =1.15*CY75/$CQ$74 ->  | CS103: =$CS$74/CZ75 ->  | CT103: =CY75/$CT$74 ->  | CV103: =$CV$74/CZ75 ->  | CW103: =CY75/$CW$74 ->  | CY103: =$CY$74/CZ75 ->  | CZ103: =CY75/$CZ$74 ->  | DB103: =$DB$74/CZ75 ->  | DC103: =CY75/$DC$74 ->  | DE103: =$DE$74/CZ75 ->  | DF103: =CY75/$DF$74 ->  | DH103: =$DH$74/CZ75 ->  | DI103: =CY75/$DI$74 ->  | DK103: =1.15*$DK$74/CZ75 ->  | DL103: =CY75/(1.15*$DL$74) ->  | DN103: =1.15*$DN$74/CZ75 ->  | DO103: =CY75/(1.15*$DO$74) ->  | DQ103: =1.15*$DQ$74/CZ75 ->  | DR103: =CY75/(1.15*$DR$74) -> 
D104: =IF(MAX($I$104:$I$128)=I104,"CAP","") ->  | E104: =IF(G11<>"",G11,"") -> espagne 9 | F104: =VLOOKUP(E104,$AI$8:$AV$33,14,FALSE) -> 1 | G104: =IF(G11<>"",(L11/100+MIN(5000,M11)/500)/100,"") -> 0.05638 | H104: =IF(G11<>"",IF(ISNA(IF(VLOOKUP(G11,$AI$8:$AV$33,14,FALSE)="","",(HLOOKUP(VLOOKUP(G11,$BA$10:$BB$20,2,FALSE),S58:AF63,6,FALSE)/100+MIN(5000,M11)/500)/100)),G104,IF(VLOOKUP(G11,$AI$8:$AV$33,14,FALSE)="","",(HLOOKUP(VLOOKUP(G11,$BA$10:$BB$20,2,FALSE),S58:AF63,6,FALSE)/100+MIN(5000,M11)/500)/100)),"") -> 0.07398 | I104: =IF(G11<>"",IF(ISNA(IF(VLOOKUP(G11,$AI$8:$AV$29,14,FALSE)="","",((HLOOKUP(VLOOKUP(G11,$BA$10:$BB$20,2,FALSE),$S$58:$AF$63,6,FALSE)+IF(HLOOKUP(F104,$AJ$7:$AT$35,29,FALSE)=1,D19,0))/100+MIN(5000,M11)/500)/100)),H104,IF(VLOOKUP(G11,$AI$8:$AV$29,14,FALSE)="","",((HLOOKUP(VLOOKUP(G11,$BA$10:$BB$20,2,FALSE),$S$58:$AF$63,6,FALSE)+IF(HLOOKUP(F104,$AJ$7:$AT$35,29,FALSE)=1,D19,0))/100+MIN(5000,M11)/500)/100)),"") -> 0.07398 | R104: =K17+AH42+D16+D17+D21+D19*AG14 -> 564 | S104: =R104+Q13 -> 589 | T104: =R104+R13 -> 633 | U104: =R104+S13 -> 564 | V104: =R104+T13 -> 628 | W104: =R104+U13 -> 564 | X104: =R104+V13 -> 620 | Y104: =R104+W13 -> 625 | Z104: =R104+X13 -> 564 | AA104: =R104+Y13 -> 625 | AB104: =R104+Z13 -> 628 | AC104: =R104+AA13 -> 620 | AD104: =R104+AB13 -> 564 | AE104: =R104+AC13 -> 624 | AF104: =R104+AD13 -> 628 | AJ104: =AJ212 -> slovaquie 7 bis | AK104: =MIN((S206+$AL$35*$D$19)/$AK$44,(S207+$AL$35*$D$19)/$AL$44,(S208+$AL$35*$D$19)/$AM$44,(S209+$AL$35*$D$19)/$AN$44,(S210+$AL$35*$D$19)/$AO$44)*$AP$44 -> 390.6666667 | AL104: 420 | AM104: 374 | AN104: 416.6666667 | AO104: 374 | AP104: 411.3333333 | AQ104: 414.6666667 | AR104: 374 | AS104: 414.6666667 | AT104: 416.6666667 | AU104: 411.3333333 | AV104: 374 | AW104: 414 | AX104: 416.6666667 | AY104: 420 | BA104: =AJ212 -> slovaquie 7 bis | BB104: =MIN((S206+$AM$35*$D$19)/$AK$45,(S207+$AM$35*$D$19)/$AL$45,(S208+$AM$35*$D$19)/$AM$45,(S209+$AM$35*$D$19)/$AN$45,(S210+$AM$35*$D$19)/$AO$45)*$AP$45 -> 408 | BC104: 426.6666667 | BD104: 380.6666667 | BE104: 429.3333333 | BF104: 380.6666667 | BG104: 427.3333333 | BH104: 421.3333333 | BI104: 380.6666667 | BJ104: 421.3333333 | BK104: 418 | BL104: 421.3333333 | BM104: 380.6666667 | BN104: 411.3333333 | BO104: 414.6666667 | BP104: 429.3333333 | BR104: =BB109 -> kit 1 | BS104: =$BC$109 -> kit 2/3 | BT104: =$BD$109 -> 0 | BU104: =$BE$109 -> kit 4 | BV104: =$BF$109 -> 0 | BW104: =$BG$109 -> kit 5 | BX104: =$BH$109 -> kit 6/7 | BY104: =$BI$109 -> 0 | BZ104: =$BJ$109 -> 0 | CA104: =$BK$109 -> kit 8 | CB104: =$BL$109 -> kit 9 | CC104: =$BM$109 -> 0 | CD104: =$BN$109 -> kit 10 | CE104: =$BO$109 -> kit 11 | CH104: 352 | CI104: def | CJ104: =$CJ$74*1.15/DC75 ->  | CK104: =DB75/(1.15*$CK$74) ->  | CM104: =1.15*$CM$74/DC75 ->  | CN104: =DB75/(1.15*$CN$74) ->  | CP104: =1.15*$CP$74/DC75 ->  | CQ104: =DB75/(1.15*$CQ$74) ->  | CS104: =$CS$74/DC75 ->  | CT104: =DB75/$CT$74 ->  | CV104: =$CV$74/DC75 ->  | CW104: =DB75/$CW$74 ->  | CY104: =$CY$74/DC75 ->  | CZ104: =DB75/$CZ$74 ->  | DB104: =$DB$74/DC75 ->  | DC104: =DB75/$DC$74 ->  | DE104: =$DE$74/DC75 ->  | DF104: =DB75/$DF$74 ->  | DH104: =$DH$74/DC75 ->  | DI104: =DB75/$DI$74 ->  | DK104: =$DK$74/(1.15*DC75) ->  | DL104: =1.15*DB75/$DL$74 ->  | DN104: =$DN$74/(1.15*DC75) ->  | DO104: =1.15*DB75/$DO$74 ->  | DQ104: =$DQ$74/(1.15*DC75) ->  | DR104: =1.15*DB75/$DR$74 -> 
D105: =IF(MAX($I$104:$I$128)=I105,"CAP","") ->  | E105: =IF(G12<>"",G12,"") -> 2 | F105: =VLOOKUP(E105,$AI$8:$AV$33,14,FALSE) -> 2 | G105: =IF(G12<>"",(L12/100+MIN(5000,M12)/500)/100,"") -> 0.0578 | H105: =IF(G12<>"",IF(ISNA(IF(VLOOKUP(G12,$AI$8:$AV$33,14,FALSE)="","",(HLOOKUP(VLOOKUP(G12,$BA$10:$BB$20,2,FALSE),S65:AF70,6,FALSE)/100+MIN(5000,M12)/500)/100)),G105,IF(VLOOKUP(G12,$AI$8:$AV$33,14,FALSE)="","",(HLOOKUP(VLOOKUP(G12,$BA$10:$BB$20,2,FALSE),S65:AF70,6,FALSE)/100+MIN(5000,M12)/500)/100)),"") -> 0.075 | I105: =IF(G12<>"",IF(ISNA(IF(VLOOKUP(G12,$AI$8:$AV$29,14,FALSE)="","",((HLOOKUP(VLOOKUP(G12,$BA$10:$BB$20,2,FALSE),$S$65:$AF$70,6,FALSE)+IF(HLOOKUP(F105,$AJ$7:$AT$35,29,FALSE)=1,D19,0))/100+MIN(5000,M12)/500)/100)),H105,IF(VLOOKUP(G12,$AI$8:$AV$29,14,FALSE)="","",((HLOOKUP(VLOOKUP(G12,$BA$10:$BB$20,2,FALSE),$S$65:$AF$70,6,FALSE)+IF(HLOOKUP(F105,$AJ$7:$AT$35,29,FALSE)=1,D19,0))/100+MIN(5000,M12)/500)/100)),"") -> 0.075 | R105: =L17+AH43+D15+D17+D21+D19*AG14 -> 480 | S105: =R105+Q14 -> 536 | T105: =R105+R14 -> 532 | U105: =R105+S14 -> 480 | V105: =R105+T14 -> 525 | W105: =R105+U14 -> 480 | X105: =R105+V14 -> 536 | Y105: =R105+W14 -> 533 | Z105: =R105+X14 -> 480 | AA105: =R105+Y14 -> 533 | AB105: =R105+Z14 -> 528 | AC105: =R105+AA14 -> 529 | AD105: =R105+AB14 -> 480 | AE105: =R105+AC14 -> 540 | AF105: =R105+AD14 -> 524 | AJ105: =AJ213 -> 0 | AK105: =MIN((S213+$AL$35*$D$19)/$AK$44,(S214+$AL$35*$D$19)/$AL$44,(S215+$AL$35*$D$19)/$AM$44,(S216+$AL$35*$D$19)/$AN$44,(S217+$AL$35*$D$19)/$AO$44)*$AP$44 -> 97.33333333 | AL105: 126.6666667 | AM105: 80.66666667 | AN105: 123.3333333 | AO105: 80.66666667 | AP105: 118 | AQ105: 121.3333333 | AR105: 80.66666667 | AS105: 121.3333333 | AT105: 123.3333333 | AU105: 118 | AV105: 80.66666667 | AW105: 120.6666667 | AX105: 123.3333333 | AY105: 126.6666667 | BA105: 0 | BB105: =MIN((S213+$AM$35*$D$19)/$AK$45,(S214+$AM$35*$D$19)/$AL$45,(S215+$AM$35*$D$19)/$AM$45,(S216+$AM$35*$D$19)/$AN$45,(S217+$AM$35*$D$19)/$AO$45)*$AP$45 -> 116.8 | BC105: 136.6666667 | BD105: 90.66666667 | BE105: 139.3333333 | BF105: 90.66666667 | BG105: 137.3333333 | BH105: 131.3333333 | BI105: 90.66666667 | BJ105: 131.3333333 | BK105: 128 | BL105: 131.3333333 | BM105: 90.66666667 | BN105: 121.3333333 | BO105: 124.6666667 | BP105: 139.3333333 | BR105: =BB109 -> kit 1 | BS105: kit 2/3 | BT105: 0 | BU105: kit 4 | BV105: 0 | BW105: kit 5 | BX105: kit 6/7 | BY105: 0 | BZ105: 0 | CA105: kit 8 | CB105: kit 9 | CC105: 0 | CD105: kit 10 | CE105: kit 11 | CI105: neutre | CJ105: =$CJ$74*1.15/DF75 ->  | CK105: =DE75/($CK$74*1.15) ->  | CM105: =1.15*$CM$74/DF75 ->  | CN105: =DE75/(1.105*$CN$74) ->  | CP105: =1.15*$CP$74/DF75 ->  | CQ105: =DE75/(1.15*$CQ$74) ->  | CS105: =$CS$74/DF75 ->  | CT105: =DE75/$CT$74 ->  | CV105: =$CV$74/DF75 ->  | CW105: =DE75/$CW$74 ->  | CY105: =$CY$74/DF75 ->  | CZ105: =DE75/$CZ$74 ->  | DB105: =$DB$74/DF75 ->  | DC105: =DE75/$DC$74 ->  | DE105: =$DE$74/DF75 ->  | DF105: =DE75/$DF$74 ->  | DH105: =$DH$74/DF75 ->  | DI105: =DE75/$DI$74 ->  | DK105: =$DK$74/(1.15*DF75) ->  | DL105: =1.15*DE75/$DL$74 ->  | DN105: =$DN$74/(1.15*DF75) ->  | DO105: =1.15*DE75/$DO$74 ->  | DQ105: =$DQ$74/(1.15*DF75) ->  | DR105: =1.15*DE75/$DR$74 -> 
E106: 3 | F106: 3 | G106: 0.051 | H106: =IF(G13<>"",IF(ISNA(IF(VLOOKUP(G13,$AI$8:$AV$33,14,FALSE)="","",(HLOOKUP(VLOOKUP(G13,$BA$10:$BB$20,2,FALSE),S72:AF77,6,FALSE)/100+MIN(5000,M13)/500)/100)),G106,IF(VLOOKUP(G13,$AI$8:$AV$33,14,FALSE)="","",(HLOOKUP(VLOOKUP(G13,$BA$10:$BB$20,2,FALSE),S72:AF77,6,FALSE)/100+MIN(5000,M13)/500)/100)),"") -> 0.0682 | I106: =IF(G13<>"",IF(ISNA(IF(VLOOKUP(G13,$AI$8:$AV$29,14,FALSE)="","",((HLOOKUP(VLOOKUP(G13,$BA$10:$BB$20,2,FALSE),$S$72:$AF$77,6,FALSE)+IF(HLOOKUP(F106,$AJ$7:$AT$35,29,FALSE)=1,D19,0))/100+MIN(5000,M13)/500)/100)),H106,IF(VLOOKUP(G13,$AI$8:$AV$29,14,FALSE)="","",((HLOOKUP(VLOOKUP(G13,$BA$10:$BB$20,2,FALSE),$S$72:$AF$77,6,FALSE)+IF(HLOOKUP(F106,$AJ$7:$AT$35,29,FALSE)=1,D19,0))/100+MIN(5000,M13)/500)/100)),"") -> 0.0682 | AJ106: =AJ214 -> 0 | AK106: =MIN((S220+$AL$35*$D$19)/$AK$44,(S221+$AL$35*$D$19)/$AL$44,(S222+$AL$35*$D$19)/$AM$44,(S223+$AL$35*$D$19)/$AN$44,(S224+$AL$35*$D$19)/$AO$44)*$AP$44 -> 97.33333333 | AL106: 126.6666667 | AM106: 80.66666667 | AN106: 123.3333333 | AO106: 80.66666667 | AP106: 118 | AQ106: 121.3333333 | AR106: 80.66666667 | AS106: 121.3333333 | AT106: 123.3333333 | AU106: 118 | AV106: 80.66666667 | AW106: 120.6666667 | AX106: 123.3333333 | AY106: 126.6666667 | BA106: 0 | BB106: =MIN((S220+$AM$35*$D$19)/$AK$45,(S221+$AM$35*$D$19)/$AL$45,(S222+$AM$35*$D$19)/$AM$45,(S223+$AM$35*$D$19)/$AN$45,(S224+$AM$35*$D$19)/$AO$45)*$AP$45 -> 116.8 | BC106: 136.6666667 | BD106: 90.66666667 | BE106: 139.3333333 | BF106: 90.66666667 | BG106: 137.3333333 | BH106: 131.3333333 | BI106: 90.66666667 | BJ106: 131.3333333 | BK106: 128 | BL106: 131.3333333 | BM106: 90.66666667 | BN106: 121.3333333 | BO106: 124.6666667 | BP106: 139.3333333 | BR106: =BB109 -> kit 1 | BS106: kit 2/3 | BT106: 0 | BU106: kit 4 | BV106: 0 | BW106: kit 5 | BX106: kit 6/7 | BY106: 0 | BZ106: 0 | CA106: kit 8 | CB106: kit 9 | CC106: 0 | CD106: kit 10 | CE106: kit 11 | CI106: off | CJ106: =$CJ$74*1.15/DI75 ->  | CK106: =DH75/(1.15*$CK$74) ->  | CM106: =1.15*$CM$74/DI75 ->  | CN106: =DH75/(1.15*$CN$74) ->  | CP106: =1.15*$CP$74/DI75 ->  | CQ106: =DH75/(1.15*$CQ$74) ->  | CS106: =$CS$74/DI75 ->  | CT106: =DH75/$CT$74 ->  | CV106: =$CV$74/DI75 ->  | CW106: =DH75/$CW$74 ->  | CY106: =$CY$74/DI75 ->  | CZ106: =DH75/$CZ$74 ->  | DB106: =$DB$74/DI75 ->  | DC106: =DH75/$DC$74 ->  | DE106: =$DE$74/DI75 ->  | DF106: =DH75/$DF$74 ->  | DH106: =$DH$74/DI75 ->  | DI106: =DH75/$DI$74 ->  | DK106: =$DK$74/(1.15*DI75) ->  | DL106: =1.15*DH75/$DL$74 ->  | DN106: =$DN$74/(1.15*DI75) ->  | DO106: =1.15*DH75/$DO$74 ->  | DQ106: =$DQ$74/(1.15*DI75) ->  | DR106: =1.15*DH75/$DR$74 -> 
E107: algerie 4 | F107: 4 | G107: 0.05022 | H107: =IF(G14<>"",IF(ISNA(IF(VLOOKUP(G14,$AI$8:$AV$33,14,FALSE)="","",(HLOOKUP(VLOOKUP(G14,$BA$10:$BB$20,2,FALSE),S79:AF84,6,FALSE)/100+MIN(5000,M14)/500)/100)),G107,IF(VLOOKUP(G14,$AI$8:$AV$33,14,FALSE)="","",(HLOOKUP(VLOOKUP(G14,$BA$10:$BB$20,2,FALSE),S79:AF84,6,FALSE)/100+MIN(5000,M14)/500)/100)),"") -> 0.06742 | I107: =IF(G14<>"",IF(ISNA(IF(VLOOKUP(G14,$AI$8:$AV$29,14,FALSE)="","",((HLOOKUP(VLOOKUP(G14,$BA$10:$BB$20,2,FALSE),$S$79:$AF$84,6,FALSE)+IF(HLOOKUP(F107,$AJ$7:$AT$35,29,FALSE)=1,D19,0))/100+MIN(5000,M14)/500)/100)),H107,IF(VLOOKUP(G14,$AI$8:$AV$29,14,FALSE)="","",((HLOOKUP(VLOOKUP(G14,$BA$10:$BB$20,2,FALSE),$S$79:$AF$84,6,FALSE)+IF(HLOOKUP(F107,$AJ$7:$AT$35,29,FALSE)=1,D19,0))/100+MIN(5000,M14)/500)/100)),"") -> 0.06742 | R107: =G18 -> australie 11 | S107: =S100 -> kit 1 | T107: =T100 -> kit 2/3 | U107: 0 | V107: kit 4 | W107: 0 | X107: kit 5 | Y107: kit 6/7 | Z107: 0 | AA107: 0 | AB107: kit 8 | AC107: kit 9 | AD107: 0 | AE107: =AE100 -> kit 10 | AF107: =AF100 -> kit 11 | AJ107: =AJ215 -> 0 | AK107: =MIN((S227+$AL$35*$D$19)/$AK$44,(S228+$AL$35*$D$19)/$AL$44,(S229+$AL$35*$D$19)/$AM$44,(S230+$AL$35*$D$19)/$AN$44,(S231+$AL$35*$D$19)/$AO$44)*$AP$44 -> 97.33333333 | AL107: 126.6666667 | AM107: 80.66666667 | AN107: 123.3333333 | AO107: 80.66666667 | AP107: 118 | AQ107: 121.3333333 | AR107: 80.66666667 | AS107: 121.3333333 | AT107: 123.3333333 | AU107: 118 | AV107: 80.66666667 | AW107: 120.6666667 | AX107: 123.3333333 | AY107: 126.6666667 | BA107: 0 | BB107: =MIN((S227+$AM$35*$D$19)/$AK$45,(S228+$AM$35*$D$19)/$AL$45,(S229+$AM$35*$D$19)/$AM$45,(S230+$AM$35*$D$19)/$AN$45,(S231+$AM$35*$D$19)/$AO$45)*$AP$45 -> 116.8 | BC107: 136.6666667 | BD107: 90.66666667 | BE107: 139.3333333 | BF107: 90.66666667 | BG107: 137.3333333 | BH107: 131.3333333 | BI107: 90.66666667 | BJ107: 131.3333333 | BK107: 128 | BL107: 131.3333333 | BM107: 90.66666667 | BN107: 121.3333333 | BO107: 124.6666667 | BP107: 139.3333333 | BR107: =BB109 -> kit 1 | BS107: kit 2/3 | BT107: 0 | BU107: kit 4 | BV107: 0 | BW107: kit 5 | BX107: kit 6/7 | BY107: 0 | BZ107: 0 | CA107: kit 8 | CB107: kit 9 | CC107: 0 | CD107: kit 10 | CE107: kit 11 | CH107: 442 | CI107: def | CJ107: =$CJ$74/DL75 ->  | CK107: =DK75/$CK$74 ->  | CM107: =$CM$74/DL75 ->  | CN107: =DK75/$CN$74 ->  | CP107: =$CP$74/DL75 ->  | CQ107: =DK75/$CQ$74 ->  | CS107: =$CS$74/(1.15*DL75) ->  | CT107: =1.15*DK75/$CT$74 ->  | CV107: =$CV$74/(1.15*DL75) ->  | CW107: =1.15*DK75/$CW$74 ->  | CY107: =$CY$74/(1.15*DL75) ->  | CZ107: =1.15*DK75/$CZ$74 ->  | DB107: =1.15*$DB$74/DL75 ->  | DC107: =DK75/(1.15*$DC$74) ->  | DE107: =1.15*$DE$74/DL75 ->  | DF107: =DK75/(1.15*$DF$74) ->  | DH107: =1.15*$DH$74/DL75 ->  | DI107: =DK75/(1.15*$DI$74) ->  | DK107: =$DK$74/DL75 ->  | DL107: =DK75/$DL$74 ->  | DN107: =$DN$74/DL75 ->  | DO107: =DK75/$DO$74 ->  | DQ107: =$DQ$74/DL75 ->  | DR107: =DK75/$DR$74 -> 
E108: ghana 5 | F108: 5 | G108: 0.0564 | H108: =IF(G15<>"",IF(ISNA(IF(VLOOKUP(G15,$AI$8:$AV$33,14,FALSE)="","",(HLOOKUP(VLOOKUP(G15,$BA$10:$BB$20,2,FALSE),S86:AF91,6,FALSE)/100+MIN(5000,M15)/500)/100)),G108,IF(VLOOKUP(G15,$AI$8:$AV$33,14,FALSE)="","",(HLOOKUP(VLOOKUP(G15,$BA$10:$BB$20,2,FALSE),S86:AF91,6,FALSE)/100+MIN(5000,M15)/500)/100)),"") -> 0.0729 | I108: =IF(G15<>"",IF(ISNA(IF(VLOOKUP(G15,$AI$8:$AV$29,14,FALSE)="","",((HLOOKUP(VLOOKUP(G15,$BA$10:$BB$20,2,FALSE),$S$86:$AF$91,6,FALSE)+IF(HLOOKUP(F108,$AJ$7:$AT$35,29,FALSE)=1,D19,0))/100+MIN(5000,M15)/500)/100)),H108,IF(VLOOKUP(G15,$AI$8:$AV$29,14,FALSE)="","",((HLOOKUP(VLOOKUP(G15,$BA$10:$BB$20,2,FALSE),$S$86:$AF$91,6,FALSE)+IF(HLOOKUP(F108,$AJ$7:$AT$35,29,FALSE)=1,D19,0))/100+MIN(5000,M15)/500)/100)),"") -> 0.0729 | R108: =H18+AH39+D16+D17+D21+D19*AG15 -> 530 | S108: =R108+Q10 -> 571 | T108: =R108+R10 -> 599 | U108: =R108+S10 -> 530 | V108: =R108+T10 -> 603 | W108: =R108+U10 -> 530 | X108: =R108+V10 -> 600 | Y108: =R108+W10 -> 591 | Z108: =R108+X10 -> 530 | AA108: =R108+Y10 -> 591 | AB108: =R108+Z10 -> 586 | AC108: =R108+AA10 -> 591 | AD108: =R108+AB10 -> 530 | AE108: =R108+AC10 -> 576 | AF108: =R108+AD10 -> 581 | BR108: =BB109 -> kit 1 | BS108: kit 2/3 | BT108: 0 | BU108: kit 4 | BV108: 0 | BW108: kit 5 | BX108: kit 6/7 | BY108: 0 | BZ108: 0 | CA108: kit 8 | CB108: kit 9 | CC108: 0 | CD108: kit 10 | CE108: kit 11 | CI108: neutre | CJ108: =$CJ$74/DO75 ->  | CK108: =DN75/$CK$74 ->  | CM108: =$CM$74/DO75 ->  | CN108: =DN75/$CN$74 ->  | CP108: =$CP$74/DO75 ->  | CQ108: =DN75/$CQ$74 ->  | CS108: =$CS$74/(1.15*DO75) ->  | CT108: =1.15*DN75/$CT$74 ->  | CV108: =$CV$74/(1.15*DO75) ->  | CW108: =1.15*DN75/$CW$74 ->  | CY108: =$CY$74/(1.15*DO75) ->  | CZ108: =1.15*DN75/$CZ$74 ->  | DB108: =1.15*$DB$74/DO75 ->  | DC108: =DN75/(1.15*$DC$74) ->  | DE108: =1.15*$DE$74/DO75 ->  | DF108: =DN75/(1.15*$DF$74) ->  | DH108: =1.15*$DH$74/DO75 ->  | DI108: =DN75/(1.15*$DI$74) ->  | DK108: =$DK$74/DO75 ->  | DL108: =DN75/$DL$74 ->  | DN108: =$DN$74/DO75 ->  | DO108: =DN75/$DO$74 ->  | DQ108: =$DQ$74/DO75 ->  | DR108: =DN75/$DR$74 -> 
E109: slovenie 6 | F109: 6 | G109: 0.06472 | H109: =IF(G16<>"",IF(ISNA(IF(VLOOKUP(G16,$AI$8:$AV$33,14,FALSE)="","",(HLOOKUP(VLOOKUP(G16,$BA$10:$BB$20,2,FALSE),S93:AF98,6,FALSE)/100+MIN(5000,M16)/500)/100)),G109,IF(VLOOKUP(G16,$AI$8:$AV$33,14,FALSE)="","",(HLOOKUP(VLOOKUP(G16,$BA$10:$BB$20,2,FALSE),S93:AF98,6,FALSE)/100+MIN(5000,M16)/500)/100)),"") -> 0.08192 | I109: =IF(G16<>"",IF(ISNA(IF(VLOOKUP(G16,$AI$8:$AV$29,14,FALSE)="","",((HLOOKUP(VLOOKUP(G16,$BA$10:$BB$20,2,FALSE),$S$93:$AF$98,6,FALSE)+IF(HLOOKUP(F109,$AJ$7:$AT$35,29,FALSE)=1,D19,0))/100+MIN(5000,M16)/500)/100)),H109,IF(VLOOKUP(G16,$AI$8:$AV$29,14,FALSE)="","",((HLOOKUP(VLOOKUP(G16,$BA$10:$BB$20,2,FALSE),$S$93:$AF$98,6,FALSE)+IF(HLOOKUP(F109,$AJ$7:$AT$35,29,FALSE)=1,D19,0))/100+MIN(5000,M16)/500)/100)),"") -> 0.08192 | R109: =I18+AH40+D15+D17+D21+D19*AG15 -> 583 | S109: =R109+Q11 -> 663 | T109: =R109+R11 -> 635 | U109: =R109+S11 -> 583 | V109: =R109+T11 -> 628 | W109: =R109+U11 -> 583 | X109: =R109+V11 -> 639 | Y109: =R109+W11 -> 644 | Z109: =R109+X11 -> 583 | AA109: =R109+Y11 -> 644 | AB109: =R109+Z11 -> 647 | AC109: =R109+AA11 -> 651 | AD109: =R109+AB11 -> 583 | AE109: =R109+AC11 -> 651 | AF109: =R109+AD11 -> 647 | AJ109: 5 | AK109: =Q9 -> kit 1 | AL109: kit 2/3 | AM109: 0 | AN109: kit 4 | AO109: 0 | AP109: kit 5 | AQ109: kit 6/7 | AR109: 0 | AS109: 0 | AT109: kit 8 | AU109: kit 9 | AV109: 0 | AW109: kit 10 | AX109: kit 11 | AY109: MAX | BA109: 6 | BB109: =Q9 -> kit 1 | BC109: kit 2/3 | BD109: 0 | BE109: kit 4 | BF109: 0 | BG109: kit 5 | BH109: kit 6/7 | BI109: 0 | BJ109: 0 | BK109: kit 8 | BL109: kit 9 | BM109: 0 | BN109: kit 10 | BO109: kit 11 | BP109: MAX | BR109: =BB109 -> kit 1 | BS109: kit 2/3 | BT109: 0 | BU109: kit 4 | BV109: 0 | BW109: kit 5 | BX109: kit 6/7 | BY109: 0 | BZ109: 0 | CA109: kit 8 | CB109: kit 9 | CC109: 0 | CD109: kit 10 | CE109: kit 11 | CI109: off | CJ109: =$CJ$74/DR75 ->  | CK109: =DQ75/$CK$74 ->  | CM109: =$CM$74/DR75 ->  | CN109: =DQ75/$CN$74 ->  | CP109: =$CP$74/DR75 ->  | CQ109: =DQ75/$CQ$74 ->  | CS109: =$CS$74/(1.15*DR75) ->  | CT109: =1.15*DQ75/$CT$74 ->  | CV109: =$CV$74/(1.15*DR75) ->  | CW109: =1.15*DQ75/$CW$74 ->  | CY109: =$CY$74/(1.15*DR75) ->  | CZ109: =1.15*DQ75/$CZ$74 ->  | DB109: =1.15*$DB$74/DR75 ->  | DC109: =DQ75/(1.15*$DC$74) ->  | DE109: =1.15*$DE$74/DR75 ->  | DF109: =DQ75/(1.15*$DF$74) ->  | DH109: =1.15*$DH$74/DR75 ->  | DI109: =DQ75/(1.15*$DI$74) ->  | DK109: =$DK$74/DR75 ->  | DL109: =DQ75/$DL$74 ->  | DN109: =$DN$74/DR75 ->  | DO109: =DQ75/$DO$74 ->  | DQ109: =$DQ$74/DR75 ->  | DR109: =DQ75/$DR$74 -> 
D110: CAP | E110: grece 7 | F110: 7 | G110: 0.06592 | H110: =IF(G17<>"",IF(ISNA(IF(VLOOKUP(G17,$AI$8:$AV$33,14,FALSE)="","",(HLOOKUP(VLOOKUP(G17,$BA$10:$BB$20,2,FALSE),S100:AF105,6,FALSE)/100+MIN(5000,M17)/500)/100)),G110,IF(VLOOKUP(G17,$AI$8:$AV$33,14,FALSE)="","",(HLOOKUP(VLOOKUP(G17,$BA$10:$BB$20,2,FALSE),S100:AF105,6,FALSE)/100+MIN(5000,M17)/500)/100)),"") -> 0.08312 | I110: =IF(G17<>"",IF(ISNA(IF(VLOOKUP(G17,$AI$8:$AV$29,14,FALSE)="","",((HLOOKUP(VLOOKUP(G17,$BA$10:$BB$20,2,FALSE),$S$100:$AF$105,6,FALSE)+IF(HLOOKUP(F110,$AJ$7:$AT$35,29,FALSE)=1,D19,0))/100+MIN(5000,M17)/500)/100)),H110,IF(VLOOKUP(G17,$AI$8:$AV$29,14,FALSE)="","",((HLOOKUP(VLOOKUP(G17,$BA$10:$BB$20,2,FALSE),$S$100:$AF$105,6,FALSE)+IF(HLOOKUP(F110,$AJ$7:$AT$35,29,FALSE)=1,D19,0))/100+MIN(5000,M17)/500)/100)),"") -> 0.08312 | R110: =J18+AH41+D15+D17+D21+D19*AG15 -> 627 | S110: =R110+Q12 -> 668 | T110: =R110+R12 -> 687 | U110: =R110+S12 -> 627 | V110: =R110+T12 -> 700 | W110: =R110+U12 -> 627 | X110: =R110+V12 -> 683 | Y110: =R110+W12 -> 688 | Z110: =R110+X12 -> 627 | AA110: =R110+Y12 -> 688 | AB110: =R110+Z12 -> 691 | AC110: =R110+AA12 -> 695 | AD110: =R110+AB12 -> 627 | AE110: =R110+AC12 -> 680 | AF110: =R110+AD12 -> 698 | AJ110: =AJ191 -> espagne 9 | AK110: =MIN((S59+AN35*D19)/AK46,(S60+AN35*D19)/AL46,(S61+AN35*D19)/AM46,(S62+AN35*D19)/AN46,(S63+AN35*D19)/AO46)*AP46 -> 587 | AL110: =MIN((T59+AN35*D19)/AK46,(T60+AN35*D19)/AL46,(T61+AN35*D19)/AM46,(T62+AN35*D19)/AN46,(T63+AN35*D19)/AO46)*AP46 -> 615 | AM110: =MIN((U59+AN35*D19)/AK46,(U60+AN35*D19)/AL46,(U61+AN35*D19)/AM46,(U62+AN35*D19)/AN46,(U63+AN35*D19)/AO46)*AP46 -> 546 | AN110: =MIN((V59+AN35*D19)/AK46,(V60+AN35*D19)/AL46,(V61+AN35*D19)/AM46,(V62+AN35*D19)/AN46,(V63+AN35*D19)/AO46)*AP46 -> 606.6666667 | AO110: =MIN((W59+AN35*D19)/AK46,(W60+AN35*D19)/AL46,(W61+AN35*D19)/AM46,(W62+AN35*D19)/AN46,(W63+AN35*D19)/AO46)*AP46 -> 546 | AP110: =MIN((X59+AN35*D19)/AK46,(X60+AN35*D19)/AL46,(X61+AN35*D19)/AM46,(X62+AN35*D19)/AN46,(X63+AN35*D19)/AO46)*AP46 -> 616 | AQ110: =MIN((Y59+AN35*D19)/AK46,(Y60+AN35*D19)/AL46,(Y61+AN35*D19)/AM46,(Y62+AN35*D19)/AN46,(Y63+AN35*D19)/AO46)*AP46 -> 607 | AR110: =MIN((Z59+AN35*D19)/AK46,(Z60+AN35*D19)/AL46,(Z61+AN35*D19)/AM46,(Z62+AN35*D19)/AN46,(Z63+AN35*D19)/AO46)*AP46 -> 546 | AS110: =MIN((AA59+AN35*D19)/AK46,(AA60+AN35*D19)/AL46,(AA61+AN35*D19)/AM46,(AA62+AN35*D19)/AN46,(AA63+AN35*D19)/AO46)*AP46 -> 607 | AT110: =MIN((AB59+AN35*D19)/AK46,(AB60+AN35*D19)/AL46,(AB61+AN35*D19)/AM46,(AB62+AN35*D19)/AN46,(AB63+AN35*D19)/AO46)*AP46 -> 602 | AU110: =MIN((AC59+AN35*D19)/AK46,(AC60+AN35*D19)/AL46,(AC61+AN35*D19)/AM46,(AC62+AN35*D19)/AN46,(AC63+AN35*D19)/AO46)*AP46 -> 607 | AV110: =MIN((AD59+$AN$35*$D$19)/$AK$46,(AD60+$AN$35*$D$19)/AL45,(AD61+$AN$35*$D$19)/AM45,($AD$62+$AN$35*$D$19)/$AN$46,(AD63+$AN$35*$D$19)/$AO$46)*$AP$46 -> 490.4 | AW110: =MIN((AE59+AN35*D19)/AK46,(AE60+AN35*D19)/AL46,(AE61+AN35*D19)/AM46,(AE62+AN35*D19)/AN46,(AE63+AN35*D19)/AO46)*AP46 -> 592 | AX110: =MIN((AF59+AN35*D19)/AK46,(AF60+AN35*D19)/AL46,(AF61+AN35*D19)/AM46,(AF62+AN35*D19)/AN46,(AF63+AN35*D19)/AO46)*AP46 -> 597 | AY110: =MAX(AK110:AX110) -> 616 | BA110: =AJ191 -> espagne 9 | BB110: =MIN((S59+AO35*D19)/AK47,(S60+AO35*D19)/AL47,(S61+AO35*D19)/AM47,(S62+AO35*D19)/AN47,(S63+AO35*D19)/AO47)*AP47 -> 469.6 | BC110: =MIN((T59+AO35*D19)/AK47,(T60+AO35*D19)/AL47,(T61+AO35*D19)/AM47,(T62+AO35*D19)/AN47,(T63+AO35*D19)/AO47)*AP47 -> 492 | BD110: =MIN((U59+AO35*D19)/AK47,(U60+AO35*D19)/AL47,(U61+AO35*D19)/AM47,(U62+AO35*D19)/AN47,(U63+AO35*D19)/AO47)*AP47 -> 436.8 | BE110: =MIN((V59+AO35*D19)/AK47,(V60+AO35*D19)/AL47,(V61+AO35*D19)/AM47,(V62+AO35*D19)/AN47,(V63+AO35*D19)/AO47)*AP47 -> 495.2 | BF110: =MIN((W59+AO35*D19)/AK47,(W60+AO35*D19)/AL47,(W61+AO35*D19)/AM47,(W62+AO35*D19)/AN47,(W63+AO35*D19)/AO47)*AP47 -> 436.8 | BG110: =MIN((X59+AO35*D19)/AK47,(X60+AO35*D19)/AL47,(X61+AO35*D19)/AM47,(X62+AO35*D19)/AN47,(X63+AO35*D19)/AO47)*AP47 -> 492.8 | BH110: =MIN((Y59+AO35*D19)/AK47,(Y60+AO35*D19)/AL47,(Y61+AO35*D19)/AM47,(Y62+AO35*D19)/AN47,(Y63+AO35*D19)/AO47)*AP47 -> 485.6 | BI110: =MIN((Z59+AO35*D19)/AK47,(Z60+AO35*D19)/AL47,(Z61+AO35*D19)/AM47,(Z62+AO35*D19)/AN47,(Z63+AO35*D19)/AO47)*AP47 -> 436.8 | BJ110: =MIN((AA59+AO35*D19)/AK47,(AA60+AO35*D19)/AL47,(AA61+AO35*D19)/AM47,(AA62+AO35*D19)/AN47,(AA63+AO35*D19)/AO47)*AP47 -> 485.6 | BK110: =MIN((AB59+AO35*D19)/AK47,(AB60+AO35*D19)/AL47,(AB61+AO35*D19)/AM47,(AB62+AO35*D19)/AN47,(AB63+AO35*D19)/AO47)*AP47 -> 481.6 | BL110: =MIN((AC59+AO35*D19)/AK47,(AC60+AO35*D19)/AL47,(AC61+AO35*D19)/AM47,(AC62+AO35*D19)/AN47,(AC63+AO35*D19)/AO47)*AP47 -> 485.6 | BM110: =MIN((AD59+AO35*D19)/AK47,(AD60+AO35*D19)/AL47,(AD61+AO35*D19)/AM47,(AD62+AO35*D19)/AN47,(AD63+AO35*D19)/AO47)*AP47 -> 436.8 | BN110: =MIN((AE59+AO35*D19)/AK47,(AE60+AO35*D19)/AL47,(AE61+AO35*D19)/AM47,(AE62+AO35*D19)/AN47,(AE63+AO35*D19)/AO47)*AP47 -> 473.6 | BO110: =MIN((AF59+AO35*D19)/AK47,(AF60+AO35*D19)/AL47,(AF61+AO35*D19)/AM47,(AF62+AO35*D19)/AN47,(AF63+AO35*D19)/AO47)*AP47 -> 477.6 | BP110: =MAX(BB110:BO110) -> 495.2 | BR110: =BB109 -> kit 1 | BS110: kit 2/3 | BT110: 0 | BU110: kit 4 | BV110: 0 | BW110: kit 5 | BX110: kit 6/7 | BY110: 0 | BZ110: 0 | CA110: kit 8 | CB110: kit 9 | CC110: 0 | CD110: kit 10 | CE110: kit 11
E111: australie 11 | F111: 8 | G111: 0.05624 | H111: =IF(G18<>"",IF(ISNA(IF(VLOOKUP(G18,$AI$8:$AV$33,14,FALSE)="","",(HLOOKUP(VLOOKUP(G18,$BA$10:$BB$20,2,FALSE),S107:AF112,6,FALSE)/100+MIN(5000,M18)/500)/100)),G111,IF(VLOOKUP(G18,$AI$8:$AV$33,14,FALSE)="","",(HLOOKUP(VLOOKUP(G18,$BA$10:$BB$20,2,FALSE),S107:AF112,6,FALSE)/100+MIN(5000,M18)/500)/100)),"") -> 0.07304 | I111: =IF(G18<>"",IF(ISNA(IF(VLOOKUP(G18,$AI$8:$AV$29,14,FALSE)="","",((HLOOKUP(VLOOKUP(G18,$BA$10:$BB$20,2,FALSE),$S$107:$AF$112,6,FALSE)+IF(HLOOKUP(F111,$AJ$7:$AT$35,29,FALSE)=1,D19,0))/100+MIN(5000,M18)/500)/100)),H111,IF(VLOOKUP(G18,$AI$8:$AV$29,14,FALSE)="","",((HLOOKUP(VLOOKUP(G18,$BA$10:$BB$20,2,FALSE),$S$107:$AF$112,6,FALSE)+IF(HLOOKUP(F111,$AJ$7:$AT$35,29,FALSE)=1,D19,0))/100+MIN(5000,M18)/500)/100)),"") -> 0.07304 | R111: =K18+AH42+D16+D17+D21+D19*AG15 -> 581 | S111: =R111+Q13 -> 606 | T111: =R111+R13 -> 650 | U111: =R111+S13 -> 581 | V111: =R111+T13 -> 645 | W111: =R111+U13 -> 581 | X111: =R111+V13 -> 637 | Y111: =R111+W13 -> 642 | Z111: =R111+X13 -> 581 | AA111: =R111+Y13 -> 642 | AB111: =R111+Z13 -> 645 | AC111: =R111+AA13 -> 637 | AD111: =R111+AB13 -> 581 | AE111: =R111+AC13 -> 641 | AF111: =R111+AD13 -> 645 | AJ111: 2 | AK111: =MIN((S66+AN35*D19)/AK46,(S67+AN35*D19)/AL46,(S68+AN35*D19)/AM46,(S69+AN35*D19)/AN46,(S70+AN35*D19)/AO46)*AP46 -> 673 | AL111: =MIN((T66+AN35*D19)/AK46,(T67+AN35*D19)/AL46,(T68+AN35*D19)/AM46,(T69+AN35*D19)/AN46,(T70+AN35*D19)/AO46)*AP46 -> 682.6666667 | AM111: =MIN((U66+AN35*D19)/AK46,(U67+AN35*D19)/AL46,(U68+AN35*D19)/AM46,(U69+AN35*D19)/AN46,(U70+AN35*D19)/AO46)*AP46 -> 613.3333333 | AN111: =MIN((V66+AN35*D19)/AK46,(V67+AN35*D19)/AL46,(V68+AN35*D19)/AM46,(V69+AN35*D19)/AN46,(V70+AN35*D19)/AO46)*AP46 -> 673.3333333 | AO111: =MIN((W66+AN35*D19)/AK46,(W67+AN35*D19)/AL46,(W68+AN35*D19)/AM46,(W69+AN35*D19)/AN46,(W70+AN35*D19)/AO46)*AP46 -> 613.3333333 | AP111: =MIN((X66+AN35*D19)/AK46,(X67+AN35*D19)/AL46,(X68+AN35*D19)/AM46,(X69+AN35*D19)/AN46,(X70+AN35*D19)/AO46)*AP46 -> 688 | AQ111: =MIN((Y66+AN35*D19)/AK46,(Y67+AN35*D19)/AL46,(Y68+AN35*D19)/AM46,(Y69+AN35*D19)/AN46,(Y70+AN35*D19)/AO46)*AP46 -> 684 | AR111: =MIN((Z66+AN35*D19)/AK46,(Z67+AN35*D19)/AL46,(Z68+AN35*D19)/AM46,(Z69+AN35*D19)/AN46,(Z70+AN35*D19)/AO46)*AP46 -> 613.3333333 | AS111: =MIN((AA66+AN35*D19)/AK46,(AA67+AN35*D19)/AL46,(AA68+AN35*D19)/AM46,(AA69+AN35*D19)/AN46,(AA70+AN35*D19)/AO46)*AP46 -> 684 | AT111: =MIN((AB66+AN35*D19)/AK46,(AB67+AN35*D19)/AL46,(AB68+AN35*D19)/AM46,(AB69+AN35*D19)/AN46,(AB70+AN35*D19)/AO46)*AP46 -> 677.3333333 | AU111: =MIN((AC66+AN35*D19)/AK46,(AC67+AN35*D19)/AL46,(AC68+AN35*D19)/AM46,(AC69+AN35*D19)/AN46,(AC70+AN35*D19)/AO46)*AP46 -> 678.6666667 | AV111: =MIN((AD66+$AN$35*$D$19)/$AK$46,(AD67+$AN$35*$D$19)/AL46,(AD68+$AN$35*$D$19)/AM46,($AD$69+$AN$35*$D$19)/$AN$46,(AD70+$AN$35*$D$19)/$AO$46)*$AP$46 -> 613.3333333 | AW111: =MIN((AE66+AN35*D19)/AK46,(AE67+AN35*D19)/AL46,(AE68+AN35*D19)/AM46,(AE69+AN35*D19)/AN46,(AE70+AN35*D19)/AO46)*AP46 -> 678 | AX111: =MIN((AF66+AN35*D19)/AK46,(AF67+AN35*D19)/AL46,(AF68+AN35*D19)/AM46,(AF69+AN35*D19)/AN46,(AF70+AN35*D19)/AO46)*AP46 -> 672 | AY111: 688 | BA111: 2 | BB111: =MIN((S66+AO35*D19)/AK47,(S67+AO35*D19)/AL47,(S68+AO35*D19)/AM47,(S69+AO35*D19)/AN47,(S70+AO35*D19)/AO47)*AP47 -> 488 | BC111: =MIN((T66+AO35*D19)/AK47,(T67+AO35*D19)/AL47,(T68+AO35*D19)/AM47,(T69+AO35*D19)/AN47,(T70+AO35*D19)/AO47)*AP47 -> 503.2 | BD111: =MIN((U66+AO35*D19)/AK47,(U67+AO35*D19)/AL47,(U68+AO35*D19)/AM47,(U69+AO35*D19)/AN47,(U70+AO35*D19)/AO47)*AP47 -> 455.2 | BE111: =MIN((V66+AO35*D19)/AK47,(V67+AO35*D19)/AL47,(V68+AO35*D19)/AM47,(V69+AO35*D19)/AN47,(V70+AO35*D19)/AO47)*AP47 -> 513.6 | BF111: =MIN((W66+AO35*D19)/AK47,(W67+AO35*D19)/AL47,(W68+AO35*D19)/AM47,(W69+AO35*D19)/AN47,(W70+AO35*D19)/AO47)*AP47 -> 455.2 | BG111: =MIN((X66+AO35*D19)/AK47,(X67+AO35*D19)/AL47,(X68+AO35*D19)/AM47,(X69+AO35*D19)/AN47,(X70+AO35*D19)/AO47)*AP47 -> 500 | BH111: =MIN((Y66+AO35*D19)/AK47,(Y67+AO35*D19)/AL47,(Y68+AO35*D19)/AM47,(Y69+AO35*D19)/AN47,(Y70+AO35*D19)/AO47)*AP47 -> 504 | BI111: =MIN((Z66+AO35*D19)/AK47,(Z67+AO35*D19)/AL47,(Z68+AO35*D19)/AM47,(Z69+AO35*D19)/AN47,(Z70+AO35*D19)/AO47)*AP47 -> 455.2 | BJ111: =MIN((AA66+AO35*D19)/AK47,(AA67+AO35*D19)/AL47,(AA68+AO35*D19)/AM47,(AA69+AO35*D19)/AN47,(AA70+AO35*D19)/AO47)*AP47 -> 504 | BK111: =MIN((AB66+AO35*D19)/AK47,(AB67+AO35*D19)/AL47,(AB68+AO35*D19)/AM47,(AB69+AO35*D19)/AN47,(AB70+AO35*D19)/AO47)*AP47 -> 506.4 | BL111: =MIN((AC66+AO35*D19)/AK47,(AC67+AO35*D19)/AL47,(AC68+AO35*D19)/AM47,(AC69+AO35*D19)/AN47,(AC70+AO35*D19)/AO47)*AP47 -> 509.6 | BM111: =MIN((AD66+AO35*D19)/AK47,(AD67+AO35*D19)/AL47,(AD68+AO35*D19)/AM47,(AD69+AO35*D19)/AN47,(AD70+AO35*D19)/AO47)*AP47 -> 455.2 | BN111: =MIN((AE66+AO35*D19)/AK47,(AE67+AO35*D19)/AL47,(AE68+AO35*D19)/AM47,(AE69+AO35*D19)/AN47,(AE70+AO35*D19)/AO47)*AP47 -> 497.6 | BO111: =MIN((AF66+AO35*D19)/AK47,(AF67+AO35*D19)/AL47,(AF68+AO35*D19)/AM47,(AF69+AO35*D19)/AN47,(AF70+AO35*D19)/AO47)*AP47 -> 512 | BP111: =MAX(BB111:BO111) -> 513.6 | BQ111: meilleur kit par poste / joueur
E112: grece 9 | F112: 9 | G112: 0.0468 | H112: =IF(G19<>"",IF(ISNA(IF(VLOOKUP(G19,$AI$8:$AV$33,14,FALSE)="","",(HLOOKUP(VLOOKUP(G19,$BA$10:$BB$20,2,FALSE),S114:AF119,6,FALSE)/100+MIN(5000,M19)/500)/100)),G112,IF(VLOOKUP(G19,$AI$8:$AV$33,14,FALSE)="","",(HLOOKUP(VLOOKUP(G19,$BA$10:$BB$20,2,FALSE),S114:AF119,6,FALSE)/100+MIN(5000,M19)/500)/100)),"") -> 0.0641 | I112: =IF(G19<>"",IF(ISNA(IF(VLOOKUP(G19,$AI$8:$AV$29,14,FALSE)="","",((HLOOKUP(VLOOKUP(G19,$BA$10:$BB$20,2,FALSE),$S$114:$AF$119,6,FALSE)+IF(HLOOKUP(F112,$AJ$7:$AT$35,29,FALSE)=1,D19,0))/100+MIN(5000,M19)/500)/100)),H112,IF(VLOOKUP(G19,$AI$8:$AV$29,14,FALSE)="","",((HLOOKUP(VLOOKUP(G19,$BA$10:$BB$20,2,FALSE),$S$114:$AF$119,6,FALSE)+IF(HLOOKUP(F112,$AJ$7:$AT$35,29,FALSE)=1,D19,0))/100+MIN(5000,M19)/500)/100)),"") -> 0.0641 | R112: =L18+AH43+D15+D17+D21+D19*AG15 -> 437 | S112: =R112+Q14 -> 493 | T112: =R112+R14 -> 489 | U112: =R112+S14 -> 437 | V112: =R112+T14 -> 482 | W112: =R112+U14 -> 437 | X112: =R112+V14 -> 493 | Y112: =R112+W14 -> 490 | Z112: =R112+X14 -> 437 | AA112: =R112+Y14 -> 490 | AB112: =R112+Z14 -> 485 | AC112: =R112+AA14 -> 486 | AD112: =R112+AB14 -> 437 | AE112: =R112+AC14 -> 497 | AF112: =R112+AD14 -> 481 | AJ112: 3 | AK112: =MIN((S73+AN35*D19)/AK46,(S74+AN35*D19)/AL46,(S75+AN35*D19)/AM46,(S76+AN35*D19)/AN46,(S77+AN35*D19)/AO46)*AP46 -> 618.6666667 | AL112: =MIN((T73+AN35*D19)/AK46,(T74+AN35*D19)/AL46,(T75+AN35*D19)/AM46,(T76+AN35*D19)/AN46,(T77+AN35*D19)/AO46)*AP46 -> 613.3333333 | AM112: =MIN((U73+AN35*D19)/AK46,(U74+AN35*D19)/AL46,(U75+AN35*D19)/AM46,(U76+AN35*D19)/AN46,(U77+AN35*D19)/AO46)*AP46 -> 544 | AN112: =MIN((V73+AN35*D19)/AK46,(V74+AN35*D19)/AL46,(V75+AN35*D19)/AM46,(V76+AN35*D19)/AN46,(V77+AN35*D19)/AO46)*AP46 -> 604 | AO112: =MIN((W73+AN35*D19)/AK46,(W74+AN35*D19)/AL46,(W75+AN35*D19)/AM46,(W76+AN35*D19)/AN46,(W77+AN35*D19)/AO46)*AP46 -> 544 | AP112: =MIN((X73+AN35*D19)/AK46,(X74+AN35*D19)/AL46,(X75+AN35*D19)/AM46,(X76+AN35*D19)/AN46,(X77+AN35*D19)/AO46)*AP46 -> 618.6666667 | AQ112: =MIN((Y73+AN35*D19)/AK46,(Y74+AN35*D19)/AL46,(Y75+AN35*D19)/AM46,(Y76+AN35*D19)/AN46,(Y77+AN35*D19)/AO46)*AP46 -> 614.6666667 | AR112: =MIN((Z73+AN35*D19)/AK46,(Z74+AN35*D19)/AL46,(Z75+AN35*D19)/AM46,(Z76+AN35*D19)/AN46,(Z77+AN35*D19)/AO46)*AP46 -> 544 | AS112: =MIN((AA73+AN35*D19)/AK46,(AA74+AN35*D19)/AL46,(AA75+AN35*D19)/AM46,(AA76+AN35*D19)/AN46,(AA77+AN35*D19)/AO46)*AP46 -> 614.6666667 | AT112: =MIN((AB73+AN35*D19)/AK46,(AB74+AN35*D19)/AL46,(AB75+AN35*D19)/AM46,(AB76+AN35*D19)/AN46,(AB77+AN35*D19)/AO46)*AP46 -> 608 | AU112: =MIN((AC73+AN35*D19)/AK46,(AC74+AN35*D19)/AL46,(AC75+AN35*D19)/AM46,(AC76+AN35*D19)/AN46,(AC77+AN35*D19)/AO46)*AP46 -> 609.3333333 | AV112: =MIN((AD73+AN35*D19)/AK46,(AD74+AN35*D19)/AL46,(AD75+AN35*D19)/AM46,(AD76+AN35*D19)/AN46,(AD77+AN35*D19)/AO46)*AP46 -> 544 | AW112: =MIN((AE73+AN35*D19)/AK46,(AE74+AN35*D19)/AL46,(AE75+AN35*D19)/AM46,(AE76+AN35*D19)/AN46,(AE77+AN35*D19)/AO46)*AP46 -> 624 | AX112: =MIN((AF73+AN35*D19)/AK46,(AF74+AN35*D19)/AL46,(AF75+AN35*D19)/AM46,(AF76+AN35*D19)/AN46,(AF77+AN35*D19)/AO46)*AP46 -> 602.6666667 | AY112: 624 | BA112: 3 | BB112: =MIN((S73+AO35*D19)/AK47,(S74+AO35*D19)/AL47,(S75+AO35*D19)/AM47,(S76+AO35*D19)/AN47,(S77+AO35*D19)/AO47)*AP47 -> 435.2 | BC112: =MIN((T73+AO35*D19)/AK47,(T74+AO35*D19)/AL47,(T75+AO35*D19)/AM47,(T76+AO35*D19)/AN47,(T77+AO35*D19)/AO47)*AP47 -> 450.4 | BD112: =MIN((U73+AO35*D19)/AK47,(U74+AO35*D19)/AL47,(U75+AO35*D19)/AM47,(U76+AO35*D19)/AN47,(U77+AO35*D19)/AO47)*AP47 -> 402.4 | BE112: =MIN((V73+AO35*D19)/AK47,(V74+AO35*D19)/AL47,(V75+AO35*D19)/AM47,(V76+AO35*D19)/AN47,(V77+AO35*D19)/AO47)*AP47 -> 460.8 | BF112: =MIN((W73+AO35*D19)/AK47,(W74+AO35*D19)/AL47,(W75+AO35*D19)/AM47,(W76+AO35*D19)/AN47,(W77+AO35*D19)/AO47)*AP47 -> 402.4 | BG112: =MIN((X73+AO35*D19)/AK47,(X74+AO35*D19)/AL47,(X75+AO35*D19)/AM47,(X76+AO35*D19)/AN47,(X77+AO35*D19)/AO47)*AP47 -> 447.2 | BH112: =MIN((Y73+AO35*D19)/AK47,(Y74+AO35*D19)/AL47,(Y75+AO35*D19)/AM47,(Y76+AO35*D19)/AN47,(Y77+AO35*D19)/AO47)*AP47 -> 451.2 | BI112: =MIN((Z73+AO35*D19)/AK47,(Z74+AO35*D19)/AL47,(Z75+AO35*D19)/AM47,(Z76+AO35*D19)/AN47,(Z77+AO35*D19)/AO47)*AP47 -> 402.4 | BJ112: =MIN((AA73+AO35*D19)/AK47,(AA74+AO35*D19)/AL47,(AA75+AO35*D19)/AM47,(AA76+AO35*D19)/AN47,(AA77+AO35*D19)/AO47)*AP47 -> 451.2 | BK112: =MIN((AB73+AO35*D19)/AK47,(AB74+AO35*D19)/AL47,(AB75+AO35*D19)/AM47,(AB76+AO35*D19)/AN47,(AB77+AO35*D19)/AO47)*AP47 -> 453.6 | BL112: =MIN((AC73+AO35*D19)/AK47,(AC74+AO35*D19)/AL47,(AC75+AO35*D19)/AM47,(AC76+AO35*D19)/AN47,(AC77+AO35*D19)/AO47)*AP47 -> 456.8 | BM112: =MIN((AD73+AO35*D19)/AK47,(AD74+AO35*D19)/AL47,(AD75+AO35*D19)/AM47,(AD76+AO35*D19)/AN47,(AD77+AO35*D19)/AO47)*AP47 -> 402.4 | BN112: =MIN((AE73+AO35*D19)/AK47,(AE74+AO35*D19)/AL47,(AE75+AO35*D19)/AM47,(AE76+AO35*D19)/AN47,(AE77+AO35*D19)/AO47)*AP47 -> 444.8 | BO112: =MIN((AF73+AO35*D19)/AK47,(AF74+AO35*D19)/AL47,(AF75+AO35*D19)/AM47,(AF76+AO35*D19)/AN47,(AF77+AO35*D19)/AO47)*AP47 -> 459.2 | BP112: 460.8 | BS112: 1 | BU112: 2 | BW112: 3 | BY112: 4 | CA112: 5 | CC112: 6 | CE112: 7 | CG112: 8 | CI112: 9 | CK112: 10 | CM112: 11 | CP112: resultat match selon stratégie
